Workbook

Sheet Intro
G2: Electricity Distribution Network Service Provider
H3: Post-Tax Revenue Model
K4: Version: | L4: 3
K5: Date: | L5: January 2015
B8: Introduction | J8: Electricity Distribution Module
C13: This model illustrates the basic elements of the AER's building block calculation and associated price and revenue constraints for distribution businesses.
C14: The model is intended to produce X factors that are applicable to revenue caps, price caps and revenue yield forms of control.
C15: Building block revenues and cash flows are modelled in nominal terms unless specified otherwise.
C17: INSTRUCTIONS FOR USE
C18: The full PTRM handbook is available on the AER website at http://www.aer.gov.au/node/27616
C20: 1. Prior to the commencement of the regulatory control period
C22: 1a. Fill out input cells on the 'DMS Input' sheet. These input cells are highlighted blue.
C23: This provides information on the service provider submitting the PTRM and the context for the PTRM preparation.
C24: This information also controls the automatic import of the PTRM into the AER's Data Management System (DMS).
C26: 1b. Fill out input cells on the 'PTRM Input' sheet. These input cells are highlighted blue.
C27: This provides the data for the PTRM calculations.
C28: In general, input expenditure data should be valued in real dollar terms of the year indicated, as at the end of that year.
C29: Units and basis for entry are specified where required for each data table.
C30: Review any cautions (which are generated based on data entered) before continuing.
C32: 1c. Determine the expected revenue (smoothed revenue) using the 'X factors' sheet
C33: Clause 6.2.6 requires that the form of control applicable to standard control services be of a CPI–X form.
C34: This sheet provides for the calculation of X factors under three basic forms of control, namely a weighted average price cap, revenue cap and revenue yield.
C35: The X factor values may differ for each year of the regulatory control period but must be set such that the NPV of annual expected revenues (smoothed) is equal to the NPV of the annual revenue requirements (unsmoothed) for that period.
C36: This sheet provides input cells for each X factor and contains macro buttons which should be used to goal seek an X factor value for a specific year to equate the NPVs of smoothed and unsmoothed revenues.
C38: 2. Within the regulatory control period when updating the annual return on debt
C40: 2a. Update input cells on the 'DMS Input' sheet. These input cells are highlighted blue.
C41: Check that the contact details are still current and describe the new amendment.
C43: 2b. Update input cells on the 'PTRM Input' sheet. These input cells are highlighted blue.
C44: In general, the only row that should be changed is the Trailing Average Portfolio Return on Debt (row 222).
C45: The basis for updating the annual return on debt will be in accordance with the relevant regulatory decision prior to the commencement of the period.
C47: 2c. Determine the expected revenue (smoothed revenue) using the 'X factors' sheet
C48: Indicate the year of the annual debt update (cell F21) to ensure the correct content-sensitive cautions are displayed.
C49: Enter new X factors for this year (and potentially later years within the regulatory control period) in order to equate the NPVs of smoothed and unsmoothed revenues.
C50: The macro buttons should be used to goal seek the X factor for these specific years.
C51: Note that X factors for earlier years within the regulatory control period should not be changed.
C54: VERSION RECORD
C56: Version | D56: Date | F56: Description
C57: 1 | D57: June 2008 | F57: Initial model, based on transmission PTRM
C59: 2 | D59: June 2009 | F59: Various non-consequential errors corrected
C61: 3 | D61: January 2015 | F61: Allowed time-varying return on debt, and revenue revisions for annual return on debt update
F62: Explicitly recognised revenue adjustments in building block calculations
F63: Incorporated equity raising cost calculations into automatic smoothing process
F64: Revised and expanded summary tables and reporting
F65: Standardised many elements with transmission PTRM
F66: Enabled automatic import into AER DMS

Sheet DMS input
B2: =C16&" - DMS Input"&" - DNSP PTRM - version "&Intro!$L$4 -> Ergon - DMS Input - DNSP PTRM - version 3 | G2: Input cells are in blue
B6: This sheet requests information that allows the AER to automatically import the PTRM into our data management system (DMS).
B7: This sheet's metadata relates to the business and context for the PTRM (rather than the PTRM itself).
B8: Some of this data is automatically populated based on data entered on the PTRM input sheet. Only change blue input cells.
B9: Some rows are hidden. To facilitate the automatic import, please do not delete or add rows on this sheet.
B10: Throughout the rest of the workbook, defined name ranges are used to identify data that is imported into the DMS.
B12: Entity details
B14: Trading name | C14: Ergon Energy
B15: ACN / ABN | C15: 50087646062
B16: Business short name | C16: Ergon
B18: Business address | C18: Address 1 | E18: 22 Walker Street
D19: Address 2
C20: Suburb | E20: Townsville
D21: State | E21: QLD | F21: Postcode | G21: 4810
B23: Postal address | C23: Address 1 | E23: Level 4, 22 Walker Street
D24: Address 2
C25: Suburb | E25: Townsville
D26: State | E26: Qld | F26: Postcode | G26: 4810
B29: Contact name/s | C29: Jenny Doyle
B30: Contact phone/s | C30: 738516416
B31: Contact email address/s | C31: jenny.doyle@ergon.com.au
B33: Regulatory process details
B35: Forthcoming regulatory control period | C35: ='PTRM input'!G70 -> 2015-16 | D35: =IF(COUNTA($C35:C35)>='PTRM input'!$R$7,"",'PTRM input'!H70) -> 2016-17 | E35: =IF(COUNTA($C35:D35)>='PTRM input'!$R$7,"",'PTRM input'!I70) -> 2017-18 | F35: =IF(COUNTA($C35:E35)>='PTRM input'!$R$7,"",'PTRM input'!J70) -> 2018-19 | G35: =IF(COUNTA($C35:F35)>='PTRM input'!$R$7,"",'PTRM input'!K70) -> 2019-20 | H35: =IF(COUNTA($C35:G35)>='PTRM input'!$R$7,"",'PTRM input'!L70) ->  | I35: =IF(COUNTA($C35:H35)>='PTRM input'!$R$7,"",'PTRM input'!M70) ->  | J35: =IF(COUNTA($C35:I35)>='PTRM input'!$R$7,"",'PTRM input'!N70) ->  | K35: =IF(COUNTA($C35:J35)>='PTRM input'!$R$7,"",'PTRM input'!O70) ->  | L35: =IF(COUNTA($C35:K35)>='PTRM input'!$R$7,"",'PTRM input'!P70) -> 
B36: Year prior to the FRCP | C36: ='PTRM input'!F391 -> 2014-15
B38: Current regulatory control period
B41: Previous regulatory control period
B44: Sector | C44: Electricity
B45: Segment | C45: Distribution
B46: Source | C46: Final decision
B47: Regulatory Year Ending | C47: =LEFT('X factors'!$F$21,2)&RIGHT('X factors'!$F$21,2) -> 2019
B48: Reporting Period Type | C48: =IF(LEN(C35)=4,"Calendar",IF(LEN(C35)=7,"Financial","Other")) -> Financial
B49: RIN or Model Type | C49: PTRM
B50: Security Classification | C50: Public
B51: Data quality (Actual, estimate, consolidated) | C51: Consolidated
B52: Model response - version no.
B53: Amended model submission - reason
B54: Model template - version no. | C54: 3
B55: $ real | C55: ='PTRM input'!F391 -> 2014-15
B56: Form of control | C56: Revenue Cap

Sheet PTRM input
E2: ='DMS input'!$C$16&" - PTRM Input"&" - DNSP PTRM - version "&Intro!$L$4 -> Ergon - PTRM Input - DNSP PTRM - version 3 | I2: Input cells are in blue
E5: ="Opening Regulatory Asset Base and Opening Tax Asset Base for "&Q7&" ($m Nominal)" -> Opening Regulatory Asset Base and Opening Tax Asset Base for 2015-16 ($m Nominal)
G6: Asset Class Name | J6: Opening Asset Value | K6: Assets Under Construction | L6: Remaining Life | M6: Standard Life | N6: Opening Tax Value | O6: Tax Remaining Life | P6: Tax Standard Life | Q6: Base Regulatory Year | R6: Length of Regulatory Control Period (Year) | T6: Working for ERC standard life
E7: Asset Class 1 | G7: Overhead Sub-Transmission Lines (pre July 2010) | J7: 1004.637556 | L7: 30.14007371 | M7: 55 | N7: 269.6579913 | O7: 8.901759958 | P7: 45 | Q7: 2015-16 | R7: 5 | T7: =M7*(J7/SUM($J$7:$J$21,$J$23:$J$27,$J$29:$J$52)) -> 5.668634088
E8: Asset Class 2 | G8: Underground Sub-Transmission Cables (pre July 2010) | J8: 22.71782545 | L8: 18.21579504 | M8: 45 | N8: 27.08654401 | O8: 27.7688608 | P8: 50 | T8: =M8*(J8/SUM($J$7:$J$21,$J$23:$J$27,$J$29:$J$52)) -> 0.10487829
E9: Asset Class 3 | G9: Overhead Distribution Lines (pre July 2010) | J9: 2020.053834 | L9: 29.86586416 | M9: 50 | N9: 751.9663964 | O9: 17.11677483 | P9: 45 | T9: 10.36189706
E10: Asset Class 4 | G10: Underground Distribution Cables (pre July 2010) | J10: 572.0569702 | L10: 42.0584475 | M10: 60 | N10: 282.0232285 | O10: 25.60899134 | P10: 50 | T10: 3.52124998
E11: Asset Class 5 | G11: Distribution Equipment (pre July 2010) | J11: 31.56007779 | L11: 14.06861614 | M11: 35 | N11: 13.99932613 | O11: 38.30932703 | P11: 45 | T11: 0.1133215314
E12: Asset Class 6 | G12: Substation Bays (pre July 2010) | J12: 803.9283868 | L12: 27.66728117 | M12: 45 | N12: 400.0225223 | O12: 33.3975571 | P12: 40 | T12: 3.711386667
E13: Asset Class 7 | G13: Substation Establishment (pre July 2010) | J13: 252.5794822 | L13: 26.22539844 | M13: 60 | N13: 108.793167 | O13: 30.11891166 | P13: 40 | T13: 1.554732383
E14: Asset Class 8 | G14: Distribution Substation Switchgear (pre July 2010) | J14: 116.6243264 | L14: 30.35456516 | M14: 45 | N14: 68.96033905 | O14: 27.38664736 | P14: 40 | T14: 0.5384036401
E15: Asset Class 9 | G15: Zone Transformers (pre July 2010) | J15: 252.2131491 | L15: 22.54445769 | M15: 50 | N15: 145.3345178 | O15: 12.16592103 | P15: 40 | T15: 1.293731208
E16: Asset Class 10 | G16: Distribution Transformers (pre July 2010) | J16: 694.0210042 | L16: 17.26832216 | M16: 45 | N16: 408.7445622 | O16: 12.41987157 | P16: 40 | T16: 3.203992226
E17: Asset Class 11 | G17: Low Voltage Services (pre July 2010) | J17: 4.765606089 | L17: 1 | M17: 35 | N17: 71.02633509 | O17: 3.482461462 | P17: 40 | T17: 0.01711167455
E18: Asset Class 12 | G18: Communications – Pilot Wires (pre July 2010) | J18: 20.15680235 | L18: 14.95018036 | M18: 35 | N18: 9.092832315 | O18: 3.655558177 | P18: 10 | T18: 0.07237623827
E19: Asset Class 13 | G19: Generation Assets (pre July 2010) | J19: 0.2943823262 | L19: 0.6089275458 | M19: 30 | N19: 0.2299502488 | O19: 0.5993074512 | P19: 15 | T19: 0.0009060231883
E20: Asset Class 14 | G20: Other Equipment (pre July 2010) | J20: 23.52122559 | L20: 31.78540761 | M20: 40 | N20: 17.65304345 | O20: 31.7693879 | P20: 40 | T20: 0.09652198929
E21: Asset Class 15 | G21: Control Centre - SCADA (pre July 2010) | J21: 3.881568856 | L21: 1 | M21: 7 | N21: 18.26849222 | O21: 3.080712091 | P21: 10 | T21: 0.002787479359
E22: Asset Class 16 | G22: Land & Easements (System) - combined | J22: 91.34508673 | L22: n/a | M22: n/a | N22: 48.12527827 | O22: n/a | P22: n/a | T22: n/a
E23: Asset Class 17 | G23: IT Systems (pre July 2010) | J23: 59.21894947 | L23: 1 | M23: 5 | N23: 0 | O23: n/a | P23: 4 | T23: 0.03037645075
E24: Asset Class 18 | G24: Office Equipment & Furniture (pre July 2010) | J24: 2.71161816 | L24: 0.2342624316 | M24: 7 | N24: 3.012563288 | O24: 2.904898249 | P24: 10 | T24: 0.001947300158
E25: Asset Class 19 | G25: Motor Vehicles (pre July 2010) | J25: 13.8878415 | L25: 2.009067144 | M25: 10 | N25: 44.78514751 | O25: 6.267235645 | P25: 13.5 | T25: 0.0142475791
E26: Asset Class 20 | G26: Plant & Equipment (pre July 2010) | J26: 41.91400354 | L26: 2.38791778 | M26: 10 | N26: 0 | O26: n/a | P26: 5 | T26: 0.04299970452
E27: Asset Class 21 | G27: Buildings (pre July 2010) | J27: 9.062409863 | L27: 3.869977153 | M27: 40 | N27: 126.2188425 | O27: 20.21299996 | P27: 40 | T27: 0.03718861606
E28: Asset Class 22 | G28: Land & Easements - combined | J28: 26.03984835 | L28: n/a | M28: n/a | N28: 36.85556544 | O28: n/a | P28: n/a | T28: n/a
E29: Asset Class 23 | G29: Land Improvements (pre July 2010) | J29: 20.4304384 | L29: 32.31467795 | M29: 40 | N29: 14.279802 | O29: 33.45169736 | P29: 40 | T29: 0.08383859716
E30: Asset Class 24 | G30: Overhead Sub-Transmission Lines (Capex: 2010-15 RL; 2015-20 SL) | J30: 142.7554315 | L30: 53.09607525 | M30: 55 | N30: 130.3047999 | O30: 43.15601256 | P30: 45 | T30: 0.8054927878
E31: Asset Class 25 | G31: Underground Sub-Transmission Cables (Capex: 2010-15 RL; 2015-20 SL) | J31: 14.31394913 | L31: 43.10333653 | M31: 45 | N31: 13.23958277 | O31: 48.15746013 | P31: 50 | T31: 0.06608125901
E32: Asset Class 26 | G32: Overhead Distribution Lines (Capex: 2010-15 RL; 2015-20 SL) | J32: 1160.72371 | L32: 48.04309981 | M32: 50 | N32: 1061.758154 | O32: 43.09758514 | P32: 45 | T32: 5.953950034
E33: Asset Class 27 | G33: Underground Distribution Cables (Capex: 2010-15 RL; 2015-20 SL) | J33: 328.0913809 | L33: 57.97958107 | M33: 60 | N33: 298.9563318 | O33: 48.03412311 | P33: 50 | T33: 2.019539711
E34: Asset Class 28 | G34: Distribution Equipment (Capex: 2010-15 RL; 2015-20 SL) | J34: 61.81004225 | L34: 34.2924217 | M34: 35 | N34: 58.71113733 | O34: 44.32722085 | P34: 45 | T34: 0.2219388903
E35: Asset Class 29 | G35: Substation Bays (Capex: 2010-15 RL; 2015-20 SL) | J35: 353.2651988 | L35: 42.9710676 | M35: 45 | N35: 322.2475006 | O35: 38.02448787 | P35: 40 | T35: 1.630871319
E36: Asset Class 30 | G36: Substation Establishment (Capex: 2010-15 RL; 2015-20 SL) | J36: 63.45297358 | L36: 57.75489158 | M36: 60 | N36: 56.79925099 | O36: 37.82618962 | P36: 40 | T36: 0.3905795988
E37: Asset Class 31 | G37: Distribution Substation Switchgear (Capex: 2010-15 RL; 2015-20 SL) | J37: 176.6127613 | L37: 42.79064586 | M37: 45 | N37: 160.2604686 | O37: 37.82743935 | P37: 40 | T37: 0.8153440758
E38: Asset Class 32 | G38: Zone Transformers (Capex: 2010-15 RL; 2015-20 SL) | J38: 136.700923 | L38: 48.40254239 | M38: 50 | N38: 125.6373413 | O38: 38.46216159 | P38: 40 | T38: 0.7012094768
E39: Asset Class 33 | G39: Distribution Transformers (Capex: 2010-15 RL; 2015-20 SL) | J39: 449.4611872 | L39: 42.99980302 | M39: 45 | N39: 410.2348875 | O39: 38.05559226 | P39: 40 | T39: 2.074966234
E40: Asset Class 34 | G40: Low Voltage Services (Capex: 2010-15 RL; 2015-20 SL) | J40: 124.5359388 | L40: 33.43111409 | M40: 35 | N40: 116.1228286 | O40: 38.47410846 | P40: 40 | T40: 0.4471663029
E41: Asset Class 35 | G41: Metering (Capex: 2010-15 RL; 2015-20 SL) | J41: 43.64915303 | L41: 22.30958984 | M41: 25 | N41: 48.18748491 | O41: 22.33778889 | P41: 25 | T41: 0.1119494992
E42: Asset Class 36 | G42: Communications – Pilot Wires (Capex: 2010-15 RL; 2015-20 SL) | J42: 100.5888344 | L42: 31.64561153 | M42: 35 | N42: 65.77347706 | O42: 6.774588864 | P42: 10 | T42: 0.3611803758
E43: Asset Class 37 | G43: Generation Assets (Capex: 2010-15 RL; 2015-20 SL) | J43: 3.084341952 | L43: 29.86526711 | M43: 30 | N43: 2.939449601 | O43: 14.89527486 | P43: 15 | T43: 0.009492707547
E44: Asset Class 38 | G44: Other Equipment (Capex: 2010-15 RL; 2015-20 SL) | J44: 44.69245187 | L44: 39.9916741 | M44: 40 | N44: 42.90899398 | O44: 39.99240513 | P44: 40 | T44: 0.1834004927
E45: Asset Class 39 | G45: Control Centre - SCADA (Capex: 2010-15 RL; 2015-20 SL) | J45: 34.00376486 | L45: 4.672045739 | M45: 7 | N45: 36.75602128 | O45: 7.566078882 | P45: 10 | T45: 0.02441919651
E46: Asset Class 40 | G46: Communications (Capex: 2010-15 RL; 2015-20 SL) | J46: 72.90833962 | L46: 27.8786022 | M46: 30 | N46: 56.45370735 | O46: 7.946169261 | P46: 10 | T46: 0.2243906663
E47: Asset Class 41 | G47: IT Systems (Capex: 2010-15 RL; 2015-20 SL) | J47: 23.02262703 | L47: 3.681978669 | M47: 5 | N47: 17.86354989 | O47: 3.094102597 | P47: 4 | T47: 0.01180949177
E48: Asset Class 42 | G48: Office Equipment & Furniture (Capex: 2010-15 RL; 2015-20 SL) | J48: 17.77712654 | L48: 4.953815154 | M48: 7 | N48: 18.80599388 | O48: 7.86004491 | P48: 10 | T48: 0.01276632597
E49: Asset Class 43 | G49: Motor Vehicles (Capex: 2010-15 RL; 2015-20 SL) | J49: 86.74664311 | L49: 8.395126141 | M49: 10 | N49: 85.02055485 | O49: 11.87102039 | P49: 13.5 | T49: 0.08899364667
E50: Asset Class 44 | G50: Plant & Equipment (Capex: 2010-15 RL; 2015-20 SL) | J50: 52.38985451 | L50: 7.740325446 | M50: 10 | N50: 32.07071063 | O50: 3.229355813 | P50: 5 | T50: 0.05374691209
E51: Asset Class 45 | G51: Buildings (Capex: 2010-15 RL; 2015-20 SL) | J51: 254.1745345 | L51: 37.83661115 | M51: 40 | N51: 232.5279028 | O51: 37.90838489 | P51: 40 | T51: 1.043033732
E52: Asset Class 46 | G52: Land Improvements (Capex: 2010-15 RL; 2015-20 SL) | J52: 32.51103943 | L52: 37.92899466 | M52: 40 | N52: 29.79977857 | O52: 37.95231878 | P52: 40 | T52: 0.1334126994
E53: Asset Class 47 | G53: Equity Raising Costs (Capex: 2010-15 RL; 2015-20 SL) | J53: 8.085364844 | L53: 43.97774512 | M53: =T67 -> 47.85826416 | N53: 1.546522504 | O53: 1 | P53: 5
E54: Asset Class 48
E55: Asset Class 49
E56: Asset Class 50
E57: Asset Class 51
E58: Asset Class 52
E59: Asset Class 53
E60: Asset Class 54
E61: Asset Class 55
E62: Asset Class 56
E63: Asset Class 57
E64: Asset Class 58
E65: Asset Class 59
E66: Asset Class 60
E67: Total | J67: =SUM(J7:J66)+K67 -> 9872.979966 | K67: =SUM(K7:K66) -> 0 | N67: =SUM(N7:N66) -> 6291.062878 | T67: =SUM(T7:T66) -> 47.85826416
E69: ="Forecast Capital Expenditure – As Incurred ($m Real "&$F$391&")" -> Forecast Capital Expenditure – As Incurred ($m Real 2014-15)
E70: Year | G70: =Q7 -> 2015-16 | H70: =(LEFT(G70,4)+1&IF(MID(G70,5,1)="","","-"&TEXT(MOD(MID(G70,6,2)+1,100),"00"))) -> 2016-17 | I70: =(LEFT(H70,4)+1&IF(MID(H70,5,1)="","","-"&TEXT(MOD(MID(H70,6,2)+1,100),"00"))) -> 2017-18 | J70: 2018-19 | K70: 2019-20 | L70: 2020-21 | M70: 2021-22 | N70: 2022-23 | O70: 2023-24 | P70: 2024-25
E71: =Asset1 -> Overhead Sub-Transmission Lines (pre July 2010)
E72: =Asset2 -> Underground Sub-Transmission Cables (pre July 2010)
E73: =Asset3 -> Overhead Distribution Lines (pre July 2010)
E74: =Asset4 -> Underground Distribution Cables (pre July 2010)
E75: =Asset5 -> Distribution Equipment (pre July 2010)
E76: =Asset6 -> Substation Bays (pre July 2010)
E77: =Asset7 -> Substation Establishment (pre July 2010)
E78: =Asset8 -> Distribution Substation Switchgear (pre July 2010)
E79: =Asset9 -> Zone Transformers (pre July 2010)
E80: =Asset10 -> Distribution Transformers (pre July 2010)
E81: =Asset11 -> Low Voltage Services (pre July 2010)
E82: =Asset12 -> Communications – Pilot Wires (pre July 2010)
E83: =Asset13 -> Generation Assets (pre July 2010)
E84: =Asset14 -> Other Equipment (pre July 2010)
E85: =Asset15 -> Control Centre - SCADA (pre July 2010)
E86: =Asset16 -> Land & Easements (System) - combined | G86: 3.019295857 | H86: 3.225819791 | I86: 3.001649442 | J86: 1.804495041 | K86: 1.830012683
E87: =Asset17 -> IT Systems (pre July 2010)
E88: =Asset18 -> Office Equipment & Furniture (pre July 2010)
E89: =Asset19 -> Motor Vehicles (pre July 2010)
E90: =Asset20 -> Plant & Equipment (pre July 2010)
E91: =Asset21 -> Buildings (pre July 2010)
E92: =Asset22 -> Land & Easements - combined | G92: 0 | H92: 0 | I92: 0 | J92: 0 | K92: 0
E93: =Asset23 -> Land Improvements (pre July 2010)
E94: =Asset24 -> Overhead Sub-Transmission Lines (Capex: 2010-15 RL; 2015-20 SL) | G94: 25.38796488 | H94: 21.49116643 | I94: 21.82395834 | J94: 19.47176044 | K94: 20.13853406
E95: =Asset25 -> Underground Sub-Transmission Cables (Capex: 2010-15 RL; 2015-20 SL) | G95: 0.7160044461 | H95: 0.7463997921 | I95: 0.7611019953 | J95: 0.7217980164 | K95: 0.7471152696
E96: =Asset26 -> Overhead Distribution Lines (Capex: 2010-15 RL; 2015-20 SL) | G96: 219.3216511 | H96: 195.3765801 | I96: 182.2112384 | J96: 181.5154151 | K96: 186.1156477
E97: =Asset27 -> Underground Distribution Cables (Capex: 2010-15 RL; 2015-20 SL) | G97: 37.78433101 | H97: 40.116844 | I97: 38.54254711 | J97: 35.0575618 | K97: 35.8867166
E98: =Asset28 -> Distribution Equipment (Capex: 2010-15 RL; 2015-20 SL) | G98: 12.2324615 | H98: 17.27872622 | I98: 19.73734163 | J98: 20.24391646 | K98: 20.44913255
E99: =Asset29 -> Substation Bays (Capex: 2010-15 RL; 2015-20 SL) | G99: 34.37683997 | H99: 38.72699611 | I99: 47.06004809 | J99: 41.41945594 | K99: 35.53414535
E100: =Asset30 -> Substation Establishment (Capex: 2010-15 RL; 2015-20 SL) | G100: 13.21588929 | H100: 11.61638297 | I100: 10.56991086 | J100: 10.70946824 | K100: 10.11543708
E101: =Asset31 -> Distribution Substation Switchgear (Capex: 2010-15 RL; 2015-20 SL) | G101: 10.06719504 | H101: 9.977735151 | I101: 9.364120055 | J101: 7.805490177 | K101: 7.848907607
E102: =Asset32 -> Zone Transformers (Capex: 2010-15 RL; 2015-20 SL) | G102: 27.00113152 | H102: 27.2907786 | I102: 26.41622543 | J102: 27.73886563 | K102: 33.61179258
E103: =Asset33 -> Distribution Transformers (Capex: 2010-15 RL; 2015-20 SL) | G103: 70.33234035 | H103: 72.92411762 | I103: 68.02883565 | J103: 65.41504349 | K103: 66.69472828
E104: =Asset34 -> Low Voltage Services (Capex: 2010-15 RL; 2015-20 SL) | G104: 33.88512608 | H104: 36.23041749 | I104: 34.09565905 | J104: 34.32737078 | K104: 34.53519347
E105: =Asset35 -> Metering (Capex: 2010-15 RL; 2015-20 SL) | G105: 3.502383194 | H105: 4.315391901 | I105: 4.233095367 | J105: 3.273270074 | K105: 3.055617507
E106: =Asset36 -> Communications – Pilot Wires (Capex: 2010-15 RL; 2015-20 SL) | G106: 25.05152905 | H106: 24.09069674 | I106: 8.970741495 | J106: 9.987670227 | K106: 6.556146354
E107: =Asset37 -> Generation Assets (Capex: 2010-15 RL; 2015-20 SL) | G107: 2.268785173 | H107: 3.663364497 | I107: 4.463991478 | J107: 1.225378028 | K107: 0.9066117878
E108: =Asset38 -> Other Equipment (Capex: 2010-15 RL; 2015-20 SL) | G108: 26.31100675 | H108: 17.78490539 | I108: 9.637774705 | J108: 11.27179926 | K108: 9.418689129
E109: =Asset39 -> Control Centre - SCADA (Capex: 2010-15 RL; 2015-20 SL) | G109: 2.924403702 | H109: 3.0199164 | I109: 2.916132364 | J109: 2.903978066 | K109: 2.938093757
E110: =Asset40 -> Communications (Capex: 2010-15 RL; 2015-20 SL) | G110: 0 | H110: 0 | I110: 0 | J110: 0 | K110: 0
E111: =Asset41 -> IT Systems (Capex: 2010-15 RL; 2015-20 SL) | G111: 2.67 | H111: 6.02 | I111: 8.1 | J111: 2.5 | K111: 6.33
E112: =Asset42 -> Office Equipment & Furniture (Capex: 2010-15 RL; 2015-20 SL) | G112: 3.64 | H112: 1.87 | I112: 1.2 | J112: 1.13 | K112: 0.59
E113: =Asset43 -> Motor Vehicles (Capex: 2010-15 RL; 2015-20 SL) | G113: 33.23 | H113: 35.1 | I113: 39.45 | J113: 34.45 | K113: 32.67
E114: =Asset44 -> Plant & Equipment (Capex: 2010-15 RL; 2015-20 SL) | G114: 6.55 | H114: 6.99 | I114: 7.3 | J114: 6.76 | K114: 7.57
E115: =Asset45 -> Buildings (Capex: 2010-15 RL; 2015-20 SL) | G115: 103.1398701 | H115: 54.35365785 | I115: 37.7125369 | J115: 35.69474323 | K115: 23.52513316
E116: =Asset46 -> Land Improvements (Capex: 2010-15 RL; 2015-20 SL) | G116: 0 | H116: 0 | I116: 0 | J116: 0 | K116: 0
E117: =Asset47 -> Equity Raising Costs (Capex: 2010-15 RL; 2015-20 SL) | G117: 0
E118: =Asset48 -> 0
E119: =Asset49 -> 0
E120: =Asset50 -> 0
E121: =Asset51 -> 0
E122: =Asset52 -> 0
E123: =Asset53 -> 0
E124: =Asset54 -> 0
E125: =Asset55 -> 0
E126: =Asset56 -> 0
E127: =Asset57 -> 0
E128: =Asset58 -> 0
E129: =Asset59 -> 0
E130: =Asset60 -> 0
E131: Total | G131: =SUM(G71:G130) -> 696.628209 | H131: =SUM(H71:H130) -> 632.209897 | I131: =SUM(I71:I130) -> 585.5969083 | J131: 555.42748 | K131: 547.0676549 | L131: =SUM(L71:L100) -> 0 | M131: =SUM(M71:M100) -> 0 | N131: 0 | O131: 0 | P131: 0
Q132: =SUM(OFFSET(G131,0,0,1,$R$7)) -> 3016.930149
E133: ="Forecast Asset Disposal – as incurred ($m Real "&$F$391&")" -> Forecast Asset Disposal – as incurred ($m Real 2014-15)
E134: =E70 -> Year | G134: =G70 -> 2015-16 | H134: =H70 -> 2016-17 | I134: 2017-18 | J134: 2018-19 | K134: 2019-20 | L134: 2020-21 | M134: 2021-22 | N134: 2022-23 | O134: 2023-24 | P134: 2024-25
E135: =Asset1 -> Overhead Sub-Transmission Lines (pre July 2010)
E136: =Asset2 -> Underground Sub-Transmission Cables (pre July 2010)
E137: =Asset3 -> Overhead Distribution Lines (pre July 2010)
E138: =Asset4 -> Underground Distribution Cables (pre July 2010)
E139: =Asset5 -> Distribution Equipment (pre July 2010)
E140: =Asset6 -> Substation Bays (pre July 2010)
E141: =Asset7 -> Substation Establishment (pre July 2010)
E142: =Asset8 -> Distribution Substation Switchgear (pre July 2010)
E143: =Asset9 -> Zone Transformers (pre July 2010)
E144: =Asset10 -> Distribution Transformers (pre July 2010)
E145: =Asset11 -> Low Voltage Services (pre July 2010)
E146: =Asset12 -> Communications – Pilot Wires (pre July 2010)
E147: =Asset13 -> Generation Assets (pre July 2010)
E148: =Asset14 -> Other Equipment (pre July 2010)
E149: =Asset15 -> Control Centre - SCADA (pre July 2010)
E150: =Asset16 -> Land & Easements (System) - combined
E151: =Asset17 -> IT Systems (pre July 2010)
E152: =Asset18 -> Office Equipment & Furniture (pre July 2010)
E153: =Asset19 -> Motor Vehicles (pre July 2010)
E154: =Asset20 -> Plant & Equipment (pre July 2010)
E155: =Asset21 -> Buildings (pre July 2010)
E156: =Asset22 -> Land & Easements - combined
E157: =Asset23 -> Land Improvements (pre July 2010)
E158: =Asset24 -> Overhead Sub-Transmission Lines (Capex: 2010-15 RL; 2015-20 SL)
E159: =Asset25 -> Underground Sub-Transmission Cables (Capex: 2010-15 RL; 2015-20 SL)
E160: =Asset26 -> Overhead Distribution Lines (Capex: 2010-15 RL; 2015-20 SL)
E161: =Asset27 -> Underground Distribution Cables (Capex: 2010-15 RL; 2015-20 SL)
E162: =Asset28 -> Distribution Equipment (Capex: 2010-15 RL; 2015-20 SL)
E163: =Asset29 -> Substation Bays (Capex: 2010-15 RL; 2015-20 SL)
E164: =Asset30 -> Substation Establishment (Capex: 2010-15 RL; 2015-20 SL)
E165: =Asset31 -> Distribution Substation Switchgear (Capex: 2010-15 RL; 2015-20 SL)
E166: =Asset32 -> Zone Transformers (Capex: 2010-15 RL; 2015-20 SL)
E167: =Asset33 -> Distribution Transformers (Capex: 2010-15 RL; 2015-20 SL)
E168: =Asset34 -> Low Voltage Services (Capex: 2010-15 RL; 2015-20 SL)
E169: =Asset35 -> Metering (Capex: 2010-15 RL; 2015-20 SL)
E170: =Asset36 -> Communications – Pilot Wires (Capex: 2010-15 RL; 2015-20 SL)
E171: =Asset37 -> Generation Assets (Capex: 2010-15 RL; 2015-20 SL)
E172: =Asset38 -> Other Equipment (Capex: 2010-15 RL; 2015-20 SL)
E173: =Asset39 -> Control Centre - SCADA (Capex: 2010-15 RL; 2015-20 SL)
E174: =Asset40 -> Communications (Capex: 2010-15 RL; 2015-20 SL)
E175: =Asset41 -> IT Systems (Capex: 2010-15 RL; 2015-20 SL)
E176: =Asset42 -> Office Equipment & Furniture (Capex: 2010-15 RL; 2015-20 SL)
E177: =Asset43 -> Motor Vehicles (Capex: 2010-15 RL; 2015-20 SL) | G177: 7 | H177: 7 | I177: 7 | J177: 7 | K177: 7
E178: =Asset44 -> Plant & Equipment (Capex: 2010-15 RL; 2015-20 SL)
E179: =Asset45 -> Buildings (Capex: 2010-15 RL; 2015-20 SL) | J179: 8.75 | K179: 9.69
E180: =Asset46 -> Land Improvements (Capex: 2010-15 RL; 2015-20 SL)
E181: =Asset47 -> Equity Raising Costs (Capex: 2010-15 RL; 2015-20 SL)
E182: =Asset48 -> 0
E183: =Asset49 -> 0
E184: =Asset50 -> 0
E185: =Asset51 -> 0
E186: =Asset52 -> 0
E187: =Asset53 -> 0
E188: =Asset54 -> 0
E189: =Asset55 -> 0
E190: =Asset56 -> 0
E191: =Asset57 -> 0
E192: =Asset58 -> 0
E193: =Asset59 -> 0
E194: =Asset60 -> 0
E195: Total | G195: =SUM(G135:G194) -> 7 | H195: =SUM(H135:H194) -> 7 | I195: 7 | J195: 15.75 | K195: 16.69 | L195: 0 | M195: 0 | N195: 0 | O195: 0 | P195: 0
Q196: =SUM(OFFSET(G195,0,0,1,$R$7)) -> 53.44
E197: ="Forecast Customer Contributions – As Incurred ($m Real "&$F$391&")" -> Forecast Customer Contributions – As Incurred ($m Real 2014-15)
E198: =E70 -> Year | G198: =G134 -> 2015-16 | H198: =H134 -> 2016-17 | I198: 2017-18 | J198: 2018-19 | K198: 2019-20 | L198: 2020-21 | M198: 2021-22 | N198: 2022-23 | O198: 2023-24 | P198: 2024-25
E199: =Asset1 -> Overhead Sub-Transmission Lines (pre July 2010)
E200: =Asset2 -> Underground Sub-Transmission Cables (pre July 2010)
E201: =Asset3 -> Overhead Distribution Lines (pre July 2010)
E202: =Asset4 -> Underground Distribution Cables (pre July 2010)
E203: =Asset5 -> Distribution Equipment (pre July 2010)
E204: =Asset6 -> Substation Bays (pre July 2010)
... 234 more rows

Sheet WACC
B2: ='DMS input'!$C$16&" - Cost of Capital Parameters"&" - DNSP PTRM - version "&Intro!$L$4 -> Ergon - Cost of Capital Parameters - DNSP PTRM - version 3
B4: Year | G4: ='PTRM input'!G70 -> 2015-16 | H4: ='PTRM input'!H70 -> 2016-17 | I4: ='PTRM input'!I70 -> 2017-18 | J4: ='PTRM input'!J70 -> 2018-19 | K4: ='PTRM input'!K70 -> 2019-20 | L4: ='PTRM input'!L70 -> 2020-21 | M4: ='PTRM input'!M70 -> 2021-22 | N4: ='PTRM input'!N70 -> 2022-23 | O4: ='PTRM input'!O70 -> 2023-24 | P4: ='PTRM input'!P70 -> 2024-25 | R4: Final decision checks
R5: This column contains calculations that presume a constant WACC. They are therefore to be used at the start of the regulatory period (prior to any annual debt updates).
B6: Inflation Rate | D6: f | F6: Constant | G6: =f -> 0.025 | H6: 0.025 | I6: 0.025 | J6: 0.025 | K6: 0.025 | L6: 0.025 | M6: 0.025 | N6: 0.025 | O6: 0.025 | P6: 0.025
B7: Value of Imputation Credits (gamma) | D7: γ | F7: Constant | G7: =g -> 0.4 | H7: 0.4 | I7: 0.4 | J7: 0.4 | K7: 0.4 | L7: 0.4 | M7: 0.4 | N7: 0.4 | O7: 0.4 | P7: 0.4
B8: Proportion of Equity Funding | D8: E/V | F8: Constant | G8: =1-G9 -> 0.4 | H8: =1-H9 -> 0.4 | I8: =1-I9 -> 0.4 | J8: 0.4 | K8: 0.4 | L8: 0.4 | M8: 0.4 | N8: 0.4 | O8: 0.4 | P8: =1-P9 -> 0.4
B9: Proportion of Debt Funding | D9: D/V | F9: Constant | G9: =Dv -> 0.6 | H9: 0.6 | I9: 0.6 | J9: 0.6 | K9: 0.6 | L9: 0.6 | M9: 0.6 | N9: 0.6 | O9: 0.6 | P9: 0.6
B10: Post-tax Nominal Return on Equity | D10: Re | F10: Constant | G10: ='PTRM input'!$G$367 -> 0.075 | H10: ='PTRM input'!$G$367 -> 0.075 | I10: ='PTRM input'!$G$367 -> 0.075 | J10: ='PTRM input'!$G$367 -> 0.075 | K10: ='PTRM input'!$G$367 -> 0.075 | L10: ='PTRM input'!$G$367 -> 0.075 | M10: ='PTRM input'!$G$367 -> 0.075 | N10: ='PTRM input'!$G$367 -> 0.075 | O10: ='PTRM input'!$G$367 -> 0.075 | P10: ='PTRM input'!$G$367 -> 0.075 | R10: =Analysis!$E$111 -> 0.075
B11: Post-tax Real Return on Equity | D11: Rre | F11: Constant | G11: =(1+G10)/(1+G6)-1 -> 0.0487804878 | H11: 0.0487804878 | I11: 0.0487804878 | J11: 0.0487804878 | K11: 0.0487804878 | L11: 0.0487804878 | M11: 0.0487804878 | N11: 0.0487804878 | O11: 0.0487804878 | P11: 0.0487804878 | R11: =Analysis!$E$115 -> 0.0487804878
B13: Corporate Tax Rate | D13: T | F13: Varying | G13: ='PTRM input'!G359 -> 0.3 | H13: =IF(OR(ISBLANK('PTRM input'!H359),'PTRM input'!H359=0),G13,'PTRM input'!H359) -> 0.3 | I13: =IF(OR(ISBLANK('PTRM input'!I359),'PTRM input'!I359=0),H13,'PTRM input'!I359) -> 0.3 | J13: =IF(OR(ISBLANK('PTRM input'!J359),'PTRM input'!J359=0),I13,'PTRM input'!J359) -> 0.3 | K13: =IF(OR(ISBLANK('PTRM input'!K359),'PTRM input'!K359=0),J13,'PTRM input'!K359) -> 0.3 | L13: =IF(OR(ISBLANK('PTRM input'!L359),'PTRM input'!L359=0),K13,'PTRM input'!L359) -> 0.3 | M13: =IF(OR(ISBLANK('PTRM input'!M359),'PTRM input'!M359=0),L13,'PTRM input'!M359) -> 0.3 | N13: =IF(OR(ISBLANK('PTRM input'!N359),'PTRM input'!N359=0),M13,'PTRM input'!N359) -> 0.3 | O13: =IF(OR(ISBLANK('PTRM input'!O359),'PTRM input'!O359=0),N13,'PTRM input'!O359) -> 0.3 | P13: =IF(OR(ISBLANK('PTRM input'!P359),'PTRM input'!P359=0),O13,'PTRM input'!P359) -> 0.3
B14: Nominal Pre-tax Return on Debt | D14: Rd | F14: Varying | G14: ='PTRM input'!G372 -> 0.05013211639 | H14: =IF(OR(ISBLANK('PTRM input'!H372),'PTRM input'!H372=0),G14,'PTRM input'!H372) -> 0.05064839967 | I14: =IF(OR(ISBLANK('PTRM input'!I372),'PTRM input'!I372=0),H14,'PTRM input'!I372) -> 0.05074670067 | J14: =IF(OR(ISBLANK('PTRM input'!J372),'PTRM input'!J372=0),I14,'PTRM input'!J372) -> 0.05024673527 | K14: =IF(OR(ISBLANK('PTRM input'!K372),'PTRM input'!K372=0),J14,'PTRM input'!K372) -> 0.05024673527 | L14: =IF(OR(ISBLANK('PTRM input'!L372),'PTRM input'!L372=0),K14,'PTRM input'!L372) -> 0.05024673527 | M14: =IF(OR(ISBLANK('PTRM input'!M372),'PTRM input'!M372=0),L14,'PTRM input'!M372) -> 0.05024673527 | N14: =IF(OR(ISBLANK('PTRM input'!N372),'PTRM input'!N372=0),M14,'PTRM input'!N372) -> 0.05024673527 | O14: =IF(OR(ISBLANK('PTRM input'!O372),'PTRM input'!O372=0),N14,'PTRM input'!O372) -> 0.05024673527 | P14: =IF(OR(ISBLANK('PTRM input'!P372),'PTRM input'!P372=0),O14,'PTRM input'!P372) -> 0.05024673527
B15: Real Pre-tax Return on Debt | D15: Rrd | F15: Varying | G15: =(1+G14)/(1+G6)-1 -> 0.02451913794 | H15: 0.02502282895 | I15: 0.02511873236 | J15: 0.02463096124 | K15: 0.02463096124 | L15: 0.02463096124 | M15: 0.02463096124 | N15: 0.02463096124 | O15: 0.02463096124 | P15: 0.02463096124
G17: Formula approximations of WACC | R17: Cashflow derivations of WACC
B18: Nominal Vanilla WACC | F18: Varying | G18: =G8*G10+G9*G14 -> 0.06007926983 | H18: 0.0603890398 | I18: 0.0604480204 | J18: 0.06014804116 | K18: 0.06014804116 | L18: 0.06014804116 | M18: 0.06014804116 | N18: 0.06014804116 | O18: 0.06014804116 | P18: 0.06014804116 | R18: =Analysis!$E$126 -> 0.06017694562
B19: Real Vanilla WACC | F19: Varying | G19: =G8*G11+G9*G15 -> 0.03422367789 | H19: 0.03452589249 | I19: 0.03458343454 | J19: 0.03429077187 | K19: 0.03429077187 | L19: 0.03429077187 | M19: 0.03429077187 | N19: 0.03429077187 | O19: 0.03429077187 | P19: 0.03429077187 | R19: =Analysis!$E$127 -> 0.03431897134
B20: Post-tax Nominal WACC | F20: Varying | G20: =G10*G8+G14*G9*(1-G28*(1-G7)) -> 0.05466500126 | H20: 0.05491901264 | I20: 0.05496737673 | J20: 0.05472139376 | K20: 0.05472139376 | L20: 0.05472139376 | M20: 0.05472139376 | N20: 0.05472139376 | O20: 0.05472139376 | P20: 0.05472139376 | R20: =Analysis!$E$123 -> 0.05624301394
B21: Post-tax Real WACC | F21: Varying | G21: =(1+G20)/(1+G6)-1 -> 0.02894146465 | H21: 0.02918928062 | I21: 0.0292364651 | J21: 0.02899648171 | K21: 0.02899648171 | L21: 0.02899648171 | M21: 0.02899648171 | N21: 0.02899648171 | O21: 0.02899648171 | P21: 0.02899648171 | R21: =Analysis!$E$125 -> 0.03048098921
B22: Pre-tax Nominal WACC | F22: Varying | G22: =G10*(1/(1-G27*(1-G7)))*G8+G14*G9 -> 0.06543095091 | H22: 0.06574072088 | I22: 0.06579970148 | J22: 0.06549972225 | K22: 0.06549972225 | L22: 0.06549972225 | M22: 0.06549972225 | N22: 0.06549972225 | O22: 0.06549972225 | P22: 0.06549972225 | R22: =Analysis!$E$122 -> 0.06580119239
B23: Pre-tax Real WACC | F23: Varying | G23: =(1+G22)/(1+G6)-1 -> 0.03944483016 | H23: 0.03974704476 | I23: 0.03980458681 | J23: 0.03951192414 | K23: 0.03951192414 | L23: 0.03951192414 | M23: 0.03951192414 | N23: 0.03951192414 | O23: 0.03951192414 | P23: 0.03951192414 | R23: =Analysis!$E$124 -> 0.03980604135
B24: Nominal Tax Allowance | F24: Varying | G24: =G22-G20 -> 0.01076594965 | H24: =H22-H20 -> 0.01082170825 | I24: 0.01083232475 | J24: 0.01077832849 | K24: 0.01077832849 | L24: 0.01077832849 | M24: 0.01077832849 | N24: 0.01077832849 | O24: 0.01077832849 | P24: 0.01077832849 | R24: =$R$22-$R$20 -> 0.009558178443
B25: Real Tax Allowance | F25: Varying | G25: =G23-G21 -> 0.01050336551 | H25: =H23-H21 -> 0.01055776414 | I25: 0.01056812171 | J25: 0.01051544243 | K25: 0.01051544243 | L25: 0.01051544243 | M25: 0.01051544243 | N25: 0.01051544243 | O25: 0.01051544243 | P25: 0.01051544243 | R25: =$R$23-$R$21 -> 0.009325052139
B27: Effective Tax Rate for Equity (from relevant cashflows) | D27: Te | G27: 0.25230677 | H27: =G27 -> 0.25230677 | I27: =H27 -> 0.25230677 | J27: 0.25230677 | K27: 0.25230677 | L27: 0.25230677 | M27: 0.25230677 | N27: 0.25230677 | O27: 0.25230677 | P27: 0.25230677 | R27: =Analysis!$D$109 -> 0.2523094497
B28: Effective Tax Rate for Debt (effective debt shield) | D28: Td | G28: 0.3 | H28: =G28 -> 0.3 | I28: =H28 -> 0.3 | J28: 0.3 | K28: 0.3 | L28: 0.3 | M28: 0.3 | N28: 0.3 | O28: 0.3 | P28: 0.3 | R28: =Analysis!$D$120 -> 0.3000865002
H30: At the start of the regulatory control period, use this button to copy across the cashflow-calculated Te and Td.
H31: However, these calculations presume a constant WACC so Te/Td should not be updated during a regulatory control period
H32: when annually updating the return on debt - just use the same Te/Td from the final decision.
G34: Numbers in White cells are calculated on this sheet from input parameters.
G35: Numbers in Orange cells are transferred from relevant sheets

Sheet Assets
B2: ='DMS input'!$C$16&" - Asset Roll Forward"&" - DNSP PTRM - version "&Intro!$L$4 -> Ergon - Asset Roll Forward - DNSP PTRM - version 3
F3: 0 | G3: =F3+1 -> 1 | H3: 2 | I3: 3 | J3: 4 | K3: 5 | L3: 6 | M3: 7 | N3: 8 | O3: 9 | P3: 10 | Q3: 11 | R3: 12 | S3: 13 | T3: 14 | U3: 15 | V3: 16 | W3: 17 | X3: 18 | Y3: 19 | Z3: 20 | AA3: 21 | AB3: 22 | AC3: 23 | AD3: 24 | AE3: 25 | AF3: 26 | AG3: 27 | AH3: 28 | AI3: 29 | AJ3: 30 | AK3: 31 | AL3: 32 | AM3: =AL3+1 -> 33 | AN3: 34 | AO3: 35 | AP3: 36 | AQ3: 37 | AR3: 38 | AS3: 39 | AT3: 40 | AU3: 41 | AV3: 42 | AW3: 43 | AX3: 44 | AY3: 45 | AZ3: 46 | BA3: 47 | BB3: 48 | BC3: 49 | BD3: 50 | BE3: 51 | BF3: 52 | BG3: 53 | BH3: 54 | BI3: 55
B4: Year | F4: ='PTRM input'!F391 -> 2014-15 | G4: ='PTRM input'!G70 -> 2015-16 | H4: ='PTRM input'!H70 -> 2016-17 | I4: ='PTRM input'!I70 -> 2017-18 | J4: ='PTRM input'!J70 -> 2018-19 | K4: ='PTRM input'!K70 -> 2019-20 | L4: ='PTRM input'!L70 -> 2020-21 | M4: ='PTRM input'!M70 -> 2021-22 | N4: ='PTRM input'!N70 -> 2022-23 | O4: ='PTRM input'!O70 -> 2023-24 | P4: ='PTRM input'!P70 -> 2024-25 | Q4: =(LEFT(P4,4)+1&IF(MID(P4,5,1)="","","-"&TEXT(MID(P4,6,2)+1,"00"))) -> 2025-26 | R4: =(LEFT(Q4,4)+1&IF(MID(Q4,5,1)="","","-"&TEXT(MID(Q4,6,2)+1,"00"))) -> 2026-27 | S4: 2027-28 | T4: 2028-29 | U4: 2029-30 | V4: 2030-31 | W4: 2031-32 | X4: 2032-33 | Y4: 2033-34 | Z4: 2034-35 | AA4: 2035-36 | AB4: 2036-37 | AC4: 2037-38 | AD4: 2038-39 | AE4: 2039-40 | AF4: 2040-41 | AG4: 2041-42 | AH4: 2042-43 | AI4: 2043-44 | AJ4: 2044-45 | AK4: 2045-46 | AL4: 2046-47 | AM4: 2047-48 | AN4: 2048-49 | AO4: 2049-50 | AP4: 2050-51 | AQ4: 2051-52 | AR4: 2052-53 | AS4: 2053-54 | AT4: 2054-55 | AU4: 2055-56 | AV4: 2056-57 | AW4: 2057-58 | AX4: 2058-59 | AY4: 2059-60 | AZ4: 2060-61 | BA4: 2061-62 | BB4: 2062-63 | BC4: 2063-64 | BD4: 2064-65 | BE4: 2065-66 | BF4: 2066-67 | BG4: 2067-68 | BH4: 2068-69 | BI4: 2069-70
B6: Inflation Assumption (CPI % increase) | D6: =f -> 0.025 | G6: =$D$6 -> 0.025 | H6: =$D$6 -> 0.025 | I6: 0.025 | J6: 0.025 | K6: 0.025 | L6: 0.025 | M6: 0.025 | N6: 0.025 | O6: 0.025 | P6: 0.025 | Q6: 0.025 | R6: 0.025 | S6: 0.025 | T6: 0.025 | U6: 0.025 | V6: 0.025 | W6: 0.025 | X6: 0.025 | Y6: 0.025 | Z6: 0.025 | AA6: 0.025 | AB6: 0.025 | AC6: 0.025 | AD6: 0.025 | AE6: 0.025 | AF6: 0.025 | AG6: 0.025 | AH6: 0.025 | AI6: 0.025 | AJ6: 0.025 | AK6: 0.025 | AL6: 0.025 | AM6: 0.025 | AN6: 0.025 | AO6: 0.025 | AP6: 0.025 | AQ6: 0.025 | AR6: 0.025 | AS6: 0.025 | AT6: 0.025 | AU6: 0.025 | AV6: 0.025 | AW6: 0.025 | AX6: 0.025 | AY6: 0.025 | AZ6: 0.025 | BA6: 0.025 | BB6: 0.025 | BC6: 0.025 | BD6: 0.025 | BE6: 0.025 | BF6: 0.025 | BG6: 0.025 | BH6: 0.025 | BI6: 0.025
B7: Cumulative Inflation Index (CPI end period) | F7: 1 | G7: =F7*(1+G6) -> 1.025 | H7: =G7*(1+H6) -> 1.050625 | I7: =H7*(1+I6) -> 1.076890625 | J7: =I7*(1+J6) -> 1.103812891 | K7: 1.131408213 | L7: 1.159693418 | M7: 1.188685754 | N7: 1.218402898 | O7: 1.24886297 | P7: =O7*(1+P6) -> 1.280084544 | Q7: 1.312086658 | R7: 1.344888824 | S7: 1.378511045 | T7: 1.412973821 | U7: 1.448298166 | V7: 1.484505621 | W7: 1.521618261 | X7: 1.559658718 | Y7: 1.598650186 | Z7: 1.63861644 | AA7: 1.679581851 | AB7: 1.721571398 | AC7: 1.764610683 | AD7: 1.80872595 | AE7: 1.853944098 | AF7: 1.900292701 | AG7: 1.947800018 | AH7: 1.996495019 | AI7: 2.046407394 | AJ7: 2.097567579 | AK7: 2.150006769 | AL7: 2.203756938 | AM7: 2.258850861 | AN7: 2.315322133 | AO7: 2.373205186 | AP7: 2.432535316 | AQ7: 2.493348699 | AR7: 2.555682416 | AS7: 2.619574476 | AT7: 2.685063838 | AU7: 2.752190434 | AV7: 2.820995195 | AW7: 2.891520075 | AX7: 2.963808077 | AY7: 3.037903279 | AZ7: 3.113850861 | BA7: 3.191697132 | BB7: 3.271489561 | BC7: 3.3532768 | BD7: 3.43710872 | BE7: 3.523036438 | BF7: 3.611112349 | BG7: 3.701390157 | BH7: 3.793924911 | BI7: 3.888773034
B9: Opening Regulatory Asset Base (RAB) | F9: =RAB -> 9872.979966
B10: Real Net Capital Expenditure (capex) | G10: =SUM(G11:G70) -> 671.207152 | H10: =SUM(H11:H70) -> 604.5739188 | I10: 555.9376592 | J10: 515.4744987 | K10: 505.3046678 | L10: 0 | M10: 0 | N10: 0 | O10: 0 | P10: 0
C11: =Asset1 -> Overhead Sub-Transmission Lines (pre July 2010) | G11: ='PTRM input'!G263*(1+rvanilla01)^0.5 -> 0 | H11: ='PTRM input'!H263*(1+rvanilla02)^0.5 -> 0 | I11: ='PTRM input'!I263*(1+rvanilla03)^0.5 -> 0 | J11: ='PTRM input'!J263*(1+rvanilla04)^0.5 -> 0 | K11: ='PTRM input'!K263*(1+rvanilla05)^0.5 -> 0 | L11: ='PTRM input'!L263*(1+rvanilla06)^0.5 -> 0 | M11: ='PTRM input'!M263*(1+rvanilla07)^0.5 -> 0 | N11: ='PTRM input'!N263*(1+rvanilla08)^0.5 -> 0 | O11: ='PTRM input'!O263*(1+rvanilla09)^0.5 -> 0 | P11: ='PTRM input'!P263*(1+rvanilla10)^0.5 -> 0
C12: =Asset2 -> Underground Sub-Transmission Cables (pre July 2010) | G12: ='PTRM input'!G264*(1+rvanilla01)^0.5 -> 0 | H12: ='PTRM input'!H264*(1+rvanilla02)^0.5 -> 0 | I12: ='PTRM input'!I264*(1+rvanilla03)^0.5 -> 0 | J12: ='PTRM input'!J264*(1+rvanilla04)^0.5 -> 0 | K12: ='PTRM input'!K264*(1+rvanilla05)^0.5 -> 0 | L12: ='PTRM input'!L264*(1+rvanilla06)^0.5 -> 0 | M12: ='PTRM input'!M264*(1+rvanilla07)^0.5 -> 0 | N12: ='PTRM input'!N264*(1+rvanilla08)^0.5 -> 0 | O12: ='PTRM input'!O264*(1+rvanilla09)^0.5 -> 0 | P12: ='PTRM input'!P264*(1+rvanilla10)^0.5 -> 0
C13: =Asset3 -> Overhead Distribution Lines (pre July 2010) | G13: ='PTRM input'!G265*(1+rvanilla01)^0.5 -> 0 | H13: ='PTRM input'!H265*(1+rvanilla02)^0.5 -> 0 | I13: ='PTRM input'!I265*(1+rvanilla03)^0.5 -> 0 | J13: ='PTRM input'!J265*(1+rvanilla04)^0.5 -> 0 | K13: ='PTRM input'!K265*(1+rvanilla05)^0.5 -> 0 | L13: ='PTRM input'!L265*(1+rvanilla06)^0.5 -> 0 | M13: ='PTRM input'!M265*(1+rvanilla07)^0.5 -> 0 | N13: ='PTRM input'!N265*(1+rvanilla08)^0.5 -> 0 | O13: ='PTRM input'!O265*(1+rvanilla09)^0.5 -> 0 | P13: ='PTRM input'!P265*(1+rvanilla10)^0.5 -> 0
C14: =Asset4 -> Underground Distribution Cables (pre July 2010) | G14: ='PTRM input'!G266*(1+rvanilla01)^0.5 -> 0 | H14: ='PTRM input'!H266*(1+rvanilla02)^0.5 -> 0 | I14: ='PTRM input'!I266*(1+rvanilla03)^0.5 -> 0 | J14: ='PTRM input'!J266*(1+rvanilla04)^0.5 -> 0 | K14: ='PTRM input'!K266*(1+rvanilla05)^0.5 -> 0 | L14: ='PTRM input'!L266*(1+rvanilla06)^0.5 -> 0 | M14: ='PTRM input'!M266*(1+rvanilla07)^0.5 -> 0 | N14: ='PTRM input'!N266*(1+rvanilla08)^0.5 -> 0 | O14: ='PTRM input'!O266*(1+rvanilla09)^0.5 -> 0 | P14: ='PTRM input'!P266*(1+rvanilla10)^0.5 -> 0
C15: =Asset5 -> Distribution Equipment (pre July 2010) | G15: ='PTRM input'!G267*(1+rvanilla01)^0.5 -> 0 | H15: ='PTRM input'!H267*(1+rvanilla02)^0.5 -> 0 | I15: ='PTRM input'!I267*(1+rvanilla03)^0.5 -> 0 | J15: ='PTRM input'!J267*(1+rvanilla04)^0.5 -> 0 | K15: ='PTRM input'!K267*(1+rvanilla05)^0.5 -> 0 | L15: ='PTRM input'!L267*(1+rvanilla06)^0.5 -> 0 | M15: ='PTRM input'!M267*(1+rvanilla07)^0.5 -> 0 | N15: ='PTRM input'!N267*(1+rvanilla08)^0.5 -> 0 | O15: ='PTRM input'!O267*(1+rvanilla09)^0.5 -> 0 | P15: ='PTRM input'!P267*(1+rvanilla10)^0.5 -> 0
C16: =Asset6 -> Substation Bays (pre July 2010) | G16: ='PTRM input'!G268*(1+rvanilla01)^0.5 -> 0 | H16: ='PTRM input'!H268*(1+rvanilla02)^0.5 -> 0 | I16: ='PTRM input'!I268*(1+rvanilla03)^0.5 -> 0 | J16: ='PTRM input'!J268*(1+rvanilla04)^0.5 -> 0 | K16: ='PTRM input'!K268*(1+rvanilla05)^0.5 -> 0 | L16: ='PTRM input'!L268*(1+rvanilla06)^0.5 -> 0 | M16: ='PTRM input'!M268*(1+rvanilla07)^0.5 -> 0 | N16: ='PTRM input'!N268*(1+rvanilla08)^0.5 -> 0 | O16: ='PTRM input'!O268*(1+rvanilla09)^0.5 -> 0 | P16: ='PTRM input'!P268*(1+rvanilla10)^0.5 -> 0
C17: =Asset7 -> Substation Establishment (pre July 2010) | G17: ='PTRM input'!G269*(1+rvanilla01)^0.5 -> 0 | H17: ='PTRM input'!H269*(1+rvanilla02)^0.5 -> 0 | I17: ='PTRM input'!I269*(1+rvanilla03)^0.5 -> 0 | J17: ='PTRM input'!J269*(1+rvanilla04)^0.5 -> 0 | K17: ='PTRM input'!K269*(1+rvanilla05)^0.5 -> 0 | L17: ='PTRM input'!L269*(1+rvanilla06)^0.5 -> 0 | M17: ='PTRM input'!M269*(1+rvanilla07)^0.5 -> 0 | N17: ='PTRM input'!N269*(1+rvanilla08)^0.5 -> 0 | O17: ='PTRM input'!O269*(1+rvanilla09)^0.5 -> 0 | P17: ='PTRM input'!P269*(1+rvanilla10)^0.5 -> 0
C18: =Asset8 -> Distribution Substation Switchgear (pre July 2010) | G18: ='PTRM input'!G270*(1+rvanilla01)^0.5 -> 0 | H18: ='PTRM input'!H270*(1+rvanilla02)^0.5 -> 0 | I18: ='PTRM input'!I270*(1+rvanilla03)^0.5 -> 0 | J18: ='PTRM input'!J270*(1+rvanilla04)^0.5 -> 0 | K18: ='PTRM input'!K270*(1+rvanilla05)^0.5 -> 0 | L18: ='PTRM input'!L270*(1+rvanilla06)^0.5 -> 0 | M18: ='PTRM input'!M270*(1+rvanilla07)^0.5 -> 0 | N18: ='PTRM input'!N270*(1+rvanilla08)^0.5 -> 0 | O18: ='PTRM input'!O270*(1+rvanilla09)^0.5 -> 0 | P18: ='PTRM input'!P270*(1+rvanilla10)^0.5 -> 0
C19: =Asset9 -> Zone Transformers (pre July 2010) | G19: ='PTRM input'!G271*(1+rvanilla01)^0.5 -> 0 | H19: ='PTRM input'!H271*(1+rvanilla02)^0.5 -> 0 | I19: ='PTRM input'!I271*(1+rvanilla03)^0.5 -> 0 | J19: ='PTRM input'!J271*(1+rvanilla04)^0.5 -> 0 | K19: ='PTRM input'!K271*(1+rvanilla05)^0.5 -> 0 | L19: ='PTRM input'!L271*(1+rvanilla06)^0.5 -> 0 | M19: ='PTRM input'!M271*(1+rvanilla07)^0.5 -> 0 | N19: ='PTRM input'!N271*(1+rvanilla08)^0.5 -> 0 | O19: ='PTRM input'!O271*(1+rvanilla09)^0.5 -> 0 | P19: ='PTRM input'!P271*(1+rvanilla10)^0.5 -> 0
C20: =Asset10 -> Distribution Transformers (pre July 2010) | G20: ='PTRM input'!G272*(1+rvanilla01)^0.5 -> 0 | H20: ='PTRM input'!H272*(1+rvanilla02)^0.5 -> 0 | I20: ='PTRM input'!I272*(1+rvanilla03)^0.5 -> 0 | J20: ='PTRM input'!J272*(1+rvanilla04)^0.5 -> 0 | K20: ='PTRM input'!K272*(1+rvanilla05)^0.5 -> 0 | L20: ='PTRM input'!L272*(1+rvanilla06)^0.5 -> 0 | M20: ='PTRM input'!M272*(1+rvanilla07)^0.5 -> 0 | N20: ='PTRM input'!N272*(1+rvanilla08)^0.5 -> 0 | O20: ='PTRM input'!O272*(1+rvanilla09)^0.5 -> 0 | P20: ='PTRM input'!P272*(1+rvanilla10)^0.5 -> 0
C21: =Asset11 -> Low Voltage Services (pre July 2010) | G21: ='PTRM input'!G273*(1+rvanilla01)^0.5 -> 0 | H21: ='PTRM input'!H273*(1+rvanilla02)^0.5 -> 0 | I21: ='PTRM input'!I273*(1+rvanilla03)^0.5 -> 0 | J21: ='PTRM input'!J273*(1+rvanilla04)^0.5 -> 0 | K21: ='PTRM input'!K273*(1+rvanilla05)^0.5 -> 0 | L21: ='PTRM input'!L273*(1+rvanilla06)^0.5 -> 0 | M21: ='PTRM input'!M273*(1+rvanilla07)^0.5 -> 0 | N21: ='PTRM input'!N273*(1+rvanilla08)^0.5 -> 0 | O21: ='PTRM input'!O273*(1+rvanilla09)^0.5 -> 0 | P21: ='PTRM input'!P273*(1+rvanilla10)^0.5 -> 0
C22: =Asset12 -> Communications – Pilot Wires (pre July 2010) | G22: ='PTRM input'!G274*(1+rvanilla01)^0.5 -> 0 | H22: ='PTRM input'!H274*(1+rvanilla02)^0.5 -> 0 | I22: ='PTRM input'!I274*(1+rvanilla03)^0.5 -> 0 | J22: ='PTRM input'!J274*(1+rvanilla04)^0.5 -> 0 | K22: ='PTRM input'!K274*(1+rvanilla05)^0.5 -> 0 | L22: ='PTRM input'!L274*(1+rvanilla06)^0.5 -> 0 | M22: ='PTRM input'!M274*(1+rvanilla07)^0.5 -> 0 | N22: ='PTRM input'!N274*(1+rvanilla08)^0.5 -> 0 | O22: ='PTRM input'!O274*(1+rvanilla09)^0.5 -> 0 | P22: ='PTRM input'!P274*(1+rvanilla10)^0.5 -> 0
C23: =Asset13 -> Generation Assets (pre July 2010) | G23: ='PTRM input'!G275*(1+rvanilla01)^0.5 -> 0 | H23: ='PTRM input'!H275*(1+rvanilla02)^0.5 -> 0 | I23: ='PTRM input'!I275*(1+rvanilla03)^0.5 -> 0 | J23: ='PTRM input'!J275*(1+rvanilla04)^0.5 -> 0 | K23: ='PTRM input'!K275*(1+rvanilla05)^0.5 -> 0 | L23: ='PTRM input'!L275*(1+rvanilla06)^0.5 -> 0 | M23: ='PTRM input'!M275*(1+rvanilla07)^0.5 -> 0 | N23: ='PTRM input'!N275*(1+rvanilla08)^0.5 -> 0 | O23: ='PTRM input'!O275*(1+rvanilla09)^0.5 -> 0 | P23: ='PTRM input'!P275*(1+rvanilla10)^0.5 -> 0
C24: =Asset14 -> Other Equipment (pre July 2010) | G24: ='PTRM input'!G276*(1+rvanilla01)^0.5 -> 0 | H24: ='PTRM input'!H276*(1+rvanilla02)^0.5 -> 0 | I24: ='PTRM input'!I276*(1+rvanilla03)^0.5 -> 0 | J24: ='PTRM input'!J276*(1+rvanilla04)^0.5 -> 0 | K24: ='PTRM input'!K276*(1+rvanilla05)^0.5 -> 0 | L24: ='PTRM input'!L276*(1+rvanilla06)^0.5 -> 0 | M24: ='PTRM input'!M276*(1+rvanilla07)^0.5 -> 0 | N24: ='PTRM input'!N276*(1+rvanilla08)^0.5 -> 0 | O24: ='PTRM input'!O276*(1+rvanilla09)^0.5 -> 0 | P24: ='PTRM input'!P276*(1+rvanilla10)^0.5 -> 0
C25: =Asset15 -> Control Centre - SCADA (pre July 2010) | G25: ='PTRM input'!G277*(1+rvanilla01)^0.5 -> 0 | H25: ='PTRM input'!H277*(1+rvanilla02)^0.5 -> 0 | I25: ='PTRM input'!I277*(1+rvanilla03)^0.5 -> 0 | J25: ='PTRM input'!J277*(1+rvanilla04)^0.5 -> 0 | K25: ='PTRM input'!K277*(1+rvanilla05)^0.5 -> 0 | L25: ='PTRM input'!L277*(1+rvanilla06)^0.5 -> 0 | M25: ='PTRM input'!M277*(1+rvanilla07)^0.5 -> 0 | N25: ='PTRM input'!N277*(1+rvanilla08)^0.5 -> 0 | O25: ='PTRM input'!O277*(1+rvanilla09)^0.5 -> 0 | P25: ='PTRM input'!P277*(1+rvanilla10)^0.5 -> 0
C26: =Asset16 -> Land & Easements (System) - combined | G26: ='PTRM input'!G278*(1+rvanilla01)^0.5 -> 2.89764238 | H26: ='PTRM input'!H278*(1+rvanilla02)^0.5 -> 3.108124607 | I26: ='PTRM input'!I278*(1+rvanilla03)^0.5 -> 2.880197353 | J26: ='PTRM input'!J278*(1+rvanilla04)^0.5 -> 1.662282881 | K26: ='PTRM input'!K278*(1+rvanilla05)^0.5 -> 1.688234344 | L26: ='PTRM input'!L278*(1+rvanilla06)^0.5 -> 0 | M26: ='PTRM input'!M278*(1+rvanilla07)^0.5 -> 0 | N26: ='PTRM input'!N278*(1+rvanilla08)^0.5 -> 0 | O26: ='PTRM input'!O278*(1+rvanilla09)^0.5 -> 0 | P26: ='PTRM input'!P278*(1+rvanilla10)^0.5 -> 0
C27: =Asset17 -> IT Systems (pre July 2010) | G27: ='PTRM input'!G279*(1+rvanilla01)^0.5 -> 0 | H27: ='PTRM input'!H279*(1+rvanilla02)^0.5 -> 0 | I27: ='PTRM input'!I279*(1+rvanilla03)^0.5 -> 0 | J27: ='PTRM input'!J279*(1+rvanilla04)^0.5 -> 0 | K27: ='PTRM input'!K279*(1+rvanilla05)^0.5 -> 0 | L27: ='PTRM input'!L279*(1+rvanilla06)^0.5 -> 0 | M27: ='PTRM input'!M279*(1+rvanilla07)^0.5 -> 0 | N27: ='PTRM input'!N279*(1+rvanilla08)^0.5 -> 0 | O27: ='PTRM input'!O279*(1+rvanilla09)^0.5 -> 0 | P27: ='PTRM input'!P279*(1+rvanilla10)^0.5 -> 0
C28: =Asset18 -> Office Equipment & Furniture (pre July 2010) | G28: ='PTRM input'!G280*(1+rvanilla01)^0.5 -> 0 | H28: ='PTRM input'!H280*(1+rvanilla02)^0.5 -> 0 | I28: ='PTRM input'!I280*(1+rvanilla03)^0.5 -> 0 | J28: ='PTRM input'!J280*(1+rvanilla04)^0.5 -> 0 | K28: ='PTRM input'!K280*(1+rvanilla05)^0.5 -> 0 | L28: ='PTRM input'!L280*(1+rvanilla06)^0.5 -> 0 | M28: ='PTRM input'!M280*(1+rvanilla07)^0.5 -> 0 | N28: ='PTRM input'!N280*(1+rvanilla08)^0.5 -> 0 | O28: ='PTRM input'!O280*(1+rvanilla09)^0.5 -> 0 | P28: ='PTRM input'!P280*(1+rvanilla10)^0.5 -> 0
C29: =Asset19 -> Motor Vehicles (pre July 2010) | G29: ='PTRM input'!G281*(1+rvanilla01)^0.5 -> 0 | H29: ='PTRM input'!H281*(1+rvanilla02)^0.5 -> 0 | I29: ='PTRM input'!I281*(1+rvanilla03)^0.5 -> 0 | J29: ='PTRM input'!J281*(1+rvanilla04)^0.5 -> 0 | K29: ='PTRM input'!K281*(1+rvanilla05)^0.5 -> 0 | L29: ='PTRM input'!L281*(1+rvanilla06)^0.5 -> 0 | M29: ='PTRM input'!M281*(1+rvanilla07)^0.5 -> 0 | N29: ='PTRM input'!N281*(1+rvanilla08)^0.5 -> 0 | O29: ='PTRM input'!O281*(1+rvanilla09)^0.5 -> 0 | P29: ='PTRM input'!P281*(1+rvanilla10)^0.5 -> 0
C30: =Asset20 -> Plant & Equipment (pre July 2010) | G30: ='PTRM input'!G282*(1+rvanilla01)^0.5 -> 0 | H30: ='PTRM input'!H282*(1+rvanilla02)^0.5 -> 0 | I30: ='PTRM input'!I282*(1+rvanilla03)^0.5 -> 0 | J30: ='PTRM input'!J282*(1+rvanilla04)^0.5 -> 0 | K30: ='PTRM input'!K282*(1+rvanilla05)^0.5 -> 0 | L30: ='PTRM input'!L282*(1+rvanilla06)^0.5 -> 0 | M30: ='PTRM input'!M282*(1+rvanilla07)^0.5 -> 0 | N30: ='PTRM input'!N282*(1+rvanilla08)^0.5 -> 0 | O30: ='PTRM input'!O282*(1+rvanilla09)^0.5 -> 0 | P30: ='PTRM input'!P282*(1+rvanilla10)^0.5 -> 0
C31: =Asset21 -> Buildings (pre July 2010) | G31: ='PTRM input'!G283*(1+rvanilla01)^0.5 -> 0 | H31: ='PTRM input'!H283*(1+rvanilla02)^0.5 -> 0 | I31: ='PTRM input'!I283*(1+rvanilla03)^0.5 -> 0 | J31: ='PTRM input'!J283*(1+rvanilla04)^0.5 -> 0 | K31: ='PTRM input'!K283*(1+rvanilla05)^0.5 -> 0 | L31: ='PTRM input'!L283*(1+rvanilla06)^0.5 -> 0 | M31: ='PTRM input'!M283*(1+rvanilla07)^0.5 -> 0 | N31: ='PTRM input'!N283*(1+rvanilla08)^0.5 -> 0 | O31: ='PTRM input'!O283*(1+rvanilla09)^0.5 -> 0 | P31: ='PTRM input'!P283*(1+rvanilla10)^0.5 -> 0
C32: =Asset22 -> Land & Easements - combined | G32: ='PTRM input'!G284*(1+rvanilla01)^0.5 -> 0 | H32: ='PTRM input'!H284*(1+rvanilla02)^0.5 -> 0 | I32: ='PTRM input'!I284*(1+rvanilla03)^0.5 -> 0 | J32: ='PTRM input'!J284*(1+rvanilla04)^0.5 -> 0 | K32: ='PTRM input'!K284*(1+rvanilla05)^0.5 -> 0 | L32: ='PTRM input'!L284*(1+rvanilla06)^0.5 -> 0 | M32: ='PTRM input'!M284*(1+rvanilla07)^0.5 -> 0 | N32: ='PTRM input'!N284*(1+rvanilla08)^0.5 -> 0 | O32: ='PTRM input'!O284*(1+rvanilla09)^0.5 -> 0 | P32: ='PTRM input'!P284*(1+rvanilla10)^0.5 -> 0
C33: =Asset23 -> Land Improvements (pre July 2010) | G33: ='PTRM input'!G285*(1+rvanilla01)^0.5 -> 0 | H33: ='PTRM input'!H285*(1+rvanilla02)^0.5 -> 0 | I33: ='PTRM input'!I285*(1+rvanilla03)^0.5 -> 0 | J33: ='PTRM input'!J285*(1+rvanilla04)^0.5 -> 0 | K33: ='PTRM input'!K285*(1+rvanilla05)^0.5 -> 0 | L33: ='PTRM input'!L285*(1+rvanilla06)^0.5 -> 0 | M33: ='PTRM input'!M285*(1+rvanilla07)^0.5 -> 0 | N33: ='PTRM input'!N285*(1+rvanilla08)^0.5 -> 0 | O33: ='PTRM input'!O285*(1+rvanilla09)^0.5 -> 0 | P33: ='PTRM input'!P285*(1+rvanilla10)^0.5 -> 0
C34: =Asset24 -> Overhead Sub-Transmission Lines (Capex: 2010-15 RL; 2015-20 SL) | G34: ='PTRM input'!G286*(1+rvanilla01)^0.5 -> 24.44583829 | H34: ='PTRM input'!H286*(1+rvanilla02)^0.5 -> 20.4553984 | I34: ='PTRM input'!I286*(1+rvanilla03)^0.5 -> 20.74360758 | J34: ='PTRM input'!J286*(1+rvanilla04)^0.5 -> 18.31797606 | K34: ='PTRM input'!K286*(1+rvanilla05)^0.5 -> 18.95540538 | L34: ='PTRM input'!L286*(1+rvanilla06)^0.5 -> 0 | M34: ='PTRM input'!M286*(1+rvanilla07)^0.5 -> 0 | N34: ='PTRM input'!N286*(1+rvanilla08)^0.5 -> 0 | O34: ='PTRM input'!O286*(1+rvanilla09)^0.5 -> 0 | P34: ='PTRM input'!P286*(1+rvanilla10)^0.5 -> 0
C35: =Asset25 -> Underground Sub-Transmission Cables (Capex: 2010-15 RL; 2015-20 SL) | G35: ='PTRM input'!G287*(1+rvanilla01)^0.5 -> 0.6874748114 | H35: ='PTRM input'!H287*(1+rvanilla02)^0.5 -> 0.7184908556 | I35: ='PTRM input'!I287*(1+rvanilla03)^0.5 -> 0.7334651059 | J35: ='PTRM input'!J287*(1+rvanilla04)^0.5 -> 0.6933891766 | K35: ='PTRM input'!K287*(1+rvanilla05)^0.5 -> 0.7191368451 | L35: ='PTRM input'!L287*(1+rvanilla06)^0.5 -> 0 | M35: ='PTRM input'!M287*(1+rvanilla07)^0.5 -> 0 | N35: ='PTRM input'!N287*(1+rvanilla08)^0.5 -> 0 | O35: ='PTRM input'!O287*(1+rvanilla09)^0.5 -> 0 | P35: ='PTRM input'!P287*(1+rvanilla10)^0.5 -> 0
C36: =Asset26 -> Overhead Distribution Lines (Capex: 2010-15 RL; 2015-20 SL) | G36: ='PTRM input'!G288*(1+rvanilla01)^0.5 -> 214.3581697 | H36: ='PTRM input'!H288*(1+rvanilla02)^0.5 -> 189.6277143 | I36: ='PTRM input'!I288*(1+rvanilla03)^0.5 -> 175.8452433 | J36: ='PTRM input'!J288*(1+rvanilla04)^0.5 -> 174.858467 | K36: ='PTRM input'!K288*(1+rvanilla05)^0.5 -> 179.3233373 | L36: ='PTRM input'!L288*(1+rvanilla06)^0.5 -> 0 | M36: ='PTRM input'!M288*(1+rvanilla07)^0.5 -> 0 | N36: ='PTRM input'!N288*(1+rvanilla08)^0.5 -> 0 | O36: ='PTRM input'!O288*(1+rvanilla09)^0.5 -> 0 | P36: ='PTRM input'!P288*(1+rvanilla10)^0.5 -> 0
C37: =Asset27 -> Underground Distribution Cables (Capex: 2010-15 RL; 2015-20 SL) | G37: ='PTRM input'!G289*(1+rvanilla01)^0.5 -> 34.04231959 | H37: ='PTRM input'!H289*(1+rvanilla02)^0.5 -> 36.21630711 | I37: ='PTRM input'!I289*(1+rvanilla03)^0.5 -> 34.42276899 | J37: ='PTRM input'!J289*(1+rvanilla04)^0.5 -> 30.74145668 | K37: ='PTRM input'!K289*(1+rvanilla05)^0.5 -> 31.47283774 | L37: ='PTRM input'!L289*(1+rvanilla06)^0.5 -> 0 | M37: ='PTRM input'!M289*(1+rvanilla07)^0.5 -> 0 | N37: ='PTRM input'!N289*(1+rvanilla08)^0.5 -> 0 | O37: ='PTRM input'!O289*(1+rvanilla09)^0.5 -> 0 | P37: ='PTRM input'!P289*(1+rvanilla10)^0.5 -> 0
C38: =Asset28 -> Distribution Equipment (Capex: 2010-15 RL; 2015-20 SL) | G38: ='PTRM input'!G290*(1+rvanilla01)^0.5 -> 12.31798435 | H38: ='PTRM input'!H290*(1+rvanilla02)^0.5 -> 17.45242287 | I38: ='PTRM input'!I290*(1+rvanilla03)^0.5 -> 19.94350453 | J38: ='PTRM input'!J290*(1+rvanilla04)^0.5 -> 20.45587056 | K38: ='PTRM input'!K290*(1+rvanilla05)^0.5 -> 20.6645755 | L38: ='PTRM input'!L290*(1+rvanilla06)^0.5 -> 0 | M38: ='PTRM input'!M290*(1+rvanilla07)^0.5 -> 0 | N38: ='PTRM input'!N290*(1+rvanilla08)^0.5 -> 0 | O38: ='PTRM input'!O290*(1+rvanilla09)^0.5 -> 0 | P38: ='PTRM input'!P290*(1+rvanilla10)^0.5 -> 0
C39: =Asset29 -> Substation Bays (Capex: 2010-15 RL; 2015-20 SL) | G39: ='PTRM input'!G291*(1+rvanilla01)^0.5 -> 33.69910204 | H39: ='PTRM input'!H291*(1+rvanilla02)^0.5 -> 38.10829844 | I39: ='PTRM input'!I291*(1+rvanilla03)^0.5 -> 46.55476395 | J39: ='PTRM input'!J291*(1+rvanilla04)^0.5 -> 40.79135163 | K39: ='PTRM input'!K291*(1+rvanilla05)^0.5 -> 34.78564562 | L39: ='PTRM input'!L291*(1+rvanilla06)^0.5 -> 0 | M39: ='PTRM input'!M291*(1+rvanilla07)^0.5 -> 0 | N39: ='PTRM input'!N291*(1+rvanilla08)^0.5 -> 0 | O39: ='PTRM input'!O291*(1+rvanilla09)^0.5 -> 0 | P39: ='PTRM input'!P291*(1+rvanilla10)^0.5 -> 0
C40: =Asset30 -> Substation Establishment (Capex: 2010-15 RL; 2015-20 SL) | G40: ='PTRM input'!G292*(1+rvanilla01)^0.5 -> 13.38928658 | H40: ='PTRM input'!H292*(1+rvanilla02)^0.5 -> 11.7643585 | I40: ='PTRM input'!I292*(1+rvanilla03)^0.5 -> 10.70027206 | J40: ='PTRM input'!J292*(1+rvanilla04)^0.5 -> 10.84068849 | K40: ='PTRM input'!K292*(1+rvanilla05)^0.5 -> 10.23655828 | L40: ='PTRM input'!L292*(1+rvanilla06)^0.5 -> 0 | M40: ='PTRM input'!M292*(1+rvanilla07)^0.5 -> 0 | N40: ='PTRM input'!N292*(1+rvanilla08)^0.5 -> 0 | O40: ='PTRM input'!O292*(1+rvanilla09)^0.5 -> 0 | P40: ='PTRM input'!P292*(1+rvanilla10)^0.5 -> 0
C41: =Asset31 -> Distribution Substation Switchgear (Capex: 2010-15 RL; 2015-20 SL) | G41: ='PTRM input'!G293*(1+rvanilla01)^0.5 -> 9.180367445 | H41: ='PTRM input'!H293*(1+rvanilla02)^0.5 -> 9.050032876 | I41: ='PTRM input'!I293*(1+rvanilla03)^0.5 -> 8.3854634 | J41: ='PTRM input'!J293*(1+rvanilla04)^0.5 -> 6.788979325 | K41: ='PTRM input'!K293*(1+rvanilla05)^0.5 -> 6.822964881 | L41: ='PTRM input'!L293*(1+rvanilla06)^0.5 -> 0 | M41: ='PTRM input'!M293*(1+rvanilla07)^0.5 -> 0 | N41: ='PTRM input'!N293*(1+rvanilla08)^0.5 -> 0 | O41: ='PTRM input'!O293*(1+rvanilla09)^0.5 -> 0 | P41: ='PTRM input'!P293*(1+rvanilla10)^0.5 -> 0
C42: =Asset32 -> Zone Transformers (Capex: 2010-15 RL; 2015-20 SL) | G42: ='PTRM input'!G294*(1+rvanilla01)^0.5 -> 27.23555067 | H42: ='PTRM input'!H294*(1+rvanilla02)^0.5 -> 27.52396333 | I42: ='PTRM input'!I294*(1+rvanilla03)^0.5 -> 26.63518162 | J42: ='PTRM input'!J294*(1+rvanilla04)^0.5 -> 27.9663703 | K42: ='PTRM input'!K294*(1+rvanilla05)^0.5 -> 33.93914212 | L42: ='PTRM input'!L294*(1+rvanilla06)^0.5 -> 0 | M42: ='PTRM input'!M294*(1+rvanilla07)^0.5 -> 0 | N42: ='PTRM input'!N294*(1+rvanilla08)^0.5 -> 0 | O42: ='PTRM input'!O294*(1+rvanilla09)^0.5 -> 0 | P42: ='PTRM input'!P294*(1+rvanilla10)^0.5 -> 0
C43: =Asset33 -> Distribution Transformers (Capex: 2010-15 RL; 2015-20 SL) | G43: ='PTRM input'!G295*(1+rvanilla01)^0.5 -> 61.52893707 | H43: ='PTRM input'!H295*(1+rvanilla02)^0.5 -> 63.79773244 | I43: ='PTRM input'!I295*(1+rvanilla03)^0.5 -> 58.4236099 | J43: ='PTRM input'!J295*(1+rvanilla04)^0.5 -> 55.49269676 | K43: ='PTRM input'!K295*(1+rvanilla05)^0.5 -> 56.5500571 | L43: ='PTRM input'!L295*(1+rvanilla06)^0.5 -> 0 | M43: ='PTRM input'!M295*(1+rvanilla07)^0.5 -> 0 | N43: ='PTRM input'!N295*(1+rvanilla08)^0.5 -> 0 | O43: ='PTRM input'!O295*(1+rvanilla09)^0.5 -> 0 | P43: ='PTRM input'!P295*(1+rvanilla10)^0.5 -> 0
C44: =Asset34 -> Low Voltage Services (Capex: 2010-15 RL; 2015-20 SL) | G44: ='PTRM input'!G296*(1+rvanilla01)^0.5 -> 31.71427169 | H44: ='PTRM input'!H296*(1+rvanilla02)^0.5 -> 33.98228556 | I44: ='PTRM input'!I296*(1+rvanilla03)^0.5 -> 31.68981491 | J44: ='PTRM input'!J296*(1+rvanilla04)^0.5 -> 31.83962336 | K44: ='PTRM input'!K296*(1+rvanilla05)^0.5 -> 31.97978915 | L44: ='PTRM input'!L296*(1+rvanilla06)^0.5 -> 0 | M44: ='PTRM input'!M296*(1+rvanilla07)^0.5 -> 0 | N44: ='PTRM input'!N296*(1+rvanilla08)^0.5 -> 0 | O44: ='PTRM input'!O296*(1+rvanilla09)^0.5 -> 0 | P44: ='PTRM input'!P296*(1+rvanilla10)^0.5 -> 0
C45: =Asset35 -> Metering (Capex: 2010-15 RL; 2015-20 SL) | G45: ='PTRM input'!G297*(1+rvanilla01)^0.5 -> 3.561811227 | H45: ='PTRM input'!H297*(1+rvanilla02)^0.5 -> 4.389256133 | I45: ='PTRM input'!I297*(1+rvanilla03)^0.5 -> 4.305670712 | J45: ='PTRM input'!J297*(1+rvanilla04)^0.5 -> 3.328918517 | K45: ='PTRM input'!K297*(1+rvanilla05)^0.5 -> 3.107565666 | L45: ='PTRM input'!L297*(1+rvanilla06)^0.5 -> 0 | M45: ='PTRM input'!M297*(1+rvanilla07)^0.5 -> 0 | N45: ='PTRM input'!N297*(1+rvanilla08)^0.5 -> 0 | O45: ='PTRM input'!O297*(1+rvanilla09)^0.5 -> 0 | P45: ='PTRM input'!P297*(1+rvanilla10)^0.5 -> 0
C46: =Asset36 -> Communications – Pilot Wires (Capex: 2010-15 RL; 2015-20 SL) | G46: ='PTRM input'!G298*(1+rvanilla01)^0.5 -> 25.46643082 | H46: ='PTRM input'!H298*(1+rvanilla02)^0.5 -> 24.49287301 | I46: ='PTRM input'!I298*(1+rvanilla03)^0.5 -> 9.114371133 | J46: ='PTRM input'!J298*(1+rvanilla04)^0.5 -> 10.14729931 | K46: ='PTRM input'!K298*(1+rvanilla05)^0.5 -> 6.657436545 | L46: ='PTRM input'!L298*(1+rvanilla06)^0.5 -> 0 | M46: ='PTRM input'!M298*(1+rvanilla07)^0.5 -> 0 | N46: ='PTRM input'!N298*(1+rvanilla08)^0.5 -> 0 | O46: ='PTRM input'!O298*(1+rvanilla09)^0.5 -> 0 | P46: ='PTRM input'!P298*(1+rvanilla10)^0.5 -> 0
C47: =Asset37 -> Generation Assets (Capex: 2010-15 RL; 2015-20 SL) | G47: ='PTRM input'!G299*(1+rvanilla01)^0.5 -> 2.307281657 | H47: ='PTRM input'!H299*(1+rvanilla02)^0.5 -> 3.726068327 | I47: ='PTRM input'!I299*(1+rvanilla03)^0.5 -> 4.540525479 | J47: ='PTRM input'!J299*(1+rvanilla04)^0.5 -> 1.246210522 | K47: ='PTRM input'!K299*(1+rvanilla05)^0.5 -> 0.922024978 | L47: ='PTRM input'!L299*(1+rvanilla06)^0.5 -> 0 | M47: ='PTRM input'!M299*(1+rvanilla07)^0.5 -> 0 | N47: ='PTRM input'!N299*(1+rvanilla08)^0.5 -> 0 | O47: ='PTRM input'!O299*(1+rvanilla09)^0.5 -> 0 | P47: ='PTRM input'!P299*(1+rvanilla10)^0.5 -> 0
C48: =Asset38 -> Other Equipment (Capex: 2010-15 RL; 2015-20 SL) | G48: ='PTRM input'!G300*(1+rvanilla01)^0.5 -> 26.75744888 | H48: ='PTRM input'!H300*(1+rvanilla02)^0.5 -> 18.08932001 | I48: ='PTRM input'!I300*(1+rvanilla03)^0.5 -> 9.803011905 | J48: ='PTRM input'!J300*(1+rvanilla04)^0.5 -> 11.46342966 | K48: ='PTRM input'!K300*(1+rvanilla05)^0.5 -> 9.578815049 | L48: ='PTRM input'!L300*(1+rvanilla06)^0.5 -> 0 | M48: ='PTRM input'!M300*(1+rvanilla07)^0.5 -> 0 | N48: ='PTRM input'!N300*(1+rvanilla08)^0.5 -> 0 | O48: ='PTRM input'!O300*(1+rvanilla09)^0.5 -> 0 | P48: ='PTRM input'!P300*(1+rvanilla10)^0.5 -> 0
C49: =Asset39 -> Control Centre - SCADA (Capex: 2010-15 RL; 2015-20 SL) | G49: ='PTRM input'!G301*(1+rvanilla01)^0.5 -> 2.974024645 | H49: ='PTRM input'!H301*(1+rvanilla02)^0.5 -> 3.071606677 | I49: ='PTRM input'!I301*(1+rvanilla03)^0.5 -> 2.966128713 | J49: ='PTRM input'!J301*(1+rvanilla04)^0.5 -> 2.953348223 | K49: ='PTRM input'!K301*(1+rvanilla05)^0.5 -> 2.98804391 | L49: ='PTRM input'!L301*(1+rvanilla06)^0.5 -> 0 | M49: ='PTRM input'!M301*(1+rvanilla07)^0.5 -> 0 | N49: ='PTRM input'!N301*(1+rvanilla08)^0.5 -> 0 | O49: ='PTRM input'!O301*(1+rvanilla09)^0.5 -> 0 | P49: ='PTRM input'!P301*(1+rvanilla10)^0.5 -> 0
C50: =Asset40 -> Communications (Capex: 2010-15 RL; 2015-20 SL) | G50: ='PTRM input'!G302*(1+rvanilla01)^0.5 -> 0 | H50: ='PTRM input'!H302*(1+rvanilla02)^0.5 -> 0 | I50: ='PTRM input'!I302*(1+rvanilla03)^0.5 -> 0 | J50: ='PTRM input'!J302*(1+rvanilla04)^0.5 -> 0 | K50: ='PTRM input'!K302*(1+rvanilla05)^0.5 -> 0 | L50: ='PTRM input'!L302*(1+rvanilla06)^0.5 -> 0 | M50: ='PTRM input'!M302*(1+rvanilla07)^0.5 -> 0 | N50: ='PTRM input'!N302*(1+rvanilla08)^0.5 -> 0 | O50: ='PTRM input'!O302*(1+rvanilla09)^0.5 -> 0 | P50: ='PTRM input'!P302*(1+rvanilla10)^0.5 -> 0
C51: =Asset41 -> IT Systems (Capex: 2010-15 RL; 2015-20 SL) | G51: ='PTRM input'!G303*(1+rvanilla01)^0.5 -> 2.715304251 | H51: ='PTRM input'!H303*(1+rvanilla02)^0.5 -> 6.123041087 | I51: ='PTRM input'!I303*(1+rvanilla03)^0.5 -> 8.238872443 | J51: ='PTRM input'!J303*(1+rvanilla04)^0.5 -> 2.542502178 | K51: ='PTRM input'!K303*(1+rvanilla05)^0.5 -> 6.437615514 | L51: ='PTRM input'!L303*(1+rvanilla06)^0.5 -> 0 | M51: ='PTRM input'!M303*(1+rvanilla07)^0.5 -> 0 | N51: ='PTRM input'!N303*(1+rvanilla08)^0.5 -> 0 | O51: ='PTRM input'!O303*(1+rvanilla09)^0.5 -> 0 | P51: ='PTRM input'!P303*(1+rvanilla10)^0.5 -> 0
C52: =Asset42 -> Office Equipment & Furniture (Capex: 2010-15 RL; 2015-20 SL) | G52: ='PTRM input'!G304*(1+rvanilla01)^0.5 -> 3.701763099 | H52: ='PTRM input'!H304*(1+rvanilla02)^0.5 -> 1.90200778 | I52: ='PTRM input'!I304*(1+rvanilla03)^0.5 -> 1.220573695 | J52: ='PTRM input'!J304*(1+rvanilla04)^0.5 -> 1.149210984 | K52: ='PTRM input'!K304*(1+rvanilla05)^0.5 -> 0.600030514 | L52: ='PTRM input'!L304*(1+rvanilla06)^0.5 -> 0 | M52: ='PTRM input'!M304*(1+rvanilla07)^0.5 -> 0 | N52: ='PTRM input'!N304*(1+rvanilla08)^0.5 -> 0 | O52: ='PTRM input'!O304*(1+rvanilla09)^0.5 -> 0 | P52: ='PTRM input'!P304*(1+rvanilla10)^0.5 -> 0
C53: =Asset43 -> Motor Vehicles (Capex: 2010-15 RL; 2015-20 SL) | G53: ='PTRM input'!G305*(1+rvanilla01)^0.5 -> 26.67506761 | H53: ='PTRM input'!H305*(1+rvanilla02)^0.5 -> 28.58097252 | I53: ='PTRM input'!I305*(1+rvanilla03)^0.5 -> 33.00634701 | J53: ='PTRM input'!J305*(1+rvanilla04)^0.5 -> 27.91667391 | K53: ='PTRM input'!K305*(1+rvanilla05)^0.5 -> 26.10641236 | L53: ='PTRM input'!L305*(1+rvanilla06)^0.5 -> 0 | M53: ='PTRM input'!M305*(1+rvanilla07)^0.5 -> 0 | N53: ='PTRM input'!N305*(1+rvanilla08)^0.5 -> 0 | O53: ='PTRM input'!O305*(1+rvanilla09)^0.5 -> 0 | P53: ='PTRM input'!P305*(1+rvanilla10)^0.5 -> 0
C54: =Asset44 -> Plant & Equipment (Capex: 2010-15 RL; 2015-20 SL) | G54: ='PTRM input'!G306*(1+rvanilla01)^0.5 -> 6.661139643 | H54: ='PTRM input'!H306*(1+rvanilla02)^0.5 -> 7.109644053 | I54: ='PTRM input'!I306*(1+rvanilla03)^0.5 -> 7.425156647 | J54: ='PTRM input'!J306*(1+rvanilla04)^0.5 -> 6.874925889 | K54: ='PTRM input'!K306*(1+rvanilla05)^0.5 -> 7.698696594 | L54: ='PTRM input'!L306*(1+rvanilla06)^0.5 -> 0 | M54: ='PTRM input'!M306*(1+rvanilla07)^0.5 -> 0 | N54: ='PTRM input'!N306*(1+rvanilla08)^0.5 -> 0 | O54: ='PTRM input'!O306*(1+rvanilla09)^0.5 -> 0 | P54: ='PTRM input'!P306*(1+rvanilla10)^0.5 -> 0
C55: =Asset45 -> Buildings (Capex: 2010-15 RL; 2015-20 SL) | G55: ='PTRM input'!G307*(1+rvanilla01)^0.5 -> 104.8899355 | H55: ='PTRM input'!H307*(1+rvanilla02)^0.5 -> 55.28400004 | I55: ='PTRM input'!I307*(1+rvanilla03)^0.5 -> 38.35910877 | J55: ='PTRM input'!J307*(1+rvanilla04)^0.5 -> 27.40282734 | K55: ='PTRM input'!K307*(1+rvanilla05)^0.5 -> 14.07034247 | L55: ='PTRM input'!L307*(1+rvanilla06)^0.5 -> 0 | M55: ='PTRM input'!M307*(1+rvanilla07)^0.5 -> 0 | N55: ='PTRM input'!N307*(1+rvanilla08)^0.5 -> 0 | O55: ='PTRM input'!O307*(1+rvanilla09)^0.5 -> 0 | P55: ='PTRM input'!P307*(1+rvanilla10)^0.5 -> 0
C56: =Asset46 -> Land Improvements (Capex: 2010-15 RL; 2015-20 SL) | G56: ='PTRM input'!G308*(1+rvanilla01)^0.5 -> 0 | H56: ='PTRM input'!H308*(1+rvanilla02)^0.5 -> 0 | I56: ='PTRM input'!I308*(1+rvanilla03)^0.5 -> 0 | J56: ='PTRM input'!J308*(1+rvanilla04)^0.5 -> 0 | K56: ='PTRM input'!K308*(1+rvanilla05)^0.5 -> 0 | L56: ='PTRM input'!L308*(1+rvanilla06)^0.5 -> 0 | M56: ='PTRM input'!M308*(1+rvanilla07)^0.5 -> 0 | N56: ='PTRM input'!N308*(1+rvanilla08)^0.5 -> 0 | O56: ='PTRM input'!O308*(1+rvanilla09)^0.5 -> 0 | P56: ='PTRM input'!P308*(1+rvanilla10)^0.5 -> 0
C57: =Asset47 -> Equity Raising Costs (Capex: 2010-15 RL; 2015-20 SL) | G57: ='PTRM input'!G309*(1+rvanilla01)^0.5 -> 0 | H57: ='PTRM input'!H309*(1+rvanilla02)^0.5 -> 0 | I57: ='PTRM input'!I309*(1+rvanilla03)^0.5 -> 0 | J57: ='PTRM input'!J309*(1+rvanilla04)^0.5 -> 0 | K57: ='PTRM input'!K309*(1+rvanilla05)^0.5 -> 0 | L57: ='PTRM input'!L309*(1+rvanilla06)^0.5 -> 0 | M57: ='PTRM input'!M309*(1+rvanilla07)^0.5 -> 0 | N57: ='PTRM input'!N309*(1+rvanilla08)^0.5 -> 0 | O57: ='PTRM input'!O309*(1+rvanilla09)^0.5 -> 0 | P57: ='PTRM input'!P309*(1+rvanilla10)^0.5 -> 0
C58: =Asset48 -> 0 | G58: ='PTRM input'!G310*(1+rvanilla01)^0.5 -> 0 | H58: ='PTRM input'!H310*(1+rvanilla02)^0.5 -> 0 | I58: ='PTRM input'!I310*(1+rvanilla03)^0.5 -> 0 | J58: ='PTRM input'!J310*(1+rvanilla04)^0.5 -> 0 | K58: ='PTRM input'!K310*(1+rvanilla05)^0.5 -> 0 | L58: ='PTRM input'!L310*(1+rvanilla06)^0.5 -> 0 | M58: ='PTRM input'!M310*(1+rvanilla07)^0.5 -> 0 | N58: ='PTRM input'!N310*(1+rvanilla08)^0.5 -> 0 | O58: ='PTRM input'!O310*(1+rvanilla09)^0.5 -> 0 | P58: ='PTRM input'!P310*(1+rvanilla10)^0.5 -> 0
C59: =Asset49 -> 0 | G59: ='PTRM input'!G311*(1+rvanilla01)^0.5 -> 0 | H59: ='PTRM input'!H311*(1+rvanilla02)^0.5 -> 0 | I59: ='PTRM input'!I311*(1+rvanilla03)^0.5 -> 0 | J59: ='PTRM input'!J311*(1+rvanilla04)^0.5 -> 0 | K59: ='PTRM input'!K311*(1+rvanilla05)^0.5 -> 0 | L59: ='PTRM input'!L311*(1+rvanilla06)^0.5 -> 0 | M59: ='PTRM input'!M311*(1+rvanilla07)^0.5 -> 0 | N59: ='PTRM input'!N311*(1+rvanilla08)^0.5 -> 0 | O59: ='PTRM input'!O311*(1+rvanilla09)^0.5 -> 0 | P59: ='PTRM input'!P311*(1+rvanilla10)^0.5 -> 0
C60: =Asset50 -> 0 | G60: ='PTRM input'!G312*(1+rvanilla01)^0.5 -> 0 | H60: ='PTRM input'!H312*(1+rvanilla02)^0.5 -> 0 | I60: ='PTRM input'!I312*(1+rvanilla03)^0.5 -> 0 | J60: ='PTRM input'!J312*(1+rvanilla04)^0.5 -> 0 | K60: ='PTRM input'!K312*(1+rvanilla05)^0.5 -> 0 | L60: ='PTRM input'!L312*(1+rvanilla06)^0.5 -> 0 | M60: ='PTRM input'!M312*(1+rvanilla07)^0.5 -> 0 | N60: ='PTRM input'!N312*(1+rvanilla08)^0.5 -> 0 | O60: ='PTRM input'!O312*(1+rvanilla09)^0.5 -> 0 | P60: ='PTRM input'!P312*(1+rvanilla10)^0.5 -> 0
C61: =Asset51 -> 0 | G61: ='PTRM input'!G313*(1+rvanilla01)^0.5 -> 0 | H61: ='PTRM input'!H313*(1+rvanilla02)^0.5 -> 0 | I61: ='PTRM input'!I313*(1+rvanilla03)^0.5 -> 0 | J61: ='PTRM input'!J313*(1+rvanilla04)^0.5 -> 0 | K61: ='PTRM input'!K313*(1+rvanilla05)^0.5 -> 0 | L61: ='PTRM input'!L313*(1+rvanilla06)^0.5 -> 0 | M61: ='PTRM input'!M313*(1+rvanilla07)^0.5 -> 0 | N61: ='PTRM input'!N313*(1+rvanilla08)^0.5 -> 0 | O61: ='PTRM input'!O313*(1+rvanilla09)^0.5 -> 0 | P61: ='PTRM input'!P313*(1+rvanilla10)^0.5 -> 0
C62: =Asset52 -> 0 | G62: ='PTRM input'!G314*(1+rvanilla01)^0.5 -> 0 | H62: ='PTRM input'!H314*(1+rvanilla02)^0.5 -> 0 | I62: ='PTRM input'!I314*(1+rvanilla03)^0.5 -> 0 | J62: ='PTRM input'!J314*(1+rvanilla04)^0.5 -> 0 | K62: ='PTRM input'!K314*(1+rvanilla05)^0.5 -> 0 | L62: ='PTRM input'!L314*(1+rvanilla06)^0.5 -> 0 | M62: ='PTRM input'!M314*(1+rvanilla07)^0.5 -> 0 | N62: ='PTRM input'!N314*(1+rvanilla08)^0.5 -> 0 | O62: ='PTRM input'!O314*(1+rvanilla09)^0.5 -> 0 | P62: ='PTRM input'!P314*(1+rvanilla10)^0.5 -> 0
C63: =Asset53 -> 0 | G63: ='PTRM input'!G315*(1+rvanilla01)^0.5 -> 0 | H63: ='PTRM input'!H315*(1+rvanilla02)^0.5 -> 0 | I63: ='PTRM input'!I315*(1+rvanilla03)^0.5 -> 0 | J63: ='PTRM input'!J315*(1+rvanilla04)^0.5 -> 0 | K63: ='PTRM input'!K315*(1+rvanilla05)^0.5 -> 0 | L63: ='PTRM input'!L315*(1+rvanilla06)^0.5 -> 0 | M63: ='PTRM input'!M315*(1+rvanilla07)^0.5 -> 0 | N63: ='PTRM input'!N315*(1+rvanilla08)^0.5 -> 0 | O63: ='PTRM input'!O315*(1+rvanilla09)^0.5 -> 0 | P63: ='PTRM input'!P315*(1+rvanilla10)^0.5 -> 0
C64: =Asset54 -> 0 | G64: ='PTRM input'!G316*(1+rvanilla01)^0.5 -> 0 | H64: ='PTRM input'!H316*(1+rvanilla02)^0.5 -> 0 | I64: ='PTRM input'!I316*(1+rvanilla03)^0.5 -> 0 | J64: ='PTRM input'!J316*(1+rvanilla04)^0.5 -> 0 | K64: ='PTRM input'!K316*(1+rvanilla05)^0.5 -> 0 | L64: ='PTRM input'!L316*(1+rvanilla06)^0.5 -> 0 | M64: ='PTRM input'!M316*(1+rvanilla07)^0.5 -> 0 | N64: ='PTRM input'!N316*(1+rvanilla08)^0.5 -> 0 | O64: ='PTRM input'!O316*(1+rvanilla09)^0.5 -> 0 | P64: ='PTRM input'!P316*(1+rvanilla10)^0.5 -> 0
C65: =Asset55 -> 0 | G65: ='PTRM input'!G317*(1+rvanilla01)^0.5 -> 0 | H65: ='PTRM input'!H317*(1+rvanilla02)^0.5 -> 0 | I65: ='PTRM input'!I317*(1+rvanilla03)^0.5 -> 0 | J65: ='PTRM input'!J317*(1+rvanilla04)^0.5 -> 0 | K65: ='PTRM input'!K317*(1+rvanilla05)^0.5 -> 0 | L65: ='PTRM input'!L317*(1+rvanilla06)^0.5 -> 0 | M65: ='PTRM input'!M317*(1+rvanilla07)^0.5 -> 0 | N65: ='PTRM input'!N317*(1+rvanilla08)^0.5 -> 0 | O65: ='PTRM input'!O317*(1+rvanilla09)^0.5 -> 0 | P65: ='PTRM input'!P317*(1+rvanilla10)^0.5 -> 0
C66: =Asset56 -> 0 | G66: ='PTRM input'!G318*(1+rvanilla01)^0.5 -> 0 | H66: ='PTRM input'!H318*(1+rvanilla02)^0.5 -> 0 | I66: ='PTRM input'!I318*(1+rvanilla03)^0.5 -> 0 | J66: ='PTRM input'!J318*(1+rvanilla04)^0.5 -> 0 | K66: ='PTRM input'!K318*(1+rvanilla05)^0.5 -> 0 | L66: ='PTRM input'!L318*(1+rvanilla06)^0.5 -> 0 | M66: ='PTRM input'!M318*(1+rvanilla07)^0.5 -> 0 | N66: ='PTRM input'!N318*(1+rvanilla08)^0.5 -> 0 | O66: ='PTRM input'!O318*(1+rvanilla09)^0.5 -> 0 | P66: ='PTRM input'!P318*(1+rvanilla10)^0.5 -> 0
C67: =Asset57 -> 0 | G67: ='PTRM input'!G319*(1+rvanilla01)^0.5 -> 0 | H67: ='PTRM input'!H319*(1+rvanilla02)^0.5 -> 0 | I67: ='PTRM input'!I319*(1+rvanilla03)^0.5 -> 0 | J67: ='PTRM input'!J319*(1+rvanilla04)^0.5 -> 0 | K67: ='PTRM input'!K319*(1+rvanilla05)^0.5 -> 0 | L67: ='PTRM input'!L319*(1+rvanilla06)^0.5 -> 0 | M67: ='PTRM input'!M319*(1+rvanilla07)^0.5 -> 0 | N67: ='PTRM input'!N319*(1+rvanilla08)^0.5 -> 0 | O67: ='PTRM input'!O319*(1+rvanilla09)^0.5 -> 0 | P67: ='PTRM input'!P319*(1+rvanilla10)^0.5 -> 0
C68: =Asset58 -> 0 | G68: ='PTRM input'!G320*(1+rvanilla01)^0.5 -> 0 | H68: ='PTRM input'!H320*(1+rvanilla02)^0.5 -> 0 | I68: ='PTRM input'!I320*(1+rvanilla03)^0.5 -> 0 | J68: ='PTRM input'!J320*(1+rvanilla04)^0.5 -> 0 | K68: ='PTRM input'!K320*(1+rvanilla05)^0.5 -> 0 | L68: ='PTRM input'!L320*(1+rvanilla06)^0.5 -> 0 | M68: ='PTRM input'!M320*(1+rvanilla07)^0.5 -> 0 | N68: ='PTRM input'!N320*(1+rvanilla08)^0.5 -> 0 | O68: ='PTRM input'!O320*(1+rvanilla09)^0.5 -> 0 | P68: ='PTRM input'!P320*(1+rvanilla10)^0.5 -> 0
C69: =Asset59 -> 0 | G69: ='PTRM input'!G321*(1+rvanilla01)^0.5 -> 0 | H69: ='PTRM input'!H321*(1+rvanilla02)^0.5 -> 0 | I69: ='PTRM input'!I321*(1+rvanilla03)^0.5 -> 0 | J69: ='PTRM input'!J321*(1+rvanilla04)^0.5 -> 0 | K69: ='PTRM input'!K321*(1+rvanilla05)^0.5 -> 0 | L69: ='PTRM input'!L321*(1+rvanilla06)^0.5 -> 0 | M69: ='PTRM input'!M321*(1+rvanilla07)^0.5 -> 0 | N69: ='PTRM input'!N321*(1+rvanilla08)^0.5 -> 0 | O69: ='PTRM input'!O321*(1+rvanilla09)^0.5 -> 0 | P69: ='PTRM input'!P321*(1+rvanilla10)^0.5 -> 0
C70: =Asset60 -> 0 | G70: ='PTRM input'!G322*(1+rvanilla01)^0.5 -> 0 | H70: ='PTRM input'!H322*(1+rvanilla02)^0.5 -> 0 | I70: ='PTRM input'!I322*(1+rvanilla03)^0.5 -> 0 | J70: ='PTRM input'!J322*(1+rvanilla04)^0.5 -> 0 | K70: ='PTRM input'!K322*(1+rvanilla05)^0.5 -> 0 | L70: ='PTRM input'!L322*(1+rvanilla06)^0.5 -> 0 | M70: ='PTRM input'!M322*(1+rvanilla07)^0.5 -> 0 | N70: ='PTRM input'!N322*(1+rvanilla08)^0.5 -> 0 | O70: ='PTRM input'!O322*(1+rvanilla09)^0.5 -> 0 | P70: ='PTRM input'!P322*(1+rvanilla10)^0.5 -> 0
B71: Nominal Net Capex | G71: =SUM(G72:G131) -> 687.9873308 | H71: =SUM(H72:H131) -> 635.1804735 | I71: 598.6840533 | J71: 568.9873965 | K71: 571.7058512 | L71: 0 | M71: 0 | N71: 0 | O71: 0 | P71: 0
C72: =Asset1 -> Overhead Sub-Transmission Lines (pre July 2010) | G72: =G11*G$7 -> 0 | H72: =H11*H$7 -> 0 | I72: 0 | J72: 0 | K72: 0 | L72: 0 | M72: 0 | N72: 0 | O72: 0 | P72: 0
C73: =Asset2 -> Underground Sub-Transmission Cables (pre July 2010) | G73: 0 | H73: =H12*H$7 -> 0 | I73: 0 | J73: 0 | K73: 0 | L73: 0 | M73: 0 | N73: 0 | O73: 0 | P73: 0
C74: =Asset3 -> Overhead Distribution Lines (pre July 2010) | G74: 0 | H74: =H13*H$7 -> 0 | I74: 0 | J74: =J13*J$7 -> 0 | K74: 0 | L74: 0 | M74: 0 | N74: 0 | O74: 0 | P74: 0
C75: =Asset4 -> Underground Distribution Cables (pre July 2010) | G75: 0 | H75: =H14*H$7 -> 0 | I75: =I14*I$7 -> 0 | J75: 0 | K75: 0 | L75: 0 | M75: 0 | N75: 0 | O75: 0 | P75: 0
C76: =Asset5 -> Distribution Equipment (pre July 2010) | G76: 0 | H76: =H15*H$7 -> 0 | I76: 0 | J76: 0 | K76: 0 | L76: 0 | M76: 0 | N76: 0 | O76: 0 | P76: 0
C77: =Asset6 -> Substation Bays (pre July 2010) | G77: 0 | H77: =H16*H$7 -> 0 | I77: 0 | J77: 0 | K77: 0 | L77: 0 | M77: 0 | N77: 0 | O77: 0 | P77: 0
C78: =Asset7 -> Substation Establishment (pre July 2010) | G78: 0 | H78: =H17*H$7 -> 0 | I78: 0 | J78: 0 | K78: 0 | L78: 0 | M78: 0 | N78: 0 | O78: 0 | P78: 0
C79: =Asset8 -> Distribution Substation Switchgear (pre July 2010) | G79: 0 | H79: =H18*H$7 -> 0 | I79: 0 | J79: 0 | K79: 0 | L79: 0 | M79: 0 | N79: 0 | O79: 0 | P79: 0
C80: =Asset9 -> Zone Transformers (pre July 2010) | G80: 0 | H80: =H19*H$7 -> 0 | I80: 0 | J80: 0 | K80: 0 | L80: 0 | M80: 0 | N80: 0 | O80: 0 | P80: 0
C81: =Asset10 -> Distribution Transformers (pre July 2010) | G81: 0 | H81: =H20*H$7 -> 0 | I81: 0 | J81: 0 | K81: 0 | L81: 0 | M81: 0 | N81: 0 | O81: 0 | P81: 0
C82: =Asset11 -> Low Voltage Services (pre July 2010) | G82: 0 | H82: =H21*H$7 -> 0 | I82: 0 | J82: 0 | K82: 0 | L82: 0 | M82: 0 | N82: 0 | O82: 0 | P82: 0
C83: =Asset12 -> Communications – Pilot Wires (pre July 2010) | G83: 0 | H83: =H22*H$7 -> 0 | I83: 0 | J83: 0 | K83: 0 | L83: 0 | M83: 0 | N83: 0 | O83: 0 | P83: 0
C84: =Asset13 -> Generation Assets (pre July 2010) | G84: 0 | H84: =H23*H$7 -> 0 | I84: 0 | J84: 0 | K84: 0 | L84: 0 | M84: 0 | N84: 0 | O84: 0 | P84: 0
C85: =Asset14 -> Other Equipment (pre July 2010) | G85: 0 | H85: =H24*H$7 -> 0 | I85: 0 | J85: 0 | K85: 0 | L85: 0 | M85: 0 | N85: 0 | O85: 0 | P85: 0
C86: =Asset15 -> Control Centre - SCADA (pre July 2010) | G86: 0 | H86: =H25*H$7 -> 0 | I86: 0 | J86: 0 | K86: 0 | L86: 0 | M86: 0 | N86: 0 | O86: 0 | P86: 0
C87: =Asset16 -> Land & Easements (System) - combined | G87: 2.970083439 | H87: =H26*H$7 -> 3.265473415 | I87: 3.101657528 | J87: 1.834849271 | K87: =K26*K$7 -> 1.910082203 | L87: 0 | M87: 0 | N87: 0 | O87: 0 | P87: 0
C88: =Asset17 -> IT Systems (pre July 2010) | G88: 0 | H88: =H27*H$7 -> 0 | I88: 0 | J88: 0 | K88: 0 | L88: 0 | M88: 0 | N88: 0 | O88: 0 | P88: 0
C89: =Asset18 -> Office Equipment & Furniture (pre July 2010) | G89: 0 | H89: =H28*H$7 -> 0 | I89: 0 | J89: 0 | K89: 0 | L89: 0 | M89: 0 | N89: 0 | O89: 0 | P89: 0
C90: =Asset19 -> Motor Vehicles (pre July 2010) | G90: 0 | H90: =H29*H$7 -> 0 | I90: 0 | J90: 0 | K90: 0 | L90: 0 | M90: 0 | N90: 0 | O90: 0 | P90: 0
C91: =Asset20 -> Plant & Equipment (pre July 2010) | G91: 0 | H91: =H30*H$7 -> 0 | I91: 0 | J91: 0 | K91: 0 | L91: 0 | M91: 0 | N91: 0 | O91: 0 | P91: 0
C92: =Asset21 -> Buildings (pre July 2010) | G92: 0 | H92: =H31*H$7 -> 0 | I92: 0 | J92: 0 | K92: 0 | L92: 0 | M92: 0 | N92: 0 | O92: 0 | P92: 0
C93: =Asset22 -> Land & Easements - combined | G93: 0 | H93: =H32*H$7 -> 0 | I93: 0 | J93: 0 | K93: 0 | L93: 0 | M93: 0 | N93: 0 | O93: 0 | P93: 0
C94: =Asset23 -> Land Improvements (pre July 2010) | G94: 0 | H94: =H33*H$7 -> 0 | I94: 0 | J94: 0 | K94: 0 | L94: 0 | M94: 0 | N94: 0 | O94: 0 | P94: 0
C95: =Asset24 -> Overhead Sub-Transmission Lines (Capex: 2010-15 RL; 2015-20 SL) | G95: 25.05698424 | H95: =H34*H$7 -> 21.49095294 | I95: 22.33859653 | J95: 20.21961811 | K95: 21.44630133 | L95: 0 | M95: 0 | N95: 0 | O95: 0 | P95: 0
C96: =Asset25 -> Underground Sub-Transmission Cables (Capex: 2010-15 RL; 2015-20 SL) | G96: 0.7046616817 | H96: =H35*H$7 -> 0.7548644552 | I96: 0.7898616963 | J96: 0.7653719114 | K96: 0.8136373328 | L96: 0 | M96: 0 | N96: 0 | O96: 0 | P96: 0
C97: =Asset26 -> Overhead Distribution Lines (Capex: 2010-15 RL; 2015-20 SL) | G97: 219.717124 | H97: =H36*H$7 -> 199.2276173 | I97: 189.366094 | J97: 193.0110299 | K97: 202.8878966 | L97: 0 | M97: 0 | N97: 0 | O97: 0 | P97: 0
C98: =Asset27 -> Underground Distribution Cables (Capex: 2010-15 RL; 2015-20 SL) | G98: 34.89337758 | H98: =H37*H$7 -> 38.04975765 | I98: 37.06955721 | J98: 33.93281616 | K98: 35.6086271 | L98: 0 | M98: 0 | N98: 0 | O98: 0 | P98: 0
C99: =Asset28 -> Distribution Equipment (Capex: 2010-15 RL; 2015-20 SL) | G99: 12.62593396 | H99: =H38*H$7 -> 18.33595177 | I99: 21.47697305 | J99: 22.57945361 | K99: 23.38007044 | L99: 0 | M99: 0 | N99: 0 | O99: 0 | P99: 0
C100: =Asset29 -> Substation Bays (Capex: 2010-15 RL; 2015-20 SL) | G100: =G39*G$7 -> 34.54157959 | H100: 40.03753104 | I100: 50.13438884 | J100: 45.02601976 | K100: 39.35676514 | L100: 0 | M100: 0 | N100: 0 | O100: 0 | P100: 0
C101: =Asset30 -> Substation Establishment (Capex: 2010-15 RL; 2015-20 SL) | G101: =G40*G$7 -> 13.72401875 | H101: 12.35992915 | I101: 11.52302266 | J101: 11.9660917 | K101: 11.5817261 | L101: 0 | M101: 0 | N101: 0 | O101: 0 | P101: 0
C102: =Asset31 -> Distribution Substation Switchgear (Capex: 2010-15 RL; 2015-20 SL) | G102: =G41*G$7 -> 9.409876631 | H102: 9.50819079 | I102: 9.030226922 | J102: 7.493762894 | K102: 7.719558503 | L102: 0 | M102: 0 | N102: 0 | O102: 0 | P102: 0
C103: =Asset32 -> Zone Transformers (Capex: 2010-15 RL; 2015-20 SL) | G103: =G42*G$7 -> 27.91643943 | H103: 28.91736397 | I103: 28.68317738 | J103: 30.86964004 | K103: 38.39902414 | L103: 0 | M103: 0 | N103: 0 | O103: 0 | P103: 0
C104: =Asset33 -> Distribution Transformers (Capex: 2010-15 RL; 2015-20 SL) | G104: =G43*G$7 -> 63.06716049 | H104: 67.02749265 | I104: 62.91583778 | J104: 61.25355402 | K104: 63.98119904 | L104: 0 | M104: 0 | N104: 0 | O104: 0 | P104: 0
C105: =Asset34 -> Low Voltage Services (Capex: 2010-15 RL; 2015-20 SL) | G105: =G44*G$7 -> 32.50712848 | H105: 35.70263876 | I105: 34.12646459 | J105: 35.14498669 | K105: 36.1821961 | L105: 0 | M105: 0 | N105: 0 | O105: 0 | P105: 0
C106: =Asset35 -> Metering (Capex: 2010-15 RL; 2015-20 SL) | G106: =G45*G$7 -> 3.650856508 | H106: 4.611462224 | I106: 4.636736425 | J106: 3.674503171 | K106: 3.515925317 | L106: 0 | M106: 0 | N106: 0 | O106: 0 | P106: 0
C107: =Asset36 -> Communications – Pilot Wires (Capex: 2010-15 RL; 2015-20 SL) | G107: =G46*G$7 -> 26.10309159 | H107: 25.73282471 | I107: 9.815180826 | J107: 11.20071979 | K107: 7.532278384 | L107: 0 | M107: 0 | N107: 0 | O107: 0 | P107: 0
C108: =Asset37 -> Generation Assets (Capex: 2010-15 RL; 2015-20 SL) | G108: =G47*G$7 -> 2.364963699 | H108: 3.914700536 | I108: 4.88964932 | J108: 1.375583238 | K108: 1.043186633 | L108: 0 | M108: 0 | N108: 0 | O108: 0 | P108: 0
C109: =Asset38 -> Other Equipment (Capex: 2010-15 RL; 2015-20 SL) | G109: =G48*G$7 -> 27.4263851 | H109: 19.00509183 | I109: 10.55677162 | J109: 12.65348143 | K109: 10.83755002 | L109: 0 | M109: 0 | N109: 0 | O109: 0 | P109: 0
C110: =Asset39 -> Control Centre - SCADA (Capex: 2010-15 RL; 2015-20 SL) | G110: =G49*G$7 -> 3.048375262 | H110: 3.227106765 | I110: 3.194196204 | J110: 3.259943839 | K110: 3.38069742 | L110: 0 | M110: 0 | N110: 0 | O110: 0 | P110: 0
C111: =Asset40 -> Communications (Capex: 2010-15 RL; 2015-20 SL) | G111: =G50*G$7 -> 0 | H111: 0 | I111: 0 | J111: 0 | K111: 0 | L111: 0 | M111: 0 | N111: 0 | O111: 0 | P111: 0
C112: =Asset41 -> IT Systems (Capex: 2010-15 RL; 2015-20 SL) | G112: =G51*G$7 -> 2.783186858 | H112: 6.433020042 | I112: 8.872364495 | J112: 2.806446678 | K112: 7.283571064 | L112: 0 | M112: 0 | N112: 0 | O112: 0 | P112: 0
C113: =Asset42 -> Office Equipment & Furniture (Capex: 2010-15 RL; 2015-20 SL) | G113: =G52*G$7 -> 3.794307177 | H113: 1.998296923 | I113: 1.31442437 | J113: 1.268513899 | K113: 0.6788794515 | L113: 0 | M113: 0 | N113: 0 | O113: 0 | P113: 0
C114: =Asset43 -> Motor Vehicles (Capex: 2010-15 RL; 2015-20 SL) | G114: =G53*G$7 -> 27.3419443 | H114: 30.02788425 | I114: 35.54422566 | J114: 30.81478453 | K114: 29.53700936 | L114: 0 | M114: 0 | N114: 0 | O114: 0 | P114: 0
C115: =Asset44 -> Plant & Equipment (Capex: 2010-15 RL; 2015-20 SL) | G115: =G54*G$7 -> 6.827668134 | H115: 7.469569783 | I115: 7.996081582 | J115: 7.588631818 | K115: 8.710368555 | L115: 0 | M115: 0 | N115: 0 | O115: 0 | P115: 0
C116: =Asset45 -> Buildings (Capex: 2010-15 RL; 2015-20 SL) | G116: =G55*G$7 -> 107.5121839 | H116: 58.08275254 | I116: 41.30856462 | J116: 30.24759406 | K116: 15.91930103 | L116: 0 | M116: 0 | N116: 0 | O116: 0 | P116: 0
C117: =Asset46 -> Land Improvements (Capex: 2010-15 RL; 2015-20 SL) | G117: =G56*G$7 -> 0 | H117: 0 | I117: 0 | J117: 0 | K117: 0 | L117: 0 | M117: 0 | N117: 0 | O117: 0 | P117: 0
C118: =Asset47 -> Equity Raising Costs (Capex: 2010-15 RL; 2015-20 SL) | G118: =G57*G$7 -> 0 | H118: 0 | I118: 0 | J118: 0 | K118: 0 | L118: 0 | M118: 0 | N118: 0 | O118: 0 | P118: 0
C119: =Asset48 -> 0 | G119: =G58*G$7 -> 0 | H119: 0 | I119: 0 | J119: 0 | K119: 0 | L119: 0 | M119: 0 | N119: 0 | O119: 0 | P119: 0
C120: =Asset49 -> 0 | G120: =G59*G$7 -> 0 | H120: 0 | I120: 0 | J120: 0 | K120: 0 | L120: 0 | M120: 0 | N120: 0 | O120: 0 | P120: 0
C121: =Asset50 -> 0 | G121: =G60*G$7 -> 0 | H121: 0 | I121: 0 | J121: 0 | K121: 0 | L121: 0 | M121: 0 | N121: 0 | O121: 0 | P121: 0
C122: =Asset51 -> 0 | G122: =G61*G$7 -> 0 | H122: 0 | I122: 0 | J122: 0 | K122: 0 | L122: 0 | M122: 0 | N122: 0 | O122: 0 | P122: 0
C123: =Asset52 -> 0 | G123: =G62*G$7 -> 0 | H123: 0 | I123: 0 | J123: 0 | K123: 0 | L123: 0 | M123: 0 | N123: 0 | O123: 0 | P123: 0
C124: =Asset53 -> 0 | G124: =G63*G$7 -> 0 | H124: 0 | I124: 0 | J124: 0 | K124: 0 | L124: 0 | M124: 0 | N124: 0 | O124: 0 | P124: 0
C125: =Asset54 -> 0 | G125: =G64*G$7 -> 0 | H125: 0 | I125: 0 | J125: 0 | K125: 0 | L125: 0 | M125: 0 | N125: 0 | O125: 0 | P125: 0
C126: =Asset55 -> 0 | G126: =G65*G$7 -> 0 | H126: 0 | I126: 0 | J126: 0 | K126: 0 | L126: 0 | M126: 0 | N126: 0 | O126: 0 | P126: 0
C127: =Asset56 -> 0 | G127: =G66*G$7 -> 0 | H127: 0 | I127: 0 | J127: 0 | K127: 0 | L127: 0 | M127: 0 | N127: 0 | O127: 0 | P127: 0
C128: =Asset57 -> 0 | G128: =G67*G$7 -> 0 | H128: 0 | I128: 0 | J128: 0 | K128: 0 | L128: 0 | M128: 0 | N128: 0 | O128: 0 | P128: 0
C129: =Asset58 -> 0 | G129: =G68*G$7 -> 0 | H129: 0 | I129: 0 | J129: 0 | K129: 0 | L129: 0 | M129: 0 | N129: 0 | O129: 0 | P129: 0
C130: =Asset59 -> 0 | G130: =G69*G$7 -> 0 | H130: 0 | I130: 0 | J130: 0 | K130: 0 | L130: 0 | M130: 0 | N130: 0 | O130: 0 | P130: 0
C131: =Asset60 -> 0 | G131: =G70*G$7 -> 0 | H131: 0 | I131: 0 | J131: 0 | K131: 0 | L131: 0 | M131: 0 | N131: 0 | O131: 0 | P131: 0
B133: ="Asset Values ($m Real "&F4&")" -> Asset Values ($m Real 2014-15)
B135: Real Straight-line Depreciation | G135: =G148+G161+G174+G187+G200+G213+G226+G239+G252+G265+G278+G291+G304+G317+G330+G343+G356+G369+G382+G395+G408+G421+G434+G447+G460+G473+G486+G499+G512+G525+G538+G551+G564+G577+G590+G603+G616+G629+G642+G655+G668+G681+G694+G707+G720+G733+G746+G759+G772+G785+G798+G811+G824+G837+G850+G863+G876+G889+G902+G915 -> 428.4109238 | H135: =H148+H161+H174+H187+H200+H213+H226+H239+H252+H265+H278+H291+H304+H317+H330+H343+H356+H369+H382+H395+H408+H421+H434+H447+H460+H473+H486+H499+H512+H525+H538+H551+H564+H577+H590+H603+H616+H629+H642+H655+H668+H681+H694+H707+H720+H733+H746+H759+H772+H785+H798+H811+H824+H837+H850+H863+H876+H889+H902+H915 -> 376.2677426 | I135: 376.4781808 | J135: 384.5801827 | K135: 390.6187197 | L135: 397.4282005 | M135: 396.8851396 | N135: 393.9029423 | O135: 380.040495 | P135: 374.738649 | Q135: 372.8530255 | R135: 368.9333249 | S135: 364.8516812 | T135: 360.8085308 | U135: 355.1728306 | V135: 350.3572986 | W135: 350.3572986 | X135: 320.9508636 | Y135: 309.1888642 | Z135: 308.9197355 | AA135: 308.9197355 | AB135: 308.9197355 | AC135: 302.4726148 | AD135: 295.7758476 | AE135: 295.7758476 | AF135: 295.7758476 | AG135: 288.1731086 | AH135: 275.8414091 | AI135: 253.9822612 | AJ135: 244.7625705 | AK135: 154.8408641 | AL135: 147.4474553 | AM135: 144.2566242 | AN135: 141.7871375 | AO135: 138.8642645 | AP135: 138.3064577 | AQ135: 136.3207809 | AR135: 132.9929636 | AS135: 124.8409302 | AT135: 123.0475459 | AU135: 120.2449693 | AV135: 116.9537847 | AW135: 101.2089539 | AX135: 77.21105966 | AY135: 76.02532708 | AZ135: 75.43409814 | BA135: 73.09863411 | BB135: 70.61697734 | BC135: 43.27535486 | BD135: 38.79126014 | BE135: 36.59397559 | BF135: 31.76210118 | BG135: 27.41906763 | BH135: 20.93914452 | BI135: 16.62433746
B136: =C148 -> Overhead Sub-Transmission Lines (pre July 2010) | D136: Initial Asset Base | G136: =IF(G$3>A1remlife,A1value-SUM($F136:F136),IF(A1remlife="N/A","n/a",A1value/A1remlife)) -> 33.33228596 | H136: =IF(H$3>A1remlife,A1value-SUM($F136:G136),IF(A1remlife="N/A","n/a",A1value/A1remlife)) -> 33.33228596 | I136: =IF(I$3>A1remlife,A1value-SUM($F136:H136),IF(A1remlife="N/A","n/a",A1value/A1remlife)) -> 33.33228596 | J136: =IF(J$3>A1remlife,A1value-SUM($F136:I136),IF(A1remlife="N/A","n/a",A1value/A1remlife)) -> 33.33228596 | K136: =IF(K$3>A1remlife,A1value-SUM($F136:J136),IF(A1remlife="N/A","n/a",A1value/A1remlife)) -> 33.33228596 | L136: =IF(L$3>A1remlife,A1value-SUM($F136:K136),IF(A1remlife="N/A","n/a",A1value/A1remlife)) -> 33.33228596 | M136: =IF(M$3>A1remlife,A1value-SUM($F136:L136),IF(A1remlife="N/A","n/a",A1value/A1remlife)) -> 33.33228596 | N136: =IF(N$3>A1remlife,A1value-SUM($F136:M136),IF(A1remlife="N/A","n/a",A1value/A1remlife)) -> 33.33228596 | O136: =IF(O$3>A1remlife,A1value-SUM($F136:N136),IF(A1remlife="N/A","n/a",A1value/A1remlife)) -> 33.33228596 | P136: =IF(P$3>A1remlife,A1value-SUM($F136:O136),IF(A1remlife="N/A","n/a",A1value/A1remlife)) -> 33.33228596 | Q136: =IF(Q$3>A1remlife,A1value-SUM($F136:P136),IF(A1remlife="N/A","n/a",A1value/A1remlife)) -> 33.33228596 | R136: =IF(R$3>A1remlife,A1value-SUM($F136:Q136),IF(A1remlife="N/A","n/a",A1value/A1remlife)) -> 33.33228596 | S136: =IF(S$3>A1remlife,A1value-SUM($F136:R136),IF(A1remlife="N/A","n/a",A1value/A1remlife)) -> 33.33228596 | T136: =IF(T$3>A1remlife,A1value-SUM($F136:S136),IF(A1remlife="N/A","n/a",A1value/A1remlife)) -> 33.33228596 | U136: =IF(U$3>A1remlife,A1value-SUM($F136:T136),IF(A1remlife="N/A","n/a",A1value/A1remlife)) -> 33.33228596 | V136: =IF(V$3>A1remlife,A1value-SUM($F136:U136),IF(A1remlife="N/A","n/a",A1value/A1remlife)) -> 33.33228596 | W136: =IF(W$3>A1remlife,A1value-SUM($F136:V136),IF(A1remlife="N/A","n/a",A1value/A1remlife)) -> 33.33228596 | X136: =IF(X$3>A1remlife,A1value-SUM($F136:W136),IF(A1remlife="N/A","n/a",A1value/A1remlife)) -> 33.33228596 | Y136: =IF(Y$3>A1remlife,A1value-SUM($F136:X136),IF(A1remlife="N/A","n/a",A1value/A1remlife)) -> 33.33228596 | Z136: =IF(Z$3>A1remlife,A1value-SUM($F136:Y136),IF(A1remlife="N/A","n/a",A1value/A1remlife)) -> 33.33228596 | AA136: =IF(AA$3>A1remlife,A1value-SUM($F136:Z136),IF(A1remlife="N/A","n/a",A1value/A1remlife)) -> 33.33228596 | AB136: =IF(AB$3>A1remlife,A1value-SUM($F136:AA136),IF(A1remlife="N/A","n/a",A1value/A1remlife)) -> 33.33228596 | AC136: =IF(AC$3>A1remlife,A1value-SUM($F136:AB136),IF(A1remlife="N/A","n/a",A1value/A1remlife)) -> 33.33228596 | AD136: =IF(AD$3>A1remlife,A1value-SUM($F136:AC136),IF(A1remlife="N/A","n/a",A1value/A1remlife)) -> 33.33228596 | AE136: =IF(AE$3>A1remlife,A1value-SUM($F136:AD136),IF(A1remlife="N/A","n/a",A1value/A1remlife)) -> 33.33228596 | AF136: =IF(AF$3>A1remlife,A1value-SUM($F136:AE136),IF(A1remlife="N/A","n/a",A1value/A1remlife)) -> 33.33228596 | AG136: =IF(AG$3>A1remlife,A1value-SUM($F136:AF136),IF(A1remlife="N/A","n/a",A1value/A1remlife)) -> 33.33228596 | AH136: =IF(AH$3>A1remlife,A1value-SUM($F136:AG136),IF(A1remlife="N/A","n/a",A1value/A1remlife)) -> 33.33228596 | AI136: =IF(AI$3>A1remlife,A1value-SUM($F136:AH136),IF(A1remlife="N/A","n/a",A1value/A1remlife)) -> 33.33228596 | AJ136: =IF(AJ$3>A1remlife,A1value-SUM($F136:AI136),IF(A1remlife="N/A","n/a",A1value/A1remlife)) -> 33.33228596 | AK136: =IF(AK$3>A1remlife,A1value-SUM($F136:AJ136),IF(A1remlife="N/A","n/a",A1value/A1remlife)) -> 4.668976925 | AL136: =IF(AL$3>A1remlife,A1value-SUM($F136:AK136),IF(A1remlife="N/A","n/a",A1value/A1remlife)) -> 0 | AM136: =IF(AM$3>A1remlife,A1value-SUM($F136:AL136),IF(A1remlife="N/A","n/a",A1value/A1remlife)) -> 0 | AN136: =IF(AN$3>A1remlife,A1value-SUM($F136:AM136),IF(A1remlife="N/A","n/a",A1value/A1remlife)) -> 0 | AO136: =IF(AO$3>A1remlife,A1value-SUM($F136:AN136),IF(A1remlife="N/A","n/a",A1value/A1remlife)) -> 0 | AP136: =IF(AP$3>A1remlife,A1value-SUM($F136:AO136),IF(A1remlife="N/A","n/a",A1value/A1remlife)) -> 0 | AQ136: =IF(AQ$3>A1remlife,A1value-SUM($F136:AP136),IF(A1remlife="N/A","n/a",A1value/A1remlife)) -> 0 | AR136: =IF(AR$3>A1remlife,A1value-SUM($F136:AQ136),IF(A1remlife="N/A","n/a",A1value/A1remlife)) -> 0 | AS136: =IF(AS$3>A1remlife,A1value-SUM($F136:AR136),IF(A1remlife="N/A","n/a",A1value/A1remlife)) -> 0 | AT136: =IF(AT$3>A1remlife,A1value-SUM($F136:AS136),IF(A1remlife="N/A","n/a",A1value/A1remlife)) -> 0 | AU136: =IF(AU$3>A1remlife,A1value-SUM($F136:AT136),IF(A1remlife="N/A","n/a",A1value/A1remlife)) -> 0 | AV136: =IF(AV$3>A1remlife,A1value-SUM($F136:AU136),IF(A1remlife="N/A","n/a",A1value/A1remlife)) -> 0 | AW136: =IF(AW$3>A1remlife,A1value-SUM($F136:AV136),IF(A1remlife="N/A","n/a",A1value/A1remlife)) -> 0 | AX136: =IF(AX$3>A1remlife,A1value-SUM($F136:AW136),IF(A1remlife="N/A","n/a",A1value/A1remlife)) -> 0 | AY136: =IF(AY$3>A1remlife,A1value-SUM($F136:AX136),IF(A1remlife="N/A","n/a",A1value/A1remlife)) -> 0 | AZ136: =IF(AZ$3>A1remlife,A1value-SUM($F136:AY136),IF(A1remlife="N/A","n/a",A1value/A1remlife)) -> 0 | BA136: =IF(BA$3>A1remlife,A1value-SUM($F136:AZ136),IF(A1remlife="N/A","n/a",A1value/A1remlife)) -> 0 | BB136: =IF(BB$3>A1remlife,A1value-SUM($F136:BA136),IF(A1remlife="N/A","n/a",A1value/A1remlife)) -> 0 | BC136: =IF(BC$3>A1remlife,A1value-SUM($F136:BB136),IF(A1remlife="N/A","n/a",A1value/A1remlife)) -> 0 | BD136: =IF(BD$3>A1remlife,A1value-SUM($F136:BC136),IF(A1remlife="N/A","n/a",A1value/A1remlife)) -> 0 | BE136: =IF(BE$3>A1remlife,A1value-SUM($F136:BD136),IF(A1remlife="N/A","n/a",A1value/A1remlife)) -> 0 | BF136: =IF(BF$3>A1remlife,A1value-SUM($F136:BE136),IF(A1remlife="N/A","n/a",A1value/A1remlife)) -> 0 | BG136: =IF(BG$3>A1remlife,A1value-SUM($F136:BF136),IF(A1remlife="N/A","n/a",A1value/A1remlife)) -> 0 | BH136: =IF(BH$3>A1remlife,A1value-SUM($F136:BG136),IF(A1remlife="N/A","n/a",A1value/A1remlife)) -> 0 | BI136: =IF(BI$3>A1remlife,A1value-SUM($F136:BH136),IF(A1remlife="N/A","n/a",A1value/A1remlife)) -> 0
D137: Capex in year | E137: 0
E138: 1 | H138: =IF(A1stdlife="n/a","n/a",IF(H$3>(A1stdlife+$E138),('PTRM input'!$G$263*(1+rvanilla01)^0.5)-SUM($G138:G138),('PTRM input'!$G$263*(1+rvanilla01)^0.5)/A1stdlife)) -> 0 | I138: =IF(A1stdlife="n/a","n/a",IF(I$3>(A1stdlife+$E138),('PTRM input'!$G$263*(1+rvanilla01)^0.5)-SUM($G138:H138),('PTRM input'!$G$263*(1+rvanilla01)^0.5)/A1stdlife)) -> 0 | J138: =IF(A1stdlife="n/a","n/a",IF(J$3>(A1stdlife+$E138),('PTRM input'!$G$263*(1+rvanilla01)^0.5)-SUM($G138:I138),('PTRM input'!$G$263*(1+rvanilla01)^0.5)/A1stdlife)) -> 0 | K138: =IF(A1stdlife="n/a","n/a",IF(K$3>(A1stdlife+$E138),('PTRM input'!$G$263*(1+rvanilla01)^0.5)-SUM($G138:J138),('PTRM input'!$G$263*(1+rvanilla01)^0.5)/A1stdlife)) -> 0 | L138: =IF(A1stdlife="n/a","n/a",IF(L$3>(A1stdlife+$E138),('PTRM input'!$G$263*(1+rvanilla01)^0.5)-SUM($G138:K138),('PTRM input'!$G$263*(1+rvanilla01)^0.5)/A1stdlife)) -> 0 | M138: =IF(A1stdlife="n/a","n/a",IF(M$3>(A1stdlife+$E138),('PTRM input'!$G$263*(1+rvanilla01)^0.5)-SUM($G138:L138),('PTRM input'!$G$263*(1+rvanilla01)^0.5)/A1stdlife)) -> 0 | N138: =IF(A1stdlife="n/a","n/a",IF(N$3>(A1stdlife+$E138),('PTRM input'!$G$263*(1+rvanilla01)^0.5)-SUM($G138:M138),('PTRM input'!$G$263*(1+rvanilla01)^0.5)/A1stdlife)) -> 0 | O138: =IF(A1stdlife="n/a","n/a",IF(O$3>(A1stdlife+$E138),('PTRM input'!$G$263*(1+rvanilla01)^0.5)-SUM($G138:N138),('PTRM input'!$G$263*(1+rvanilla01)^0.5)/A1stdlife)) -> 0 | P138: =IF(A1stdlife="n/a","n/a",IF(P$3>(A1stdlife+$E138),('PTRM input'!$G$263*(1+rvanilla01)^0.5)-SUM($G138:O138),('PTRM input'!$G$263*(1+rvanilla01)^0.5)/A1stdlife)) -> 0 | Q138: =IF(A1stdlife="n/a","n/a",IF(Q$3>(A1stdlife+$E138),('PTRM input'!$G$263*(1+rvanilla01)^0.5)-SUM($G138:P138),('PTRM input'!$G$263*(1+rvanilla01)^0.5)/A1stdlife)) -> 0 | R138: =IF(A1stdlife="n/a","n/a",IF(R$3>(A1stdlife+$E138),('PTRM input'!$G$263*(1+rvanilla01)^0.5)-SUM($G138:Q138),('PTRM input'!$G$263*(1+rvanilla01)^0.5)/A1stdlife)) -> 0 | S138: =IF(A1stdlife="n/a","n/a",IF(S$3>(A1stdlife+$E138),('PTRM input'!$G$263*(1+rvanilla01)^0.5)-SUM($G138:R138),('PTRM input'!$G$263*(1+rvanilla01)^0.5)/A1stdlife)) -> 0 | T138: =IF(A1stdlife="n/a","n/a",IF(T$3>(A1stdlife+$E138),('PTRM input'!$G$263*(1+rvanilla01)^0.5)-SUM($G138:S138),('PTRM input'!$G$263*(1+rvanilla01)^0.5)/A1stdlife)) -> 0 | U138: =IF(A1stdlife="n/a","n/a",IF(U$3>(A1stdlife+$E138),('PTRM input'!$G$263*(1+rvanilla01)^0.5)-SUM($G138:T138),('PTRM input'!$G$263*(1+rvanilla01)^0.5)/A1stdlife)) -> 0 | V138: =IF(A1stdlife="n/a","n/a",IF(V$3>(A1stdlife+$E138),('PTRM input'!$G$263*(1+rvanilla01)^0.5)-SUM($G138:U138),('PTRM input'!$G$263*(1+rvanilla01)^0.5)/A1stdlife)) -> 0 | W138: =IF(A1stdlife="n/a","n/a",IF(W$3>(A1stdlife+$E138),('PTRM input'!$G$263*(1+rvanilla01)^0.5)-SUM($G138:V138),('PTRM input'!$G$263*(1+rvanilla01)^0.5)/A1stdlife)) -> 0 | X138: =IF(A1stdlife="n/a","n/a",IF(X$3>(A1stdlife+$E138),('PTRM input'!$G$263*(1+rvanilla01)^0.5)-SUM($G138:W138),('PTRM input'!$G$263*(1+rvanilla01)^0.5)/A1stdlife)) -> 0 | Y138: =IF(A1stdlife="n/a","n/a",IF(Y$3>(A1stdlife+$E138),('PTRM input'!$G$263*(1+rvanilla01)^0.5)-SUM($G138:X138),('PTRM input'!$G$263*(1+rvanilla01)^0.5)/A1stdlife)) -> 0 | Z138: =IF(A1stdlife="n/a","n/a",IF(Z$3>(A1stdlife+$E138),('PTRM input'!$G$263*(1+rvanilla01)^0.5)-SUM($G138:Y138),('PTRM input'!$G$263*(1+rvanilla01)^0.5)/A1stdlife)) -> 0 | AA138: =IF(A1stdlife="n/a","n/a",IF(AA$3>(A1stdlife+$E138),('PTRM input'!$G$263*(1+rvanilla01)^0.5)-SUM($G138:Z138),('PTRM input'!$G$263*(1+rvanilla01)^0.5)/A1stdlife)) -> 0 | AB138: =IF(A1stdlife="n/a","n/a",IF(AB$3>(A1stdlife+$E138),('PTRM input'!$G$263*(1+rvanilla01)^0.5)-SUM($G138:AA138),('PTRM input'!$G$263*(1+rvanilla01)^0.5)/A1stdlife)) -> 0 | AC138: =IF(A1stdlife="n/a","n/a",IF(AC$3>(A1stdlife+$E138),('PTRM input'!$G$263*(1+rvanilla01)^0.5)-SUM($G138:AB138),('PTRM input'!$G$263*(1+rvanilla01)^0.5)/A1stdlife)) -> 0 | AD138: =IF(A1stdlife="n/a","n/a",IF(AD$3>(A1stdlife+$E138),('PTRM input'!$G$263*(1+rvanilla01)^0.5)-SUM($G138:AC138),('PTRM input'!$G$263*(1+rvanilla01)^0.5)/A1stdlife)) -> 0 | AE138: =IF(A1stdlife="n/a","n/a",IF(AE$3>(A1stdlife+$E138),('PTRM input'!$G$263*(1+rvanilla01)^0.5)-SUM($G138:AD138),('PTRM input'!$G$263*(1+rvanilla01)^0.5)/A1stdlife)) -> 0 | AF138: =IF(A1stdlife="n/a","n/a",IF(AF$3>(A1stdlife+$E138),('PTRM input'!$G$263*(1+rvanilla01)^0.5)-SUM($G138:AE138),('PTRM input'!$G$263*(1+rvanilla01)^0.5)/A1stdlife)) -> 0 | AG138: =IF(A1stdlife="n/a","n/a",IF(AG$3>(A1stdlife+$E138),('PTRM input'!$G$263*(1+rvanilla01)^0.5)-SUM($G138:AF138),('PTRM input'!$G$263*(1+rvanilla01)^0.5)/A1stdlife)) -> 0 | AH138: =IF(A1stdlife="n/a","n/a",IF(AH$3>(A1stdlife+$E138),('PTRM input'!$G$263*(1+rvanilla01)^0.5)-SUM($G138:AG138),('PTRM input'!$G$263*(1+rvanilla01)^0.5)/A1stdlife)) -> 0 | AI138: =IF(A1stdlife="n/a","n/a",IF(AI$3>(A1stdlife+$E138),('PTRM input'!$G$263*(1+rvanilla01)^0.5)-SUM($G138:AH138),('PTRM input'!$G$263*(1+rvanilla01)^0.5)/A1stdlife)) -> 0 | AJ138: =IF(A1stdlife="n/a","n/a",IF(AJ$3>(A1stdlife+$E138),('PTRM input'!$G$263*(1+rvanilla01)^0.5)-SUM($G138:AI138),('PTRM input'!$G$263*(1+rvanilla01)^0.5)/A1stdlife)) -> 0 | AK138: =IF(A1stdlife="n/a","n/a",IF(AK$3>(A1stdlife+$E138),('PTRM input'!$G$263*(1+rvanilla01)^0.5)-SUM($G138:AJ138),('PTRM input'!$G$263*(1+rvanilla01)^0.5)/A1stdlife)) -> 0 | AL138: =IF(A1stdlife="n/a","n/a",IF(AL$3>(A1stdlife+$E138),('PTRM input'!$G$263*(1+rvanilla01)^0.5)-SUM($G138:AK138),('PTRM input'!$G$263*(1+rvanilla01)^0.5)/A1stdlife)) -> 0 | AM138: =IF(A1stdlife="n/a","n/a",IF(AM$3>(A1stdlife+$E138),('PTRM input'!$G$263*(1+rvanilla01)^0.5)-SUM($G138:AL138),('PTRM input'!$G$263*(1+rvanilla01)^0.5)/A1stdlife)) -> 0 | AN138: =IF(A1stdlife="n/a","n/a",IF(AN$3>(A1stdlife+$E138),('PTRM input'!$G$263*(1+rvanilla01)^0.5)-SUM($G138:AM138),('PTRM input'!$G$263*(1+rvanilla01)^0.5)/A1stdlife)) -> 0 | AO138: =IF(A1stdlife="n/a","n/a",IF(AO$3>(A1stdlife+$E138),('PTRM input'!$G$263*(1+rvanilla01)^0.5)-SUM($G138:AN138),('PTRM input'!$G$263*(1+rvanilla01)^0.5)/A1stdlife)) -> 0 | AP138: =IF(A1stdlife="n/a","n/a",IF(AP$3>(A1stdlife+$E138),('PTRM input'!$G$263*(1+rvanilla01)^0.5)-SUM($G138:AO138),('PTRM input'!$G$263*(1+rvanilla01)^0.5)/A1stdlife)) -> 0 | AQ138: =IF(A1stdlife="n/a","n/a",IF(AQ$3>(A1stdlife+$E138),('PTRM input'!$G$263*(1+rvanilla01)^0.5)-SUM($G138:AP138),('PTRM input'!$G$263*(1+rvanilla01)^0.5)/A1stdlife)) -> 0 | AR138: =IF(A1stdlife="n/a","n/a",IF(AR$3>(A1stdlife+$E138),('PTRM input'!$G$263*(1+rvanilla01)^0.5)-SUM($G138:AQ138),('PTRM input'!$G$263*(1+rvanilla01)^0.5)/A1stdlife)) -> 0 | AS138: =IF(A1stdlife="n/a","n/a",IF(AS$3>(A1stdlife+$E138),('PTRM input'!$G$263*(1+rvanilla01)^0.5)-SUM($G138:AR138),('PTRM input'!$G$263*(1+rvanilla01)^0.5)/A1stdlife)) -> 0 | AT138: =IF(A1stdlife="n/a","n/a",IF(AT$3>(A1stdlife+$E138),('PTRM input'!$G$263*(1+rvanilla01)^0.5)-SUM($G138:AS138),('PTRM input'!$G$263*(1+rvanilla01)^0.5)/A1stdlife)) -> 0 | AU138: =IF(A1stdlife="n/a","n/a",IF(AU$3>(A1stdlife+$E138),('PTRM input'!$G$263*(1+rvanilla01)^0.5)-SUM($G138:AT138),('PTRM input'!$G$263*(1+rvanilla01)^0.5)/A1stdlife)) -> 0 | AV138: =IF(A1stdlife="n/a","n/a",IF(AV$3>(A1stdlife+$E138),('PTRM input'!$G$263*(1+rvanilla01)^0.5)-SUM($G138:AU138),('PTRM input'!$G$263*(1+rvanilla01)^0.5)/A1stdlife)) -> 0 | AW138: =IF(A1stdlife="n/a","n/a",IF(AW$3>(A1stdlife+$E138),('PTRM input'!$G$263*(1+rvanilla01)^0.5)-SUM($G138:AV138),('PTRM input'!$G$263*(1+rvanilla01)^0.5)/A1stdlife)) -> 0 | AX138: =IF(A1stdlife="n/a","n/a",IF(AX$3>(A1stdlife+$E138),('PTRM input'!$G$263*(1+rvanilla01)^0.5)-SUM($G138:AW138),('PTRM input'!$G$263*(1+rvanilla01)^0.5)/A1stdlife)) -> 0 | AY138: =IF(A1stdlife="n/a","n/a",IF(AY$3>(A1stdlife+$E138),('PTRM input'!$G$263*(1+rvanilla01)^0.5)-SUM($G138:AX138),('PTRM input'!$G$263*(1+rvanilla01)^0.5)/A1stdlife)) -> 0 | AZ138: =IF(A1stdlife="n/a","n/a",IF(AZ$3>(A1stdlife+$E138),('PTRM input'!$G$263*(1+rvanilla01)^0.5)-SUM($G138:AY138),('PTRM input'!$G$263*(1+rvanilla01)^0.5)/A1stdlife)) -> 0 | BA138: =IF(A1stdlife="n/a","n/a",IF(BA$3>(A1stdlife+$E138),('PTRM input'!$G$263*(1+rvanilla01)^0.5)-SUM($G138:AZ138),('PTRM input'!$G$263*(1+rvanilla01)^0.5)/A1stdlife)) -> 0 | BB138: =IF(A1stdlife="n/a","n/a",IF(BB$3>(A1stdlife+$E138),('PTRM input'!$G$263*(1+rvanilla01)^0.5)-SUM($G138:BA138),('PTRM input'!$G$263*(1+rvanilla01)^0.5)/A1stdlife)) -> 0 | BC138: =IF(A1stdlife="n/a","n/a",IF(BC$3>(A1stdlife+$E138),('PTRM input'!$G$263*(1+rvanilla01)^0.5)-SUM($G138:BB138),('PTRM input'!$G$263*(1+rvanilla01)^0.5)/A1stdlife)) -> 0 | BD138: =IF(A1stdlife="n/a","n/a",IF(BD$3>(A1stdlife+$E138),('PTRM input'!$G$263*(1+rvanilla01)^0.5)-SUM($G138:BC138),('PTRM input'!$G$263*(1+rvanilla01)^0.5)/A1stdlife)) -> 0 | BE138: =IF(A1stdlife="n/a","n/a",IF(BE$3>(A1stdlife+$E138),('PTRM input'!$G$263*(1+rvanilla01)^0.5)-SUM($G138:BD138),('PTRM input'!$G$263*(1+rvanilla01)^0.5)/A1stdlife)) -> 0 | BF138: =IF(A1stdlife="n/a","n/a",IF(BF$3>(A1stdlife+$E138),('PTRM input'!$G$263*(1+rvanilla01)^0.5)-SUM($G138:BE138),('PTRM input'!$G$263*(1+rvanilla01)^0.5)/A1stdlife)) -> 0 | BG138: =IF(A1stdlife="n/a","n/a",IF(BG$3>(A1stdlife+$E138),('PTRM input'!$G$263*(1+rvanilla01)^0.5)-SUM($G138:BF138),('PTRM input'!$G$263*(1+rvanilla01)^0.5)/A1stdlife)) -> 0 | BH138: =IF(A1stdlife="n/a","n/a",IF(BH$3>(A1stdlife+$E138),('PTRM input'!$G$263*(1+rvanilla01)^0.5)-SUM($G138:BG138),('PTRM input'!$G$263*(1+rvanilla01)^0.5)/A1stdlife)) -> 0 | BI138: =IF(A1stdlife="n/a","n/a",IF(BI$3>(A1stdlife+$E138),('PTRM input'!$G$263*(1+rvanilla01)^0.5)-SUM($G138:BH138),('PTRM input'!$G$263*(1+rvanilla01)^0.5)/A1stdlife)) -> 0
E139: 2 | I139: =IF(A1stdlife="n/a","n/a",IF(I$3>(A1stdlife+$E139),('PTRM input'!$H$263*(1+rvanilla02)^0.5)-SUM($H139:H139),('PTRM input'!$H$263*(1+rvanilla02)^0.5)/A1stdlife)) -> 0 | J139: =IF(A1stdlife="n/a","n/a",IF(J$3>(A1stdlife+$E139),('PTRM input'!$H$263*(1+rvanilla02)^0.5)-SUM($H139:I139),('PTRM input'!$H$263*(1+rvanilla02)^0.5)/A1stdlife)) -> 0 | K139: =IF(A1stdlife="n/a","n/a",IF(K$3>(A1stdlife+$E139),('PTRM input'!$H$263*(1+rvanilla02)^0.5)-SUM($H139:J139),('PTRM input'!$H$263*(1+rvanilla02)^0.5)/A1stdlife)) -> 0 | L139: =IF(A1stdlife="n/a","n/a",IF(L$3>(A1stdlife+$E139),('PTRM input'!$H$263*(1+rvanilla02)^0.5)-SUM($H139:K139),('PTRM input'!$H$263*(1+rvanilla02)^0.5)/A1stdlife)) -> 0 | M139: =IF(A1stdlife="n/a","n/a",IF(M$3>(A1stdlife+$E139),('PTRM input'!$H$263*(1+rvanilla02)^0.5)-SUM($H139:L139),('PTRM input'!$H$263*(1+rvanilla02)^0.5)/A1stdlife)) -> 0 | N139: =IF(A1stdlife="n/a","n/a",IF(N$3>(A1stdlife+$E139),('PTRM input'!$H$263*(1+rvanilla02)^0.5)-SUM($H139:M139),('PTRM input'!$H$263*(1+rvanilla02)^0.5)/A1stdlife)) -> 0 | O139: =IF(A1stdlife="n/a","n/a",IF(O$3>(A1stdlife+$E139),('PTRM input'!$H$263*(1+rvanilla02)^0.5)-SUM($H139:N139),('PTRM input'!$H$263*(1+rvanilla02)^0.5)/A1stdlife)) -> 0 | P139: =IF(A1stdlife="n/a","n/a",IF(P$3>(A1stdlife+$E139),('PTRM input'!$H$263*(1+rvanilla02)^0.5)-SUM($H139:O139),('PTRM input'!$H$263*(1+rvanilla02)^0.5)/A1stdlife)) -> 0 | Q139: =IF(A1stdlife="n/a","n/a",IF(Q$3>(A1stdlife+$E139),('PTRM input'!$H$263*(1+rvanilla02)^0.5)-SUM($H139:P139),('PTRM input'!$H$263*(1+rvanilla02)^0.5)/A1stdlife)) -> 0 | R139: =IF(A1stdlife="n/a","n/a",IF(R$3>(A1stdlife+$E139),('PTRM input'!$H$263*(1+rvanilla02)^0.5)-SUM($H139:Q139),('PTRM input'!$H$263*(1+rvanilla02)^0.5)/A1stdlife)) -> 0 | S139: =IF(A1stdlife="n/a","n/a",IF(S$3>(A1stdlife+$E139),('PTRM input'!$H$263*(1+rvanilla02)^0.5)-SUM($H139:R139),('PTRM input'!$H$263*(1+rvanilla02)^0.5)/A1stdlife)) -> 0 | T139: =IF(A1stdlife="n/a","n/a",IF(T$3>(A1stdlife+$E139),('PTRM input'!$H$263*(1+rvanilla02)^0.5)-SUM($H139:S139),('PTRM input'!$H$263*(1+rvanilla02)^0.5)/A1stdlife)) -> 0 | U139: =IF(A1stdlife="n/a","n/a",IF(U$3>(A1stdlife+$E139),('PTRM input'!$H$263*(1+rvanilla02)^0.5)-SUM($H139:T139),('PTRM input'!$H$263*(1+rvanilla02)^0.5)/A1stdlife)) -> 0 | V139: =IF(A1stdlife="n/a","n/a",IF(V$3>(A1stdlife+$E139),('PTRM input'!$H$263*(1+rvanilla02)^0.5)-SUM($H139:U139),('PTRM input'!$H$263*(1+rvanilla02)^0.5)/A1stdlife)) -> 0 | W139: =IF(A1stdlife="n/a","n/a",IF(W$3>(A1stdlife+$E139),('PTRM input'!$H$263*(1+rvanilla02)^0.5)-SUM($H139:V139),('PTRM input'!$H$263*(1+rvanilla02)^0.5)/A1stdlife)) -> 0 | X139: =IF(A1stdlife="n/a","n/a",IF(X$3>(A1stdlife+$E139),('PTRM input'!$H$263*(1+rvanilla02)^0.5)-SUM($H139:W139),('PTRM input'!$H$263*(1+rvanilla02)^0.5)/A1stdlife)) -> 0 | Y139: =IF(A1stdlife="n/a","n/a",IF(Y$3>(A1stdlife+$E139),('PTRM input'!$H$263*(1+rvanilla02)^0.5)-SUM($H139:X139),('PTRM input'!$H$263*(1+rvanilla02)^0.5)/A1stdlife)) -> 0 | Z139: =IF(A1stdlife="n/a","n/a",IF(Z$3>(A1stdlife+$E139),('PTRM input'!$H$263*(1+rvanilla02)^0.5)-SUM($H139:Y139),('PTRM input'!$H$263*(1+rvanilla02)^0.5)/A1stdlife)) -> 0 | AA139: =IF(A1stdlife="n/a","n/a",IF(AA$3>(A1stdlife+$E139),('PTRM input'!$H$263*(1+rvanilla02)^0.5)-SUM($H139:Z139),('PTRM input'!$H$263*(1+rvanilla02)^0.5)/A1stdlife)) -> 0 | AB139: =IF(A1stdlife="n/a","n/a",IF(AB$3>(A1stdlife+$E139),('PTRM input'!$H$263*(1+rvanilla02)^0.5)-SUM($H139:AA139),('PTRM input'!$H$263*(1+rvanilla02)^0.5)/A1stdlife)) -> 0 | AC139: =IF(A1stdlife="n/a","n/a",IF(AC$3>(A1stdlife+$E139),('PTRM input'!$H$263*(1+rvanilla02)^0.5)-SUM($H139:AB139),('PTRM input'!$H$263*(1+rvanilla02)^0.5)/A1stdlife)) -> 0 | AD139: =IF(A1stdlife="n/a","n/a",IF(AD$3>(A1stdlife+$E139),('PTRM input'!$H$263*(1+rvanilla02)^0.5)-SUM($H139:AC139),('PTRM input'!$H$263*(1+rvanilla02)^0.5)/A1stdlife)) -> 0 | AE139: =IF(A1stdlife="n/a","n/a",IF(AE$3>(A1stdlife+$E139),('PTRM input'!$H$263*(1+rvanilla02)^0.5)-SUM($H139:AD139),('PTRM input'!$H$263*(1+rvanilla02)^0.5)/A1stdlife)) -> 0 | AF139: =IF(A1stdlife="n/a","n/a",IF(AF$3>(A1stdlife+$E139),('PTRM input'!$H$263*(1+rvanilla02)^0.5)-SUM($H139:AE139),('PTRM input'!$H$263*(1+rvanilla02)^0.5)/A1stdlife)) -> 0 | AG139: =IF(A1stdlife="n/a","n/a",IF(AG$3>(A1stdlife+$E139),('PTRM input'!$H$263*(1+rvanilla02)^0.5)-SUM($H139:AF139),('PTRM input'!$H$263*(1+rvanilla02)^0.5)/A1stdlife)) -> 0 | AH139: =IF(A1stdlife="n/a","n/a",IF(AH$3>(A1stdlife+$E139),('PTRM input'!$H$263*(1+rvanilla02)^0.5)-SUM($H139:AG139),('PTRM input'!$H$263*(1+rvanilla02)^0.5)/A1stdlife)) -> 0 | AI139: =IF(A1stdlife="n/a","n/a",IF(AI$3>(A1stdlife+$E139),('PTRM input'!$H$263*(1+rvanilla02)^0.5)-SUM($H139:AH139),('PTRM input'!$H$263*(1+rvanilla02)^0.5)/A1stdlife)) -> 0 | AJ139: =IF(A1stdlife="n/a","n/a",IF(AJ$3>(A1stdlife+$E139),('PTRM input'!$H$263*(1+rvanilla02)^0.5)-SUM($H139:AI139),('PTRM input'!$H$263*(1+rvanilla02)^0.5)/A1stdlife)) -> 0 | AK139: =IF(A1stdlife="n/a","n/a",IF(AK$3>(A1stdlife+$E139),('PTRM input'!$H$263*(1+rvanilla02)^0.5)-SUM($H139:AJ139),('PTRM input'!$H$263*(1+rvanilla02)^0.5)/A1stdlife)) -> 0 | AL139: =IF(A1stdlife="n/a","n/a",IF(AL$3>(A1stdlife+$E139),('PTRM input'!$H$263*(1+rvanilla02)^0.5)-SUM($H139:AK139),('PTRM input'!$H$263*(1+rvanilla02)^0.5)/A1stdlife)) -> 0 | AM139: =IF(A1stdlife="n/a","n/a",IF(AM$3>(A1stdlife+$E139),('PTRM input'!$H$263*(1+rvanilla02)^0.5)-SUM($H139:AL139),('PTRM input'!$H$263*(1+rvanilla02)^0.5)/A1stdlife)) -> 0 | AN139: =IF(A1stdlife="n/a","n/a",IF(AN$3>(A1stdlife+$E139),('PTRM input'!$H$263*(1+rvanilla02)^0.5)-SUM($H139:AM139),('PTRM input'!$H$263*(1+rvanilla02)^0.5)/A1stdlife)) -> 0 | AO139: =IF(A1stdlife="n/a","n/a",IF(AO$3>(A1stdlife+$E139),('PTRM input'!$H$263*(1+rvanilla02)^0.5)-SUM($H139:AN139),('PTRM input'!$H$263*(1+rvanilla02)^0.5)/A1stdlife)) -> 0 | AP139: =IF(A1stdlife="n/a","n/a",IF(AP$3>(A1stdlife+$E139),('PTRM input'!$H$263*(1+rvanilla02)^0.5)-SUM($H139:AO139),('PTRM input'!$H$263*(1+rvanilla02)^0.5)/A1stdlife)) -> 0 | AQ139: =IF(A1stdlife="n/a","n/a",IF(AQ$3>(A1stdlife+$E139),('PTRM input'!$H$263*(1+rvanilla02)^0.5)-SUM($H139:AP139),('PTRM input'!$H$263*(1+rvanilla02)^0.5)/A1stdlife)) -> 0 | AR139: =IF(A1stdlife="n/a","n/a",IF(AR$3>(A1stdlife+$E139),('PTRM input'!$H$263*(1+rvanilla02)^0.5)-SUM($H139:AQ139),('PTRM input'!$H$263*(1+rvanilla02)^0.5)/A1stdlife)) -> 0 | AS139: =IF(A1stdlife="n/a","n/a",IF(AS$3>(A1stdlife+$E139),('PTRM input'!$H$263*(1+rvanilla02)^0.5)-SUM($H139:AR139),('PTRM input'!$H$263*(1+rvanilla02)^0.5)/A1stdlife)) -> 0 | AT139: =IF(A1stdlife="n/a","n/a",IF(AT$3>(A1stdlife+$E139),('PTRM input'!$H$263*(1+rvanilla02)^0.5)-SUM($H139:AS139),('PTRM input'!$H$263*(1+rvanilla02)^0.5)/A1stdlife)) -> 0 | AU139: =IF(A1stdlife="n/a","n/a",IF(AU$3>(A1stdlife+$E139),('PTRM input'!$H$263*(1+rvanilla02)^0.5)-SUM($H139:AT139),('PTRM input'!$H$263*(1+rvanilla02)^0.5)/A1stdlife)) -> 0 | AV139: =IF(A1stdlife="n/a","n/a",IF(AV$3>(A1stdlife+$E139),('PTRM input'!$H$263*(1+rvanilla02)^0.5)-SUM($H139:AU139),('PTRM input'!$H$263*(1+rvanilla02)^0.5)/A1stdlife)) -> 0 | AW139: =IF(A1stdlife="n/a","n/a",IF(AW$3>(A1stdlife+$E139),('PTRM input'!$H$263*(1+rvanilla02)^0.5)-SUM($H139:AV139),('PTRM input'!$H$263*(1+rvanilla02)^0.5)/A1stdlife)) -> 0 | AX139: =IF(A1stdlife="n/a","n/a",IF(AX$3>(A1stdlife+$E139),('PTRM input'!$H$263*(1+rvanilla02)^0.5)-SUM($H139:AW139),('PTRM input'!$H$263*(1+rvanilla02)^0.5)/A1stdlife)) -> 0 | AY139: =IF(A1stdlife="n/a","n/a",IF(AY$3>(A1stdlife+$E139),('PTRM input'!$H$263*(1+rvanilla02)^0.5)-SUM($H139:AX139),('PTRM input'!$H$263*(1+rvanilla02)^0.5)/A1stdlife)) -> 0 | AZ139: =IF(A1stdlife="n/a","n/a",IF(AZ$3>(A1stdlife+$E139),('PTRM input'!$H$263*(1+rvanilla02)^0.5)-SUM($H139:AY139),('PTRM input'!$H$263*(1+rvanilla02)^0.5)/A1stdlife)) -> 0 | BA139: =IF(A1stdlife="n/a","n/a",IF(BA$3>(A1stdlife+$E139),('PTRM input'!$H$263*(1+rvanilla02)^0.5)-SUM($H139:AZ139),('PTRM input'!$H$263*(1+rvanilla02)^0.5)/A1stdlife)) -> 0 | BB139: =IF(A1stdlife="n/a","n/a",IF(BB$3>(A1stdlife+$E139),('PTRM input'!$H$263*(1+rvanilla02)^0.5)-SUM($H139:BA139),('PTRM input'!$H$263*(1+rvanilla02)^0.5)/A1stdlife)) -> 0 | BC139: =IF(A1stdlife="n/a","n/a",IF(BC$3>(A1stdlife+$E139),('PTRM input'!$H$263*(1+rvanilla02)^0.5)-SUM($H139:BB139),('PTRM input'!$H$263*(1+rvanilla02)^0.5)/A1stdlife)) -> 0 | BD139: =IF(A1stdlife="n/a","n/a",IF(BD$3>(A1stdlife+$E139),('PTRM input'!$H$263*(1+rvanilla02)^0.5)-SUM($H139:BC139),('PTRM input'!$H$263*(1+rvanilla02)^0.5)/A1stdlife)) -> 0 | BE139: =IF(A1stdlife="n/a","n/a",IF(BE$3>(A1stdlife+$E139),('PTRM input'!$H$263*(1+rvanilla02)^0.5)-SUM($H139:BD139),('PTRM input'!$H$263*(1+rvanilla02)^0.5)/A1stdlife)) -> 0 | BF139: =IF(A1stdlife="n/a","n/a",IF(BF$3>(A1stdlife+$E139),('PTRM input'!$H$263*(1+rvanilla02)^0.5)-SUM($H139:BE139),('PTRM input'!$H$263*(1+rvanilla02)^0.5)/A1stdlife)) -> 0 | BG139: =IF(A1stdlife="n/a","n/a",IF(BG$3>(A1stdlife+$E139),('PTRM input'!$H$263*(1+rvanilla02)^0.5)-SUM($H139:BF139),('PTRM input'!$H$263*(1+rvanilla02)^0.5)/A1stdlife)) -> 0 | BH139: =IF(A1stdlife="n/a","n/a",IF(BH$3>(A1stdlife+$E139),('PTRM input'!$H$263*(1+rvanilla02)^0.5)-SUM($H139:BG139),('PTRM input'!$H$263*(1+rvanilla02)^0.5)/A1stdlife)) -> 0 | BI139: =IF(A1stdlife="n/a","n/a",IF(BI$3>(A1stdlife+$E139),('PTRM input'!$H$263*(1+rvanilla02)^0.5)-SUM($H139:BH139),('PTRM input'!$H$263*(1+rvanilla02)^0.5)/A1stdlife)) -> 0
E140: 3 | J140: =IF(A1stdlife="n/a","n/a",IF(J$3>(A1stdlife+$E140),('PTRM input'!$I$263*(1+rvanilla03)^0.5)-SUM($I140:I140),('PTRM input'!$I$263*(1+rvanilla03)^0.5)/A1stdlife)) -> 0 | K140: =IF(A1stdlife="n/a","n/a",IF(K$3>(A1stdlife+$E140),('PTRM input'!$I$263*(1+rvanilla03)^0.5)-SUM($I140:J140),('PTRM input'!$I$263*(1+rvanilla03)^0.5)/A1stdlife)) -> 0 | L140: =IF(A1stdlife="n/a","n/a",IF(L$3>(A1stdlife+$E140),('PTRM input'!$I$263*(1+rvanilla03)^0.5)-SUM($I140:K140),('PTRM input'!$I$263*(1+rvanilla03)^0.5)/A1stdlife)) -> 0 | M140: =IF(A1stdlife="n/a","n/a",IF(M$3>(A1stdlife+$E140),('PTRM input'!$I$263*(1+rvanilla03)^0.5)-SUM($I140:L140),('PTRM input'!$I$263*(1+rvanilla03)^0.5)/A1stdlife)) -> 0 | N140: =IF(A1stdlife="n/a","n/a",IF(N$3>(A1stdlife+$E140),('PTRM input'!$I$263*(1+rvanilla03)^0.5)-SUM($I140:M140),('PTRM input'!$I$263*(1+rvanilla03)^0.5)/A1stdlife)) -> 0 | O140: =IF(A1stdlife="n/a","n/a",IF(O$3>(A1stdlife+$E140),('PTRM input'!$I$263*(1+rvanilla03)^0.5)-SUM($I140:N140),('PTRM input'!$I$263*(1+rvanilla03)^0.5)/A1stdlife)) -> 0 | P140: =IF(A1stdlife="n/a","n/a",IF(P$3>(A1stdlife+$E140),('PTRM input'!$I$263*(1+rvanilla03)^0.5)-SUM($I140:O140),('PTRM input'!$I$263*(1+rvanilla03)^0.5)/A1stdlife)) -> 0 | Q140: =IF(A1stdlife="n/a","n/a",IF(Q$3>(A1stdlife+$E140),('PTRM input'!$I$263*(1+rvanilla03)^0.5)-SUM($I140:P140),('PTRM input'!$I$263*(1+rvanilla03)^0.5)/A1stdlife)) -> 0 | R140: =IF(A1stdlife="n/a","n/a",IF(R$3>(A1stdlife+$E140),('PTRM input'!$I$263*(1+rvanilla03)^0.5)-SUM($I140:Q140),('PTRM input'!$I$263*(1+rvanilla03)^0.5)/A1stdlife)) -> 0 | S140: =IF(A1stdlife="n/a","n/a",IF(S$3>(A1stdlife+$E140),('PTRM input'!$I$263*(1+rvanilla03)^0.5)-SUM($I140:R140),('PTRM input'!$I$263*(1+rvanilla03)^0.5)/A1stdlife)) -> 0 | T140: =IF(A1stdlife="n/a","n/a",IF(T$3>(A1stdlife+$E140),('PTRM input'!$I$263*(1+rvanilla03)^0.5)-SUM($I140:S140),('PTRM input'!$I$263*(1+rvanilla03)^0.5)/A1stdlife)) -> 0 | U140: =IF(A1stdlife="n/a","n/a",IF(U$3>(A1stdlife+$E140),('PTRM input'!$I$263*(1+rvanilla03)^0.5)-SUM($I140:T140),('PTRM input'!$I$263*(1+rvanilla03)^0.5)/A1stdlife)) -> 0 | V140: =IF(A1stdlife="n/a","n/a",IF(V$3>(A1stdlife+$E140),('PTRM input'!$I$263*(1+rvanilla03)^0.5)-SUM($I140:U140),('PTRM input'!$I$263*(1+rvanilla03)^0.5)/A1stdlife)) -> 0 | W140: =IF(A1stdlife="n/a","n/a",IF(W$3>(A1stdlife+$E140),('PTRM input'!$I$263*(1+rvanilla03)^0.5)-SUM($I140:V140),('PTRM input'!$I$263*(1+rvanilla03)^0.5)/A1stdlife)) -> 0 | X140: =IF(A1stdlife="n/a","n/a",IF(X$3>(A1stdlife+$E140),('PTRM input'!$I$263*(1+rvanilla03)^0.5)-SUM($I140:W140),('PTRM input'!$I$263*(1+rvanilla03)^0.5)/A1stdlife)) -> 0 | Y140: =IF(A1stdlife="n/a","n/a",IF(Y$3>(A1stdlife+$E140),('PTRM input'!$I$263*(1+rvanilla03)^0.5)-SUM($I140:X140),('PTRM input'!$I$263*(1+rvanilla03)^0.5)/A1stdlife)) -> 0 | Z140: =IF(A1stdlife="n/a","n/a",IF(Z$3>(A1stdlife+$E140),('PTRM input'!$I$263*(1+rvanilla03)^0.5)-SUM($I140:Y140),('PTRM input'!$I$263*(1+rvanilla03)^0.5)/A1stdlife)) -> 0 | AA140: =IF(A1stdlife="n/a","n/a",IF(AA$3>(A1stdlife+$E140),('PTRM input'!$I$263*(1+rvanilla03)^0.5)-SUM($I140:Z140),('PTRM input'!$I$263*(1+rvanilla03)^0.5)/A1stdlife)) -> 0 | AB140: =IF(A1stdlife="n/a","n/a",IF(AB$3>(A1stdlife+$E140),('PTRM input'!$I$263*(1+rvanilla03)^0.5)-SUM($I140:AA140),('PTRM input'!$I$263*(1+rvanilla03)^0.5)/A1stdlife)) -> 0 | AC140: =IF(A1stdlife="n/a","n/a",IF(AC$3>(A1stdlife+$E140),('PTRM input'!$I$263*(1+rvanilla03)^0.5)-SUM($I140:AB140),('PTRM input'!$I$263*(1+rvanilla03)^0.5)/A1stdlife)) -> 0 | AD140: =IF(A1stdlife="n/a","n/a",IF(AD$3>(A1stdlife+$E140),('PTRM input'!$I$263*(1+rvanilla03)^0.5)-SUM($I140:AC140),('PTRM input'!$I$263*(1+rvanilla03)^0.5)/A1stdlife)) -> 0 | AE140: =IF(A1stdlife="n/a","n/a",IF(AE$3>(A1stdlife+$E140),('PTRM input'!$I$263*(1+rvanilla03)^0.5)-SUM($I140:AD140),('PTRM input'!$I$263*(1+rvanilla03)^0.5)/A1stdlife)) -> 0 | AF140: =IF(A1stdlife="n/a","n/a",IF(AF$3>(A1stdlife+$E140),('PTRM input'!$I$263*(1+rvanilla03)^0.5)-SUM($I140:AE140),('PTRM input'!$I$263*(1+rvanilla03)^0.5)/A1stdlife)) -> 0 | AG140: =IF(A1stdlife="n/a","n/a",IF(AG$3>(A1stdlife+$E140),('PTRM input'!$I$263*(1+rvanilla03)^0.5)-SUM($I140:AF140),('PTRM input'!$I$263*(1+rvanilla03)^0.5)/A1stdlife)) -> 0 | AH140: =IF(A1stdlife="n/a","n/a",IF(AH$3>(A1stdlife+$E140),('PTRM input'!$I$263*(1+rvanilla03)^0.5)-SUM($I140:AG140),('PTRM input'!$I$263*(1+rvanilla03)^0.5)/A1stdlife)) -> 0 | AI140: =IF(A1stdlife="n/a","n/a",IF(AI$3>(A1stdlife+$E140),('PTRM input'!$I$263*(1+rvanilla03)^0.5)-SUM($I140:AH140),('PTRM input'!$I$263*(1+rvanilla03)^0.5)/A1stdlife)) -> 0 | AJ140: =IF(A1stdlife="n/a","n/a",IF(AJ$3>(A1stdlife+$E140),('PTRM input'!$I$263*(1+rvanilla03)^0.5)-SUM($I140:AI140),('PTRM input'!$I$263*(1+rvanilla03)^0.5)/A1stdlife)) -> 0 | AK140: =IF(A1stdlife="n/a","n/a",IF(AK$3>(A1stdlife+$E140),('PTRM input'!$I$263*(1+rvanilla03)^0.5)-SUM($I140:AJ140),('PTRM input'!$I$263*(1+rvanilla03)^0.5)/A1stdlife)) -> 0 | AL140: =IF(A1stdlife="n/a","n/a",IF(AL$3>(A1stdlife+$E140),('PTRM input'!$I$263*(1+rvanilla03)^0.5)-SUM($I140:AK140),('PTRM input'!$I$263*(1+rvanilla03)^0.5)/A1stdlife)) -> 0 | AM140: =IF(A1stdlife="n/a","n/a",IF(AM$3>(A1stdlife+$E140),('PTRM input'!$I$263*(1+rvanilla03)^0.5)-SUM($I140:AL140),('PTRM input'!$I$263*(1+rvanilla03)^0.5)/A1stdlife)) -> 0 | AN140: =IF(A1stdlife="n/a","n/a",IF(AN$3>(A1stdlife+$E140),('PTRM input'!$I$263*(1+rvanilla03)^0.5)-SUM($I140:AM140),('PTRM input'!$I$263*(1+rvanilla03)^0.5)/A1stdlife)) -> 0 | AO140: =IF(A1stdlife="n/a","n/a",IF(AO$3>(A1stdlife+$E140),('PTRM input'!$I$263*(1+rvanilla03)^0.5)-SUM($I140:AN140),('PTRM input'!$I$263*(1+rvanilla03)^0.5)/A1stdlife)) -> 0 | AP140: =IF(A1stdlife="n/a","n/a",IF(AP$3>(A1stdlife+$E140),('PTRM input'!$I$263*(1+rvanilla03)^0.5)-SUM($I140:AO140),('PTRM input'!$I$263*(1+rvanilla03)^0.5)/A1stdlife)) -> 0 | AQ140: =IF(A1stdlife="n/a","n/a",IF(AQ$3>(A1stdlife+$E140),('PTRM input'!$I$263*(1+rvanilla03)^0.5)-SUM($I140:AP140),('PTRM input'!$I$263*(1+rvanilla03)^0.5)/A1stdlife)) -> 0 | AR140: =IF(A1stdlife="n/a","n/a",IF(AR$3>(A1stdlife+$E140),('PTRM input'!$I$263*(1+rvanilla03)^0.5)-SUM($I140:AQ140),('PTRM input'!$I$263*(1+rvanilla03)^0.5)/A1stdlife)) -> 0 | AS140: =IF(A1stdlife="n/a","n/a",IF(AS$3>(A1stdlife+$E140),('PTRM input'!$I$263*(1+rvanilla03)^0.5)-SUM($I140:AR140),('PTRM input'!$I$263*(1+rvanilla03)^0.5)/A1stdlife)) -> 0 | AT140: =IF(A1stdlife="n/a","n/a",IF(AT$3>(A1stdlife+$E140),('PTRM input'!$I$263*(1+rvanilla03)^0.5)-SUM($I140:AS140),('PTRM input'!$I$263*(1+rvanilla03)^0.5)/A1stdlife)) -> 0 | AU140: =IF(A1stdlife="n/a","n/a",IF(AU$3>(A1stdlife+$E140),('PTRM input'!$I$263*(1+rvanilla03)^0.5)-SUM($I140:AT140),('PTRM input'!$I$263*(1+rvanilla03)^0.5)/A1stdlife)) -> 0 | AV140: =IF(A1stdlife="n/a","n/a",IF(AV$3>(A1stdlife+$E140),('PTRM input'!$I$263*(1+rvanilla03)^0.5)-SUM($I140:AU140),('PTRM input'!$I$263*(1+rvanilla03)^0.5)/A1stdlife)) -> 0 | AW140: =IF(A1stdlife="n/a","n/a",IF(AW$3>(A1stdlife+$E140),('PTRM input'!$I$263*(1+rvanilla03)^0.5)-SUM($I140:AV140),('PTRM input'!$I$263*(1+rvanilla03)^0.5)/A1stdlife)) -> 0 | AX140: =IF(A1stdlife="n/a","n/a",IF(AX$3>(A1stdlife+$E140),('PTRM input'!$I$263*(1+rvanilla03)^0.5)-SUM($I140:AW140),('PTRM input'!$I$263*(1+rvanilla03)^0.5)/A1stdlife)) -> 0 | AY140: =IF(A1stdlife="n/a","n/a",IF(AY$3>(A1stdlife+$E140),('PTRM input'!$I$263*(1+rvanilla03)^0.5)-SUM($I140:AX140),('PTRM input'!$I$263*(1+rvanilla03)^0.5)/A1stdlife)) -> 0 | AZ140: =IF(A1stdlife="n/a","n/a",IF(AZ$3>(A1stdlife+$E140),('PTRM input'!$I$263*(1+rvanilla03)^0.5)-SUM($I140:AY140),('PTRM input'!$I$263*(1+rvanilla03)^0.5)/A1stdlife)) -> 0 | BA140: =IF(A1stdlife="n/a","n/a",IF(BA$3>(A1stdlife+$E140),('PTRM input'!$I$263*(1+rvanilla03)^0.5)-SUM($I140:AZ140),('PTRM input'!$I$263*(1+rvanilla03)^0.5)/A1stdlife)) -> 0 | BB140: =IF(A1stdlife="n/a","n/a",IF(BB$3>(A1stdlife+$E140),('PTRM input'!$I$263*(1+rvanilla03)^0.5)-SUM($I140:BA140),('PTRM input'!$I$263*(1+rvanilla03)^0.5)/A1stdlife)) -> 0 | BC140: =IF(A1stdlife="n/a","n/a",IF(BC$3>(A1stdlife+$E140),('PTRM input'!$I$263*(1+rvanilla03)^0.5)-SUM($I140:BB140),('PTRM input'!$I$263*(1+rvanilla03)^0.5)/A1stdlife)) -> 0 | BD140: =IF(A1stdlife="n/a","n/a",IF(BD$3>(A1stdlife+$E140),('PTRM input'!$I$263*(1+rvanilla03)^0.5)-SUM($I140:BC140),('PTRM input'!$I$263*(1+rvanilla03)^0.5)/A1stdlife)) -> 0 | BE140: =IF(A1stdlife="n/a","n/a",IF(BE$3>(A1stdlife+$E140),('PTRM input'!$I$263*(1+rvanilla03)^0.5)-SUM($I140:BD140),('PTRM input'!$I$263*(1+rvanilla03)^0.5)/A1stdlife)) -> 0 | BF140: =IF(A1stdlife="n/a","n/a",IF(BF$3>(A1stdlife+$E140),('PTRM input'!$I$263*(1+rvanilla03)^0.5)-SUM($I140:BE140),('PTRM input'!$I$263*(1+rvanilla03)^0.5)/A1stdlife)) -> 0 | BG140: =IF(A1stdlife="n/a","n/a",IF(BG$3>(A1stdlife+$E140),('PTRM input'!$I$263*(1+rvanilla03)^0.5)-SUM($I140:BF140),('PTRM input'!$I$263*(1+rvanilla03)^0.5)/A1stdlife)) -> 0 | BH140: =IF(A1stdlife="n/a","n/a",IF(BH$3>(A1stdlife+$E140),('PTRM input'!$I$263*(1+rvanilla03)^0.5)-SUM($I140:BG140),('PTRM input'!$I$263*(1+rvanilla03)^0.5)/A1stdlife)) -> 0 | BI140: =IF(A1stdlife="n/a","n/a",IF(BI$3>(A1stdlife+$E140),('PTRM input'!$I$263*(1+rvanilla03)^0.5)-SUM($I140:BH140),('PTRM input'!$I$263*(1+rvanilla03)^0.5)/A1stdlife)) -> 0
E141: 4 | K141: =IF(A1stdlife="n/a","n/a",IF(K$3>(A1stdlife+$E141),('PTRM input'!$J$263*(1+rvanilla04)^0.5)-SUM($J141:J141),('PTRM input'!$J$263*(1+rvanilla04)^0.5)/A1stdlife)) -> 0 | L141: =IF(A1stdlife="n/a","n/a",IF(L$3>(A1stdlife+$E141),('PTRM input'!$J$263*(1+rvanilla04)^0.5)-SUM($J141:K141),('PTRM input'!$J$263*(1+rvanilla04)^0.5)/A1stdlife)) -> 0 | M141: =IF(A1stdlife="n/a","n/a",IF(M$3>(A1stdlife+$E141),('PTRM input'!$J$263*(1+rvanilla04)^0.5)-SUM($J141:L141),('PTRM input'!$J$263*(1+rvanilla04)^0.5)/A1stdlife)) -> 0 | N141: =IF(A1stdlife="n/a","n/a",IF(N$3>(A1stdlife+$E141),('PTRM input'!$J$263*(1+rvanilla04)^0.5)-SUM($J141:M141),('PTRM input'!$J$263*(1+rvanilla04)^0.5)/A1stdlife)) -> 0 | O141: =IF(A1stdlife="n/a","n/a",IF(O$3>(A1stdlife+$E141),('PTRM input'!$J$263*(1+rvanilla04)^0.5)-SUM($J141:N141),('PTRM input'!$J$263*(1+rvanilla04)^0.5)/A1stdlife)) -> 0 | P141: =IF(A1stdlife="n/a","n/a",IF(P$3>(A1stdlife+$E141),('PTRM input'!$J$263*(1+rvanilla04)^0.5)-SUM($J141:O141),('PTRM input'!$J$263*(1+rvanilla04)^0.5)/A1stdlife)) -> 0 | Q141: =IF(A1stdlife="n/a","n/a",IF(Q$3>(A1stdlife+$E141),('PTRM input'!$J$263*(1+rvanilla04)^0.5)-SUM($J141:P141),('PTRM input'!$J$263*(1+rvanilla04)^0.5)/A1stdlife)) -> 0 | R141: =IF(A1stdlife="n/a","n/a",IF(R$3>(A1stdlife+$E141),('PTRM input'!$J$263*(1+rvanilla04)^0.5)-SUM($J141:Q141),('PTRM input'!$J$263*(1+rvanilla04)^0.5)/A1stdlife)) -> 0 | S141: =IF(A1stdlife="n/a","n/a",IF(S$3>(A1stdlife+$E141),('PTRM input'!$J$263*(1+rvanilla04)^0.5)-SUM($J141:R141),('PTRM input'!$J$263*(1+rvanilla04)^0.5)/A1stdlife)) -> 0 | T141: =IF(A1stdlife="n/a","n/a",IF(T$3>(A1stdlife+$E141),('PTRM input'!$J$263*(1+rvanilla04)^0.5)-SUM($J141:S141),('PTRM input'!$J$263*(1+rvanilla04)^0.5)/A1stdlife)) -> 0 | U141: =IF(A1stdlife="n/a","n/a",IF(U$3>(A1stdlife+$E141),('PTRM input'!$J$263*(1+rvanilla04)^0.5)-SUM($J141:T141),('PTRM input'!$J$263*(1+rvanilla04)^0.5)/A1stdlife)) -> 0 | V141: =IF(A1stdlife="n/a","n/a",IF(V$3>(A1stdlife+$E141),('PTRM input'!$J$263*(1+rvanilla04)^0.5)-SUM($J141:U141),('PTRM input'!$J$263*(1+rvanilla04)^0.5)/A1stdlife)) -> 0 | W141: =IF(A1stdlife="n/a","n/a",IF(W$3>(A1stdlife+$E141),('PTRM input'!$J$263*(1+rvanilla04)^0.5)-SUM($J141:V141),('PTRM input'!$J$263*(1+rvanilla04)^0.5)/A1stdlife)) -> 0 | X141: =IF(A1stdlife="n/a","n/a",IF(X$3>(A1stdlife+$E141),('PTRM input'!$J$263*(1+rvanilla04)^0.5)-SUM($J141:W141),('PTRM input'!$J$263*(1+rvanilla04)^0.5)/A1stdlife)) -> 0 | Y141: =IF(A1stdlife="n/a","n/a",IF(Y$3>(A1stdlife+$E141),('PTRM input'!$J$263*(1+rvanilla04)^0.5)-SUM($J141:X141),('PTRM input'!$J$263*(1+rvanilla04)^0.5)/A1stdlife)) -> 0 | Z141: =IF(A1stdlife="n/a","n/a",IF(Z$3>(A1stdlife+$E141),('PTRM input'!$J$263*(1+rvanilla04)^0.5)-SUM($J141:Y141),('PTRM input'!$J$263*(1+rvanilla04)^0.5)/A1stdlife)) -> 0 | AA141: =IF(A1stdlife="n/a","n/a",IF(AA$3>(A1stdlife+$E141),('PTRM input'!$J$263*(1+rvanilla04)^0.5)-SUM($J141:Z141),('PTRM input'!$J$263*(1+rvanilla04)^0.5)/A1stdlife)) -> 0 | AB141: =IF(A1stdlife="n/a","n/a",IF(AB$3>(A1stdlife+$E141),('PTRM input'!$J$263*(1+rvanilla04)^0.5)-SUM($J141:AA141),('PTRM input'!$J$263*(1+rvanilla04)^0.5)/A1stdlife)) -> 0 | AC141: =IF(A1stdlife="n/a","n/a",IF(AC$3>(A1stdlife+$E141),('PTRM input'!$J$263*(1+rvanilla04)^0.5)-SUM($J141:AB141),('PTRM input'!$J$263*(1+rvanilla04)^0.5)/A1stdlife)) -> 0 | AD141: =IF(A1stdlife="n/a","n/a",IF(AD$3>(A1stdlife+$E141),('PTRM input'!$J$263*(1+rvanilla04)^0.5)-SUM($J141:AC141),('PTRM input'!$J$263*(1+rvanilla04)^0.5)/A1stdlife)) -> 0 | AE141: =IF(A1stdlife="n/a","n/a",IF(AE$3>(A1stdlife+$E141),('PTRM input'!$J$263*(1+rvanilla04)^0.5)-SUM($J141:AD141),('PTRM input'!$J$263*(1+rvanilla04)^0.5)/A1stdlife)) -> 0 | AF141: =IF(A1stdlife="n/a","n/a",IF(AF$3>(A1stdlife+$E141),('PTRM input'!$J$263*(1+rvanilla04)^0.5)-SUM($J141:AE141),('PTRM input'!$J$263*(1+rvanilla04)^0.5)/A1stdlife)) -> 0 | AG141: =IF(A1stdlife="n/a","n/a",IF(AG$3>(A1stdlife+$E141),('PTRM input'!$J$263*(1+rvanilla04)^0.5)-SUM($J141:AF141),('PTRM input'!$J$263*(1+rvanilla04)^0.5)/A1stdlife)) -> 0 | AH141: =IF(A1stdlife="n/a","n/a",IF(AH$3>(A1stdlife+$E141),('PTRM input'!$J$263*(1+rvanilla04)^0.5)-SUM($J141:AG141),('PTRM input'!$J$263*(1+rvanilla04)^0.5)/A1stdlife)) -> 0 | AI141: =IF(A1stdlife="n/a","n/a",IF(AI$3>(A1stdlife+$E141),('PTRM input'!$J$263*(1+rvanilla04)^0.5)-SUM($J141:AH141),('PTRM input'!$J$263*(1+rvanilla04)^0.5)/A1stdlife)) -> 0 | AJ141: =IF(A1stdlife="n/a","n/a",IF(AJ$3>(A1stdlife+$E141),('PTRM input'!$J$263*(1+rvanilla04)^0.5)-SUM($J141:AI141),('PTRM input'!$J$263*(1+rvanilla04)^0.5)/A1stdlife)) -> 0 | AK141: =IF(A1stdlife="n/a","n/a",IF(AK$3>(A1stdlife+$E141),('PTRM input'!$J$263*(1+rvanilla04)^0.5)-SUM($J141:AJ141),('PTRM input'!$J$263*(1+rvanilla04)^0.5)/A1stdlife)) -> 0 | AL141: =IF(A1stdlife="n/a","n/a",IF(AL$3>(A1stdlife+$E141),('PTRM input'!$J$263*(1+rvanilla04)^0.5)-SUM($J141:AK141),('PTRM input'!$J$263*(1+rvanilla04)^0.5)/A1stdlife)) -> 0 | AM141: =IF(A1stdlife="n/a","n/a",IF(AM$3>(A1stdlife+$E141),('PTRM input'!$J$263*(1+rvanilla04)^0.5)-SUM($J141:AL141),('PTRM input'!$J$263*(1+rvanilla04)^0.5)/A1stdlife)) -> 0 | AN141: =IF(A1stdlife="n/a","n/a",IF(AN$3>(A1stdlife+$E141),('PTRM input'!$J$263*(1+rvanilla04)^0.5)-SUM($J141:AM141),('PTRM input'!$J$263*(1+rvanilla04)^0.5)/A1stdlife)) -> 0 | AO141: =IF(A1stdlife="n/a","n/a",IF(AO$3>(A1stdlife+$E141),('PTRM input'!$J$263*(1+rvanilla04)^0.5)-SUM($J141:AN141),('PTRM input'!$J$263*(1+rvanilla04)^0.5)/A1stdlife)) -> 0 | AP141: =IF(A1stdlife="n/a","n/a",IF(AP$3>(A1stdlife+$E141),('PTRM input'!$J$263*(1+rvanilla04)^0.5)-SUM($J141:AO141),('PTRM input'!$J$263*(1+rvanilla04)^0.5)/A1stdlife)) -> 0 | AQ141: =IF(A1stdlife="n/a","n/a",IF(AQ$3>(A1stdlife+$E141),('PTRM input'!$J$263*(1+rvanilla04)^0.5)-SUM($J141:AP141),('PTRM input'!$J$263*(1+rvanilla04)^0.5)/A1stdlife)) -> 0 | AR141: =IF(A1stdlife="n/a","n/a",IF(AR$3>(A1stdlife+$E141),('PTRM input'!$J$263*(1+rvanilla04)^0.5)-SUM($J141:AQ141),('PTRM input'!$J$263*(1+rvanilla04)^0.5)/A1stdlife)) -> 0 | AS141: =IF(A1stdlife="n/a","n/a",IF(AS$3>(A1stdlife+$E141),('PTRM input'!$J$263*(1+rvanilla04)^0.5)-SUM($J141:AR141),('PTRM input'!$J$263*(1+rvanilla04)^0.5)/A1stdlife)) -> 0 | AT141: =IF(A1stdlife="n/a","n/a",IF(AT$3>(A1stdlife+$E141),('PTRM input'!$J$263*(1+rvanilla04)^0.5)-SUM($J141:AS141),('PTRM input'!$J$263*(1+rvanilla04)^0.5)/A1stdlife)) -> 0 | AU141: =IF(A1stdlife="n/a","n/a",IF(AU$3>(A1stdlife+$E141),('PTRM input'!$J$263*(1+rvanilla04)^0.5)-SUM($J141:AT141),('PTRM input'!$J$263*(1+rvanilla04)^0.5)/A1stdlife)) -> 0 | AV141: =IF(A1stdlife="n/a","n/a",IF(AV$3>(A1stdlife+$E141),('PTRM input'!$J$263*(1+rvanilla04)^0.5)-SUM($J141:AU141),('PTRM input'!$J$263*(1+rvanilla04)^0.5)/A1stdlife)) -> 0 | AW141: =IF(A1stdlife="n/a","n/a",IF(AW$3>(A1stdlife+$E141),('PTRM input'!$J$263*(1+rvanilla04)^0.5)-SUM($J141:AV141),('PTRM input'!$J$263*(1+rvanilla04)^0.5)/A1stdlife)) -> 0 | AX141: =IF(A1stdlife="n/a","n/a",IF(AX$3>(A1stdlife+$E141),('PTRM input'!$J$263*(1+rvanilla04)^0.5)-SUM($J141:AW141),('PTRM input'!$J$263*(1+rvanilla04)^0.5)/A1stdlife)) -> 0 | AY141: =IF(A1stdlife="n/a","n/a",IF(AY$3>(A1stdlife+$E141),('PTRM input'!$J$263*(1+rvanilla04)^0.5)-SUM($J141:AX141),('PTRM input'!$J$263*(1+rvanilla04)^0.5)/A1stdlife)) -> 0 | AZ141: =IF(A1stdlife="n/a","n/a",IF(AZ$3>(A1stdlife+$E141),('PTRM input'!$J$263*(1+rvanilla04)^0.5)-SUM($J141:AY141),('PTRM input'!$J$263*(1+rvanilla04)^0.5)/A1stdlife)) -> 0 | BA141: =IF(A1stdlife="n/a","n/a",IF(BA$3>(A1stdlife+$E141),('PTRM input'!$J$263*(1+rvanilla04)^0.5)-SUM($J141:AZ141),('PTRM input'!$J$263*(1+rvanilla04)^0.5)/A1stdlife)) -> 0 | BB141: =IF(A1stdlife="n/a","n/a",IF(BB$3>(A1stdlife+$E141),('PTRM input'!$J$263*(1+rvanilla04)^0.5)-SUM($J141:BA141),('PTRM input'!$J$263*(1+rvanilla04)^0.5)/A1stdlife)) -> 0 | BC141: =IF(A1stdlife="n/a","n/a",IF(BC$3>(A1stdlife+$E141),('PTRM input'!$J$263*(1+rvanilla04)^0.5)-SUM($J141:BB141),('PTRM input'!$J$263*(1+rvanilla04)^0.5)/A1stdlife)) -> 0 | BD141: =IF(A1stdlife="n/a","n/a",IF(BD$3>(A1stdlife+$E141),('PTRM input'!$J$263*(1+rvanilla04)^0.5)-SUM($J141:BC141),('PTRM input'!$J$263*(1+rvanilla04)^0.5)/A1stdlife)) -> 0 | BE141: =IF(A1stdlife="n/a","n/a",IF(BE$3>(A1stdlife+$E141),('PTRM input'!$J$263*(1+rvanilla04)^0.5)-SUM($J141:BD141),('PTRM input'!$J$263*(1+rvanilla04)^0.5)/A1stdlife)) -> 0 | BF141: =IF(A1stdlife="n/a","n/a",IF(BF$3>(A1stdlife+$E141),('PTRM input'!$J$263*(1+rvanilla04)^0.5)-SUM($J141:BE141),('PTRM input'!$J$263*(1+rvanilla04)^0.5)/A1stdlife)) -> 0 | BG141: =IF(A1stdlife="n/a","n/a",IF(BG$3>(A1stdlife+$E141),('PTRM input'!$J$263*(1+rvanilla04)^0.5)-SUM($J141:BF141),('PTRM input'!$J$263*(1+rvanilla04)^0.5)/A1stdlife)) -> 0 | BH141: =IF(A1stdlife="n/a","n/a",IF(BH$3>(A1stdlife+$E141),('PTRM input'!$J$263*(1+rvanilla04)^0.5)-SUM($J141:BG141),('PTRM input'!$J$263*(1+rvanilla04)^0.5)/A1stdlife)) -> 0 | BI141: =IF(A1stdlife="n/a","n/a",IF(BI$3>(A1stdlife+$E141),('PTRM input'!$J$263*(1+rvanilla04)^0.5)-SUM($J141:BH141),('PTRM input'!$J$263*(1+rvanilla04)^0.5)/A1stdlife)) -> 0
E142: 5 | L142: =IF(A1stdlife="n/a","n/a",IF(L$3>(A1stdlife+$E142),('PTRM input'!$K$263*(1+rvanilla05)^0.5)-SUM($K142:K142),('PTRM input'!$K$263*(1+rvanilla05)^0.5)/A1stdlife)) -> 0 | M142: =IF(A1stdlife="n/a","n/a",IF(M$3>(A1stdlife+$E142),('PTRM input'!$K$263*(1+rvanilla05)^0.5)-SUM($K142:L142),('PTRM input'!$K$263*(1+rvanilla05)^0.5)/A1stdlife)) -> 0 | N142: =IF(A1stdlife="n/a","n/a",IF(N$3>(A1stdlife+$E142),('PTRM input'!$K$263*(1+rvanilla05)^0.5)-SUM($K142:M142),('PTRM input'!$K$263*(1+rvanilla05)^0.5)/A1stdlife)) -> 0 | O142: =IF(A1stdlife="n/a","n/a",IF(O$3>(A1stdlife+$E142),('PTRM input'!$K$263*(1+rvanilla05)^0.5)-SUM($K142:N142),('PTRM input'!$K$263*(1+rvanilla05)^0.5)/A1stdlife)) -> 0 | P142: =IF(A1stdlife="n/a","n/a",IF(P$3>(A1stdlife+$E142),('PTRM input'!$K$263*(1+rvanilla05)^0.5)-SUM($K142:O142),('PTRM input'!$K$263*(1+rvanilla05)^0.5)/A1stdlife)) -> 0 | Q142: =IF(A1stdlife="n/a","n/a",IF(Q$3>(A1stdlife+$E142),('PTRM input'!$K$263*(1+rvanilla05)^0.5)-SUM($K142:P142),('PTRM input'!$K$263*(1+rvanilla05)^0.5)/A1stdlife)) -> 0 | R142: =IF(A1stdlife="n/a","n/a",IF(R$3>(A1stdlife+$E142),('PTRM input'!$K$263*(1+rvanilla05)^0.5)-SUM($K142:Q142),('PTRM input'!$K$263*(1+rvanilla05)^0.5)/A1stdlife)) -> 0 | S142: =IF(A1stdlife="n/a","n/a",IF(S$3>(A1stdlife+$E142),('PTRM input'!$K$263*(1+rvanilla05)^0.5)-SUM($K142:R142),('PTRM input'!$K$263*(1+rvanilla05)^0.5)/A1stdlife)) -> 0 | T142: =IF(A1stdlife="n/a","n/a",IF(T$3>(A1stdlife+$E142),('PTRM input'!$K$263*(1+rvanilla05)^0.5)-SUM($K142:S142),('PTRM input'!$K$263*(1+rvanilla05)^0.5)/A1stdlife)) -> 0 | U142: =IF(A1stdlife="n/a","n/a",IF(U$3>(A1stdlife+$E142),('PTRM input'!$K$263*(1+rvanilla05)^0.5)-SUM($K142:T142),('PTRM input'!$K$263*(1+rvanilla05)^0.5)/A1stdlife)) -> 0 | V142: =IF(A1stdlife="n/a","n/a",IF(V$3>(A1stdlife+$E142),('PTRM input'!$K$263*(1+rvanilla05)^0.5)-SUM($K142:U142),('PTRM input'!$K$263*(1+rvanilla05)^0.5)/A1stdlife)) -> 0 | W142: =IF(A1stdlife="n/a","n/a",IF(W$3>(A1stdlife+$E142),('PTRM input'!$K$263*(1+rvanilla05)^0.5)-SUM($K142:V142),('PTRM input'!$K$263*(1+rvanilla05)^0.5)/A1stdlife)) -> 0 | X142: =IF(A1stdlife="n/a","n/a",IF(X$3>(A1stdlife+$E142),('PTRM input'!$K$263*(1+rvanilla05)^0.5)-SUM($K142:W142),('PTRM input'!$K$263*(1+rvanilla05)^0.5)/A1stdlife)) -> 0 | Y142: =IF(A1stdlife="n/a","n/a",IF(Y$3>(A1stdlife+$E142),('PTRM input'!$K$263*(1+rvanilla05)^0.5)-SUM($K142:X142),('PTRM input'!$K$263*(1+rvanilla05)^0.5)/A1stdlife)) -> 0 | Z142: =IF(A1stdlife="n/a","n/a",IF(Z$3>(A1stdlife+$E142),('PTRM input'!$K$263*(1+rvanilla05)^0.5)-SUM($K142:Y142),('PTRM input'!$K$263*(1+rvanilla05)^0.5)/A1stdlife)) -> 0 | AA142: =IF(A1stdlife="n/a","n/a",IF(AA$3>(A1stdlife+$E142),('PTRM input'!$K$263*(1+rvanilla05)^0.5)-SUM($K142:Z142),('PTRM input'!$K$263*(1+rvanilla05)^0.5)/A1stdlife)) -> 0 | AB142: =IF(A1stdlife="n/a","n/a",IF(AB$3>(A1stdlife+$E142),('PTRM input'!$K$263*(1+rvanilla05)^0.5)-SUM($K142:AA142),('PTRM input'!$K$263*(1+rvanilla05)^0.5)/A1stdlife)) -> 0 | AC142: =IF(A1stdlife="n/a","n/a",IF(AC$3>(A1stdlife+$E142),('PTRM input'!$K$263*(1+rvanilla05)^0.5)-SUM($K142:AB142),('PTRM input'!$K$263*(1+rvanilla05)^0.5)/A1stdlife)) -> 0 | AD142: =IF(A1stdlife="n/a","n/a",IF(AD$3>(A1stdlife+$E142),('PTRM input'!$K$263*(1+rvanilla05)^0.5)-SUM($K142:AC142),('PTRM input'!$K$263*(1+rvanilla05)^0.5)/A1stdlife)) -> 0 | AE142: =IF(A1stdlife="n/a","n/a",IF(AE$3>(A1stdlife+$E142),('PTRM input'!$K$263*(1+rvanilla05)^0.5)-SUM($K142:AD142),('PTRM input'!$K$263*(1+rvanilla05)^0.5)/A1stdlife)) -> 0 | AF142: =IF(A1stdlife="n/a","n/a",IF(AF$3>(A1stdlife+$E142),('PTRM input'!$K$263*(1+rvanilla05)^0.5)-SUM($K142:AE142),('PTRM input'!$K$263*(1+rvanilla05)^0.5)/A1stdlife)) -> 0 | AG142: =IF(A1stdlife="n/a","n/a",IF(AG$3>(A1stdlife+$E142),('PTRM input'!$K$263*(1+rvanilla05)^0.5)-SUM($K142:AF142),('PTRM input'!$K$263*(1+rvanilla05)^0.5)/A1stdlife)) -> 0 | AH142: =IF(A1stdlife="n/a","n/a",IF(AH$3>(A1stdlife+$E142),('PTRM input'!$K$263*(1+rvanilla05)^0.5)-SUM($K142:AG142),('PTRM input'!$K$263*(1+rvanilla05)^0.5)/A1stdlife)) -> 0 | AI142: =IF(A1stdlife="n/a","n/a",IF(AI$3>(A1stdlife+$E142),('PTRM input'!$K$263*(1+rvanilla05)^0.5)-SUM($K142:AH142),('PTRM input'!$K$263*(1+rvanilla05)^0.5)/A1stdlife)) -> 0 | AJ142: =IF(A1stdlife="n/a","n/a",IF(AJ$3>(A1stdlife+$E142),('PTRM input'!$K$263*(1+rvanilla05)^0.5)-SUM($K142:AI142),('PTRM input'!$K$263*(1+rvanilla05)^0.5)/A1stdlife)) -> 0 | AK142: =IF(A1stdlife="n/a","n/a",IF(AK$3>(A1stdlife+$E142),('PTRM input'!$K$263*(1+rvanilla05)^0.5)-SUM($K142:AJ142),('PTRM input'!$K$263*(1+rvanilla05)^0.5)/A1stdlife)) -> 0 | AL142: =IF(A1stdlife="n/a","n/a",IF(AL$3>(A1stdlife+$E142),('PTRM input'!$K$263*(1+rvanilla05)^0.5)-SUM($K142:AK142),('PTRM input'!$K$263*(1+rvanilla05)^0.5)/A1stdlife)) -> 0 | AM142: =IF(A1stdlife="n/a","n/a",IF(AM$3>(A1stdlife+$E142),('PTRM input'!$K$263*(1+rvanilla05)^0.5)-SUM($K142:AL142),('PTRM input'!$K$263*(1+rvanilla05)^0.5)/A1stdlife)) -> 0 | AN142: =IF(A1stdlife="n/a","n/a",IF(AN$3>(A1stdlife+$E142),('PTRM input'!$K$263*(1+rvanilla05)^0.5)-SUM($K142:AM142),('PTRM input'!$K$263*(1+rvanilla05)^0.5)/A1stdlife)) -> 0 | AO142: =IF(A1stdlife="n/a","n/a",IF(AO$3>(A1stdlife+$E142),('PTRM input'!$K$263*(1+rvanilla05)^0.5)-SUM($K142:AN142),('PTRM input'!$K$263*(1+rvanilla05)^0.5)/A1stdlife)) -> 0 | AP142: =IF(A1stdlife="n/a","n/a",IF(AP$3>(A1stdlife+$E142),('PTRM input'!$K$263*(1+rvanilla05)^0.5)-SUM($K142:AO142),('PTRM input'!$K$263*(1+rvanilla05)^0.5)/A1stdlife)) -> 0 | AQ142: =IF(A1stdlife="n/a","n/a",IF(AQ$3>(A1stdlife+$E142),('PTRM input'!$K$263*(1+rvanilla05)^0.5)-SUM($K142:AP142),('PTRM input'!$K$263*(1+rvanilla05)^0.5)/A1stdlife)) -> 0 | AR142: =IF(A1stdlife="n/a","n/a",IF(AR$3>(A1stdlife+$E142),('PTRM input'!$K$263*(1+rvanilla05)^0.5)-SUM($K142:AQ142),('PTRM input'!$K$263*(1+rvanilla05)^0.5)/A1stdlife)) -> 0 | AS142: =IF(A1stdlife="n/a","n/a",IF(AS$3>(A1stdlife+$E142),('PTRM input'!$K$263*(1+rvanilla05)^0.5)-SUM($K142:AR142),('PTRM input'!$K$263*(1+rvanilla05)^0.5)/A1stdlife)) -> 0 | AT142: =IF(A1stdlife="n/a","n/a",IF(AT$3>(A1stdlife+$E142),('PTRM input'!$K$263*(1+rvanilla05)^0.5)-SUM($K142:AS142),('PTRM input'!$K$263*(1+rvanilla05)^0.5)/A1stdlife)) -> 0 | AU142: =IF(A1stdlife="n/a","n/a",IF(AU$3>(A1stdlife+$E142),('PTRM input'!$K$263*(1+rvanilla05)^0.5)-SUM($K142:AT142),('PTRM input'!$K$263*(1+rvanilla05)^0.5)/A1stdlife)) -> 0 | AV142: =IF(A1stdlife="n/a","n/a",IF(AV$3>(A1stdlife+$E142),('PTRM input'!$K$263*(1+rvanilla05)^0.5)-SUM($K142:AU142),('PTRM input'!$K$263*(1+rvanilla05)^0.5)/A1stdlife)) -> 0 | AW142: =IF(A1stdlife="n/a","n/a",IF(AW$3>(A1stdlife+$E142),('PTRM input'!$K$263*(1+rvanilla05)^0.5)-SUM($K142:AV142),('PTRM input'!$K$263*(1+rvanilla05)^0.5)/A1stdlife)) -> 0 | AX142: =IF(A1stdlife="n/a","n/a",IF(AX$3>(A1stdlife+$E142),('PTRM input'!$K$263*(1+rvanilla05)^0.5)-SUM($K142:AW142),('PTRM input'!$K$263*(1+rvanilla05)^0.5)/A1stdlife)) -> 0 | AY142: =IF(A1stdlife="n/a","n/a",IF(AY$3>(A1stdlife+$E142),('PTRM input'!$K$263*(1+rvanilla05)^0.5)-SUM($K142:AX142),('PTRM input'!$K$263*(1+rvanilla05)^0.5)/A1stdlife)) -> 0 | AZ142: =IF(A1stdlife="n/a","n/a",IF(AZ$3>(A1stdlife+$E142),('PTRM input'!$K$263*(1+rvanilla05)^0.5)-SUM($K142:AY142),('PTRM input'!$K$263*(1+rvanilla05)^0.5)/A1stdlife)) -> 0 | BA142: =IF(A1stdlife="n/a","n/a",IF(BA$3>(A1stdlife+$E142),('PTRM input'!$K$263*(1+rvanilla05)^0.5)-SUM($K142:AZ142),('PTRM input'!$K$263*(1+rvanilla05)^0.5)/A1stdlife)) -> 0 | BB142: =IF(A1stdlife="n/a","n/a",IF(BB$3>(A1stdlife+$E142),('PTRM input'!$K$263*(1+rvanilla05)^0.5)-SUM($K142:BA142),('PTRM input'!$K$263*(1+rvanilla05)^0.5)/A1stdlife)) -> 0 | BC142: =IF(A1stdlife="n/a","n/a",IF(BC$3>(A1stdlife+$E142),('PTRM input'!$K$263*(1+rvanilla05)^0.5)-SUM($K142:BB142),('PTRM input'!$K$263*(1+rvanilla05)^0.5)/A1stdlife)) -> 0 | BD142: =IF(A1stdlife="n/a","n/a",IF(BD$3>(A1stdlife+$E142),('PTRM input'!$K$263*(1+rvanilla05)^0.5)-SUM($K142:BC142),('PTRM input'!$K$263*(1+rvanilla05)^0.5)/A1stdlife)) -> 0 | BE142: =IF(A1stdlife="n/a","n/a",IF(BE$3>(A1stdlife+$E142),('PTRM input'!$K$263*(1+rvanilla05)^0.5)-SUM($K142:BD142),('PTRM input'!$K$263*(1+rvanilla05)^0.5)/A1stdlife)) -> 0 | BF142: =IF(A1stdlife="n/a","n/a",IF(BF$3>(A1stdlife+$E142),('PTRM input'!$K$263*(1+rvanilla05)^0.5)-SUM($K142:BE142),('PTRM input'!$K$263*(1+rvanilla05)^0.5)/A1stdlife)) -> 0 | BG142: =IF(A1stdlife="n/a","n/a",IF(BG$3>(A1stdlife+$E142),('PTRM input'!$K$263*(1+rvanilla05)^0.5)-SUM($K142:BF142),('PTRM input'!$K$263*(1+rvanilla05)^0.5)/A1stdlife)) -> 0 | BH142: =IF(A1stdlife="n/a","n/a",IF(BH$3>(A1stdlife+$E142),('PTRM input'!$K$263*(1+rvanilla05)^0.5)-SUM($K142:BG142),('PTRM input'!$K$263*(1+rvanilla05)^0.5)/A1stdlife)) -> 0 | BI142: =IF(A1stdlife="n/a","n/a",IF(BI$3>(A1stdlife+$E142),('PTRM input'!$K$263*(1+rvanilla05)^0.5)-SUM($K142:BH142),('PTRM input'!$K$263*(1+rvanilla05)^0.5)/A1stdlife)) -> 0
E143: 6 | M143: =IF(A1stdlife="n/a","n/a",IF(M$3>(A1stdlife+$E143),('PTRM input'!$L$263*(1+rvanilla06)^0.5)-SUM($L143:L143),('PTRM input'!$L$263*(1+rvanilla06)^0.5)/A1stdlife)) -> 0 | N143: =IF(A1stdlife="n/a","n/a",IF(N$3>(A1stdlife+$E143),('PTRM input'!$L$263*(1+rvanilla06)^0.5)-SUM($L143:M143),('PTRM input'!$L$263*(1+rvanilla06)^0.5)/A1stdlife)) -> 0 | O143: =IF(A1stdlife="n/a","n/a",IF(O$3>(A1stdlife+$E143),('PTRM input'!$L$263*(1+rvanilla06)^0.5)-SUM($L143:N143),('PTRM input'!$L$263*(1+rvanilla06)^0.5)/A1stdlife)) -> 0 | P143: =IF(A1stdlife="n/a","n/a",IF(P$3>(A1stdlife+$E143),('PTRM input'!$L$263*(1+rvanilla06)^0.5)-SUM($L143:O143),('PTRM input'!$L$263*(1+rvanilla06)^0.5)/A1stdlife)) -> 0 | Q143: =IF(A1stdlife="n/a","n/a",IF(Q$3>(A1stdlife+$E143),('PTRM input'!$L$263*(1+rvanilla06)^0.5)-SUM($L143:P143),('PTRM input'!$L$263*(1+rvanilla06)^0.5)/A1stdlife)) -> 0 | R143: =IF(A1stdlife="n/a","n/a",IF(R$3>(A1stdlife+$E143),('PTRM input'!$L$263*(1+rvanilla06)^0.5)-SUM($L143:Q143),('PTRM input'!$L$263*(1+rvanilla06)^0.5)/A1stdlife)) -> 0 | S143: =IF(A1stdlife="n/a","n/a",IF(S$3>(A1stdlife+$E143),('PTRM input'!$L$263*(1+rvanilla06)^0.5)-SUM($L143:R143),('PTRM input'!$L$263*(1+rvanilla06)^0.5)/A1stdlife)) -> 0 | T143: =IF(A1stdlife="n/a","n/a",IF(T$3>(A1stdlife+$E143),('PTRM input'!$L$263*(1+rvanilla06)^0.5)-SUM($L143:S143),('PTRM input'!$L$263*(1+rvanilla06)^0.5)/A1stdlife)) -> 0 | U143: =IF(A1stdlife="n/a","n/a",IF(U$3>(A1stdlife+$E143),('PTRM input'!$L$263*(1+rvanilla06)^0.5)-SUM($L143:T143),('PTRM input'!$L$263*(1+rvanilla06)^0.5)/A1stdlife)) -> 0 | V143: =IF(A1stdlife="n/a","n/a",IF(V$3>(A1stdlife+$E143),('PTRM input'!$L$263*(1+rvanilla06)^0.5)-SUM($L143:U143),('PTRM input'!$L$263*(1+rvanilla06)^0.5)/A1stdlife)) -> 0 | W143: =IF(A1stdlife="n/a","n/a",IF(W$3>(A1stdlife+$E143),('PTRM input'!$L$263*(1+rvanilla06)^0.5)-SUM($L143:V143),('PTRM input'!$L$263*(1+rvanilla06)^0.5)/A1stdlife)) -> 0 | X143: =IF(A1stdlife="n/a","n/a",IF(X$3>(A1stdlife+$E143),('PTRM input'!$L$263*(1+rvanilla06)^0.5)-SUM($L143:W143),('PTRM input'!$L$263*(1+rvanilla06)^0.5)/A1stdlife)) -> 0 | Y143: =IF(A1stdlife="n/a","n/a",IF(Y$3>(A1stdlife+$E143),('PTRM input'!$L$263*(1+rvanilla06)^0.5)-SUM($L143:X143),('PTRM input'!$L$263*(1+rvanilla06)^0.5)/A1stdlife)) -> 0 | Z143: =IF(A1stdlife="n/a","n/a",IF(Z$3>(A1stdlife+$E143),('PTRM input'!$L$263*(1+rvanilla06)^0.5)-SUM($L143:Y143),('PTRM input'!$L$263*(1+rvanilla06)^0.5)/A1stdlife)) -> 0 | AA143: =IF(A1stdlife="n/a","n/a",IF(AA$3>(A1stdlife+$E143),('PTRM input'!$L$263*(1+rvanilla06)^0.5)-SUM($L143:Z143),('PTRM input'!$L$263*(1+rvanilla06)^0.5)/A1stdlife)) -> 0 | AB143: =IF(A1stdlife="n/a","n/a",IF(AB$3>(A1stdlife+$E143),('PTRM input'!$L$263*(1+rvanilla06)^0.5)-SUM($L143:AA143),('PTRM input'!$L$263*(1+rvanilla06)^0.5)/A1stdlife)) -> 0 | AC143: =IF(A1stdlife="n/a","n/a",IF(AC$3>(A1stdlife+$E143),('PTRM input'!$L$263*(1+rvanilla06)^0.5)-SUM($L143:AB143),('PTRM input'!$L$263*(1+rvanilla06)^0.5)/A1stdlife)) -> 0 | AD143: =IF(A1stdlife="n/a","n/a",IF(AD$3>(A1stdlife+$E143),('PTRM input'!$L$263*(1+rvanilla06)^0.5)-SUM($L143:AC143),('PTRM input'!$L$263*(1+rvanilla06)^0.5)/A1stdlife)) -> 0 | AE143: =IF(A1stdlife="n/a","n/a",IF(AE$3>(A1stdlife+$E143),('PTRM input'!$L$263*(1+rvanilla06)^0.5)-SUM($L143:AD143),('PTRM input'!$L$263*(1+rvanilla06)^0.5)/A1stdlife)) -> 0 | AF143: =IF(A1stdlife="n/a","n/a",IF(AF$3>(A1stdlife+$E143),('PTRM input'!$L$263*(1+rvanilla06)^0.5)-SUM($L143:AE143),('PTRM input'!$L$263*(1+rvanilla06)^0.5)/A1stdlife)) -> 0 | AG143: =IF(A1stdlife="n/a","n/a",IF(AG$3>(A1stdlife+$E143),('PTRM input'!$L$263*(1+rvanilla06)^0.5)-SUM($L143:AF143),('PTRM input'!$L$263*(1+rvanilla06)^0.5)/A1stdlife)) -> 0 | AH143: =IF(A1stdlife="n/a","n/a",IF(AH$3>(A1stdlife+$E143),('PTRM input'!$L$263*(1+rvanilla06)^0.5)-SUM($L143:AG143),('PTRM input'!$L$263*(1+rvanilla06)^0.5)/A1stdlife)) -> 0 | AI143: =IF(A1stdlife="n/a","n/a",IF(AI$3>(A1stdlife+$E143),('PTRM input'!$L$263*(1+rvanilla06)^0.5)-SUM($L143:AH143),('PTRM input'!$L$263*(1+rvanilla06)^0.5)/A1stdlife)) -> 0 | AJ143: =IF(A1stdlife="n/a","n/a",IF(AJ$3>(A1stdlife+$E143),('PTRM input'!$L$263*(1+rvanilla06)^0.5)-SUM($L143:AI143),('PTRM input'!$L$263*(1+rvanilla06)^0.5)/A1stdlife)) -> 0 | AK143: =IF(A1stdlife="n/a","n/a",IF(AK$3>(A1stdlife+$E143),('PTRM input'!$L$263*(1+rvanilla06)^0.5)-SUM($L143:AJ143),('PTRM input'!$L$263*(1+rvanilla06)^0.5)/A1stdlife)) -> 0 | AL143: =IF(A1stdlife="n/a","n/a",IF(AL$3>(A1stdlife+$E143),('PTRM input'!$L$263*(1+rvanilla06)^0.5)-SUM($L143:AK143),('PTRM input'!$L$263*(1+rvanilla06)^0.5)/A1stdlife)) -> 0 | AM143: =IF(A1stdlife="n/a","n/a",IF(AM$3>(A1stdlife+$E143),('PTRM input'!$L$263*(1+rvanilla06)^0.5)-SUM($L143:AL143),('PTRM input'!$L$263*(1+rvanilla06)^0.5)/A1stdlife)) -> 0 | AN143: =IF(A1stdlife="n/a","n/a",IF(AN$3>(A1stdlife+$E143),('PTRM input'!$L$263*(1+rvanilla06)^0.5)-SUM($L143:AM143),('PTRM input'!$L$263*(1+rvanilla06)^0.5)/A1stdlife)) -> 0 | AO143: =IF(A1stdlife="n/a","n/a",IF(AO$3>(A1stdlife+$E143),('PTRM input'!$L$263*(1+rvanilla06)^0.5)-SUM($L143:AN143),('PTRM input'!$L$263*(1+rvanilla06)^0.5)/A1stdlife)) -> 0 | AP143: =IF(A1stdlife="n/a","n/a",IF(AP$3>(A1stdlife+$E143),('PTRM input'!$L$263*(1+rvanilla06)^0.5)-SUM($L143:AO143),('PTRM input'!$L$263*(1+rvanilla06)^0.5)/A1stdlife)) -> 0 | AQ143: =IF(A1stdlife="n/a","n/a",IF(AQ$3>(A1stdlife+$E143),('PTRM input'!$L$263*(1+rvanilla06)^0.5)-SUM($L143:AP143),('PTRM input'!$L$263*(1+rvanilla06)^0.5)/A1stdlife)) -> 0 | AR143: =IF(A1stdlife="n/a","n/a",IF(AR$3>(A1stdlife+$E143),('PTRM input'!$L$263*(1+rvanilla06)^0.5)-SUM($L143:AQ143),('PTRM input'!$L$263*(1+rvanilla06)^0.5)/A1stdlife)) -> 0 | AS143: =IF(A1stdlife="n/a","n/a",IF(AS$3>(A1stdlife+$E143),('PTRM input'!$L$263*(1+rvanilla06)^0.5)-SUM($L143:AR143),('PTRM input'!$L$263*(1+rvanilla06)^0.5)/A1stdlife)) -> 0 | AT143: =IF(A1stdlife="n/a","n/a",IF(AT$3>(A1stdlife+$E143),('PTRM input'!$L$263*(1+rvanilla06)^0.5)-SUM($L143:AS143),('PTRM input'!$L$263*(1+rvanilla06)^0.5)/A1stdlife)) -> 0 | AU143: =IF(A1stdlife="n/a","n/a",IF(AU$3>(A1stdlife+$E143),('PTRM input'!$L$263*(1+rvanilla06)^0.5)-SUM($L143:AT143),('PTRM input'!$L$263*(1+rvanilla06)^0.5)/A1stdlife)) -> 0 | AV143: =IF(A1stdlife="n/a","n/a",IF(AV$3>(A1stdlife+$E143),('PTRM input'!$L$263*(1+rvanilla06)^0.5)-SUM($L143:AU143),('PTRM input'!$L$263*(1+rvanilla06)^0.5)/A1stdlife)) -> 0 | AW143: =IF(A1stdlife="n/a","n/a",IF(AW$3>(A1stdlife+$E143),('PTRM input'!$L$263*(1+rvanilla06)^0.5)-SUM($L143:AV143),('PTRM input'!$L$263*(1+rvanilla06)^0.5)/A1stdlife)) -> 0 | AX143: =IF(A1stdlife="n/a","n/a",IF(AX$3>(A1stdlife+$E143),('PTRM input'!$L$263*(1+rvanilla06)^0.5)-SUM($L143:AW143),('PTRM input'!$L$263*(1+rvanilla06)^0.5)/A1stdlife)) -> 0 | AY143: =IF(A1stdlife="n/a","n/a",IF(AY$3>(A1stdlife+$E143),('PTRM input'!$L$263*(1+rvanilla06)^0.5)-SUM($L143:AX143),('PTRM input'!$L$263*(1+rvanilla06)^0.5)/A1stdlife)) -> 0 | AZ143: =IF(A1stdlife="n/a","n/a",IF(AZ$3>(A1stdlife+$E143),('PTRM input'!$L$263*(1+rvanilla06)^0.5)-SUM($L143:AY143),('PTRM input'!$L$263*(1+rvanilla06)^0.5)/A1stdlife)) -> 0 | BA143: =IF(A1stdlife="n/a","n/a",IF(BA$3>(A1stdlife+$E143),('PTRM input'!$L$263*(1+rvanilla06)^0.5)-SUM($L143:AZ143),('PTRM input'!$L$263*(1+rvanilla06)^0.5)/A1stdlife)) -> 0 | BB143: =IF(A1stdlife="n/a","n/a",IF(BB$3>(A1stdlife+$E143),('PTRM input'!$L$263*(1+rvanilla06)^0.5)-SUM($L143:BA143),('PTRM input'!$L$263*(1+rvanilla06)^0.5)/A1stdlife)) -> 0 | BC143: =IF(A1stdlife="n/a","n/a",IF(BC$3>(A1stdlife+$E143),('PTRM input'!$L$263*(1+rvanilla06)^0.5)-SUM($L143:BB143),('PTRM input'!$L$263*(1+rvanilla06)^0.5)/A1stdlife)) -> 0 | BD143: =IF(A1stdlife="n/a","n/a",IF(BD$3>(A1stdlife+$E143),('PTRM input'!$L$263*(1+rvanilla06)^0.5)-SUM($L143:BC143),('PTRM input'!$L$263*(1+rvanilla06)^0.5)/A1stdlife)) -> 0 | BE143: =IF(A1stdlife="n/a","n/a",IF(BE$3>(A1stdlife+$E143),('PTRM input'!$L$263*(1+rvanilla06)^0.5)-SUM($L143:BD143),('PTRM input'!$L$263*(1+rvanilla06)^0.5)/A1stdlife)) -> 0 | BF143: =IF(A1stdlife="n/a","n/a",IF(BF$3>(A1stdlife+$E143),('PTRM input'!$L$263*(1+rvanilla06)^0.5)-SUM($L143:BE143),('PTRM input'!$L$263*(1+rvanilla06)^0.5)/A1stdlife)) -> 0 | BG143: =IF(A1stdlife="n/a","n/a",IF(BG$3>(A1stdlife+$E143),('PTRM input'!$L$263*(1+rvanilla06)^0.5)-SUM($L143:BF143),('PTRM input'!$L$263*(1+rvanilla06)^0.5)/A1stdlife)) -> 0 | BH143: =IF(A1stdlife="n/a","n/a",IF(BH$3>(A1stdlife+$E143),('PTRM input'!$L$263*(1+rvanilla06)^0.5)-SUM($L143:BG143),('PTRM input'!$L$263*(1+rvanilla06)^0.5)/A1stdlife)) -> 0 | BI143: =IF(A1stdlife="n/a","n/a",IF(BI$3>(A1stdlife+$E143),('PTRM input'!$L$263*(1+rvanilla06)^0.5)-SUM($L143:BH143),('PTRM input'!$L$263*(1+rvanilla06)^0.5)/A1stdlife)) -> 0
E144: 7 | N144: =IF(A1stdlife="n/a","n/a",IF(N$3>(A1stdlife+$E144),('PTRM input'!$M$263*(1+rvanilla07)^0.5)-SUM($M144:M144),('PTRM input'!$M$263*(1+rvanilla07)^0.5)/A1stdlife)) -> 0 | O144: =IF(A1stdlife="n/a","n/a",IF(O$3>(A1stdlife+$E144),('PTRM input'!$M$263*(1+rvanilla07)^0.5)-SUM($M144:N144),('PTRM input'!$M$263*(1+rvanilla07)^0.5)/A1stdlife)) -> 0 | P144: =IF(A1stdlife="n/a","n/a",IF(P$3>(A1stdlife+$E144),('PTRM input'!$M$263*(1+rvanilla07)^0.5)-SUM($M144:O144),('PTRM input'!$M$263*(1+rvanilla07)^0.5)/A1stdlife)) -> 0 | Q144: =IF(A1stdlife="n/a","n/a",IF(Q$3>(A1stdlife+$E144),('PTRM input'!$M$263*(1+rvanilla07)^0.5)-SUM($M144:P144),('PTRM input'!$M$263*(1+rvanilla07)^0.5)/A1stdlife)) -> 0 | R144: =IF(A1stdlife="n/a","n/a",IF(R$3>(A1stdlife+$E144),('PTRM input'!$M$263*(1+rvanilla07)^0.5)-SUM($M144:Q144),('PTRM input'!$M$263*(1+rvanilla07)^0.5)/A1stdlife)) -> 0 | S144: =IF(A1stdlife="n/a","n/a",IF(S$3>(A1stdlife+$E144),('PTRM input'!$M$263*(1+rvanilla07)^0.5)-SUM($M144:R144),('PTRM input'!$M$263*(1+rvanilla07)^0.5)/A1stdlife)) -> 0 | T144: =IF(A1stdlife="n/a","n/a",IF(T$3>(A1stdlife+$E144),('PTRM input'!$M$263*(1+rvanilla07)^0.5)-SUM($M144:S144),('PTRM input'!$M$263*(1+rvanilla07)^0.5)/A1stdlife)) -> 0 | U144: =IF(A1stdlife="n/a","n/a",IF(U$3>(A1stdlife+$E144),('PTRM input'!$M$263*(1+rvanilla07)^0.5)-SUM($M144:T144),('PTRM input'!$M$263*(1+rvanilla07)^0.5)/A1stdlife)) -> 0 | V144: =IF(A1stdlife="n/a","n/a",IF(V$3>(A1stdlife+$E144),('PTRM input'!$M$263*(1+rvanilla07)^0.5)-SUM($M144:U144),('PTRM input'!$M$263*(1+rvanilla07)^0.5)/A1stdlife)) -> 0 | W144: =IF(A1stdlife="n/a","n/a",IF(W$3>(A1stdlife+$E144),('PTRM input'!$M$263*(1+rvanilla07)^0.5)-SUM($M144:V144),('PTRM input'!$M$263*(1+rvanilla07)^0.5)/A1stdlife)) -> 0 | X144: =IF(A1stdlife="n/a","n/a",IF(X$3>(A1stdlife+$E144),('PTRM input'!$M$263*(1+rvanilla07)^0.5)-SUM($M144:W144),('PTRM input'!$M$263*(1+rvanilla07)^0.5)/A1stdlife)) -> 0 | Y144: =IF(A1stdlife="n/a","n/a",IF(Y$3>(A1stdlife+$E144),('PTRM input'!$M$263*(1+rvanilla07)^0.5)-SUM($M144:X144),('PTRM input'!$M$263*(1+rvanilla07)^0.5)/A1stdlife)) -> 0 | Z144: =IF(A1stdlife="n/a","n/a",IF(Z$3>(A1stdlife+$E144),('PTRM input'!$M$263*(1+rvanilla07)^0.5)-SUM($M144:Y144),('PTRM input'!$M$263*(1+rvanilla07)^0.5)/A1stdlife)) -> 0 | AA144: =IF(A1stdlife="n/a","n/a",IF(AA$3>(A1stdlife+$E144),('PTRM input'!$M$263*(1+rvanilla07)^0.5)-SUM($M144:Z144),('PTRM input'!$M$263*(1+rvanilla07)^0.5)/A1stdlife)) -> 0 | AB144: =IF(A1stdlife="n/a","n/a",IF(AB$3>(A1stdlife+$E144),('PTRM input'!$M$263*(1+rvanilla07)^0.5)-SUM($M144:AA144),('PTRM input'!$M$263*(1+rvanilla07)^0.5)/A1stdlife)) -> 0 | AC144: =IF(A1stdlife="n/a","n/a",IF(AC$3>(A1stdlife+$E144),('PTRM input'!$M$263*(1+rvanilla07)^0.5)-SUM($M144:AB144),('PTRM input'!$M$263*(1+rvanilla07)^0.5)/A1stdlife)) -> 0 | AD144: =IF(A1stdlife="n/a","n/a",IF(AD$3>(A1stdlife+$E144),('PTRM input'!$M$263*(1+rvanilla07)^0.5)-SUM($M144:AC144),('PTRM input'!$M$263*(1+rvanilla07)^0.5)/A1stdlife)) -> 0 | AE144: =IF(A1stdlife="n/a","n/a",IF(AE$3>(A1stdlife+$E144),('PTRM input'!$M$263*(1+rvanilla07)^0.5)-SUM($M144:AD144),('PTRM input'!$M$263*(1+rvanilla07)^0.5)/A1stdlife)) -> 0 | AF144: =IF(A1stdlife="n/a","n/a",IF(AF$3>(A1stdlife+$E144),('PTRM input'!$M$263*(1+rvanilla07)^0.5)-SUM($M144:AE144),('PTRM input'!$M$263*(1+rvanilla07)^0.5)/A1stdlife)) -> 0 | AG144: =IF(A1stdlife="n/a","n/a",IF(AG$3>(A1stdlife+$E144),('PTRM input'!$M$263*(1+rvanilla07)^0.5)-SUM($M144:AF144),('PTRM input'!$M$263*(1+rvanilla07)^0.5)/A1stdlife)) -> 0 | AH144: =IF(A1stdlife="n/a","n/a",IF(AH$3>(A1stdlife+$E144),('PTRM input'!$M$263*(1+rvanilla07)^0.5)-SUM($M144:AG144),('PTRM input'!$M$263*(1+rvanilla07)^0.5)/A1stdlife)) -> 0 | AI144: =IF(A1stdlife="n/a","n/a",IF(AI$3>(A1stdlife+$E144),('PTRM input'!$M$263*(1+rvanilla07)^0.5)-SUM($M144:AH144),('PTRM input'!$M$263*(1+rvanilla07)^0.5)/A1stdlife)) -> 0 | AJ144: =IF(A1stdlife="n/a","n/a",IF(AJ$3>(A1stdlife+$E144),('PTRM input'!$M$263*(1+rvanilla07)^0.5)-SUM($M144:AI144),('PTRM input'!$M$263*(1+rvanilla07)^0.5)/A1stdlife)) -> 0 | AK144: =IF(A1stdlife="n/a","n/a",IF(AK$3>(A1stdlife+$E144),('PTRM input'!$M$263*(1+rvanilla07)^0.5)-SUM($M144:AJ144),('PTRM input'!$M$263*(1+rvanilla07)^0.5)/A1stdlife)) -> 0 | AL144: =IF(A1stdlife="n/a","n/a",IF(AL$3>(A1stdlife+$E144),('PTRM input'!$M$263*(1+rvanilla07)^0.5)-SUM($M144:AK144),('PTRM input'!$M$263*(1+rvanilla07)^0.5)/A1stdlife)) -> 0 | AM144: =IF(A1stdlife="n/a","n/a",IF(AM$3>(A1stdlife+$E144),('PTRM input'!$M$263*(1+rvanilla07)^0.5)-SUM($M144:AL144),('PTRM input'!$M$263*(1+rvanilla07)^0.5)/A1stdlife)) -> 0 | AN144: =IF(A1stdlife="n/a","n/a",IF(AN$3>(A1stdlife+$E144),('PTRM input'!$M$263*(1+rvanilla07)^0.5)-SUM($M144:AM144),('PTRM input'!$M$263*(1+rvanilla07)^0.5)/A1stdlife)) -> 0 | AO144: =IF(A1stdlife="n/a","n/a",IF(AO$3>(A1stdlife+$E144),('PTRM input'!$M$263*(1+rvanilla07)^0.5)-SUM($M144:AN144),('PTRM input'!$M$263*(1+rvanilla07)^0.5)/A1stdlife)) -> 0 | AP144: =IF(A1stdlife="n/a","n/a",IF(AP$3>(A1stdlife+$E144),('PTRM input'!$M$263*(1+rvanilla07)^0.5)-SUM($M144:AO144),('PTRM input'!$M$263*(1+rvanilla07)^0.5)/A1stdlife)) -> 0 | AQ144: =IF(A1stdlife="n/a","n/a",IF(AQ$3>(A1stdlife+$E144),('PTRM input'!$M$263*(1+rvanilla07)^0.5)-SUM($M144:AP144),('PTRM input'!$M$263*(1+rvanilla07)^0.5)/A1stdlife)) -> 0 | AR144: =IF(A1stdlife="n/a","n/a",IF(AR$3>(A1stdlife+$E144),('PTRM input'!$M$263*(1+rvanilla07)^0.5)-SUM($M144:AQ144),('PTRM input'!$M$263*(1+rvanilla07)^0.5)/A1stdlife)) -> 0 | AS144: =IF(A1stdlife="n/a","n/a",IF(AS$3>(A1stdlife+$E144),('PTRM input'!$M$263*(1+rvanilla07)^0.5)-SUM($M144:AR144),('PTRM input'!$M$263*(1+rvanilla07)^0.5)/A1stdlife)) -> 0 | AT144: =IF(A1stdlife="n/a","n/a",IF(AT$3>(A1stdlife+$E144),('PTRM input'!$M$263*(1+rvanilla07)^0.5)-SUM($M144:AS144),('PTRM input'!$M$263*(1+rvanilla07)^0.5)/A1stdlife)) -> 0 | AU144: =IF(A1stdlife="n/a","n/a",IF(AU$3>(A1stdlife+$E144),('PTRM input'!$M$263*(1+rvanilla07)^0.5)-SUM($M144:AT144),('PTRM input'!$M$263*(1+rvanilla07)^0.5)/A1stdlife)) -> 0 | AV144: =IF(A1stdlife="n/a","n/a",IF(AV$3>(A1stdlife+$E144),('PTRM input'!$M$263*(1+rvanilla07)^0.5)-SUM($M144:AU144),('PTRM input'!$M$263*(1+rvanilla07)^0.5)/A1stdlife)) -> 0 | AW144: =IF(A1stdlife="n/a","n/a",IF(AW$3>(A1stdlife+$E144),('PTRM input'!$M$263*(1+rvanilla07)^0.5)-SUM($M144:AV144),('PTRM input'!$M$263*(1+rvanilla07)^0.5)/A1stdlife)) -> 0 | AX144: =IF(A1stdlife="n/a","n/a",IF(AX$3>(A1stdlife+$E144),('PTRM input'!$M$263*(1+rvanilla07)^0.5)-SUM($M144:AW144),('PTRM input'!$M$263*(1+rvanilla07)^0.5)/A1stdlife)) -> 0 | AY144: =IF(A1stdlife="n/a","n/a",IF(AY$3>(A1stdlife+$E144),('PTRM input'!$M$263*(1+rvanilla07)^0.5)-SUM($M144:AX144),('PTRM input'!$M$263*(1+rvanilla07)^0.5)/A1stdlife)) -> 0 | AZ144: =IF(A1stdlife="n/a","n/a",IF(AZ$3>(A1stdlife+$E144),('PTRM input'!$M$263*(1+rvanilla07)^0.5)-SUM($M144:AY144),('PTRM input'!$M$263*(1+rvanilla07)^0.5)/A1stdlife)) -> 0 | BA144: =IF(A1stdlife="n/a","n/a",IF(BA$3>(A1stdlife+$E144),('PTRM input'!$M$263*(1+rvanilla07)^0.5)-SUM($M144:AZ144),('PTRM input'!$M$263*(1+rvanilla07)^0.5)/A1stdlife)) -> 0 | BB144: =IF(A1stdlife="n/a","n/a",IF(BB$3>(A1stdlife+$E144),('PTRM input'!$M$263*(1+rvanilla07)^0.5)-SUM($M144:BA144),('PTRM input'!$M$263*(1+rvanilla07)^0.5)/A1stdlife)) -> 0 | BC144: =IF(A1stdlife="n/a","n/a",IF(BC$3>(A1stdlife+$E144),('PTRM input'!$M$263*(1+rvanilla07)^0.5)-SUM($M144:BB144),('PTRM input'!$M$263*(1+rvanilla07)^0.5)/A1stdlife)) -> 0 | BD144: =IF(A1stdlife="n/a","n/a",IF(BD$3>(A1stdlife+$E144),('PTRM input'!$M$263*(1+rvanilla07)^0.5)-SUM($M144:BC144),('PTRM input'!$M$263*(1+rvanilla07)^0.5)/A1stdlife)) -> 0 | BE144: =IF(A1stdlife="n/a","n/a",IF(BE$3>(A1stdlife+$E144),('PTRM input'!$M$263*(1+rvanilla07)^0.5)-SUM($M144:BD144),('PTRM input'!$M$263*(1+rvanilla07)^0.5)/A1stdlife)) -> 0 | BF144: =IF(A1stdlife="n/a","n/a",IF(BF$3>(A1stdlife+$E144),('PTRM input'!$M$263*(1+rvanilla07)^0.5)-SUM($M144:BE144),('PTRM input'!$M$263*(1+rvanilla07)^0.5)/A1stdlife)) -> 0 | BG144: =IF(A1stdlife="n/a","n/a",IF(BG$3>(A1stdlife+$E144),('PTRM input'!$M$263*(1+rvanilla07)^0.5)-SUM($M144:BF144),('PTRM input'!$M$263*(1+rvanilla07)^0.5)/A1stdlife)) -> 0 | BH144: =IF(A1stdlife="n/a","n/a",IF(BH$3>(A1stdlife+$E144),('PTRM input'!$M$263*(1+rvanilla07)^0.5)-SUM($M144:BG144),('PTRM input'!$M$263*(1+rvanilla07)^0.5)/A1stdlife)) -> 0 | BI144: =IF(A1stdlife="n/a","n/a",IF(BI$3>(A1stdlife+$E144),('PTRM input'!$M$263*(1+rvanilla07)^0.5)-SUM($M144:BH144),('PTRM input'!$M$263*(1+rvanilla07)^0.5)/A1stdlife)) -> 0
E145: 8 | O145: =IF(A1stdlife="n/a","n/a",IF(O$3>(A1stdlife+$E145),('PTRM input'!$N$263*(1+rvanilla08)^0.5)-SUM($N145:N145),('PTRM input'!$N$263*(1+rvanilla08)^0.5)/A1stdlife)) -> 0 | P145: =IF(A1stdlife="n/a","n/a",IF(P$3>(A1stdlife+$E145),('PTRM input'!$N$263*(1+rvanilla08)^0.5)-SUM($N145:O145),('PTRM input'!$N$263*(1+rvanilla08)^0.5)/A1stdlife)) -> 0 | Q145: =IF(A1stdlife="n/a","n/a",IF(Q$3>(A1stdlife+$E145),('PTRM input'!$N$263*(1+rvanilla08)^0.5)-SUM($N145:P145),('PTRM input'!$N$263*(1+rvanilla08)^0.5)/A1stdlife)) -> 0 | R145: =IF(A1stdlife="n/a","n/a",IF(R$3>(A1stdlife+$E145),('PTRM input'!$N$263*(1+rvanilla08)^0.5)-SUM($N145:Q145),('PTRM input'!$N$263*(1+rvanilla08)^0.5)/A1stdlife)) -> 0 | S145: =IF(A1stdlife="n/a","n/a",IF(S$3>(A1stdlife+$E145),('PTRM input'!$N$263*(1+rvanilla08)^0.5)-SUM($N145:R145),('PTRM input'!$N$263*(1+rvanilla08)^0.5)/A1stdlife)) -> 0 | T145: =IF(A1stdlife="n/a","n/a",IF(T$3>(A1stdlife+$E145),('PTRM input'!$N$263*(1+rvanilla08)^0.5)-SUM($N145:S145),('PTRM input'!$N$263*(1+rvanilla08)^0.5)/A1stdlife)) -> 0 | U145: =IF(A1stdlife="n/a","n/a",IF(U$3>(A1stdlife+$E145),('PTRM input'!$N$263*(1+rvanilla08)^0.5)-SUM($N145:T145),('PTRM input'!$N$263*(1+rvanilla08)^0.5)/A1stdlife)) -> 0 | V145: =IF(A1stdlife="n/a","n/a",IF(V$3>(A1stdlife+$E145),('PTRM input'!$N$263*(1+rvanilla08)^0.5)-SUM($N145:U145),('PTRM input'!$N$263*(1+rvanilla08)^0.5)/A1stdlife)) -> 0 | W145: =IF(A1stdlife="n/a","n/a",IF(W$3>(A1stdlife+$E145),('PTRM input'!$N$263*(1+rvanilla08)^0.5)-SUM($N145:V145),('PTRM input'!$N$263*(1+rvanilla08)^0.5)/A1stdlife)) -> 0 | X145: =IF(A1stdlife="n/a","n/a",IF(X$3>(A1stdlife+$E145),('PTRM input'!$N$263*(1+rvanilla08)^0.5)-SUM($N145:W145),('PTRM input'!$N$263*(1+rvanilla08)^0.5)/A1stdlife)) -> 0 | Y145: =IF(A1stdlife="n/a","n/a",IF(Y$3>(A1stdlife+$E145),('PTRM input'!$N$263*(1+rvanilla08)^0.5)-SUM($N145:X145),('PTRM input'!$N$263*(1+rvanilla08)^0.5)/A1stdlife)) -> 0 | Z145: =IF(A1stdlife="n/a","n/a",IF(Z$3>(A1stdlife+$E145),('PTRM input'!$N$263*(1+rvanilla08)^0.5)-SUM($N145:Y145),('PTRM input'!$N$263*(1+rvanilla08)^0.5)/A1stdlife)) -> 0 | AA145: =IF(A1stdlife="n/a","n/a",IF(AA$3>(A1stdlife+$E145),('PTRM input'!$N$263*(1+rvanilla08)^0.5)-SUM($N145:Z145),('PTRM input'!$N$263*(1+rvanilla08)^0.5)/A1stdlife)) -> 0 | AB145: =IF(A1stdlife="n/a","n/a",IF(AB$3>(A1stdlife+$E145),('PTRM input'!$N$263*(1+rvanilla08)^0.5)-SUM($N145:AA145),('PTRM input'!$N$263*(1+rvanilla08)^0.5)/A1stdlife)) -> 0 | AC145: =IF(A1stdlife="n/a","n/a",IF(AC$3>(A1stdlife+$E145),('PTRM input'!$N$263*(1+rvanilla08)^0.5)-SUM($N145:AB145),('PTRM input'!$N$263*(1+rvanilla08)^0.5)/A1stdlife)) -> 0 | AD145: =IF(A1stdlife="n/a","n/a",IF(AD$3>(A1stdlife+$E145),('PTRM input'!$N$263*(1+rvanilla08)^0.5)-SUM($N145:AC145),('PTRM input'!$N$263*(1+rvanilla08)^0.5)/A1stdlife)) -> 0 | AE145: =IF(A1stdlife="n/a","n/a",IF(AE$3>(A1stdlife+$E145),('PTRM input'!$N$263*(1+rvanilla08)^0.5)-SUM($N145:AD145),('PTRM input'!$N$263*(1+rvanilla08)^0.5)/A1stdlife)) -> 0 | AF145: =IF(A1stdlife="n/a","n/a",IF(AF$3>(A1stdlife+$E145),('PTRM input'!$N$263*(1+rvanilla08)^0.5)-SUM($N145:AE145),('PTRM input'!$N$263*(1+rvanilla08)^0.5)/A1stdlife)) -> 0 | AG145: =IF(A1stdlife="n/a","n/a",IF(AG$3>(A1stdlife+$E145),('PTRM input'!$N$263*(1+rvanilla08)^0.5)-SUM($N145:AF145),('PTRM input'!$N$263*(1+rvanilla08)^0.5)/A1stdlife)) -> 0 | AH145: =IF(A1stdlife="n/a","n/a",IF(AH$3>(A1stdlife+$E145),('PTRM input'!$N$263*(1+rvanilla08)^0.5)-SUM($N145:AG145),('PTRM input'!$N$263*(1+rvanilla08)^0.5)/A1stdlife)) -> 0 | AI145: =IF(A1stdlife="n/a","n/a",IF(AI$3>(A1stdlife+$E145),('PTRM input'!$N$263*(1+rvanilla08)^0.5)-SUM($N145:AH145),('PTRM input'!$N$263*(1+rvanilla08)^0.5)/A1stdlife)) -> 0 | AJ145: =IF(A1stdlife="n/a","n/a",IF(AJ$3>(A1stdlife+$E145),('PTRM input'!$N$263*(1+rvanilla08)^0.5)-SUM($N145:AI145),('PTRM input'!$N$263*(1+rvanilla08)^0.5)/A1stdlife)) -> 0 | AK145: =IF(A1stdlife="n/a","n/a",IF(AK$3>(A1stdlife+$E145),('PTRM input'!$N$263*(1+rvanilla08)^0.5)-SUM($N145:AJ145),('PTRM input'!$N$263*(1+rvanilla08)^0.5)/A1stdlife)) -> 0 | AL145: =IF(A1stdlife="n/a","n/a",IF(AL$3>(A1stdlife+$E145),('PTRM input'!$N$263*(1+rvanilla08)^0.5)-SUM($N145:AK145),('PTRM input'!$N$263*(1+rvanilla08)^0.5)/A1stdlife)) -> 0 | AM145: =IF(A1stdlife="n/a","n/a",IF(AM$3>(A1stdlife+$E145),('PTRM input'!$N$263*(1+rvanilla08)^0.5)-SUM($N145:AL145),('PTRM input'!$N$263*(1+rvanilla08)^0.5)/A1stdlife)) -> 0 | AN145: =IF(A1stdlife="n/a","n/a",IF(AN$3>(A1stdlife+$E145),('PTRM input'!$N$263*(1+rvanilla08)^0.5)-SUM($N145:AM145),('PTRM input'!$N$263*(1+rvanilla08)^0.5)/A1stdlife)) -> 0 | AO145: =IF(A1stdlife="n/a","n/a",IF(AO$3>(A1stdlife+$E145),('PTRM input'!$N$263*(1+rvanilla08)^0.5)-SUM($N145:AN145),('PTRM input'!$N$263*(1+rvanilla08)^0.5)/A1stdlife)) -> 0 | AP145: =IF(A1stdlife="n/a","n/a",IF(AP$3>(A1stdlife+$E145),('PTRM input'!$N$263*(1+rvanilla08)^0.5)-SUM($N145:AO145),('PTRM input'!$N$263*(1+rvanilla08)^0.5)/A1stdlife)) -> 0 | AQ145: =IF(A1stdlife="n/a","n/a",IF(AQ$3>(A1stdlife+$E145),('PTRM input'!$N$263*(1+rvanilla08)^0.5)-SUM($N145:AP145),('PTRM input'!$N$263*(1+rvanilla08)^0.5)/A1stdlife)) -> 0 | AR145: =IF(A1stdlife="n/a","n/a",IF(AR$3>(A1stdlife+$E145),('PTRM input'!$N$263*(1+rvanilla08)^0.5)-SUM($N145:AQ145),('PTRM input'!$N$263*(1+rvanilla08)^0.5)/A1stdlife)) -> 0 | AS145: =IF(A1stdlife="n/a","n/a",IF(AS$3>(A1stdlife+$E145),('PTRM input'!$N$263*(1+rvanilla08)^0.5)-SUM($N145:AR145),('PTRM input'!$N$263*(1+rvanilla08)^0.5)/A1stdlife)) -> 0 | AT145: =IF(A1stdlife="n/a","n/a",IF(AT$3>(A1stdlife+$E145),('PTRM input'!$N$263*(1+rvanilla08)^0.5)-SUM($N145:AS145),('PTRM input'!$N$263*(1+rvanilla08)^0.5)/A1stdlife)) -> 0 | AU145: =IF(A1stdlife="n/a","n/a",IF(AU$3>(A1stdlife+$E145),('PTRM input'!$N$263*(1+rvanilla08)^0.5)-SUM($N145:AT145),('PTRM input'!$N$263*(1+rvanilla08)^0.5)/A1stdlife)) -> 0 | AV145: =IF(A1stdlife="n/a","n/a",IF(AV$3>(A1stdlife+$E145),('PTRM input'!$N$263*(1+rvanilla08)^0.5)-SUM($N145:AU145),('PTRM input'!$N$263*(1+rvanilla08)^0.5)/A1stdlife)) -> 0 | AW145: =IF(A1stdlife="n/a","n/a",IF(AW$3>(A1stdlife+$E145),('PTRM input'!$N$263*(1+rvanilla08)^0.5)-SUM($N145:AV145),('PTRM input'!$N$263*(1+rvanilla08)^0.5)/A1stdlife)) -> 0 | AX145: =IF(A1stdlife="n/a","n/a",IF(AX$3>(A1stdlife+$E145),('PTRM input'!$N$263*(1+rvanilla08)^0.5)-SUM($N145:AW145),('PTRM input'!$N$263*(1+rvanilla08)^0.5)/A1stdlife)) -> 0 | AY145: =IF(A1stdlife="n/a","n/a",IF(AY$3>(A1stdlife+$E145),('PTRM input'!$N$263*(1+rvanilla08)^0.5)-SUM($N145:AX145),('PTRM input'!$N$263*(1+rvanilla08)^0.5)/A1stdlife)) -> 0 | AZ145: =IF(A1stdlife="n/a","n/a",IF(AZ$3>(A1stdlife+$E145),('PTRM input'!$N$263*(1+rvanilla08)^0.5)-SUM($N145:AY145),('PTRM input'!$N$263*(1+rvanilla08)^0.5)/A1stdlife)) -> 0 | BA145: =IF(A1stdlife="n/a","n/a",IF(BA$3>(A1stdlife+$E145),('PTRM input'!$N$263*(1+rvanilla08)^0.5)-SUM($N145:AZ145),('PTRM input'!$N$263*(1+rvanilla08)^0.5)/A1stdlife)) -> 0 | BB145: =IF(A1stdlife="n/a","n/a",IF(BB$3>(A1stdlife+$E145),('PTRM input'!$N$263*(1+rvanilla08)^0.5)-SUM($N145:BA145),('PTRM input'!$N$263*(1+rvanilla08)^0.5)/A1stdlife)) -> 0 | BC145: =IF(A1stdlife="n/a","n/a",IF(BC$3>(A1stdlife+$E145),('PTRM input'!$N$263*(1+rvanilla08)^0.5)-SUM($N145:BB145),('PTRM input'!$N$263*(1+rvanilla08)^0.5)/A1stdlife)) -> 0 | BD145: =IF(A1stdlife="n/a","n/a",IF(BD$3>(A1stdlife+$E145),('PTRM input'!$N$263*(1+rvanilla08)^0.5)-SUM($N145:BC145),('PTRM input'!$N$263*(1+rvanilla08)^0.5)/A1stdlife)) -> 0 | BE145: =IF(A1stdlife="n/a","n/a",IF(BE$3>(A1stdlife+$E145),('PTRM input'!$N$263*(1+rvanilla08)^0.5)-SUM($N145:BD145),('PTRM input'!$N$263*(1+rvanilla08)^0.5)/A1stdlife)) -> 0 | BF145: =IF(A1stdlife="n/a","n/a",IF(BF$3>(A1stdlife+$E145),('PTRM input'!$N$263*(1+rvanilla08)^0.5)-SUM($N145:BE145),('PTRM input'!$N$263*(1+rvanilla08)^0.5)/A1stdlife)) -> 0 | BG145: =IF(A1stdlife="n/a","n/a",IF(BG$3>(A1stdlife+$E145),('PTRM input'!$N$263*(1+rvanilla08)^0.5)-SUM($N145:BF145),('PTRM input'!$N$263*(1+rvanilla08)^0.5)/A1stdlife)) -> 0 | BH145: =IF(A1stdlife="n/a","n/a",IF(BH$3>(A1stdlife+$E145),('PTRM input'!$N$263*(1+rvanilla08)^0.5)-SUM($N145:BG145),('PTRM input'!$N$263*(1+rvanilla08)^0.5)/A1stdlife)) -> 0 | BI145: =IF(A1stdlife="n/a","n/a",IF(BI$3>(A1stdlife+$E145),('PTRM input'!$N$263*(1+rvanilla08)^0.5)-SUM($N145:BH145),('PTRM input'!$N$263*(1+rvanilla08)^0.5)/A1stdlife)) -> 0
E146: 9 | P146: =IF(A1stdlife="n/a","n/a",IF(P$3>(A1stdlife+$E146),('PTRM input'!$O$263*(1+rvanilla09)^0.5)-SUM($O146:O146),('PTRM input'!$O$263*(1+rvanilla09)^0.5)/A1stdlife)) -> 0 | Q146: =IF(A1stdlife="n/a","n/a",IF(Q$3>(A1stdlife+$E146),('PTRM input'!$O$263*(1+rvanilla09)^0.5)-SUM($O146:P146),('PTRM input'!$O$263*(1+rvanilla09)^0.5)/A1stdlife)) -> 0 | R146: =IF(A1stdlife="n/a","n/a",IF(R$3>(A1stdlife+$E146),('PTRM input'!$O$263*(1+rvanilla09)^0.5)-SUM($O146:Q146),('PTRM input'!$O$263*(1+rvanilla09)^0.5)/A1stdlife)) -> 0 | S146: =IF(A1stdlife="n/a","n/a",IF(S$3>(A1stdlife+$E146),('PTRM input'!$O$263*(1+rvanilla09)^0.5)-SUM($O146:R146),('PTRM input'!$O$263*(1+rvanilla09)^0.5)/A1stdlife)) -> 0 | T146: =IF(A1stdlife="n/a","n/a",IF(T$3>(A1stdlife+$E146),('PTRM input'!$O$263*(1+rvanilla09)^0.5)-SUM($O146:S146),('PTRM input'!$O$263*(1+rvanilla09)^0.5)/A1stdlife)) -> 0 | U146: =IF(A1stdlife="n/a","n/a",IF(U$3>(A1stdlife+$E146),('PTRM input'!$O$263*(1+rvanilla09)^0.5)-SUM($O146:T146),('PTRM input'!$O$263*(1+rvanilla09)^0.5)/A1stdlife)) -> 0 | V146: =IF(A1stdlife="n/a","n/a",IF(V$3>(A1stdlife+$E146),('PTRM input'!$O$263*(1+rvanilla09)^0.5)-SUM($O146:U146),('PTRM input'!$O$263*(1+rvanilla09)^0.5)/A1stdlife)) -> 0 | W146: =IF(A1stdlife="n/a","n/a",IF(W$3>(A1stdlife+$E146),('PTRM input'!$O$263*(1+rvanilla09)^0.5)-SUM($O146:V146),('PTRM input'!$O$263*(1+rvanilla09)^0.5)/A1stdlife)) -> 0 | X146: =IF(A1stdlife="n/a","n/a",IF(X$3>(A1stdlife+$E146),('PTRM input'!$O$263*(1+rvanilla09)^0.5)-SUM($O146:W146),('PTRM input'!$O$263*(1+rvanilla09)^0.5)/A1stdlife)) -> 0 | Y146: =IF(A1stdlife="n/a","n/a",IF(Y$3>(A1stdlife+$E146),('PTRM input'!$O$263*(1+rvanilla09)^0.5)-SUM($O146:X146),('PTRM input'!$O$263*(1+rvanilla09)^0.5)/A1stdlife)) -> 0 | Z146: =IF(A1stdlife="n/a","n/a",IF(Z$3>(A1stdlife+$E146),('PTRM input'!$O$263*(1+rvanilla09)^0.5)-SUM($O146:Y146),('PTRM input'!$O$263*(1+rvanilla09)^0.5)/A1stdlife)) -> 0 | AA146: =IF(A1stdlife="n/a","n/a",IF(AA$3>(A1stdlife+$E146),('PTRM input'!$O$263*(1+rvanilla09)^0.5)-SUM($O146:Z146),('PTRM input'!$O$263*(1+rvanilla09)^0.5)/A1stdlife)) -> 0 | AB146: =IF(A1stdlife="n/a","n/a",IF(AB$3>(A1stdlife+$E146),('PTRM input'!$O$263*(1+rvanilla09)^0.5)-SUM($O146:AA146),('PTRM input'!$O$263*(1+rvanilla09)^0.5)/A1stdlife)) -> 0 | AC146: =IF(A1stdlife="n/a","n/a",IF(AC$3>(A1stdlife+$E146),('PTRM input'!$O$263*(1+rvanilla09)^0.5)-SUM($O146:AB146),('PTRM input'!$O$263*(1+rvanilla09)^0.5)/A1stdlife)) -> 0 | AD146: =IF(A1stdlife="n/a","n/a",IF(AD$3>(A1stdlife+$E146),('PTRM input'!$O$263*(1+rvanilla09)^0.5)-SUM($O146:AC146),('PTRM input'!$O$263*(1+rvanilla09)^0.5)/A1stdlife)) -> 0 | AE146: =IF(A1stdlife="n/a","n/a",IF(AE$3>(A1stdlife+$E146),('PTRM input'!$O$263*(1+rvanilla09)^0.5)-SUM($O146:AD146),('PTRM input'!$O$263*(1+rvanilla09)^0.5)/A1stdlife)) -> 0 | AF146: =IF(A1stdlife="n/a","n/a",IF(AF$3>(A1stdlife+$E146),('PTRM input'!$O$263*(1+rvanilla09)^0.5)-SUM($O146:AE146),('PTRM input'!$O$263*(1+rvanilla09)^0.5)/A1stdlife)) -> 0 | AG146: =IF(A1stdlife="n/a","n/a",IF(AG$3>(A1stdlife+$E146),('PTRM input'!$O$263*(1+rvanilla09)^0.5)-SUM($O146:AF146),('PTRM input'!$O$263*(1+rvanilla09)^0.5)/A1stdlife)) -> 0 | AH146: =IF(A1stdlife="n/a","n/a",IF(AH$3>(A1stdlife+$E146),('PTRM input'!$O$263*(1+rvanilla09)^0.5)-SUM($O146:AG146),('PTRM input'!$O$263*(1+rvanilla09)^0.5)/A1stdlife)) -> 0 | AI146: =IF(A1stdlife="n/a","n/a",IF(AI$3>(A1stdlife+$E146),('PTRM input'!$O$263*(1+rvanilla09)^0.5)-SUM($O146:AH146),('PTRM input'!$O$263*(1+rvanilla09)^0.5)/A1stdlife)) -> 0 | AJ146: =IF(A1stdlife="n/a","n/a",IF(AJ$3>(A1stdlife+$E146),('PTRM input'!$O$263*(1+rvanilla09)^0.5)-SUM($O146:AI146),('PTRM input'!$O$263*(1+rvanilla09)^0.5)/A1stdlife)) -> 0 | AK146: =IF(A1stdlife="n/a","n/a",IF(AK$3>(A1stdlife+$E146),('PTRM input'!$O$263*(1+rvanilla09)^0.5)-SUM($O146:AJ146),('PTRM input'!$O$263*(1+rvanilla09)^0.5)/A1stdlife)) -> 0 | AL146: =IF(A1stdlife="n/a","n/a",IF(AL$3>(A1stdlife+$E146),('PTRM input'!$O$263*(1+rvanilla09)^0.5)-SUM($O146:AK146),('PTRM input'!$O$263*(1+rvanilla09)^0.5)/A1stdlife)) -> 0 | AM146: =IF(A1stdlife="n/a","n/a",IF(AM$3>(A1stdlife+$E146),('PTRM input'!$O$263*(1+rvanilla09)^0.5)-SUM($O146:AL146),('PTRM input'!$O$263*(1+rvanilla09)^0.5)/A1stdlife)) -> 0 | AN146: =IF(A1stdlife="n/a","n/a",IF(AN$3>(A1stdlife+$E146),('PTRM input'!$O$263*(1+rvanilla09)^0.5)-SUM($O146:AM146),('PTRM input'!$O$263*(1+rvanilla09)^0.5)/A1stdlife)) -> 0 | AO146: =IF(A1stdlife="n/a","n/a",IF(AO$3>(A1stdlife+$E146),('PTRM input'!$O$263*(1+rvanilla09)^0.5)-SUM($O146:AN146),('PTRM input'!$O$263*(1+rvanilla09)^0.5)/A1stdlife)) -> 0 | AP146: =IF(A1stdlife="n/a","n/a",IF(AP$3>(A1stdlife+$E146),('PTRM input'!$O$263*(1+rvanilla09)^0.5)-SUM($O146:AO146),('PTRM input'!$O$263*(1+rvanilla09)^0.5)/A1stdlife)) -> 0 | AQ146: =IF(A1stdlife="n/a","n/a",IF(AQ$3>(A1stdlife+$E146),('PTRM input'!$O$263*(1+rvanilla09)^0.5)-SUM($O146:AP146),('PTRM input'!$O$263*(1+rvanilla09)^0.5)/A1stdlife)) -> 0 | AR146: =IF(A1stdlife="n/a","n/a",IF(AR$3>(A1stdlife+$E146),('PTRM input'!$O$263*(1+rvanilla09)^0.5)-SUM($O146:AQ146),('PTRM input'!$O$263*(1+rvanilla09)^0.5)/A1stdlife)) -> 0 | AS146: =IF(A1stdlife="n/a","n/a",IF(AS$3>(A1stdlife+$E146),('PTRM input'!$O$263*(1+rvanilla09)^0.5)-SUM($O146:AR146),('PTRM input'!$O$263*(1+rvanilla09)^0.5)/A1stdlife)) -> 0 | AT146: =IF(A1stdlife="n/a","n/a",IF(AT$3>(A1stdlife+$E146),('PTRM input'!$O$263*(1+rvanilla09)^0.5)-SUM($O146:AS146),('PTRM input'!$O$263*(1+rvanilla09)^0.5)/A1stdlife)) -> 0 | AU146: =IF(A1stdlife="n/a","n/a",IF(AU$3>(A1stdlife+$E146),('PTRM input'!$O$263*(1+rvanilla09)^0.5)-SUM($O146:AT146),('PTRM input'!$O$263*(1+rvanilla09)^0.5)/A1stdlife)) -> 0 | AV146: =IF(A1stdlife="n/a","n/a",IF(AV$3>(A1stdlife+$E146),('PTRM input'!$O$263*(1+rvanilla09)^0.5)-SUM($O146:AU146),('PTRM input'!$O$263*(1+rvanilla09)^0.5)/A1stdlife)) -> 0 | AW146: =IF(A1stdlife="n/a","n/a",IF(AW$3>(A1stdlife+$E146),('PTRM input'!$O$263*(1+rvanilla09)^0.5)-SUM($O146:AV146),('PTRM input'!$O$263*(1+rvanilla09)^0.5)/A1stdlife)) -> 0 | AX146: =IF(A1stdlife="n/a","n/a",IF(AX$3>(A1stdlife+$E146),('PTRM input'!$O$263*(1+rvanilla09)^0.5)-SUM($O146:AW146),('PTRM input'!$O$263*(1+rvanilla09)^0.5)/A1stdlife)) -> 0 | AY146: =IF(A1stdlife="n/a","n/a",IF(AY$3>(A1stdlife+$E146),('PTRM input'!$O$263*(1+rvanilla09)^0.5)-SUM($O146:AX146),('PTRM input'!$O$263*(1+rvanilla09)^0.5)/A1stdlife)) -> 0 | AZ146: =IF(A1stdlife="n/a","n/a",IF(AZ$3>(A1stdlife+$E146),('PTRM input'!$O$263*(1+rvanilla09)^0.5)-SUM($O146:AY146),('PTRM input'!$O$263*(1+rvanilla09)^0.5)/A1stdlife)) -> 0 | BA146: =IF(A1stdlife="n/a","n/a",IF(BA$3>(A1stdlife+$E146),('PTRM input'!$O$263*(1+rvanilla09)^0.5)-SUM($O146:AZ146),('PTRM input'!$O$263*(1+rvanilla09)^0.5)/A1stdlife)) -> 0 | BB146: =IF(A1stdlife="n/a","n/a",IF(BB$3>(A1stdlife+$E146),('PTRM input'!$O$263*(1+rvanilla09)^0.5)-SUM($O146:BA146),('PTRM input'!$O$263*(1+rvanilla09)^0.5)/A1stdlife)) -> 0 | BC146: =IF(A1stdlife="n/a","n/a",IF(BC$3>(A1stdlife+$E146),('PTRM input'!$O$263*(1+rvanilla09)^0.5)-SUM($O146:BB146),('PTRM input'!$O$263*(1+rvanilla09)^0.5)/A1stdlife)) -> 0 | BD146: =IF(A1stdlife="n/a","n/a",IF(BD$3>(A1stdlife+$E146),('PTRM input'!$O$263*(1+rvanilla09)^0.5)-SUM($O146:BC146),('PTRM input'!$O$263*(1+rvanilla09)^0.5)/A1stdlife)) -> 0 | BE146: =IF(A1stdlife="n/a","n/a",IF(BE$3>(A1stdlife+$E146),('PTRM input'!$O$263*(1+rvanilla09)^0.5)-SUM($O146:BD146),('PTRM input'!$O$263*(1+rvanilla09)^0.5)/A1stdlife)) -> 0 | BF146: =IF(A1stdlife="n/a","n/a",IF(BF$3>(A1stdlife+$E146),('PTRM input'!$O$263*(1+rvanilla09)^0.5)-SUM($O146:BE146),('PTRM input'!$O$263*(1+rvanilla09)^0.5)/A1stdlife)) -> 0 | BG146: =IF(A1stdlife="n/a","n/a",IF(BG$3>(A1stdlife+$E146),('PTRM input'!$O$263*(1+rvanilla09)^0.5)-SUM($O146:BF146),('PTRM input'!$O$263*(1+rvanilla09)^0.5)/A1stdlife)) -> 0 | BH146: =IF(A1stdlife="n/a","n/a",IF(BH$3>(A1stdlife+$E146),('PTRM input'!$O$263*(1+rvanilla09)^0.5)-SUM($O146:BG146),('PTRM input'!$O$263*(1+rvanilla09)^0.5)/A1stdlife)) -> 0 | BI146: =IF(A1stdlife="n/a","n/a",IF(BI$3>(A1stdlife+$E146),('PTRM input'!$O$263*(1+rvanilla09)^0.5)-SUM($O146:BH146),('PTRM input'!$O$263*(1+rvanilla09)^0.5)/A1stdlife)) -> 0
E147: 10 | Q147: =IF(A1stdlife="n/a","n/a",IF(Q$3>(A1stdlife+$E147),('PTRM input'!$P$263*(1+rvanilla10)^0.5)-SUM($P147:P147),('PTRM input'!$P$263*(1+rvanilla10)^0.5)/A1stdlife)) -> 0 | R147: =IF(A1stdlife="n/a","n/a",IF(R$3>(A1stdlife+$E147),('PTRM input'!$P$263*(1+rvanilla10)^0.5)-SUM($P147:Q147),('PTRM input'!$P$263*(1+rvanilla10)^0.5)/A1stdlife)) -> 0 | S147: =IF(A1stdlife="n/a","n/a",IF(S$3>(A1stdlife+$E147),('PTRM input'!$P$263*(1+rvanilla10)^0.5)-SUM($P147:R147),('PTRM input'!$P$263*(1+rvanilla10)^0.5)/A1stdlife)) -> 0 | T147: =IF(A1stdlife="n/a","n/a",IF(T$3>(A1stdlife+$E147),('PTRM input'!$P$263*(1+rvanilla10)^0.5)-SUM($P147:S147),('PTRM input'!$P$263*(1+rvanilla10)^0.5)/A1stdlife)) -> 0 | U147: =IF(A1stdlife="n/a","n/a",IF(U$3>(A1stdlife+$E147),('PTRM input'!$P$263*(1+rvanilla10)^0.5)-SUM($P147:T147),('PTRM input'!$P$263*(1+rvanilla10)^0.5)/A1stdlife)) -> 0 | V147: =IF(A1stdlife="n/a","n/a",IF(V$3>(A1stdlife+$E147),('PTRM input'!$P$263*(1+rvanilla10)^0.5)-SUM($P147:U147),('PTRM input'!$P$263*(1+rvanilla10)^0.5)/A1stdlife)) -> 0 | W147: =IF(A1stdlife="n/a","n/a",IF(W$3>(A1stdlife+$E147),('PTRM input'!$P$263*(1+rvanilla10)^0.5)-SUM($P147:V147),('PTRM input'!$P$263*(1+rvanilla10)^0.5)/A1stdlife)) -> 0 | X147: =IF(A1stdlife="n/a","n/a",IF(X$3>(A1stdlife+$E147),('PTRM input'!$P$263*(1+rvanilla10)^0.5)-SUM($P147:W147),('PTRM input'!$P$263*(1+rvanilla10)^0.5)/A1stdlife)) -> 0 | Y147: =IF(A1stdlife="n/a","n/a",IF(Y$3>(A1stdlife+$E147),('PTRM input'!$P$263*(1+rvanilla10)^0.5)-SUM($P147:X147),('PTRM input'!$P$263*(1+rvanilla10)^0.5)/A1stdlife)) -> 0 | Z147: =IF(A1stdlife="n/a","n/a",IF(Z$3>(A1stdlife+$E147),('PTRM input'!$P$263*(1+rvanilla10)^0.5)-SUM($P147:Y147),('PTRM input'!$P$263*(1+rvanilla10)^0.5)/A1stdlife)) -> 0 | AA147: =IF(A1stdlife="n/a","n/a",IF(AA$3>(A1stdlife+$E147),('PTRM input'!$P$263*(1+rvanilla10)^0.5)-SUM($P147:Z147),('PTRM input'!$P$263*(1+rvanilla10)^0.5)/A1stdlife)) -> 0 | AB147: =IF(A1stdlife="n/a","n/a",IF(AB$3>(A1stdlife+$E147),('PTRM input'!$P$263*(1+rvanilla10)^0.5)-SUM($P147:AA147),('PTRM input'!$P$263*(1+rvanilla10)^0.5)/A1stdlife)) -> 0 | AC147: =IF(A1stdlife="n/a","n/a",IF(AC$3>(A1stdlife+$E147),('PTRM input'!$P$263*(1+rvanilla10)^0.5)-SUM($P147:AB147),('PTRM input'!$P$263*(1+rvanilla10)^0.5)/A1stdlife)) -> 0 | AD147: =IF(A1stdlife="n/a","n/a",IF(AD$3>(A1stdlife+$E147),('PTRM input'!$P$263*(1+rvanilla10)^0.5)-SUM($P147:AC147),('PTRM input'!$P$263*(1+rvanilla10)^0.5)/A1stdlife)) -> 0 | AE147: =IF(A1stdlife="n/a","n/a",IF(AE$3>(A1stdlife+$E147),('PTRM input'!$P$263*(1+rvanilla10)^0.5)-SUM($P147:AD147),('PTRM input'!$P$263*(1+rvanilla10)^0.5)/A1stdlife)) -> 0 | AF147: =IF(A1stdlife="n/a","n/a",IF(AF$3>(A1stdlife+$E147),('PTRM input'!$P$263*(1+rvanilla10)^0.5)-SUM($P147:AE147),('PTRM input'!$P$263*(1+rvanilla10)^0.5)/A1stdlife)) -> 0 | AG147: =IF(A1stdlife="n/a","n/a",IF(AG$3>(A1stdlife+$E147),('PTRM input'!$P$263*(1+rvanilla10)^0.5)-SUM($P147:AF147),('PTRM input'!$P$263*(1+rvanilla10)^0.5)/A1stdlife)) -> 0 | AH147: =IF(A1stdlife="n/a","n/a",IF(AH$3>(A1stdlife+$E147),('PTRM input'!$P$263*(1+rvanilla10)^0.5)-SUM($P147:AG147),('PTRM input'!$P$263*(1+rvanilla10)^0.5)/A1stdlife)) -> 0 | AI147: =IF(A1stdlife="n/a","n/a",IF(AI$3>(A1stdlife+$E147),('PTRM input'!$P$263*(1+rvanilla10)^0.5)-SUM($P147:AH147),('PTRM input'!$P$263*(1+rvanilla10)^0.5)/A1stdlife)) -> 0 | AJ147: =IF(A1stdlife="n/a","n/a",IF(AJ$3>(A1stdlife+$E147),('PTRM input'!$P$263*(1+rvanilla10)^0.5)-SUM($P147:AI147),('PTRM input'!$P$263*(1+rvanilla10)^0.5)/A1stdlife)) -> 0 | AK147: =IF(A1stdlife="n/a","n/a",IF(AK$3>(A1stdlife+$E147),('PTRM input'!$P$263*(1+rvanilla10)^0.5)-SUM($P147:AJ147),('PTRM input'!$P$263*(1+rvanilla10)^0.5)/A1stdlife)) -> 0 | AL147: =IF(A1stdlife="n/a","n/a",IF(AL$3>(A1stdlife+$E147),('PTRM input'!$P$263*(1+rvanilla10)^0.5)-SUM($P147:AK147),('PTRM input'!$P$263*(1+rvanilla10)^0.5)/A1stdlife)) -> 0 | AM147: =IF(A1stdlife="n/a","n/a",IF(AM$3>(A1stdlife+$E147),('PTRM input'!$P$263*(1+rvanilla10)^0.5)-SUM($P147:AL147),('PTRM input'!$P$263*(1+rvanilla10)^0.5)/A1stdlife)) -> 0 | AN147: =IF(A1stdlife="n/a","n/a",IF(AN$3>(A1stdlife+$E147),('PTRM input'!$P$263*(1+rvanilla10)^0.5)-SUM($P147:AM147),('PTRM input'!$P$263*(1+rvanilla10)^0.5)/A1stdlife)) -> 0 | AO147: =IF(A1stdlife="n/a","n/a",IF(AO$3>(A1stdlife+$E147),('PTRM input'!$P$263*(1+rvanilla10)^0.5)-SUM($P147:AN147),('PTRM input'!$P$263*(1+rvanilla10)^0.5)/A1stdlife)) -> 0 | AP147: =IF(A1stdlife="n/a","n/a",IF(AP$3>(A1stdlife+$E147),('PTRM input'!$P$263*(1+rvanilla10)^0.5)-SUM($P147:AO147),('PTRM input'!$P$263*(1+rvanilla10)^0.5)/A1stdlife)) -> 0 | AQ147: =IF(A1stdlife="n/a","n/a",IF(AQ$3>(A1stdlife+$E147),('PTRM input'!$P$263*(1+rvanilla10)^0.5)-SUM($P147:AP147),('PTRM input'!$P$263*(1+rvanilla10)^0.5)/A1stdlife)) -> 0 | AR147: =IF(A1stdlife="n/a","n/a",IF(AR$3>(A1stdlife+$E147),('PTRM input'!$P$263*(1+rvanilla10)^0.5)-SUM($P147:AQ147),('PTRM input'!$P$263*(1+rvanilla10)^0.5)/A1stdlife)) -> 0 | AS147: =IF(A1stdlife="n/a","n/a",IF(AS$3>(A1stdlife+$E147),('PTRM input'!$P$263*(1+rvanilla10)^0.5)-SUM($P147:AR147),('PTRM input'!$P$263*(1+rvanilla10)^0.5)/A1stdlife)) -> 0 | AT147: =IF(A1stdlife="n/a","n/a",IF(AT$3>(A1stdlife+$E147),('PTRM input'!$P$263*(1+rvanilla10)^0.5)-SUM($P147:AS147),('PTRM input'!$P$263*(1+rvanilla10)^0.5)/A1stdlife)) -> 0 | AU147: =IF(A1stdlife="n/a","n/a",IF(AU$3>(A1stdlife+$E147),('PTRM input'!$P$263*(1+rvanilla10)^0.5)-SUM($P147:AT147),('PTRM input'!$P$263*(1+rvanilla10)^0.5)/A1stdlife)) -> 0 | AV147: =IF(A1stdlife="n/a","n/a",IF(AV$3>(A1stdlife+$E147),('PTRM input'!$P$263*(1+rvanilla10)^0.5)-SUM($P147:AU147),('PTRM input'!$P$263*(1+rvanilla10)^0.5)/A1stdlife)) -> 0 | AW147: =IF(A1stdlife="n/a","n/a",IF(AW$3>(A1stdlife+$E147),('PTRM input'!$P$263*(1+rvanilla10)^0.5)-SUM($P147:AV147),('PTRM input'!$P$263*(1+rvanilla10)^0.5)/A1stdlife)) -> 0 | AX147: =IF(A1stdlife="n/a","n/a",IF(AX$3>(A1stdlife+$E147),('PTRM input'!$P$263*(1+rvanilla10)^0.5)-SUM($P147:AW147),('PTRM input'!$P$263*(1+rvanilla10)^0.5)/A1stdlife)) -> 0 | AY147: =IF(A1stdlife="n/a","n/a",IF(AY$3>(A1stdlife+$E147),('PTRM input'!$P$263*(1+rvanilla10)^0.5)-SUM($P147:AX147),('PTRM input'!$P$263*(1+rvanilla10)^0.5)/A1stdlife)) -> 0 | AZ147: =IF(A1stdlife="n/a","n/a",IF(AZ$3>(A1stdlife+$E147),('PTRM input'!$P$263*(1+rvanilla10)^0.5)-SUM($P147:AY147),('PTRM input'!$P$263*(1+rvanilla10)^0.5)/A1stdlife)) -> 0 | BA147: =IF(A1stdlife="n/a","n/a",IF(BA$3>(A1stdlife+$E147),('PTRM input'!$P$263*(1+rvanilla10)^0.5)-SUM($P147:AZ147),('PTRM input'!$P$263*(1+rvanilla10)^0.5)/A1stdlife)) -> 0 | BB147: =IF(A1stdlife="n/a","n/a",IF(BB$3>(A1stdlife+$E147),('PTRM input'!$P$263*(1+rvanilla10)^0.5)-SUM($P147:BA147),('PTRM input'!$P$263*(1+rvanilla10)^0.5)/A1stdlife)) -> 0 | BC147: =IF(A1stdlife="n/a","n/a",IF(BC$3>(A1stdlife+$E147),('PTRM input'!$P$263*(1+rvanilla10)^0.5)-SUM($P147:BB147),('PTRM input'!$P$263*(1+rvanilla10)^0.5)/A1stdlife)) -> 0 | BD147: =IF(A1stdlife="n/a","n/a",IF(BD$3>(A1stdlife+$E147),('PTRM input'!$P$263*(1+rvanilla10)^0.5)-SUM($P147:BC147),('PTRM input'!$P$263*(1+rvanilla10)^0.5)/A1stdlife)) -> 0 | BE147: =IF(A1stdlife="n/a","n/a",IF(BE$3>(A1stdlife+$E147),('PTRM input'!$P$263*(1+rvanilla10)^0.5)-SUM($P147:BD147),('PTRM input'!$P$263*(1+rvanilla10)^0.5)/A1stdlife)) -> 0 | BF147: =IF(A1stdlife="n/a","n/a",IF(BF$3>(A1stdlife+$E147),('PTRM input'!$P$263*(1+rvanilla10)^0.5)-SUM($P147:BE147),('PTRM input'!$P$263*(1+rvanilla10)^0.5)/A1stdlife)) -> 0 | BG147: =IF(A1stdlife="n/a","n/a",IF(BG$3>(A1stdlife+$E147),('PTRM input'!$P$263*(1+rvanilla10)^0.5)-SUM($P147:BF147),('PTRM input'!$P$263*(1+rvanilla10)^0.5)/A1stdlife)) -> 0 | BH147: =IF(A1stdlife="n/a","n/a",IF(BH$3>(A1stdlife+$E147),('PTRM input'!$P$263*(1+rvanilla10)^0.5)-SUM($P147:BG147),('PTRM input'!$P$263*(1+rvanilla10)^0.5)/A1stdlife)) -> 0 | BI147: =IF(A1stdlife="n/a","n/a",IF(BI$3>(A1stdlife+$E147),('PTRM input'!$P$263*(1+rvanilla10)^0.5)-SUM($P147:BH147),('PTRM input'!$P$263*(1+rvanilla10)^0.5)/A1stdlife)) -> 0
C148: =Asset1 -> Overhead Sub-Transmission Lines (pre July 2010) | G148: =SUM(G136:G147) -> 33.33228596 | H148: =SUM(H136:H147) -> 33.33228596 | I148: =SUM(I136:I147) -> 33.33228596 | J148: 33.33228596 | K148: 33.33228596 | L148: 33.33228596 | M148: 33.33228596 | N148: 33.33228596 | O148: 33.33228596 | P148: 33.33228596 | Q148: 33.33228596 | R148: 33.33228596 | S148: 33.33228596 | T148: 33.33228596 | U148: 33.33228596 | V148: 33.33228596 | W148: 33.33228596 | X148: 33.33228596 | Y148: 33.33228596 | Z148: 33.33228596 | AA148: 33.33228596 | AB148: 33.33228596 | AC148: 33.33228596 | AD148: 33.33228596 | AE148: 33.33228596 | AF148: 33.33228596 | AG148: 33.33228596 | AH148: 33.33228596 | AI148: 33.33228596 | AJ148: 33.33228596 | AK148: 4.668976925 | AL148: 0 | AM148: 0 | AN148: 0 | AO148: 0 | AP148: 0 | AQ148: 0 | AR148: 0 | AS148: 0 | AT148: 0 | AU148: 0 | AV148: 0 | AW148: 0 | AX148: 0 | AY148: 0 | AZ148: 0 | BA148: 0 | BB148: 0 | BC148: 0 | BD148: 0 | BE148: 0 | BF148: 0 | BG148: 0 | BH148: 0 | BI148: 0
B149: =C161 -> Underground Sub-Transmission Cables (pre July 2010) | D149: Initial Asset Base | G149: =IF(G$3>A2remlife,A2value-SUM($F149:F149),IF(A2remlife="N/A","n/a",A2value/A2remlife)) -> 1.247149817 | H149: =IF(H$3>A2remlife,A2value-SUM($F149:G149),IF(A2remlife="N/A","n/a",A2value/A2remlife)) -> 1.247149817 | I149: =IF(I$3>A2remlife,A2value-SUM($F149:H149),IF(A2remlife="N/A","n/a",A2value/A2remlife)) -> 1.247149817 | J149: =IF(J$3>A2remlife,A2value-SUM($F149:I149),IF(A2remlife="N/A","n/a",A2value/A2remlife)) -> 1.247149817 | K149: =IF(K$3>A2remlife,A2value-SUM($F149:J149),IF(A2remlife="N/A","n/a",A2value/A2remlife)) -> 1.247149817 | L149: =IF(L$3>A2remlife,A2value-SUM($F149:K149),IF(A2remlife="N/A","n/a",A2value/A2remlife)) -> 1.247149817 | M149: =IF(M$3>A2remlife,A2value-SUM($F149:L149),IF(A2remlife="N/A","n/a",A2value/A2remlife)) -> 1.247149817 | N149: =IF(N$3>A2remlife,A2value-SUM($F149:M149),IF(A2remlife="N/A","n/a",A2value/A2remlife)) -> 1.247149817 | O149: =IF(O$3>A2remlife,A2value-SUM($F149:N149),IF(A2remlife="N/A","n/a",A2value/A2remlife)) -> 1.247149817 | P149: =IF(P$3>A2remlife,A2value-SUM($F149:O149),IF(A2remlife="N/A","n/a",A2value/A2remlife)) -> 1.247149817 | Q149: =IF(Q$3>A2remlife,A2value-SUM($F149:P149),IF(A2remlife="N/A","n/a",A2value/A2remlife)) -> 1.247149817 | R149: =IF(R$3>A2remlife,A2value-SUM($F149:Q149),IF(A2remlife="N/A","n/a",A2value/A2remlife)) -> 1.247149817 | S149: =IF(S$3>A2remlife,A2value-SUM($F149:R149),IF(A2remlife="N/A","n/a",A2value/A2remlife)) -> 1.247149817 | T149: =IF(T$3>A2remlife,A2value-SUM($F149:S149),IF(A2remlife="N/A","n/a",A2value/A2remlife)) -> 1.247149817 | U149: =IF(U$3>A2remlife,A2value-SUM($F149:T149),IF(A2remlife="N/A","n/a",A2value/A2remlife)) -> 1.247149817 | V149: =IF(V$3>A2remlife,A2value-SUM($F149:U149),IF(A2remlife="N/A","n/a",A2value/A2remlife)) -> 1.247149817 | W149: =IF(W$3>A2remlife,A2value-SUM($F149:V149),IF(A2remlife="N/A","n/a",A2value/A2remlife)) -> 1.247149817 | X149: =IF(X$3>A2remlife,A2value-SUM($F149:W149),IF(A2remlife="N/A","n/a",A2value/A2remlife)) -> 1.247149817 | Y149: =IF(Y$3>A2remlife,A2value-SUM($F149:X149),IF(A2remlife="N/A","n/a",A2value/A2remlife)) -> 0.2691287419 | Z149: =IF(Z$3>A2remlife,A2value-SUM($F149:Y149),IF(A2remlife="N/A","n/a",A2value/A2remlife)) -> 0 | AA149: =IF(AA$3>A2remlife,A2value-SUM($F149:Z149),IF(A2remlife="N/A","n/a",A2value/A2remlife)) -> 0 | AB149: =IF(AB$3>A2remlife,A2value-SUM($F149:AA149),IF(A2remlife="N/A","n/a",A2value/A2remlife)) -> 0 | AC149: =IF(AC$3>A2remlife,A2value-SUM($F149:AB149),IF(A2remlife="N/A","n/a",A2value/A2remlife)) -> 0 | AD149: =IF(AD$3>A2remlife,A2value-SUM($F149:AC149),IF(A2remlife="N/A","n/a",A2value/A2remlife)) -> 0 | AE149: =IF(AE$3>A2remlife,A2value-SUM($F149:AD149),IF(A2remlife="N/A","n/a",A2value/A2remlife)) -> 0 | AF149: =IF(AF$3>A2remlife,A2value-SUM($F149:AE149),IF(A2remlife="N/A","n/a",A2value/A2remlife)) -> 0 | AG149: =IF(AG$3>A2remlife,A2value-SUM($F149:AF149),IF(A2remlife="N/A","n/a",A2value/A2remlife)) -> 0 | AH149: =IF(AH$3>A2remlife,A2value-SUM($F149:AG149),IF(A2remlife="N/A","n/a",A2value/A2remlife)) -> 0 | AI149: =IF(AI$3>A2remlife,A2value-SUM($F149:AH149),IF(A2remlife="N/A","n/a",A2value/A2remlife)) -> 0 | AJ149: =IF(AJ$3>A2remlife,A2value-SUM($F149:AI149),IF(A2remlife="N/A","n/a",A2value/A2remlife)) -> 0 | AK149: =IF(AK$3>A2remlife,A2value-SUM($F149:AJ149),IF(A2remlife="N/A","n/a",A2value/A2remlife)) -> 0 | AL149: =IF(AL$3>A2remlife,A2value-SUM($F149:AK149),IF(A2remlife="N/A","n/a",A2value/A2remlife)) -> 0 | AM149: =IF(AM$3>A2remlife,A2value-SUM($F149:AL149),IF(A2remlife="N/A","n/a",A2value/A2remlife)) -> 0 | AN149: =IF(AN$3>A2remlife,A2value-SUM($F149:AM149),IF(A2remlife="N/A","n/a",A2value/A2remlife)) -> 0 | AO149: =IF(AO$3>A2remlife,A2value-SUM($F149:AN149),IF(A2remlife="N/A","n/a",A2value/A2remlife)) -> 0 | AP149: =IF(AP$3>A2remlife,A2value-SUM($F149:AO149),IF(A2remlife="N/A","n/a",A2value/A2remlife)) -> 0 | AQ149: =IF(AQ$3>A2remlife,A2value-SUM($F149:AP149),IF(A2remlife="N/A","n/a",A2value/A2remlife)) -> 0 | AR149: =IF(AR$3>A2remlife,A2value-SUM($F149:AQ149),IF(A2remlife="N/A","n/a",A2value/A2remlife)) -> 0 | AS149: =IF(AS$3>A2remlife,A2value-SUM($F149:AR149),IF(A2remlife="N/A","n/a",A2value/A2remlife)) -> 0 | AT149: =IF(AT$3>A2remlife,A2value-SUM($F149:AS149),IF(A2remlife="N/A","n/a",A2value/A2remlife)) -> 0 | AU149: =IF(AU$3>A2remlife,A2value-SUM($F149:AT149),IF(A2remlife="N/A","n/a",A2value/A2remlife)) -> 0 | AV149: =IF(AV$3>A2remlife,A2value-SUM($F149:AU149),IF(A2remlife="N/A","n/a",A2value/A2remlife)) -> 0 | AW149: =IF(AW$3>A2remlife,A2value-SUM($F149:AV149),IF(A2remlife="N/A","n/a",A2value/A2remlife)) -> 0 | AX149: =IF(AX$3>A2remlife,A2value-SUM($F149:AW149),IF(A2remlife="N/A","n/a",A2value/A2remlife)) -> 0 | AY149: =IF(AY$3>A2remlife,A2value-SUM($F149:AX149),IF(A2remlife="N/A","n/a",A2value/A2remlife)) -> 0 | AZ149: =IF(AZ$3>A2remlife,A2value-SUM($F149:AY149),IF(A2remlife="N/A","n/a",A2value/A2remlife)) -> 0 | BA149: =IF(BA$3>A2remlife,A2value-SUM($F149:AZ149),IF(A2remlife="N/A","n/a",A2value/A2remlife)) -> 0 | BB149: =IF(BB$3>A2remlife,A2value-SUM($F149:BA149),IF(A2remlife="N/A","n/a",A2value/A2remlife)) -> 0 | BC149: =IF(BC$3>A2remlife,A2value-SUM($F149:BB149),IF(A2remlife="N/A","n/a",A2value/A2remlife)) -> 0 | BD149: =IF(BD$3>A2remlife,A2value-SUM($F149:BC149),IF(A2remlife="N/A","n/a",A2value/A2remlife)) -> 0 | BE149: =IF(BE$3>A2remlife,A2value-SUM($F149:BD149),IF(A2remlife="N/A","n/a",A2value/A2remlife)) -> 0 | BF149: =IF(BF$3>A2remlife,A2value-SUM($F149:BE149),IF(A2remlife="N/A","n/a",A2value/A2remlife)) -> 0 | BG149: =IF(BG$3>A2remlife,A2value-SUM($F149:BF149),IF(A2remlife="N/A","n/a",A2value/A2remlife)) -> 0 | BH149: =IF(BH$3>A2remlife,A2value-SUM($F149:BG149),IF(A2remlife="N/A","n/a",A2value/A2remlife)) -> 0 | BI149: =IF(BI$3>A2remlife,A2value-SUM($F149:BH149),IF(A2remlife="N/A","n/a",A2value/A2remlife)) -> 0
D150: Capex in year | E150: 0
E151: 1 | H151: =IF(A2stdlife="n/a","n/a",IF(H$3>(A2stdlife+$E151),('PTRM input'!$G$264*(1+rvanilla01)^0.5)-SUM($G151:G151),('PTRM input'!$G$264*(1+rvanilla01)^0.5)/A2stdlife)) -> 0 | I151: =IF(A2stdlife="n/a","n/a",IF(I$3>(A2stdlife+$E151),('PTRM input'!$G$264*(1+rvanilla01)^0.5)-SUM($G151:H151),('PTRM input'!$G$264*(1+rvanilla01)^0.5)/A2stdlife)) -> 0 | J151: =IF(A2stdlife="n/a","n/a",IF(J$3>(A2stdlife+$E151),('PTRM input'!$G$264*(1+rvanilla01)^0.5)-SUM($G151:I151),('PTRM input'!$G$264*(1+rvanilla01)^0.5)/A2stdlife)) -> 0 | K151: =IF(A2stdlife="n/a","n/a",IF(K$3>(A2stdlife+$E151),('PTRM input'!$G$264*(1+rvanilla01)^0.5)-SUM($G151:J151),('PTRM input'!$G$264*(1+rvanilla01)^0.5)/A2stdlife)) -> 0 | L151: =IF(A2stdlife="n/a","n/a",IF(L$3>(A2stdlife+$E151),('PTRM input'!$G$264*(1+rvanilla01)^0.5)-SUM($G151:K151),('PTRM input'!$G$264*(1+rvanilla01)^0.5)/A2stdlife)) -> 0 | M151: =IF(A2stdlife="n/a","n/a",IF(M$3>(A2stdlife+$E151),('PTRM input'!$G$264*(1+rvanilla01)^0.5)-SUM($G151:L151),('PTRM input'!$G$264*(1+rvanilla01)^0.5)/A2stdlife)) -> 0 | N151: =IF(A2stdlife="n/a","n/a",IF(N$3>(A2stdlife+$E151),('PTRM input'!$G$264*(1+rvanilla01)^0.5)-SUM($G151:M151),('PTRM input'!$G$264*(1+rvanilla01)^0.5)/A2stdlife)) -> 0 | O151: =IF(A2stdlife="n/a","n/a",IF(O$3>(A2stdlife+$E151),('PTRM input'!$G$264*(1+rvanilla01)^0.5)-SUM($G151:N151),('PTRM input'!$G$264*(1+rvanilla01)^0.5)/A2stdlife)) -> 0 | P151: =IF(A2stdlife="n/a","n/a",IF(P$3>(A2stdlife+$E151),('PTRM input'!$G$264*(1+rvanilla01)^0.5)-SUM($G151:O151),('PTRM input'!$G$264*(1+rvanilla01)^0.5)/A2stdlife)) -> 0 | Q151: =IF(A2stdlife="n/a","n/a",IF(Q$3>(A2stdlife+$E151),('PTRM input'!$G$264*(1+rvanilla01)^0.5)-SUM($G151:P151),('PTRM input'!$G$264*(1+rvanilla01)^0.5)/A2stdlife)) -> 0 | R151: =IF(A2stdlife="n/a","n/a",IF(R$3>(A2stdlife+$E151),('PTRM input'!$G$264*(1+rvanilla01)^0.5)-SUM($G151:Q151),('PTRM input'!$G$264*(1+rvanilla01)^0.5)/A2stdlife)) -> 0 | S151: =IF(A2stdlife="n/a","n/a",IF(S$3>(A2stdlife+$E151),('PTRM input'!$G$264*(1+rvanilla01)^0.5)-SUM($G151:R151),('PTRM input'!$G$264*(1+rvanilla01)^0.5)/A2stdlife)) -> 0 | T151: =IF(A2stdlife="n/a","n/a",IF(T$3>(A2stdlife+$E151),('PTRM input'!$G$264*(1+rvanilla01)^0.5)-SUM($G151:S151),('PTRM input'!$G$264*(1+rvanilla01)^0.5)/A2stdlife)) -> 0 | U151: =IF(A2stdlife="n/a","n/a",IF(U$3>(A2stdlife+$E151),('PTRM input'!$G$264*(1+rvanilla01)^0.5)-SUM($G151:T151),('PTRM input'!$G$264*(1+rvanilla01)^0.5)/A2stdlife)) -> 0 | V151: =IF(A2stdlife="n/a","n/a",IF(V$3>(A2stdlife+$E151),('PTRM input'!$G$264*(1+rvanilla01)^0.5)-SUM($G151:U151),('PTRM input'!$G$264*(1+rvanilla01)^0.5)/A2stdlife)) -> 0 | W151: =IF(A2stdlife="n/a","n/a",IF(W$3>(A2stdlife+$E151),('PTRM input'!$G$264*(1+rvanilla01)^0.5)-SUM($G151:V151),('PTRM input'!$G$264*(1+rvanilla01)^0.5)/A2stdlife)) -> 0 | X151: =IF(A2stdlife="n/a","n/a",IF(X$3>(A2stdlife+$E151),('PTRM input'!$G$264*(1+rvanilla01)^0.5)-SUM($G151:W151),('PTRM input'!$G$264*(1+rvanilla01)^0.5)/A2stdlife)) -> 0 | Y151: =IF(A2stdlife="n/a","n/a",IF(Y$3>(A2stdlife+$E151),('PTRM input'!$G$264*(1+rvanilla01)^0.5)-SUM($G151:X151),('PTRM input'!$G$264*(1+rvanilla01)^0.5)/A2stdlife)) -> 0 | Z151: =IF(A2stdlife="n/a","n/a",IF(Z$3>(A2stdlife+$E151),('PTRM input'!$G$264*(1+rvanilla01)^0.5)-SUM($G151:Y151),('PTRM input'!$G$264*(1+rvanilla01)^0.5)/A2stdlife)) -> 0 | AA151: =IF(A2stdlife="n/a","n/a",IF(AA$3>(A2stdlife+$E151),('PTRM input'!$G$264*(1+rvanilla01)^0.5)-SUM($G151:Z151),('PTRM input'!$G$264*(1+rvanilla01)^0.5)/A2stdlife)) -> 0 | AB151: =IF(A2stdlife="n/a","n/a",IF(AB$3>(A2stdlife+$E151),('PTRM input'!$G$264*(1+rvanilla01)^0.5)-SUM($G151:AA151),('PTRM input'!$G$264*(1+rvanilla01)^0.5)/A2stdlife)) -> 0 | AC151: =IF(A2stdlife="n/a","n/a",IF(AC$3>(A2stdlife+$E151),('PTRM input'!$G$264*(1+rvanilla01)^0.5)-SUM($G151:AB151),('PTRM input'!$G$264*(1+rvanilla01)^0.5)/A2stdlife)) -> 0 | AD151: =IF(A2stdlife="n/a","n/a",IF(AD$3>(A2stdlife+$E151),('PTRM input'!$G$264*(1+rvanilla01)^0.5)-SUM($G151:AC151),('PTRM input'!$G$264*(1+rvanilla01)^0.5)/A2stdlife)) -> 0 | AE151: =IF(A2stdlife="n/a","n/a",IF(AE$3>(A2stdlife+$E151),('PTRM input'!$G$264*(1+rvanilla01)^0.5)-SUM($G151:AD151),('PTRM input'!$G$264*(1+rvanilla01)^0.5)/A2stdlife)) -> 0 | AF151: =IF(A2stdlife="n/a","n/a",IF(AF$3>(A2stdlife+$E151),('PTRM input'!$G$264*(1+rvanilla01)^0.5)-SUM($G151:AE151),('PTRM input'!$G$264*(1+rvanilla01)^0.5)/A2stdlife)) -> 0 | AG151: =IF(A2stdlife="n/a","n/a",IF(AG$3>(A2stdlife+$E151),('PTRM input'!$G$264*(1+rvanilla01)^0.5)-SUM($G151:AF151),('PTRM input'!$G$264*(1+rvanilla01)^0.5)/A2stdlife)) -> 0 | AH151: =IF(A2stdlife="n/a","n/a",IF(AH$3>(A2stdlife+$E151),('PTRM input'!$G$264*(1+rvanilla01)^0.5)-SUM($G151:AG151),('PTRM input'!$G$264*(1+rvanilla01)^0.5)/A2stdlife)) -> 0 | AI151: =IF(A2stdlife="n/a","n/a",IF(AI$3>(A2stdlife+$E151),('PTRM input'!$G$264*(1+rvanilla01)^0.5)-SUM($G151:AH151),('PTRM input'!$G$264*(1+rvanilla01)^0.5)/A2stdlife)) -> 0 | AJ151: =IF(A2stdlife="n/a","n/a",IF(AJ$3>(A2stdlife+$E151),('PTRM input'!$G$264*(1+rvanilla01)^0.5)-SUM($G151:AI151),('PTRM input'!$G$264*(1+rvanilla01)^0.5)/A2stdlife)) -> 0 | AK151: =IF(A2stdlife="n/a","n/a",IF(AK$3>(A2stdlife+$E151),('PTRM input'!$G$264*(1+rvanilla01)^0.5)-SUM($G151:AJ151),('PTRM input'!$G$264*(1+rvanilla01)^0.5)/A2stdlife)) -> 0 | AL151: =IF(A2stdlife="n/a","n/a",IF(AL$3>(A2stdlife+$E151),('PTRM input'!$G$264*(1+rvanilla01)^0.5)-SUM($G151:AK151),('PTRM input'!$G$264*(1+rvanilla01)^0.5)/A2stdlife)) -> 0 | AM151: =IF(A2stdlife="n/a","n/a",IF(AM$3>(A2stdlife+$E151),('PTRM input'!$G$264*(1+rvanilla01)^0.5)-SUM($G151:AL151),('PTRM input'!$G$264*(1+rvanilla01)^0.5)/A2stdlife)) -> 0 | AN151: =IF(A2stdlife="n/a","n/a",IF(AN$3>(A2stdlife+$E151),('PTRM input'!$G$264*(1+rvanilla01)^0.5)-SUM($G151:AM151),('PTRM input'!$G$264*(1+rvanilla01)^0.5)/A2stdlife)) -> 0 | AO151: =IF(A2stdlife="n/a","n/a",IF(AO$3>(A2stdlife+$E151),('PTRM input'!$G$264*(1+rvanilla01)^0.5)-SUM($G151:AN151),('PTRM input'!$G$264*(1+rvanilla01)^0.5)/A2stdlife)) -> 0 | AP151: =IF(A2stdlife="n/a","n/a",IF(AP$3>(A2stdlife+$E151),('PTRM input'!$G$264*(1+rvanilla01)^0.5)-SUM($G151:AO151),('PTRM input'!$G$264*(1+rvanilla01)^0.5)/A2stdlife)) -> 0 | AQ151: =IF(A2stdlife="n/a","n/a",IF(AQ$3>(A2stdlife+$E151),('PTRM input'!$G$264*(1+rvanilla01)^0.5)-SUM($G151:AP151),('PTRM input'!$G$264*(1+rvanilla01)^0.5)/A2stdlife)) -> 0 | AR151: =IF(A2stdlife="n/a","n/a",IF(AR$3>(A2stdlife+$E151),('PTRM input'!$G$264*(1+rvanilla01)^0.5)-SUM($G151:AQ151),('PTRM input'!$G$264*(1+rvanilla01)^0.5)/A2stdlife)) -> 0 | AS151: =IF(A2stdlife="n/a","n/a",IF(AS$3>(A2stdlife+$E151),('PTRM input'!$G$264*(1+rvanilla01)^0.5)-SUM($G151:AR151),('PTRM input'!$G$264*(1+rvanilla01)^0.5)/A2stdlife)) -> 0 | AT151: =IF(A2stdlife="n/a","n/a",IF(AT$3>(A2stdlife+$E151),('PTRM input'!$G$264*(1+rvanilla01)^0.5)-SUM($G151:AS151),('PTRM input'!$G$264*(1+rvanilla01)^0.5)/A2stdlife)) -> 0 | AU151: =IF(A2stdlife="n/a","n/a",IF(AU$3>(A2stdlife+$E151),('PTRM input'!$G$264*(1+rvanilla01)^0.5)-SUM($G151:AT151),('PTRM input'!$G$264*(1+rvanilla01)^0.5)/A2stdlife)) -> 0 | AV151: =IF(A2stdlife="n/a","n/a",IF(AV$3>(A2stdlife+$E151),('PTRM input'!$G$264*(1+rvanilla01)^0.5)-SUM($G151:AU151),('PTRM input'!$G$264*(1+rvanilla01)^0.5)/A2stdlife)) -> 0 | AW151: =IF(A2stdlife="n/a","n/a",IF(AW$3>(A2stdlife+$E151),('PTRM input'!$G$264*(1+rvanilla01)^0.5)-SUM($G151:AV151),('PTRM input'!$G$264*(1+rvanilla01)^0.5)/A2stdlife)) -> 0 | AX151: =IF(A2stdlife="n/a","n/a",IF(AX$3>(A2stdlife+$E151),('PTRM input'!$G$264*(1+rvanilla01)^0.5)-SUM($G151:AW151),('PTRM input'!$G$264*(1+rvanilla01)^0.5)/A2stdlife)) -> 0 | AY151: =IF(A2stdlife="n/a","n/a",IF(AY$3>(A2stdlife+$E151),('PTRM input'!$G$264*(1+rvanilla01)^0.5)-SUM($G151:AX151),('PTRM input'!$G$264*(1+rvanilla01)^0.5)/A2stdlife)) -> 0 | AZ151: =IF(A2stdlife="n/a","n/a",IF(AZ$3>(A2stdlife+$E151),('PTRM input'!$G$264*(1+rvanilla01)^0.5)-SUM($G151:AY151),('PTRM input'!$G$264*(1+rvanilla01)^0.5)/A2stdlife)) -> 0 | BA151: =IF(A2stdlife="n/a","n/a",IF(BA$3>(A2stdlife+$E151),('PTRM input'!$G$264*(1+rvanilla01)^0.5)-SUM($G151:AZ151),('PTRM input'!$G$264*(1+rvanilla01)^0.5)/A2stdlife)) -> 0 | BB151: =IF(A2stdlife="n/a","n/a",IF(BB$3>(A2stdlife+$E151),('PTRM input'!$G$264*(1+rvanilla01)^0.5)-SUM($G151:BA151),('PTRM input'!$G$264*(1+rvanilla01)^0.5)/A2stdlife)) -> 0 | BC151: =IF(A2stdlife="n/a","n/a",IF(BC$3>(A2stdlife+$E151),('PTRM input'!$G$264*(1+rvanilla01)^0.5)-SUM($G151:BB151),('PTRM input'!$G$264*(1+rvanilla01)^0.5)/A2stdlife)) -> 0 | BD151: =IF(A2stdlife="n/a","n/a",IF(BD$3>(A2stdlife+$E151),('PTRM input'!$G$264*(1+rvanilla01)^0.5)-SUM($G151:BC151),('PTRM input'!$G$264*(1+rvanilla01)^0.5)/A2stdlife)) -> 0 | BE151: =IF(A2stdlife="n/a","n/a",IF(BE$3>(A2stdlife+$E151),('PTRM input'!$G$264*(1+rvanilla01)^0.5)-SUM($G151:BD151),('PTRM input'!$G$264*(1+rvanilla01)^0.5)/A2stdlife)) -> 0 | BF151: =IF(A2stdlife="n/a","n/a",IF(BF$3>(A2stdlife+$E151),('PTRM input'!$G$264*(1+rvanilla01)^0.5)-SUM($G151:BE151),('PTRM input'!$G$264*(1+rvanilla01)^0.5)/A2stdlife)) -> 0 | BG151: =IF(A2stdlife="n/a","n/a",IF(BG$3>(A2stdlife+$E151),('PTRM input'!$G$264*(1+rvanilla01)^0.5)-SUM($G151:BF151),('PTRM input'!$G$264*(1+rvanilla01)^0.5)/A2stdlife)) -> 0 | BH151: =IF(A2stdlife="n/a","n/a",IF(BH$3>(A2stdlife+$E151),('PTRM input'!$G$264*(1+rvanilla01)^0.5)-SUM($G151:BG151),('PTRM input'!$G$264*(1+rvanilla01)^0.5)/A2stdlife)) -> 0 | BI151: =IF(A2stdlife="n/a","n/a",IF(BI$3>(A2stdlife+$E151),('PTRM input'!$G$264*(1+rvanilla01)^0.5)-SUM($G151:BH151),('PTRM input'!$G$264*(1+rvanilla01)^0.5)/A2stdlife)) -> 0
E152: 2 | I152: =IF(A2stdlife="n/a","n/a",IF(I$3>(A2stdlife+$E152),('PTRM input'!$H$264*(1+rvanilla02)^0.5)-SUM($H152:H152),('PTRM input'!$H$264*(1+rvanilla02)^0.5)/A2stdlife)) -> 0 | J152: =IF(A2stdlife="n/a","n/a",IF(J$3>(A2stdlife+$E152),('PTRM input'!$H$264*(1+rvanilla02)^0.5)-SUM($H152:I152),('PTRM input'!$H$264*(1+rvanilla02)^0.5)/A2stdlife)) -> 0 | K152: =IF(A2stdlife="n/a","n/a",IF(K$3>(A2stdlife+$E152),('PTRM input'!$H$264*(1+rvanilla02)^0.5)-SUM($H152:J152),('PTRM input'!$H$264*(1+rvanilla02)^0.5)/A2stdlife)) -> 0 | L152: =IF(A2stdlife="n/a","n/a",IF(L$3>(A2stdlife+$E152),('PTRM input'!$H$264*(1+rvanilla02)^0.5)-SUM($H152:K152),('PTRM input'!$H$264*(1+rvanilla02)^0.5)/A2stdlife)) -> 0 | M152: =IF(A2stdlife="n/a","n/a",IF(M$3>(A2stdlife+$E152),('PTRM input'!$H$264*(1+rvanilla02)^0.5)-SUM($H152:L152),('PTRM input'!$H$264*(1+rvanilla02)^0.5)/A2stdlife)) -> 0 | N152: =IF(A2stdlife="n/a","n/a",IF(N$3>(A2stdlife+$E152),('PTRM input'!$H$264*(1+rvanilla02)^0.5)-SUM($H152:M152),('PTRM input'!$H$264*(1+rvanilla02)^0.5)/A2stdlife)) -> 0 | O152: =IF(A2stdlife="n/a","n/a",IF(O$3>(A2stdlife+$E152),('PTRM input'!$H$264*(1+rvanilla02)^0.5)-SUM($H152:N152),('PTRM input'!$H$264*(1+rvanilla02)^0.5)/A2stdlife)) -> 0 | P152: =IF(A2stdlife="n/a","n/a",IF(P$3>(A2stdlife+$E152),('PTRM input'!$H$264*(1+rvanilla02)^0.5)-SUM($H152:O152),('PTRM input'!$H$264*(1+rvanilla02)^0.5)/A2stdlife)) -> 0 | Q152: =IF(A2stdlife="n/a","n/a",IF(Q$3>(A2stdlife+$E152),('PTRM input'!$H$264*(1+rvanilla02)^0.5)-SUM($H152:P152),('PTRM input'!$H$264*(1+rvanilla02)^0.5)/A2stdlife)) -> 0 | R152: =IF(A2stdlife="n/a","n/a",IF(R$3>(A2stdlife+$E152),('PTRM input'!$H$264*(1+rvanilla02)^0.5)-SUM($H152:Q152),('PTRM input'!$H$264*(1+rvanilla02)^0.5)/A2stdlife)) -> 0 | S152: =IF(A2stdlife="n/a","n/a",IF(S$3>(A2stdlife+$E152),('PTRM input'!$H$264*(1+rvanilla02)^0.5)-SUM($H152:R152),('PTRM input'!$H$264*(1+rvanilla02)^0.5)/A2stdlife)) -> 0 | T152: =IF(A2stdlife="n/a","n/a",IF(T$3>(A2stdlife+$E152),('PTRM input'!$H$264*(1+rvanilla02)^0.5)-SUM($H152:S152),('PTRM input'!$H$264*(1+rvanilla02)^0.5)/A2stdlife)) -> 0 | U152: =IF(A2stdlife="n/a","n/a",IF(U$3>(A2stdlife+$E152),('PTRM input'!$H$264*(1+rvanilla02)^0.5)-SUM($H152:T152),('PTRM input'!$H$264*(1+rvanilla02)^0.5)/A2stdlife)) -> 0 | V152: =IF(A2stdlife="n/a","n/a",IF(V$3>(A2stdlife+$E152),('PTRM input'!$H$264*(1+rvanilla02)^0.5)-SUM($H152:U152),('PTRM input'!$H$264*(1+rvanilla02)^0.5)/A2stdlife)) -> 0 | W152: =IF(A2stdlife="n/a","n/a",IF(W$3>(A2stdlife+$E152),('PTRM input'!$H$264*(1+rvanilla02)^0.5)-SUM($H152:V152),('PTRM input'!$H$264*(1+rvanilla02)^0.5)/A2stdlife)) -> 0 | X152: =IF(A2stdlife="n/a","n/a",IF(X$3>(A2stdlife+$E152),('PTRM input'!$H$264*(1+rvanilla02)^0.5)-SUM($H152:W152),('PTRM input'!$H$264*(1+rvanilla02)^0.5)/A2stdlife)) -> 0 | Y152: =IF(A2stdlife="n/a","n/a",IF(Y$3>(A2stdlife+$E152),('PTRM input'!$H$264*(1+rvanilla02)^0.5)-SUM($H152:X152),('PTRM input'!$H$264*(1+rvanilla02)^0.5)/A2stdlife)) -> 0 | Z152: =IF(A2stdlife="n/a","n/a",IF(Z$3>(A2stdlife+$E152),('PTRM input'!$H$264*(1+rvanilla02)^0.5)-SUM($H152:Y152),('PTRM input'!$H$264*(1+rvanilla02)^0.5)/A2stdlife)) -> 0 | AA152: =IF(A2stdlife="n/a","n/a",IF(AA$3>(A2stdlife+$E152),('PTRM input'!$H$264*(1+rvanilla02)^0.5)-SUM($H152:Z152),('PTRM input'!$H$264*(1+rvanilla02)^0.5)/A2stdlife)) -> 0 | AB152: =IF(A2stdlife="n/a","n/a",IF(AB$3>(A2stdlife+$E152),('PTRM input'!$H$264*(1+rvanilla02)^0.5)-SUM($H152:AA152),('PTRM input'!$H$264*(1+rvanilla02)^0.5)/A2stdlife)) -> 0 | AC152: =IF(A2stdlife="n/a","n/a",IF(AC$3>(A2stdlife+$E152),('PTRM input'!$H$264*(1+rvanilla02)^0.5)-SUM($H152:AB152),('PTRM input'!$H$264*(1+rvanilla02)^0.5)/A2stdlife)) -> 0 | AD152: =IF(A2stdlife="n/a","n/a",IF(AD$3>(A2stdlife+$E152),('PTRM input'!$H$264*(1+rvanilla02)^0.5)-SUM($H152:AC152),('PTRM input'!$H$264*(1+rvanilla02)^0.5)/A2stdlife)) -> 0 | AE152: =IF(A2stdlife="n/a","n/a",IF(AE$3>(A2stdlife+$E152),('PTRM input'!$H$264*(1+rvanilla02)^0.5)-SUM($H152:AD152),('PTRM input'!$H$264*(1+rvanilla02)^0.5)/A2stdlife)) -> 0 | AF152: =IF(A2stdlife="n/a","n/a",IF(AF$3>(A2stdlife+$E152),('PTRM input'!$H$264*(1+rvanilla02)^0.5)-SUM($H152:AE152),('PTRM input'!$H$264*(1+rvanilla02)^0.5)/A2stdlife)) -> 0 | AG152: =IF(A2stdlife="n/a","n/a",IF(AG$3>(A2stdlife+$E152),('PTRM input'!$H$264*(1+rvanilla02)^0.5)-SUM($H152:AF152),('PTRM input'!$H$264*(1+rvanilla02)^0.5)/A2stdlife)) -> 0 | AH152: =IF(A2stdlife="n/a","n/a",IF(AH$3>(A2stdlife+$E152),('PTRM input'!$H$264*(1+rvanilla02)^0.5)-SUM($H152:AG152),('PTRM input'!$H$264*(1+rvanilla02)^0.5)/A2stdlife)) -> 0 | AI152: =IF(A2stdlife="n/a","n/a",IF(AI$3>(A2stdlife+$E152),('PTRM input'!$H$264*(1+rvanilla02)^0.5)-SUM($H152:AH152),('PTRM input'!$H$264*(1+rvanilla02)^0.5)/A2stdlife)) -> 0 | AJ152: =IF(A2stdlife="n/a","n/a",IF(AJ$3>(A2stdlife+$E152),('PTRM input'!$H$264*(1+rvanilla02)^0.5)-SUM($H152:AI152),('PTRM input'!$H$264*(1+rvanilla02)^0.5)/A2stdlife)) -> 0 | AK152: =IF(A2stdlife="n/a","n/a",IF(AK$3>(A2stdlife+$E152),('PTRM input'!$H$264*(1+rvanilla02)^0.5)-SUM($H152:AJ152),('PTRM input'!$H$264*(1+rvanilla02)^0.5)/A2stdlife)) -> 0 | AL152: =IF(A2stdlife="n/a","n/a",IF(AL$3>(A2stdlife+$E152),('PTRM input'!$H$264*(1+rvanilla02)^0.5)-SUM($H152:AK152),('PTRM input'!$H$264*(1+rvanilla02)^0.5)/A2stdlife)) -> 0 | AM152: =IF(A2stdlife="n/a","n/a",IF(AM$3>(A2stdlife+$E152),('PTRM input'!$H$264*(1+rvanilla02)^0.5)-SUM($H152:AL152),('PTRM input'!$H$264*(1+rvanilla02)^0.5)/A2stdlife)) -> 0 | AN152: =IF(A2stdlife="n/a","n/a",IF(AN$3>(A2stdlife+$E152),('PTRM input'!$H$264*(1+rvanilla02)^0.5)-SUM($H152:AM152),('PTRM input'!$H$264*(1+rvanilla02)^0.5)/A2stdlife)) -> 0 | AO152: =IF(A2stdlife="n/a","n/a",IF(AO$3>(A2stdlife+$E152),('PTRM input'!$H$264*(1+rvanilla02)^0.5)-SUM($H152:AN152),('PTRM input'!$H$264*(1+rvanilla02)^0.5)/A2stdlife)) -> 0 | AP152: =IF(A2stdlife="n/a","n/a",IF(AP$3>(A2stdlife+$E152),('PTRM input'!$H$264*(1+rvanilla02)^0.5)-SUM($H152:AO152),('PTRM input'!$H$264*(1+rvanilla02)^0.5)/A2stdlife)) -> 0 | AQ152: =IF(A2stdlife="n/a","n/a",IF(AQ$3>(A2stdlife+$E152),('PTRM input'!$H$264*(1+rvanilla02)^0.5)-SUM($H152:AP152),('PTRM input'!$H$264*(1+rvanilla02)^0.5)/A2stdlife)) -> 0 | AR152: =IF(A2stdlife="n/a","n/a",IF(AR$3>(A2stdlife+$E152),('PTRM input'!$H$264*(1+rvanilla02)^0.5)-SUM($H152:AQ152),('PTRM input'!$H$264*(1+rvanilla02)^0.5)/A2stdlife)) -> 0 | AS152: =IF(A2stdlife="n/a","n/a",IF(AS$3>(A2stdlife+$E152),('PTRM input'!$H$264*(1+rvanilla02)^0.5)-SUM($H152:AR152),('PTRM input'!$H$264*(1+rvanilla02)^0.5)/A2stdlife)) -> 0 | AT152: =IF(A2stdlife="n/a","n/a",IF(AT$3>(A2stdlife+$E152),('PTRM input'!$H$264*(1+rvanilla02)^0.5)-SUM($H152:AS152),('PTRM input'!$H$264*(1+rvanilla02)^0.5)/A2stdlife)) -> 0 | AU152: =IF(A2stdlife="n/a","n/a",IF(AU$3>(A2stdlife+$E152),('PTRM input'!$H$264*(1+rvanilla02)^0.5)-SUM($H152:AT152),('PTRM input'!$H$264*(1+rvanilla02)^0.5)/A2stdlife)) -> 0 | AV152: =IF(A2stdlife="n/a","n/a",IF(AV$3>(A2stdlife+$E152),('PTRM input'!$H$264*(1+rvanilla02)^0.5)-SUM($H152:AU152),('PTRM input'!$H$264*(1+rvanilla02)^0.5)/A2stdlife)) -> 0 | AW152: =IF(A2stdlife="n/a","n/a",IF(AW$3>(A2stdlife+$E152),('PTRM input'!$H$264*(1+rvanilla02)^0.5)-SUM($H152:AV152),('PTRM input'!$H$264*(1+rvanilla02)^0.5)/A2stdlife)) -> 0 | AX152: =IF(A2stdlife="n/a","n/a",IF(AX$3>(A2stdlife+$E152),('PTRM input'!$H$264*(1+rvanilla02)^0.5)-SUM($H152:AW152),('PTRM input'!$H$264*(1+rvanilla02)^0.5)/A2stdlife)) -> 0 | AY152: =IF(A2stdlife="n/a","n/a",IF(AY$3>(A2stdlife+$E152),('PTRM input'!$H$264*(1+rvanilla02)^0.5)-SUM($H152:AX152),('PTRM input'!$H$264*(1+rvanilla02)^0.5)/A2stdlife)) -> 0 | AZ152: =IF(A2stdlife="n/a","n/a",IF(AZ$3>(A2stdlife+$E152),('PTRM input'!$H$264*(1+rvanilla02)^0.5)-SUM($H152:AY152),('PTRM input'!$H$264*(1+rvanilla02)^0.5)/A2stdlife)) -> 0 | BA152: =IF(A2stdlife="n/a","n/a",IF(BA$3>(A2stdlife+$E152),('PTRM input'!$H$264*(1+rvanilla02)^0.5)-SUM($H152:AZ152),('PTRM input'!$H$264*(1+rvanilla02)^0.5)/A2stdlife)) -> 0 | BB152: =IF(A2stdlife="n/a","n/a",IF(BB$3>(A2stdlife+$E152),('PTRM input'!$H$264*(1+rvanilla02)^0.5)-SUM($H152:BA152),('PTRM input'!$H$264*(1+rvanilla02)^0.5)/A2stdlife)) -> 0 | BC152: =IF(A2stdlife="n/a","n/a",IF(BC$3>(A2stdlife+$E152),('PTRM input'!$H$264*(1+rvanilla02)^0.5)-SUM($H152:BB152),('PTRM input'!$H$264*(1+rvanilla02)^0.5)/A2stdlife)) -> 0 | BD152: =IF(A2stdlife="n/a","n/a",IF(BD$3>(A2stdlife+$E152),('PTRM input'!$H$264*(1+rvanilla02)^0.5)-SUM($H152:BC152),('PTRM input'!$H$264*(1+rvanilla02)^0.5)/A2stdlife)) -> 0 | BE152: =IF(A2stdlife="n/a","n/a",IF(BE$3>(A2stdlife+$E152),('PTRM input'!$H$264*(1+rvanilla02)^0.5)-SUM($H152:BD152),('PTRM input'!$H$264*(1+rvanilla02)^0.5)/A2stdlife)) -> 0 | BF152: =IF(A2stdlife="n/a","n/a",IF(BF$3>(A2stdlife+$E152),('PTRM input'!$H$264*(1+rvanilla02)^0.5)-SUM($H152:BE152),('PTRM input'!$H$264*(1+rvanilla02)^0.5)/A2stdlife)) -> 0 | BG152: =IF(A2stdlife="n/a","n/a",IF(BG$3>(A2stdlife+$E152),('PTRM input'!$H$264*(1+rvanilla02)^0.5)-SUM($H152:BF152),('PTRM input'!$H$264*(1+rvanilla02)^0.5)/A2stdlife)) -> 0 | BH152: =IF(A2stdlife="n/a","n/a",IF(BH$3>(A2stdlife+$E152),('PTRM input'!$H$264*(1+rvanilla02)^0.5)-SUM($H152:BG152),('PTRM input'!$H$264*(1+rvanilla02)^0.5)/A2stdlife)) -> 0 | BI152: =IF(A2stdlife="n/a","n/a",IF(BI$3>(A2stdlife+$E152),('PTRM input'!$H$264*(1+rvanilla02)^0.5)-SUM($H152:BH152),('PTRM input'!$H$264*(1+rvanilla02)^0.5)/A2stdlife)) -> 0
E153: 3 | J153: =IF(A2stdlife="n/a","n/a",IF(J$3>(A2stdlife+$E153),('PTRM input'!$I$264*(1+rvanilla03)^0.5)-SUM($I153:I153),('PTRM input'!$I$264*(1+rvanilla03)^0.5)/A2stdlife)) -> 0 | K153: =IF(A2stdlife="n/a","n/a",IF(K$3>(A2stdlife+$E153),('PTRM input'!$I$264*(1+rvanilla03)^0.5)-SUM($I153:J153),('PTRM input'!$I$264*(1+rvanilla03)^0.5)/A2stdlife)) -> 0 | L153: =IF(A2stdlife="n/a","n/a",IF(L$3>(A2stdlife+$E153),('PTRM input'!$I$264*(1+rvanilla03)^0.5)-SUM($I153:K153),('PTRM input'!$I$264*(1+rvanilla03)^0.5)/A2stdlife)) -> 0 | M153: =IF(A2stdlife="n/a","n/a",IF(M$3>(A2stdlife+$E153),('PTRM input'!$I$264*(1+rvanilla03)^0.5)-SUM($I153:L153),('PTRM input'!$I$264*(1+rvanilla03)^0.5)/A2stdlife)) -> 0 | N153: =IF(A2stdlife="n/a","n/a",IF(N$3>(A2stdlife+$E153),('PTRM input'!$I$264*(1+rvanilla03)^0.5)-SUM($I153:M153),('PTRM input'!$I$264*(1+rvanilla03)^0.5)/A2stdlife)) -> 0 | O153: =IF(A2stdlife="n/a","n/a",IF(O$3>(A2stdlife+$E153),('PTRM input'!$I$264*(1+rvanilla03)^0.5)-SUM($I153:N153),('PTRM input'!$I$264*(1+rvanilla03)^0.5)/A2stdlife)) -> 0 | P153: =IF(A2stdlife="n/a","n/a",IF(P$3>(A2stdlife+$E153),('PTRM input'!$I$264*(1+rvanilla03)^0.5)-SUM($I153:O153),('PTRM input'!$I$264*(1+rvanilla03)^0.5)/A2stdlife)) -> 0 | Q153: =IF(A2stdlife="n/a","n/a",IF(Q$3>(A2stdlife+$E153),('PTRM input'!$I$264*(1+rvanilla03)^0.5)-SUM($I153:P153),('PTRM input'!$I$264*(1+rvanilla03)^0.5)/A2stdlife)) -> 0 | R153: =IF(A2stdlife="n/a","n/a",IF(R$3>(A2stdlife+$E153),('PTRM input'!$I$264*(1+rvanilla03)^0.5)-SUM($I153:Q153),('PTRM input'!$I$264*(1+rvanilla03)^0.5)/A2stdlife)) -> 0 | S153: =IF(A2stdlife="n/a","n/a",IF(S$3>(A2stdlife+$E153),('PTRM input'!$I$264*(1+rvanilla03)^0.5)-SUM($I153:R153),('PTRM input'!$I$264*(1+rvanilla03)^0.5)/A2stdlife)) -> 0 | T153: =IF(A2stdlife="n/a","n/a",IF(T$3>(A2stdlife+$E153),('PTRM input'!$I$264*(1+rvanilla03)^0.5)-SUM($I153:S153),('PTRM input'!$I$264*(1+rvanilla03)^0.5)/A2stdlife)) -> 0 | U153: =IF(A2stdlife="n/a","n/a",IF(U$3>(A2stdlife+$E153),('PTRM input'!$I$264*(1+rvanilla03)^0.5)-SUM($I153:T153),('PTRM input'!$I$264*(1+rvanilla03)^0.5)/A2stdlife)) -> 0 | V153: =IF(A2stdlife="n/a","n/a",IF(V$3>(A2stdlife+$E153),('PTRM input'!$I$264*(1+rvanilla03)^0.5)-SUM($I153:U153),('PTRM input'!$I$264*(1+rvanilla03)^0.5)/A2stdlife)) -> 0 | W153: =IF(A2stdlife="n/a","n/a",IF(W$3>(A2stdlife+$E153),('PTRM input'!$I$264*(1+rvanilla03)^0.5)-SUM($I153:V153),('PTRM input'!$I$264*(1+rvanilla03)^0.5)/A2stdlife)) -> 0 | X153: =IF(A2stdlife="n/a","n/a",IF(X$3>(A2stdlife+$E153),('PTRM input'!$I$264*(1+rvanilla03)^0.5)-SUM($I153:W153),('PTRM input'!$I$264*(1+rvanilla03)^0.5)/A2stdlife)) -> 0 | Y153: =IF(A2stdlife="n/a","n/a",IF(Y$3>(A2stdlife+$E153),('PTRM input'!$I$264*(1+rvanilla03)^0.5)-SUM($I153:X153),('PTRM input'!$I$264*(1+rvanilla03)^0.5)/A2stdlife)) -> 0 | Z153: =IF(A2stdlife="n/a","n/a",IF(Z$3>(A2stdlife+$E153),('PTRM input'!$I$264*(1+rvanilla03)^0.5)-SUM($I153:Y153),('PTRM input'!$I$264*(1+rvanilla03)^0.5)/A2stdlife)) -> 0 | AA153: =IF(A2stdlife="n/a","n/a",IF(AA$3>(A2stdlife+$E153),('PTRM input'!$I$264*(1+rvanilla03)^0.5)-SUM($I153:Z153),('PTRM input'!$I$264*(1+rvanilla03)^0.5)/A2stdlife)) -> 0 | AB153: =IF(A2stdlife="n/a","n/a",IF(AB$3>(A2stdlife+$E153),('PTRM input'!$I$264*(1+rvanilla03)^0.5)-SUM($I153:AA153),('PTRM input'!$I$264*(1+rvanilla03)^0.5)/A2stdlife)) -> 0 | AC153: =IF(A2stdlife="n/a","n/a",IF(AC$3>(A2stdlife+$E153),('PTRM input'!$I$264*(1+rvanilla03)^0.5)-SUM($I153:AB153),('PTRM input'!$I$264*(1+rvanilla03)^0.5)/A2stdlife)) -> 0 | AD153: =IF(A2stdlife="n/a","n/a",IF(AD$3>(A2stdlife+$E153),('PTRM input'!$I$264*(1+rvanilla03)^0.5)-SUM($I153:AC153),('PTRM input'!$I$264*(1+rvanilla03)^0.5)/A2stdlife)) -> 0 | AE153: =IF(A2stdlife="n/a","n/a",IF(AE$3>(A2stdlife+$E153),('PTRM input'!$I$264*(1+rvanilla03)^0.5)-SUM($I153:AD153),('PTRM input'!$I$264*(1+rvanilla03)^0.5)/A2stdlife)) -> 0 | AF153: =IF(A2stdlife="n/a","n/a",IF(AF$3>(A2stdlife+$E153),('PTRM input'!$I$264*(1+rvanilla03)^0.5)-SUM($I153:AE153),('PTRM input'!$I$264*(1+rvanilla03)^0.5)/A2stdlife)) -> 0 | AG153: =IF(A2stdlife="n/a","n/a",IF(AG$3>(A2stdlife+$E153),('PTRM input'!$I$264*(1+rvanilla03)^0.5)-SUM($I153:AF153),('PTRM input'!$I$264*(1+rvanilla03)^0.5)/A2stdlife)) -> 0 | AH153: =IF(A2stdlife="n/a","n/a",IF(AH$3>(A2stdlife+$E153),('PTRM input'!$I$264*(1+rvanilla03)^0.5)-SUM($I153:AG153),('PTRM input'!$I$264*(1+rvanilla03)^0.5)/A2stdlife)) -> 0 | AI153: =IF(A2stdlife="n/a","n/a",IF(AI$3>(A2stdlife+$E153),('PTRM input'!$I$264*(1+rvanilla03)^0.5)-SUM($I153:AH153),('PTRM input'!$I$264*(1+rvanilla03)^0.5)/A2stdlife)) -> 0 | AJ153: =IF(A2stdlife="n/a","n/a",IF(AJ$3>(A2stdlife+$E153),('PTRM input'!$I$264*(1+rvanilla03)^0.5)-SUM($I153:AI153),('PTRM input'!$I$264*(1+rvanilla03)^0.5)/A2stdlife)) -> 0 | AK153: =IF(A2stdlife="n/a","n/a",IF(AK$3>(A2stdlife+$E153),('PTRM input'!$I$264*(1+rvanilla03)^0.5)-SUM($I153:AJ153),('PTRM input'!$I$264*(1+rvanilla03)^0.5)/A2stdlife)) -> 0 | AL153: =IF(A2stdlife="n/a","n/a",IF(AL$3>(A2stdlife+$E153),('PTRM input'!$I$264*(1+rvanilla03)^0.5)-SUM($I153:AK153),('PTRM input'!$I$264*(1+rvanilla03)^0.5)/A2stdlife)) -> 0 | AM153: =IF(A2stdlife="n/a","n/a",IF(AM$3>(A2stdlife+$E153),('PTRM input'!$I$264*(1+rvanilla03)^0.5)-SUM($I153:AL153),('PTRM input'!$I$264*(1+rvanilla03)^0.5)/A2stdlife)) -> 0 | AN153: =IF(A2stdlife="n/a","n/a",IF(AN$3>(A2stdlife+$E153),('PTRM input'!$I$264*(1+rvanilla03)^0.5)-SUM($I153:AM153),('PTRM input'!$I$264*(1+rvanilla03)^0.5)/A2stdlife)) -> 0 | AO153: =IF(A2stdlife="n/a","n/a",IF(AO$3>(A2stdlife+$E153),('PTRM input'!$I$264*(1+rvanilla03)^0.5)-SUM($I153:AN153),('PTRM input'!$I$264*(1+rvanilla03)^0.5)/A2stdlife)) -> 0 | AP153: =IF(A2stdlife="n/a","n/a",IF(AP$3>(A2stdlife+$E153),('PTRM input'!$I$264*(1+rvanilla03)^0.5)-SUM($I153:AO153),('PTRM input'!$I$264*(1+rvanilla03)^0.5)/A2stdlife)) -> 0 | AQ153: =IF(A2stdlife="n/a","n/a",IF(AQ$3>(A2stdlife+$E153),('PTRM input'!$I$264*(1+rvanilla03)^0.5)-SUM($I153:AP153),('PTRM input'!$I$264*(1+rvanilla03)^0.5)/A2stdlife)) -> 0 | AR153: =IF(A2stdlife="n/a","n/a",IF(AR$3>(A2stdlife+$E153),('PTRM input'!$I$264*(1+rvanilla03)^0.5)-SUM($I153:AQ153),('PTRM input'!$I$264*(1+rvanilla03)^0.5)/A2stdlife)) -> 0 | AS153: =IF(A2stdlife="n/a","n/a",IF(AS$3>(A2stdlife+$E153),('PTRM input'!$I$264*(1+rvanilla03)^0.5)-SUM($I153:AR153),('PTRM input'!$I$264*(1+rvanilla03)^0.5)/A2stdlife)) -> 0 | AT153: =IF(A2stdlife="n/a","n/a",IF(AT$3>(A2stdlife+$E153),('PTRM input'!$I$264*(1+rvanilla03)^0.5)-SUM($I153:AS153),('PTRM input'!$I$264*(1+rvanilla03)^0.5)/A2stdlife)) -> 0 | AU153: =IF(A2stdlife="n/a","n/a",IF(AU$3>(A2stdlife+$E153),('PTRM input'!$I$264*(1+rvanilla03)^0.5)-SUM($I153:AT153),('PTRM input'!$I$264*(1+rvanilla03)^0.5)/A2stdlife)) -> 0 | AV153: =IF(A2stdlife="n/a","n/a",IF(AV$3>(A2stdlife+$E153),('PTRM input'!$I$264*(1+rvanilla03)^0.5)-SUM($I153:AU153),('PTRM input'!$I$264*(1+rvanilla03)^0.5)/A2stdlife)) -> 0 | AW153: =IF(A2stdlife="n/a","n/a",IF(AW$3>(A2stdlife+$E153),('PTRM input'!$I$264*(1+rvanilla03)^0.5)-SUM($I153:AV153),('PTRM input'!$I$264*(1+rvanilla03)^0.5)/A2stdlife)) -> 0 | AX153: =IF(A2stdlife="n/a","n/a",IF(AX$3>(A2stdlife+$E153),('PTRM input'!$I$264*(1+rvanilla03)^0.5)-SUM($I153:AW153),('PTRM input'!$I$264*(1+rvanilla03)^0.5)/A2stdlife)) -> 0 | AY153: =IF(A2stdlife="n/a","n/a",IF(AY$3>(A2stdlife+$E153),('PTRM input'!$I$264*(1+rvanilla03)^0.5)-SUM($I153:AX153),('PTRM input'!$I$264*(1+rvanilla03)^0.5)/A2stdlife)) -> 0 | AZ153: =IF(A2stdlife="n/a","n/a",IF(AZ$3>(A2stdlife+$E153),('PTRM input'!$I$264*(1+rvanilla03)^0.5)-SUM($I153:AY153),('PTRM input'!$I$264*(1+rvanilla03)^0.5)/A2stdlife)) -> 0 | BA153: =IF(A2stdlife="n/a","n/a",IF(BA$3>(A2stdlife+$E153),('PTRM input'!$I$264*(1+rvanilla03)^0.5)-SUM($I153:AZ153),('PTRM input'!$I$264*(1+rvanilla03)^0.5)/A2stdlife)) -> 0 | BB153: =IF(A2stdlife="n/a","n/a",IF(BB$3>(A2stdlife+$E153),('PTRM input'!$I$264*(1+rvanilla03)^0.5)-SUM($I153:BA153),('PTRM input'!$I$264*(1+rvanilla03)^0.5)/A2stdlife)) -> 0 | BC153: =IF(A2stdlife="n/a","n/a",IF(BC$3>(A2stdlife+$E153),('PTRM input'!$I$264*(1+rvanilla03)^0.5)-SUM($I153:BB153),('PTRM input'!$I$264*(1+rvanilla03)^0.5)/A2stdlife)) -> 0 | BD153: =IF(A2stdlife="n/a","n/a",IF(BD$3>(A2stdlife+$E153),('PTRM input'!$I$264*(1+rvanilla03)^0.5)-SUM($I153:BC153),('PTRM input'!$I$264*(1+rvanilla03)^0.5)/A2stdlife)) -> 0 | BE153: =IF(A2stdlife="n/a","n/a",IF(BE$3>(A2stdlife+$E153),('PTRM input'!$I$264*(1+rvanilla03)^0.5)-SUM($I153:BD153),('PTRM input'!$I$264*(1+rvanilla03)^0.5)/A2stdlife)) -> 0 | BF153: =IF(A2stdlife="n/a","n/a",IF(BF$3>(A2stdlife+$E153),('PTRM input'!$I$264*(1+rvanilla03)^0.5)-SUM($I153:BE153),('PTRM input'!$I$264*(1+rvanilla03)^0.5)/A2stdlife)) -> 0 | BG153: =IF(A2stdlife="n/a","n/a",IF(BG$3>(A2stdlife+$E153),('PTRM input'!$I$264*(1+rvanilla03)^0.5)-SUM($I153:BF153),('PTRM input'!$I$264*(1+rvanilla03)^0.5)/A2stdlife)) -> 0 | BH153: =IF(A2stdlife="n/a","n/a",IF(BH$3>(A2stdlife+$E153),('PTRM input'!$I$264*(1+rvanilla03)^0.5)-SUM($I153:BG153),('PTRM input'!$I$264*(1+rvanilla03)^0.5)/A2stdlife)) -> 0 | BI153: =IF(A2stdlife="n/a","n/a",IF(BI$3>(A2stdlife+$E153),('PTRM input'!$I$264*(1+rvanilla03)^0.5)-SUM($I153:BH153),('PTRM input'!$I$264*(1+rvanilla03)^0.5)/A2stdlife)) -> 0
E154: 4 | K154: =IF(A2stdlife="n/a","n/a",IF(K$3>(A2stdlife+$E154),('PTRM input'!$J$264*(1+rvanilla04)^0.5)-SUM($J154:J154),('PTRM input'!$J$264*(1+rvanilla04)^0.5)/A2stdlife)) -> 0 | L154: =IF(A2stdlife="n/a","n/a",IF(L$3>(A2stdlife+$E154),('PTRM input'!$J$264*(1+rvanilla04)^0.5)-SUM($J154:K154),('PTRM input'!$J$264*(1+rvanilla04)^0.5)/A2stdlife)) -> 0 | M154: =IF(A2stdlife="n/a","n/a",IF(M$3>(A2stdlife+$E154),('PTRM input'!$J$264*(1+rvanilla04)^0.5)-SUM($J154:L154),('PTRM input'!$J$264*(1+rvanilla04)^0.5)/A2stdlife)) -> 0 | N154: =IF(A2stdlife="n/a","n/a",IF(N$3>(A2stdlife+$E154),('PTRM input'!$J$264*(1+rvanilla04)^0.5)-SUM($J154:M154),('PTRM input'!$J$264*(1+rvanilla04)^0.5)/A2stdlife)) -> 0 | O154: =IF(A2stdlife="n/a","n/a",IF(O$3>(A2stdlife+$E154),('PTRM input'!$J$264*(1+rvanilla04)^0.5)-SUM($J154:N154),('PTRM input'!$J$264*(1+rvanilla04)^0.5)/A2stdlife)) -> 0 | P154: =IF(A2stdlife="n/a","n/a",IF(P$3>(A2stdlife+$E154),('PTRM input'!$J$264*(1+rvanilla04)^0.5)-SUM($J154:O154),('PTRM input'!$J$264*(1+rvanilla04)^0.5)/A2stdlife)) -> 0 | Q154: =IF(A2stdlife="n/a","n/a",IF(Q$3>(A2stdlife+$E154),('PTRM input'!$J$264*(1+rvanilla04)^0.5)-SUM($J154:P154),('PTRM input'!$J$264*(1+rvanilla04)^0.5)/A2stdlife)) -> 0 | R154: =IF(A2stdlife="n/a","n/a",IF(R$3>(A2stdlife+$E154),('PTRM input'!$J$264*(1+rvanilla04)^0.5)-SUM($J154:Q154),('PTRM input'!$J$264*(1+rvanilla04)^0.5)/A2stdlife)) -> 0 | S154: =IF(A2stdlife="n/a","n/a",IF(S$3>(A2stdlife+$E154),('PTRM input'!$J$264*(1+rvanilla04)^0.5)-SUM($J154:R154),('PTRM input'!$J$264*(1+rvanilla04)^0.5)/A2stdlife)) -> 0 | T154: =IF(A2stdlife="n/a","n/a",IF(T$3>(A2stdlife+$E154),('PTRM input'!$J$264*(1+rvanilla04)^0.5)-SUM($J154:S154),('PTRM input'!$J$264*(1+rvanilla04)^0.5)/A2stdlife)) -> 0 | U154: =IF(A2stdlife="n/a","n/a",IF(U$3>(A2stdlife+$E154),('PTRM input'!$J$264*(1+rvanilla04)^0.5)-SUM($J154:T154),('PTRM input'!$J$264*(1+rvanilla04)^0.5)/A2stdlife)) -> 0 | V154: =IF(A2stdlife="n/a","n/a",IF(V$3>(A2stdlife+$E154),('PTRM input'!$J$264*(1+rvanilla04)^0.5)-SUM($J154:U154),('PTRM input'!$J$264*(1+rvanilla04)^0.5)/A2stdlife)) -> 0 | W154: =IF(A2stdlife="n/a","n/a",IF(W$3>(A2stdlife+$E154),('PTRM input'!$J$264*(1+rvanilla04)^0.5)-SUM($J154:V154),('PTRM input'!$J$264*(1+rvanilla04)^0.5)/A2stdlife)) -> 0 | X154: =IF(A2stdlife="n/a","n/a",IF(X$3>(A2stdlife+$E154),('PTRM input'!$J$264*(1+rvanilla04)^0.5)-SUM($J154:W154),('PTRM input'!$J$264*(1+rvanilla04)^0.5)/A2stdlife)) -> 0 | Y154: =IF(A2stdlife="n/a","n/a",IF(Y$3>(A2stdlife+$E154),('PTRM input'!$J$264*(1+rvanilla04)^0.5)-SUM($J154:X154),('PTRM input'!$J$264*(1+rvanilla04)^0.5)/A2stdlife)) -> 0 | Z154: =IF(A2stdlife="n/a","n/a",IF(Z$3>(A2stdlife+$E154),('PTRM input'!$J$264*(1+rvanilla04)^0.5)-SUM($J154:Y154),('PTRM input'!$J$264*(1+rvanilla04)^0.5)/A2stdlife)) -> 0 | AA154: =IF(A2stdlife="n/a","n/a",IF(AA$3>(A2stdlife+$E154),('PTRM input'!$J$264*(1+rvanilla04)^0.5)-SUM($J154:Z154),('PTRM input'!$J$264*(1+rvanilla04)^0.5)/A2stdlife)) -> 0 | AB154: =IF(A2stdlife="n/a","n/a",IF(AB$3>(A2stdlife+$E154),('PTRM input'!$J$264*(1+rvanilla04)^0.5)-SUM($J154:AA154),('PTRM input'!$J$264*(1+rvanilla04)^0.5)/A2stdlife)) -> 0 | AC154: =IF(A2stdlife="n/a","n/a",IF(AC$3>(A2stdlife+$E154),('PTRM input'!$J$264*(1+rvanilla04)^0.5)-SUM($J154:AB154),('PTRM input'!$J$264*(1+rvanilla04)^0.5)/A2stdlife)) -> 0 | AD154: =IF(A2stdlife="n/a","n/a",IF(AD$3>(A2stdlife+$E154),('PTRM input'!$J$264*(1+rvanilla04)^0.5)-SUM($J154:AC154),('PTRM input'!$J$264*(1+rvanilla04)^0.5)/A2stdlife)) -> 0 | AE154: =IF(A2stdlife="n/a","n/a",IF(AE$3>(A2stdlife+$E154),('PTRM input'!$J$264*(1+rvanilla04)^0.5)-SUM($J154:AD154),('PTRM input'!$J$264*(1+rvanilla04)^0.5)/A2stdlife)) -> 0 | AF154: =IF(A2stdlife="n/a","n/a",IF(AF$3>(A2stdlife+$E154),('PTRM input'!$J$264*(1+rvanilla04)^0.5)-SUM($J154:AE154),('PTRM input'!$J$264*(1+rvanilla04)^0.5)/A2stdlife)) -> 0 | AG154: =IF(A2stdlife="n/a","n/a",IF(AG$3>(A2stdlife+$E154),('PTRM input'!$J$264*(1+rvanilla04)^0.5)-SUM($J154:AF154),('PTRM input'!$J$264*(1+rvanilla04)^0.5)/A2stdlife)) -> 0 | AH154: =IF(A2stdlife="n/a","n/a",IF(AH$3>(A2stdlife+$E154),('PTRM input'!$J$264*(1+rvanilla04)^0.5)-SUM($J154:AG154),('PTRM input'!$J$264*(1+rvanilla04)^0.5)/A2stdlife)) -> 0 | AI154: =IF(A2stdlife="n/a","n/a",IF(AI$3>(A2stdlife+$E154),('PTRM input'!$J$264*(1+rvanilla04)^0.5)-SUM($J154:AH154),('PTRM input'!$J$264*(1+rvanilla04)^0.5)/A2stdlife)) -> 0 | AJ154: =IF(A2stdlife="n/a","n/a",IF(AJ$3>(A2stdlife+$E154),('PTRM input'!$J$264*(1+rvanilla04)^0.5)-SUM($J154:AI154),('PTRM input'!$J$264*(1+rvanilla04)^0.5)/A2stdlife)) -> 0 | AK154: =IF(A2stdlife="n/a","n/a",IF(AK$3>(A2stdlife+$E154),('PTRM input'!$J$264*(1+rvanilla04)^0.5)-SUM($J154:AJ154),('PTRM input'!$J$264*(1+rvanilla04)^0.5)/A2stdlife)) -> 0 | AL154: =IF(A2stdlife="n/a","n/a",IF(AL$3>(A2stdlife+$E154),('PTRM input'!$J$264*(1+rvanilla04)^0.5)-SUM($J154:AK154),('PTRM input'!$J$264*(1+rvanilla04)^0.5)/A2stdlife)) -> 0 | AM154: =IF(A2stdlife="n/a","n/a",IF(AM$3>(A2stdlife+$E154),('PTRM input'!$J$264*(1+rvanilla04)^0.5)-SUM($J154:AL154),('PTRM input'!$J$264*(1+rvanilla04)^0.5)/A2stdlife)) -> 0 | AN154: =IF(A2stdlife="n/a","n/a",IF(AN$3>(A2stdlife+$E154),('PTRM input'!$J$264*(1+rvanilla04)^0.5)-SUM($J154:AM154),('PTRM input'!$J$264*(1+rvanilla04)^0.5)/A2stdlife)) -> 0 | AO154: =IF(A2stdlife="n/a","n/a",IF(AO$3>(A2stdlife+$E154),('PTRM input'!$J$264*(1+rvanilla04)^0.5)-SUM($J154:AN154),('PTRM input'!$J$264*(1+rvanilla04)^0.5)/A2stdlife)) -> 0 | AP154: =IF(A2stdlife="n/a","n/a",IF(AP$3>(A2stdlife+$E154),('PTRM input'!$J$264*(1+rvanilla04)^0.5)-SUM($J154:AO154),('PTRM input'!$J$264*(1+rvanilla04)^0.5)/A2stdlife)) -> 0 | AQ154: =IF(A2stdlife="n/a","n/a",IF(AQ$3>(A2stdlife+$E154),('PTRM input'!$J$264*(1+rvanilla04)^0.5)-SUM($J154:AP154),('PTRM input'!$J$264*(1+rvanilla04)^0.5)/A2stdlife)) -> 0 | AR154: =IF(A2stdlife="n/a","n/a",IF(AR$3>(A2stdlife+$E154),('PTRM input'!$J$264*(1+rvanilla04)^0.5)-SUM($J154:AQ154),('PTRM input'!$J$264*(1+rvanilla04)^0.5)/A2stdlife)) -> 0 | AS154: =IF(A2stdlife="n/a","n/a",IF(AS$3>(A2stdlife+$E154),('PTRM input'!$J$264*(1+rvanilla04)^0.5)-SUM($J154:AR154),('PTRM input'!$J$264*(1+rvanilla04)^0.5)/A2stdlife)) -> 0 | AT154: =IF(A2stdlife="n/a","n/a",IF(AT$3>(A2stdlife+$E154),('PTRM input'!$J$264*(1+rvanilla04)^0.5)-SUM($J154:AS154),('PTRM input'!$J$264*(1+rvanilla04)^0.5)/A2stdlife)) -> 0 | AU154: =IF(A2stdlife="n/a","n/a",IF(AU$3>(A2stdlife+$E154),('PTRM input'!$J$264*(1+rvanilla04)^0.5)-SUM($J154:AT154),('PTRM input'!$J$264*(1+rvanilla04)^0.5)/A2stdlife)) -> 0 | AV154: =IF(A2stdlife="n/a","n/a",IF(AV$3>(A2stdlife+$E154),('PTRM input'!$J$264*(1+rvanilla04)^0.5)-SUM($J154:AU154),('PTRM input'!$J$264*(1+rvanilla04)^0.5)/A2stdlife)) -> 0 | AW154: =IF(A2stdlife="n/a","n/a",IF(AW$3>(A2stdlife+$E154),('PTRM input'!$J$264*(1+rvanilla04)^0.5)-SUM($J154:AV154),('PTRM input'!$J$264*(1+rvanilla04)^0.5)/A2stdlife)) -> 0 | AX154: =IF(A2stdlife="n/a","n/a",IF(AX$3>(A2stdlife+$E154),('PTRM input'!$J$264*(1+rvanilla04)^0.5)-SUM($J154:AW154),('PTRM input'!$J$264*(1+rvanilla04)^0.5)/A2stdlife)) -> 0 | AY154: =IF(A2stdlife="n/a","n/a",IF(AY$3>(A2stdlife+$E154),('PTRM input'!$J$264*(1+rvanilla04)^0.5)-SUM($J154:AX154),('PTRM input'!$J$264*(1+rvanilla04)^0.5)/A2stdlife)) -> 0 | AZ154: =IF(A2stdlife="n/a","n/a",IF(AZ$3>(A2stdlife+$E154),('PTRM input'!$J$264*(1+rvanilla04)^0.5)-SUM($J154:AY154),('PTRM input'!$J$264*(1+rvanilla04)^0.5)/A2stdlife)) -> 0 | BA154: =IF(A2stdlife="n/a","n/a",IF(BA$3>(A2stdlife+$E154),('PTRM input'!$J$264*(1+rvanilla04)^0.5)-SUM($J154:AZ154),('PTRM input'!$J$264*(1+rvanilla04)^0.5)/A2stdlife)) -> 0 | BB154: =IF(A2stdlife="n/a","n/a",IF(BB$3>(A2stdlife+$E154),('PTRM input'!$J$264*(1+rvanilla04)^0.5)-SUM($J154:BA154),('PTRM input'!$J$264*(1+rvanilla04)^0.5)/A2stdlife)) -> 0 | BC154: =IF(A2stdlife="n/a","n/a",IF(BC$3>(A2stdlife+$E154),('PTRM input'!$J$264*(1+rvanilla04)^0.5)-SUM($J154:BB154),('PTRM input'!$J$264*(1+rvanilla04)^0.5)/A2stdlife)) -> 0 | BD154: =IF(A2stdlife="n/a","n/a",IF(BD$3>(A2stdlife+$E154),('PTRM input'!$J$264*(1+rvanilla04)^0.5)-SUM($J154:BC154),('PTRM input'!$J$264*(1+rvanilla04)^0.5)/A2stdlife)) -> 0 | BE154: =IF(A2stdlife="n/a","n/a",IF(BE$3>(A2stdlife+$E154),('PTRM input'!$J$264*(1+rvanilla04)^0.5)-SUM($J154:BD154),('PTRM input'!$J$264*(1+rvanilla04)^0.5)/A2stdlife)) -> 0 | BF154: =IF(A2stdlife="n/a","n/a",IF(BF$3>(A2stdlife+$E154),('PTRM input'!$J$264*(1+rvanilla04)^0.5)-SUM($J154:BE154),('PTRM input'!$J$264*(1+rvanilla04)^0.5)/A2stdlife)) -> 0 | BG154: =IF(A2stdlife="n/a","n/a",IF(BG$3>(A2stdlife+$E154),('PTRM input'!$J$264*(1+rvanilla04)^0.5)-SUM($J154:BF154),('PTRM input'!$J$264*(1+rvanilla04)^0.5)/A2stdlife)) -> 0 | BH154: =IF(A2stdlife="n/a","n/a",IF(BH$3>(A2stdlife+$E154),('PTRM input'!$J$264*(1+rvanilla04)^0.5)-SUM($J154:BG154),('PTRM input'!$J$264*(1+rvanilla04)^0.5)/A2stdlife)) -> 0 | BI154: =IF(A2stdlife="n/a","n/a",IF(BI$3>(A2stdlife+$E154),('PTRM input'!$J$264*(1+rvanilla04)^0.5)-SUM($J154:BH154),('PTRM input'!$J$264*(1+rvanilla04)^0.5)/A2stdlife)) -> 0
E155: 5 | L155: =IF(A2stdlife="n/a","n/a",IF(L$3>(A2stdlife+$E155),('PTRM input'!$K$264*(1+rvanilla05)^0.5)-SUM($K155:K155),('PTRM input'!$K$264*(1+rvanilla05)^0.5)/A2stdlife)) -> 0 | M155: =IF(A2stdlife="n/a","n/a",IF(M$3>(A2stdlife+$E155),('PTRM input'!$K$264*(1+rvanilla05)^0.5)-SUM($K155:L155),('PTRM input'!$K$264*(1+rvanilla05)^0.5)/A2stdlife)) -> 0 | N155: =IF(A2stdlife="n/a","n/a",IF(N$3>(A2stdlife+$E155),('PTRM input'!$K$264*(1+rvanilla05)^0.5)-SUM($K155:M155),('PTRM input'!$K$264*(1+rvanilla05)^0.5)/A2stdlife)) -> 0 | O155: =IF(A2stdlife="n/a","n/a",IF(O$3>(A2stdlife+$E155),('PTRM input'!$K$264*(1+rvanilla05)^0.5)-SUM($K155:N155),('PTRM input'!$K$264*(1+rvanilla05)^0.5)/A2stdlife)) -> 0 | P155: =IF(A2stdlife="n/a","n/a",IF(P$3>(A2stdlife+$E155),('PTRM input'!$K$264*(1+rvanilla05)^0.5)-SUM($K155:O155),('PTRM input'!$K$264*(1+rvanilla05)^0.5)/A2stdlife)) -> 0 | Q155: =IF(A2stdlife="n/a","n/a",IF(Q$3>(A2stdlife+$E155),('PTRM input'!$K$264*(1+rvanilla05)^0.5)-SUM($K155:P155),('PTRM input'!$K$264*(1+rvanilla05)^0.5)/A2stdlife)) -> 0 | R155: =IF(A2stdlife="n/a","n/a",IF(R$3>(A2stdlife+$E155),('PTRM input'!$K$264*(1+rvanilla05)^0.5)-SUM($K155:Q155),('PTRM input'!$K$264*(1+rvanilla05)^0.5)/A2stdlife)) -> 0 | S155: =IF(A2stdlife="n/a","n/a",IF(S$3>(A2stdlife+$E155),('PTRM input'!$K$264*(1+rvanilla05)^0.5)-SUM($K155:R155),('PTRM input'!$K$264*(1+rvanilla05)^0.5)/A2stdlife)) -> 0 | T155: =IF(A2stdlife="n/a","n/a",IF(T$3>(A2stdlife+$E155),('PTRM input'!$K$264*(1+rvanilla05)^0.5)-SUM($K155:S155),('PTRM input'!$K$264*(1+rvanilla05)^0.5)/A2stdlife)) -> 0 | U155: =IF(A2stdlife="n/a","n/a",IF(U$3>(A2stdlife+$E155),('PTRM input'!$K$264*(1+rvanilla05)^0.5)-SUM($K155:T155),('PTRM input'!$K$264*(1+rvanilla05)^0.5)/A2stdlife)) -> 0 | V155: =IF(A2stdlife="n/a","n/a",IF(V$3>(A2stdlife+$E155),('PTRM input'!$K$264*(1+rvanilla05)^0.5)-SUM($K155:U155),('PTRM input'!$K$264*(1+rvanilla05)^0.5)/A2stdlife)) -> 0 | W155: =IF(A2stdlife="n/a","n/a",IF(W$3>(A2stdlife+$E155),('PTRM input'!$K$264*(1+rvanilla05)^0.5)-SUM($K155:V155),('PTRM input'!$K$264*(1+rvanilla05)^0.5)/A2stdlife)) -> 0 | X155: =IF(A2stdlife="n/a","n/a",IF(X$3>(A2stdlife+$E155),('PTRM input'!$K$264*(1+rvanilla05)^0.5)-SUM($K155:W155),('PTRM input'!$K$264*(1+rvanilla05)^0.5)/A2stdlife)) -> 0 | Y155: =IF(A2stdlife="n/a","n/a",IF(Y$3>(A2stdlife+$E155),('PTRM input'!$K$264*(1+rvanilla05)^0.5)-SUM($K155:X155),('PTRM input'!$K$264*(1+rvanilla05)^0.5)/A2stdlife)) -> 0 | Z155: =IF(A2stdlife="n/a","n/a",IF(Z$3>(A2stdlife+$E155),('PTRM input'!$K$264*(1+rvanilla05)^0.5)-SUM($K155:Y155),('PTRM input'!$K$264*(1+rvanilla05)^0.5)/A2stdlife)) -> 0 | AA155: =IF(A2stdlife="n/a","n/a",IF(AA$3>(A2stdlife+$E155),('PTRM input'!$K$264*(1+rvanilla05)^0.5)-SUM($K155:Z155),('PTRM input'!$K$264*(1+rvanilla05)^0.5)/A2stdlife)) -> 0 | AB155: =IF(A2stdlife="n/a","n/a",IF(AB$3>(A2stdlife+$E155),('PTRM input'!$K$264*(1+rvanilla05)^0.5)-SUM($K155:AA155),('PTRM input'!$K$264*(1+rvanilla05)^0.5)/A2stdlife)) -> 0 | AC155: =IF(A2stdlife="n/a","n/a",IF(AC$3>(A2stdlife+$E155),('PTRM input'!$K$264*(1+rvanilla05)^0.5)-SUM($K155:AB155),('PTRM input'!$K$264*(1+rvanilla05)^0.5)/A2stdlife)) -> 0 | AD155: =IF(A2stdlife="n/a","n/a",IF(AD$3>(A2stdlife+$E155),('PTRM input'!$K$264*(1+rvanilla05)^0.5)-SUM($K155:AC155),('PTRM input'!$K$264*(1+rvanilla05)^0.5)/A2stdlife)) -> 0 | AE155: =IF(A2stdlife="n/a","n/a",IF(AE$3>(A2stdlife+$E155),('PTRM input'!$K$264*(1+rvanilla05)^0.5)-SUM($K155:AD155),('PTRM input'!$K$264*(1+rvanilla05)^0.5)/A2stdlife)) -> 0 | AF155: =IF(A2stdlife="n/a","n/a",IF(AF$3>(A2stdlife+$E155),('PTRM input'!$K$264*(1+rvanilla05)^0.5)-SUM($K155:AE155),('PTRM input'!$K$264*(1+rvanilla05)^0.5)/A2stdlife)) -> 0 | AG155: =IF(A2stdlife="n/a","n/a",IF(AG$3>(A2stdlife+$E155),('PTRM input'!$K$264*(1+rvanilla05)^0.5)-SUM($K155:AF155),('PTRM input'!$K$264*(1+rvanilla05)^0.5)/A2stdlife)) -> 0 | AH155: =IF(A2stdlife="n/a","n/a",IF(AH$3>(A2stdlife+$E155),('PTRM input'!$K$264*(1+rvanilla05)^0.5)-SUM($K155:AG155),('PTRM input'!$K$264*(1+rvanilla05)^0.5)/A2stdlife)) -> 0 | AI155: =IF(A2stdlife="n/a","n/a",IF(AI$3>(A2stdlife+$E155),('PTRM input'!$K$264*(1+rvanilla05)^0.5)-SUM($K155:AH155),('PTRM input'!$K$264*(1+rvanilla05)^0.5)/A2stdlife)) -> 0 | AJ155: =IF(A2stdlife="n/a","n/a",IF(AJ$3>(A2stdlife+$E155),('PTRM input'!$K$264*(1+rvanilla05)^0.5)-SUM($K155:AI155),('PTRM input'!$K$264*(1+rvanilla05)^0.5)/A2stdlife)) -> 0 | AK155: =IF(A2stdlife="n/a","n/a",IF(AK$3>(A2stdlife+$E155),('PTRM input'!$K$264*(1+rvanilla05)^0.5)-SUM($K155:AJ155),('PTRM input'!$K$264*(1+rvanilla05)^0.5)/A2stdlife)) -> 0 | AL155: =IF(A2stdlife="n/a","n/a",IF(AL$3>(A2stdlife+$E155),('PTRM input'!$K$264*(1+rvanilla05)^0.5)-SUM($K155:AK155),('PTRM input'!$K$264*(1+rvanilla05)^0.5)/A2stdlife)) -> 0 | AM155: =IF(A2stdlife="n/a","n/a",IF(AM$3>(A2stdlife+$E155),('PTRM input'!$K$264*(1+rvanilla05)^0.5)-SUM($K155:AL155),('PTRM input'!$K$264*(1+rvanilla05)^0.5)/A2stdlife)) -> 0 | AN155: =IF(A2stdlife="n/a","n/a",IF(AN$3>(A2stdlife+$E155),('PTRM input'!$K$264*(1+rvanilla05)^0.5)-SUM($K155:AM155),('PTRM input'!$K$264*(1+rvanilla05)^0.5)/A2stdlife)) -> 0 | AO155: =IF(A2stdlife="n/a","n/a",IF(AO$3>(A2stdlife+$E155),('PTRM input'!$K$264*(1+rvanilla05)^0.5)-SUM($K155:AN155),('PTRM input'!$K$264*(1+rvanilla05)^0.5)/A2stdlife)) -> 0 | AP155: =IF(A2stdlife="n/a","n/a",IF(AP$3>(A2stdlife+$E155),('PTRM input'!$K$264*(1+rvanilla05)^0.5)-SUM($K155:AO155),('PTRM input'!$K$264*(1+rvanilla05)^0.5)/A2stdlife)) -> 0 | AQ155: =IF(A2stdlife="n/a","n/a",IF(AQ$3>(A2stdlife+$E155),('PTRM input'!$K$264*(1+rvanilla05)^0.5)-SUM($K155:AP155),('PTRM input'!$K$264*(1+rvanilla05)^0.5)/A2stdlife)) -> 0 | AR155: =IF(A2stdlife="n/a","n/a",IF(AR$3>(A2stdlife+$E155),('PTRM input'!$K$264*(1+rvanilla05)^0.5)-SUM($K155:AQ155),('PTRM input'!$K$264*(1+rvanilla05)^0.5)/A2stdlife)) -> 0 | AS155: =IF(A2stdlife="n/a","n/a",IF(AS$3>(A2stdlife+$E155),('PTRM input'!$K$264*(1+rvanilla05)^0.5)-SUM($K155:AR155),('PTRM input'!$K$264*(1+rvanilla05)^0.5)/A2stdlife)) -> 0 | AT155: =IF(A2stdlife="n/a","n/a",IF(AT$3>(A2stdlife+$E155),('PTRM input'!$K$264*(1+rvanilla05)^0.5)-SUM($K155:AS155),('PTRM input'!$K$264*(1+rvanilla05)^0.5)/A2stdlife)) -> 0 | AU155: =IF(A2stdlife="n/a","n/a",IF(AU$3>(A2stdlife+$E155),('PTRM input'!$K$264*(1+rvanilla05)^0.5)-SUM($K155:AT155),('PTRM input'!$K$264*(1+rvanilla05)^0.5)/A2stdlife)) -> 0 | AV155: =IF(A2stdlife="n/a","n/a",IF(AV$3>(A2stdlife+$E155),('PTRM input'!$K$264*(1+rvanilla05)^0.5)-SUM($K155:AU155),('PTRM input'!$K$264*(1+rvanilla05)^0.5)/A2stdlife)) -> 0 | AW155: =IF(A2stdlife="n/a","n/a",IF(AW$3>(A2stdlife+$E155),('PTRM input'!$K$264*(1+rvanilla05)^0.5)-SUM($K155:AV155),('PTRM input'!$K$264*(1+rvanilla05)^0.5)/A2stdlife)) -> 0 | AX155: =IF(A2stdlife="n/a","n/a",IF(AX$3>(A2stdlife+$E155),('PTRM input'!$K$264*(1+rvanilla05)^0.5)-SUM($K155:AW155),('PTRM input'!$K$264*(1+rvanilla05)^0.5)/A2stdlife)) -> 0 | AY155: =IF(A2stdlife="n/a","n/a",IF(AY$3>(A2stdlife+$E155),('PTRM input'!$K$264*(1+rvanilla05)^0.5)-SUM($K155:AX155),('PTRM input'!$K$264*(1+rvanilla05)^0.5)/A2stdlife)) -> 0 | AZ155: =IF(A2stdlife="n/a","n/a",IF(AZ$3>(A2stdlife+$E155),('PTRM input'!$K$264*(1+rvanilla05)^0.5)-SUM($K155:AY155),('PTRM input'!$K$264*(1+rvanilla05)^0.5)/A2stdlife)) -> 0 | BA155: =IF(A2stdlife="n/a","n/a",IF(BA$3>(A2stdlife+$E155),('PTRM input'!$K$264*(1+rvanilla05)^0.5)-SUM($K155:AZ155),('PTRM input'!$K$264*(1+rvanilla05)^0.5)/A2stdlife)) -> 0 | BB155: =IF(A2stdlife="n/a","n/a",IF(BB$3>(A2stdlife+$E155),('PTRM input'!$K$264*(1+rvanilla05)^0.5)-SUM($K155:BA155),('PTRM input'!$K$264*(1+rvanilla05)^0.5)/A2stdlife)) -> 0 | BC155: =IF(A2stdlife="n/a","n/a",IF(BC$3>(A2stdlife+$E155),('PTRM input'!$K$264*(1+rvanilla05)^0.5)-SUM($K155:BB155),('PTRM input'!$K$264*(1+rvanilla05)^0.5)/A2stdlife)) -> 0 | BD155: =IF(A2stdlife="n/a","n/a",IF(BD$3>(A2stdlife+$E155),('PTRM input'!$K$264*(1+rvanilla05)^0.5)-SUM($K155:BC155),('PTRM input'!$K$264*(1+rvanilla05)^0.5)/A2stdlife)) -> 0 | BE155: =IF(A2stdlife="n/a","n/a",IF(BE$3>(A2stdlife+$E155),('PTRM input'!$K$264*(1+rvanilla05)^0.5)-SUM($K155:BD155),('PTRM input'!$K$264*(1+rvanilla05)^0.5)/A2stdlife)) -> 0 | BF155: =IF(A2stdlife="n/a","n/a",IF(BF$3>(A2stdlife+$E155),('PTRM input'!$K$264*(1+rvanilla05)^0.5)-SUM($K155:BE155),('PTRM input'!$K$264*(1+rvanilla05)^0.5)/A2stdlife)) -> 0 | BG155: =IF(A2stdlife="n/a","n/a",IF(BG$3>(A2stdlife+$E155),('PTRM input'!$K$264*(1+rvanilla05)^0.5)-SUM($K155:BF155),('PTRM input'!$K$264*(1+rvanilla05)^0.5)/A2stdlife)) -> 0 | BH155: =IF(A2stdlife="n/a","n/a",IF(BH$3>(A2stdlife+$E155),('PTRM input'!$K$264*(1+rvanilla05)^0.5)-SUM($K155:BG155),('PTRM input'!$K$264*(1+rvanilla05)^0.5)/A2stdlife)) -> 0 | BI155: =IF(A2stdlife="n/a","n/a",IF(BI$3>(A2stdlife+$E155),('PTRM input'!$K$264*(1+rvanilla05)^0.5)-SUM($K155:BH155),('PTRM input'!$K$264*(1+rvanilla05)^0.5)/A2stdlife)) -> 0
E156: 6 | M156: =IF(A2stdlife="n/a","n/a",IF(M$3>(A2stdlife+$E156),('PTRM input'!$L$264*(1+rvanilla06)^0.5)-SUM($L156:L156),('PTRM input'!$L$264*(1+rvanilla06)^0.5)/A2stdlife)) -> 0 | N156: =IF(A2stdlife="n/a","n/a",IF(N$3>(A2stdlife+$E156),('PTRM input'!$L$264*(1+rvanilla06)^0.5)-SUM($L156:M156),('PTRM input'!$L$264*(1+rvanilla06)^0.5)/A2stdlife)) -> 0 | O156: =IF(A2stdlife="n/a","n/a",IF(O$3>(A2stdlife+$E156),('PTRM input'!$L$264*(1+rvanilla06)^0.5)-SUM($L156:N156),('PTRM input'!$L$264*(1+rvanilla06)^0.5)/A2stdlife)) -> 0 | P156: =IF(A2stdlife="n/a","n/a",IF(P$3>(A2stdlife+$E156),('PTRM input'!$L$264*(1+rvanilla06)^0.5)-SUM($L156:O156),('PTRM input'!$L$264*(1+rvanilla06)^0.5)/A2stdlife)) -> 0 | Q156: =IF(A2stdlife="n/a","n/a",IF(Q$3>(A2stdlife+$E156),('PTRM input'!$L$264*(1+rvanilla06)^0.5)-SUM($L156:P156),('PTRM input'!$L$264*(1+rvanilla06)^0.5)/A2stdlife)) -> 0 | R156: =IF(A2stdlife="n/a","n/a",IF(R$3>(A2stdlife+$E156),('PTRM input'!$L$264*(1+rvanilla06)^0.5)-SUM($L156:Q156),('PTRM input'!$L$264*(1+rvanilla06)^0.5)/A2stdlife)) -> 0 | S156: =IF(A2stdlife="n/a","n/a",IF(S$3>(A2stdlife+$E156),('PTRM input'!$L$264*(1+rvanilla06)^0.5)-SUM($L156:R156),('PTRM input'!$L$264*(1+rvanilla06)^0.5)/A2stdlife)) -> 0 | T156: =IF(A2stdlife="n/a","n/a",IF(T$3>(A2stdlife+$E156),('PTRM input'!$L$264*(1+rvanilla06)^0.5)-SUM($L156:S156),('PTRM input'!$L$264*(1+rvanilla06)^0.5)/A2stdlife)) -> 0 | U156: =IF(A2stdlife="n/a","n/a",IF(U$3>(A2stdlife+$E156),('PTRM input'!$L$264*(1+rvanilla06)^0.5)-SUM($L156:T156),('PTRM input'!$L$264*(1+rvanilla06)^0.5)/A2stdlife)) -> 0 | V156: =IF(A2stdlife="n/a","n/a",IF(V$3>(A2stdlife+$E156),('PTRM input'!$L$264*(1+rvanilla06)^0.5)-SUM($L156:U156),('PTRM input'!$L$264*(1+rvanilla06)^0.5)/A2stdlife)) -> 0 | W156: =IF(A2stdlife="n/a","n/a",IF(W$3>(A2stdlife+$E156),('PTRM input'!$L$264*(1+rvanilla06)^0.5)-SUM($L156:V156),('PTRM input'!$L$264*(1+rvanilla06)^0.5)/A2stdlife)) -> 0 | X156: =IF(A2stdlife="n/a","n/a",IF(X$3>(A2stdlife+$E156),('PTRM input'!$L$264*(1+rvanilla06)^0.5)-SUM($L156:W156),('PTRM input'!$L$264*(1+rvanilla06)^0.5)/A2stdlife)) -> 0 | Y156: =IF(A2stdlife="n/a","n/a",IF(Y$3>(A2stdlife+$E156),('PTRM input'!$L$264*(1+rvanilla06)^0.5)-SUM($L156:X156),('PTRM input'!$L$264*(1+rvanilla06)^0.5)/A2stdlife)) -> 0 | Z156: =IF(A2stdlife="n/a","n/a",IF(Z$3>(A2stdlife+$E156),('PTRM input'!$L$264*(1+rvanilla06)^0.5)-SUM($L156:Y156),('PTRM input'!$L$264*(1+rvanilla06)^0.5)/A2stdlife)) -> 0 | AA156: =IF(A2stdlife="n/a","n/a",IF(AA$3>(A2stdlife+$E156),('PTRM input'!$L$264*(1+rvanilla06)^0.5)-SUM($L156:Z156),('PTRM input'!$L$264*(1+rvanilla06)^0.5)/A2stdlife)) -> 0 | AB156: =IF(A2stdlife="n/a","n/a",IF(AB$3>(A2stdlife+$E156),('PTRM input'!$L$264*(1+rvanilla06)^0.5)-SUM($L156:AA156),('PTRM input'!$L$264*(1+rvanilla06)^0.5)/A2stdlife)) -> 0 | AC156: =IF(A2stdlife="n/a","n/a",IF(AC$3>(A2stdlife+$E156),('PTRM input'!$L$264*(1+rvanilla06)^0.5)-SUM($L156:AB156),('PTRM input'!$L$264*(1+rvanilla06)^0.5)/A2stdlife)) -> 0 | AD156: =IF(A2stdlife="n/a","n/a",IF(AD$3>(A2stdlife+$E156),('PTRM input'!$L$264*(1+rvanilla06)^0.5)-SUM($L156:AC156),('PTRM input'!$L$264*(1+rvanilla06)^0.5)/A2stdlife)) -> 0 | AE156: =IF(A2stdlife="n/a","n/a",IF(AE$3>(A2stdlife+$E156),('PTRM input'!$L$264*(1+rvanilla06)^0.5)-SUM($L156:AD156),('PTRM input'!$L$264*(1+rvanilla06)^0.5)/A2stdlife)) -> 0 | AF156: =IF(A2stdlife="n/a","n/a",IF(AF$3>(A2stdlife+$E156),('PTRM input'!$L$264*(1+rvanilla06)^0.5)-SUM($L156:AE156),('PTRM input'!$L$264*(1+rvanilla06)^0.5)/A2stdlife)) -> 0 | AG156: =IF(A2stdlife="n/a","n/a",IF(AG$3>(A2stdlife+$E156),('PTRM input'!$L$264*(1+rvanilla06)^0.5)-SUM($L156:AF156),('PTRM input'!$L$264*(1+rvanilla06)^0.5)/A2stdlife)) -> 0 | AH156: =IF(A2stdlife="n/a","n/a",IF(AH$3>(A2stdlife+$E156),('PTRM input'!$L$264*(1+rvanilla06)^0.5)-SUM($L156:AG156),('PTRM input'!$L$264*(1+rvanilla06)^0.5)/A2stdlife)) -> 0 | AI156: =IF(A2stdlife="n/a","n/a",IF(AI$3>(A2stdlife+$E156),('PTRM input'!$L$264*(1+rvanilla06)^0.5)-SUM($L156:AH156),('PTRM input'!$L$264*(1+rvanilla06)^0.5)/A2stdlife)) -> 0 | AJ156: =IF(A2stdlife="n/a","n/a",IF(AJ$3>(A2stdlife+$E156),('PTRM input'!$L$264*(1+rvanilla06)^0.5)-SUM($L156:AI156),('PTRM input'!$L$264*(1+rvanilla06)^0.5)/A2stdlife)) -> 0 | AK156: =IF(A2stdlife="n/a","n/a",IF(AK$3>(A2stdlife+$E156),('PTRM input'!$L$264*(1+rvanilla06)^0.5)-SUM($L156:AJ156),('PTRM input'!$L$264*(1+rvanilla06)^0.5)/A2stdlife)) -> 0 | AL156: =IF(A2stdlife="n/a","n/a",IF(AL$3>(A2stdlife+$E156),('PTRM input'!$L$264*(1+rvanilla06)^0.5)-SUM($L156:AK156),('PTRM input'!$L$264*(1+rvanilla06)^0.5)/A2stdlife)) -> 0 | AM156: =IF(A2stdlife="n/a","n/a",IF(AM$3>(A2stdlife+$E156),('PTRM input'!$L$264*(1+rvanilla06)^0.5)-SUM($L156:AL156),('PTRM input'!$L$264*(1+rvanilla06)^0.5)/A2stdlife)) -> 0 | AN156: =IF(A2stdlife="n/a","n/a",IF(AN$3>(A2stdlife+$E156),('PTRM input'!$L$264*(1+rvanilla06)^0.5)-SUM($L156:AM156),('PTRM input'!$L$264*(1+rvanilla06)^0.5)/A2stdlife)) -> 0 | AO156: =IF(A2stdlife="n/a","n/a",IF(AO$3>(A2stdlife+$E156),('PTRM input'!$L$264*(1+rvanilla06)^0.5)-SUM($L156:AN156),('PTRM input'!$L$264*(1+rvanilla06)^0.5)/A2stdlife)) -> 0 | AP156: =IF(A2stdlife="n/a","n/a",IF(AP$3>(A2stdlife+$E156),('PTRM input'!$L$264*(1+rvanilla06)^0.5)-SUM($L156:AO156),('PTRM input'!$L$264*(1+rvanilla06)^0.5)/A2stdlife)) -> 0 | AQ156: =IF(A2stdlife="n/a","n/a",IF(AQ$3>(A2stdlife+$E156),('PTRM input'!$L$264*(1+rvanilla06)^0.5)-SUM($L156:AP156),('PTRM input'!$L$264*(1+rvanilla06)^0.5)/A2stdlife)) -> 0 | AR156: =IF(A2stdlife="n/a","n/a",IF(AR$3>(A2stdlife+$E156),('PTRM input'!$L$264*(1+rvanilla06)^0.5)-SUM($L156:AQ156),('PTRM input'!$L$264*(1+rvanilla06)^0.5)/A2stdlife)) -> 0 | AS156: =IF(A2stdlife="n/a","n/a",IF(AS$3>(A2stdlife+$E156),('PTRM input'!$L$264*(1+rvanilla06)^0.5)-SUM($L156:AR156),('PTRM input'!$L$264*(1+rvanilla06)^0.5)/A2stdlife)) -> 0 | AT156: =IF(A2stdlife="n/a","n/a",IF(AT$3>(A2stdlife+$E156),('PTRM input'!$L$264*(1+rvanilla06)^0.5)-SUM($L156:AS156),('PTRM input'!$L$264*(1+rvanilla06)^0.5)/A2stdlife)) -> 0 | AU156: =IF(A2stdlife="n/a","n/a",IF(AU$3>(A2stdlife+$E156),('PTRM input'!$L$264*(1+rvanilla06)^0.5)-SUM($L156:AT156),('PTRM input'!$L$264*(1+rvanilla06)^0.5)/A2stdlife)) -> 0 | AV156: =IF(A2stdlife="n/a","n/a",IF(AV$3>(A2stdlife+$E156),('PTRM input'!$L$264*(1+rvanilla06)^0.5)-SUM($L156:AU156),('PTRM input'!$L$264*(1+rvanilla06)^0.5)/A2stdlife)) -> 0 | AW156: =IF(A2stdlife="n/a","n/a",IF(AW$3>(A2stdlife+$E156),('PTRM input'!$L$264*(1+rvanilla06)^0.5)-SUM($L156:AV156),('PTRM input'!$L$264*(1+rvanilla06)^0.5)/A2stdlife)) -> 0 | AX156: =IF(A2stdlife="n/a","n/a",IF(AX$3>(A2stdlife+$E156),('PTRM input'!$L$264*(1+rvanilla06)^0.5)-SUM($L156:AW156),('PTRM input'!$L$264*(1+rvanilla06)^0.5)/A2stdlife)) -> 0 | AY156: =IF(A2stdlife="n/a","n/a",IF(AY$3>(A2stdlife+$E156),('PTRM input'!$L$264*(1+rvanilla06)^0.5)-SUM($L156:AX156),('PTRM input'!$L$264*(1+rvanilla06)^0.5)/A2stdlife)) -> 0 | AZ156: =IF(A2stdlife="n/a","n/a",IF(AZ$3>(A2stdlife+$E156),('PTRM input'!$L$264*(1+rvanilla06)^0.5)-SUM($L156:AY156),('PTRM input'!$L$264*(1+rvanilla06)^0.5)/A2stdlife)) -> 0 | BA156: =IF(A2stdlife="n/a","n/a",IF(BA$3>(A2stdlife+$E156),('PTRM input'!$L$264*(1+rvanilla06)^0.5)-SUM($L156:AZ156),('PTRM input'!$L$264*(1+rvanilla06)^0.5)/A2stdlife)) -> 0 | BB156: =IF(A2stdlife="n/a","n/a",IF(BB$3>(A2stdlife+$E156),('PTRM input'!$L$264*(1+rvanilla06)^0.5)-SUM($L156:BA156),('PTRM input'!$L$264*(1+rvanilla06)^0.5)/A2stdlife)) -> 0 | BC156: =IF(A2stdlife="n/a","n/a",IF(BC$3>(A2stdlife+$E156),('PTRM input'!$L$264*(1+rvanilla06)^0.5)-SUM($L156:BB156),('PTRM input'!$L$264*(1+rvanilla06)^0.5)/A2stdlife)) -> 0 | BD156: =IF(A2stdlife="n/a","n/a",IF(BD$3>(A2stdlife+$E156),('PTRM input'!$L$264*(1+rvanilla06)^0.5)-SUM($L156:BC156),('PTRM input'!$L$264*(1+rvanilla06)^0.5)/A2stdlife)) -> 0 | BE156: =IF(A2stdlife="n/a","n/a",IF(BE$3>(A2stdlife+$E156),('PTRM input'!$L$264*(1+rvanilla06)^0.5)-SUM($L156:BD156),('PTRM input'!$L$264*(1+rvanilla06)^0.5)/A2stdlife)) -> 0 | BF156: =IF(A2stdlife="n/a","n/a",IF(BF$3>(A2stdlife+$E156),('PTRM input'!$L$264*(1+rvanilla06)^0.5)-SUM($L156:BE156),('PTRM input'!$L$264*(1+rvanilla06)^0.5)/A2stdlife)) -> 0 | BG156: =IF(A2stdlife="n/a","n/a",IF(BG$3>(A2stdlife+$E156),('PTRM input'!$L$264*(1+rvanilla06)^0.5)-SUM($L156:BF156),('PTRM input'!$L$264*(1+rvanilla06)^0.5)/A2stdlife)) -> 0 | BH156: =IF(A2stdlife="n/a","n/a",IF(BH$3>(A2stdlife+$E156),('PTRM input'!$L$264*(1+rvanilla06)^0.5)-SUM($L156:BG156),('PTRM input'!$L$264*(1+rvanilla06)^0.5)/A2stdlife)) -> 0 | BI156: =IF(A2stdlife="n/a","n/a",IF(BI$3>(A2stdlife+$E156),('PTRM input'!$L$264*(1+rvanilla06)^0.5)-SUM($L156:BH156),('PTRM input'!$L$264*(1+rvanilla06)^0.5)/A2stdlife)) -> 0
E157: 7 | N157: =IF(A2stdlife="n/a","n/a",IF(N$3>(A2stdlife+$E157),('PTRM input'!$M$264*(1+rvanilla07)^0.5)-SUM($M157:M157),('PTRM input'!$M$264*(1+rvanilla07)^0.5)/A2stdlife)) -> 0 | O157: =IF(A2stdlife="n/a","n/a",IF(O$3>(A2stdlife+$E157),('PTRM input'!$M$264*(1+rvanilla07)^0.5)-SUM($M157:N157),('PTRM input'!$M$264*(1+rvanilla07)^0.5)/A2stdlife)) -> 0 | P157: =IF(A2stdlife="n/a","n/a",IF(P$3>(A2stdlife+$E157),('PTRM input'!$M$264*(1+rvanilla07)^0.5)-SUM($M157:O157),('PTRM input'!$M$264*(1+rvanilla07)^0.5)/A2stdlife)) -> 0 | Q157: =IF(A2stdlife="n/a","n/a",IF(Q$3>(A2stdlife+$E157),('PTRM input'!$M$264*(1+rvanilla07)^0.5)-SUM($M157:P157),('PTRM input'!$M$264*(1+rvanilla07)^0.5)/A2stdlife)) -> 0 | R157: =IF(A2stdlife="n/a","n/a",IF(R$3>(A2stdlife+$E157),('PTRM input'!$M$264*(1+rvanilla07)^0.5)-SUM($M157:Q157),('PTRM input'!$M$264*(1+rvanilla07)^0.5)/A2stdlife)) -> 0 | S157: =IF(A2stdlife="n/a","n/a",IF(S$3>(A2stdlife+$E157),('PTRM input'!$M$264*(1+rvanilla07)^0.5)-SUM($M157:R157),('PTRM input'!$M$264*(1+rvanilla07)^0.5)/A2stdlife)) -> 0 | T157: =IF(A2stdlife="n/a","n/a",IF(T$3>(A2stdlife+$E157),('PTRM input'!$M$264*(1+rvanilla07)^0.5)-SUM($M157:S157),('PTRM input'!$M$264*(1+rvanilla07)^0.5)/A2stdlife)) -> 0 | U157: =IF(A2stdlife="n/a","n/a",IF(U$3>(A2stdlife+$E157),('PTRM input'!$M$264*(1+rvanilla07)^0.5)-SUM($M157:T157),('PTRM input'!$M$264*(1+rvanilla07)^0.5)/A2stdlife)) -> 0 | V157: =IF(A2stdlife="n/a","n/a",IF(V$3>(A2stdlife+$E157),('PTRM input'!$M$264*(1+rvanilla07)^0.5)-SUM($M157:U157),('PTRM input'!$M$264*(1+rvanilla07)^0.5)/A2stdlife)) -> 0 | W157: =IF(A2stdlife="n/a","n/a",IF(W$3>(A2stdlife+$E157),('PTRM input'!$M$264*(1+rvanilla07)^0.5)-SUM($M157:V157),('PTRM input'!$M$264*(1+rvanilla07)^0.5)/A2stdlife)) -> 0 | X157: =IF(A2stdlife="n/a","n/a",IF(X$3>(A2stdlife+$E157),('PTRM input'!$M$264*(1+rvanilla07)^0.5)-SUM($M157:W157),('PTRM input'!$M$264*(1+rvanilla07)^0.5)/A2stdlife)) -> 0 | Y157: =IF(A2stdlife="n/a","n/a",IF(Y$3>(A2stdlife+$E157),('PTRM input'!$M$264*(1+rvanilla07)^0.5)-SUM($M157:X157),('PTRM input'!$M$264*(1+rvanilla07)^0.5)/A2stdlife)) -> 0 | Z157: =IF(A2stdlife="n/a","n/a",IF(Z$3>(A2stdlife+$E157),('PTRM input'!$M$264*(1+rvanilla07)^0.5)-SUM($M157:Y157),('PTRM input'!$M$264*(1+rvanilla07)^0.5)/A2stdlife)) -> 0 | AA157: =IF(A2stdlife="n/a","n/a",IF(AA$3>(A2stdlife+$E157),('PTRM input'!$M$264*(1+rvanilla07)^0.5)-SUM($M157:Z157),('PTRM input'!$M$264*(1+rvanilla07)^0.5)/A2stdlife)) -> 0 | AB157: =IF(A2stdlife="n/a","n/a",IF(AB$3>(A2stdlife+$E157),('PTRM input'!$M$264*(1+rvanilla07)^0.5)-SUM($M157:AA157),('PTRM input'!$M$264*(1+rvanilla07)^0.5)/A2stdlife)) -> 0 | AC157: =IF(A2stdlife="n/a","n/a",IF(AC$3>(A2stdlife+$E157),('PTRM input'!$M$264*(1+rvanilla07)^0.5)-SUM($M157:AB157),('PTRM input'!$M$264*(1+rvanilla07)^0.5)/A2stdlife)) -> 0 | AD157: =IF(A2stdlife="n/a","n/a",IF(AD$3>(A2stdlife+$E157),('PTRM input'!$M$264*(1+rvanilla07)^0.5)-SUM($M157:AC157),('PTRM input'!$M$264*(1+rvanilla07)^0.5)/A2stdlife)) -> 0 | AE157: =IF(A2stdlife="n/a","n/a",IF(AE$3>(A2stdlife+$E157),('PTRM input'!$M$264*(1+rvanilla07)^0.5)-SUM($M157:AD157),('PTRM input'!$M$264*(1+rvanilla07)^0.5)/A2stdlife)) -> 0 | AF157: =IF(A2stdlife="n/a","n/a",IF(AF$3>(A2stdlife+$E157),('PTRM input'!$M$264*(1+rvanilla07)^0.5)-SUM($M157:AE157),('PTRM input'!$M$264*(1+rvanilla07)^0.5)/A2stdlife)) -> 0 | AG157: =IF(A2stdlife="n/a","n/a",IF(AG$3>(A2stdlife+$E157),('PTRM input'!$M$264*(1+rvanilla07)^0.5)-SUM($M157:AF157),('PTRM input'!$M$264*(1+rvanilla07)^0.5)/A2stdlife)) -> 0 | AH157: =IF(A2stdlife="n/a","n/a",IF(AH$3>(A2stdlife+$E157),('PTRM input'!$M$264*(1+rvanilla07)^0.5)-SUM($M157:AG157),('PTRM input'!$M$264*(1+rvanilla07)^0.5)/A2stdlife)) -> 0 | AI157: =IF(A2stdlife="n/a","n/a",IF(AI$3>(A2stdlife+$E157),('PTRM input'!$M$264*(1+rvanilla07)^0.5)-SUM($M157:AH157),('PTRM input'!$M$264*(1+rvanilla07)^0.5)/A2stdlife)) -> 0 | AJ157: =IF(A2stdlife="n/a","n/a",IF(AJ$3>(A2stdlife+$E157),('PTRM input'!$M$264*(1+rvanilla07)^0.5)-SUM($M157:AI157),('PTRM input'!$M$264*(1+rvanilla07)^0.5)/A2stdlife)) -> 0 | AK157: =IF(A2stdlife="n/a","n/a",IF(AK$3>(A2stdlife+$E157),('PTRM input'!$M$264*(1+rvanilla07)^0.5)-SUM($M157:AJ157),('PTRM input'!$M$264*(1+rvanilla07)^0.5)/A2stdlife)) -> 0 | AL157: =IF(A2stdlife="n/a","n/a",IF(AL$3>(A2stdlife+$E157),('PTRM input'!$M$264*(1+rvanilla07)^0.5)-SUM($M157:AK157),('PTRM input'!$M$264*(1+rvanilla07)^0.5)/A2stdlife)) -> 0 | AM157: =IF(A2stdlife="n/a","n/a",IF(AM$3>(A2stdlife+$E157),('PTRM input'!$M$264*(1+rvanilla07)^0.5)-SUM($M157:AL157),('PTRM input'!$M$264*(1+rvanilla07)^0.5)/A2stdlife)) -> 0 | AN157: =IF(A2stdlife="n/a","n/a",IF(AN$3>(A2stdlife+$E157),('PTRM input'!$M$264*(1+rvanilla07)^0.5)-SUM($M157:AM157),('PTRM input'!$M$264*(1+rvanilla07)^0.5)/A2stdlife)) -> 0 | AO157: =IF(A2stdlife="n/a","n/a",IF(AO$3>(A2stdlife+$E157),('PTRM input'!$M$264*(1+rvanilla07)^0.5)-SUM($M157:AN157),('PTRM input'!$M$264*(1+rvanilla07)^0.5)/A2stdlife)) -> 0 | AP157: =IF(A2stdlife="n/a","n/a",IF(AP$3>(A2stdlife+$E157),('PTRM input'!$M$264*(1+rvanilla07)^0.5)-SUM($M157:AO157),('PTRM input'!$M$264*(1+rvanilla07)^0.5)/A2stdlife)) -> 0 | AQ157: =IF(A2stdlife="n/a","n/a",IF(AQ$3>(A2stdlife+$E157),('PTRM input'!$M$264*(1+rvanilla07)^0.5)-SUM($M157:AP157),('PTRM input'!$M$264*(1+rvanilla07)^0.5)/A2stdlife)) -> 0 | AR157: =IF(A2stdlife="n/a","n/a",IF(AR$3>(A2stdlife+$E157),('PTRM input'!$M$264*(1+rvanilla07)^0.5)-SUM($M157:AQ157),('PTRM input'!$M$264*(1+rvanilla07)^0.5)/A2stdlife)) -> 0 | AS157: =IF(A2stdlife="n/a","n/a",IF(AS$3>(A2stdlife+$E157),('PTRM input'!$M$264*(1+rvanilla07)^0.5)-SUM($M157:AR157),('PTRM input'!$M$264*(1+rvanilla07)^0.5)/A2stdlife)) -> 0 | AT157: =IF(A2stdlife="n/a","n/a",IF(AT$3>(A2stdlife+$E157),('PTRM input'!$M$264*(1+rvanilla07)^0.5)-SUM($M157:AS157),('PTRM input'!$M$264*(1+rvanilla07)^0.5)/A2stdlife)) -> 0 | AU157: =IF(A2stdlife="n/a","n/a",IF(AU$3>(A2stdlife+$E157),('PTRM input'!$M$264*(1+rvanilla07)^0.5)-SUM($M157:AT157),('PTRM input'!$M$264*(1+rvanilla07)^0.5)/A2stdlife)) -> 0 | AV157: =IF(A2stdlife="n/a","n/a",IF(AV$3>(A2stdlife+$E157),('PTRM input'!$M$264*(1+rvanilla07)^0.5)-SUM($M157:AU157),('PTRM input'!$M$264*(1+rvanilla07)^0.5)/A2stdlife)) -> 0 | AW157: =IF(A2stdlife="n/a","n/a",IF(AW$3>(A2stdlife+$E157),('PTRM input'!$M$264*(1+rvanilla07)^0.5)-SUM($M157:AV157),('PTRM input'!$M$264*(1+rvanilla07)^0.5)/A2stdlife)) -> 0 | AX157: =IF(A2stdlife="n/a","n/a",IF(AX$3>(A2stdlife+$E157),('PTRM input'!$M$264*(1+rvanilla07)^0.5)-SUM($M157:AW157),('PTRM input'!$M$264*(1+rvanilla07)^0.5)/A2stdlife)) -> 0 | AY157: =IF(A2stdlife="n/a","n/a",IF(AY$3>(A2stdlife+$E157),('PTRM input'!$M$264*(1+rvanilla07)^0.5)-SUM($M157:AX157),('PTRM input'!$M$264*(1+rvanilla07)^0.5)/A2stdlife)) -> 0 | AZ157: =IF(A2stdlife="n/a","n/a",IF(AZ$3>(A2stdlife+$E157),('PTRM input'!$M$264*(1+rvanilla07)^0.5)-SUM($M157:AY157),('PTRM input'!$M$264*(1+rvanilla07)^0.5)/A2stdlife)) -> 0 | BA157: =IF(A2stdlife="n/a","n/a",IF(BA$3>(A2stdlife+$E157),('PTRM input'!$M$264*(1+rvanilla07)^0.5)-SUM($M157:AZ157),('PTRM input'!$M$264*(1+rvanilla07)^0.5)/A2stdlife)) -> 0 | BB157: =IF(A2stdlife="n/a","n/a",IF(BB$3>(A2stdlife+$E157),('PTRM input'!$M$264*(1+rvanilla07)^0.5)-SUM($M157:BA157),('PTRM input'!$M$264*(1+rvanilla07)^0.5)/A2stdlife)) -> 0 | BC157: =IF(A2stdlife="n/a","n/a",IF(BC$3>(A2stdlife+$E157),('PTRM input'!$M$264*(1+rvanilla07)^0.5)-SUM($M157:BB157),('PTRM input'!$M$264*(1+rvanilla07)^0.5)/A2stdlife)) -> 0 | BD157: =IF(A2stdlife="n/a","n/a",IF(BD$3>(A2stdlife+$E157),('PTRM input'!$M$264*(1+rvanilla07)^0.5)-SUM($M157:BC157),('PTRM input'!$M$264*(1+rvanilla07)^0.5)/A2stdlife)) -> 0 | BE157: =IF(A2stdlife="n/a","n/a",IF(BE$3>(A2stdlife+$E157),('PTRM input'!$M$264*(1+rvanilla07)^0.5)-SUM($M157:BD157),('PTRM input'!$M$264*(1+rvanilla07)^0.5)/A2stdlife)) -> 0 | BF157: =IF(A2stdlife="n/a","n/a",IF(BF$3>(A2stdlife+$E157),('PTRM input'!$M$264*(1+rvanilla07)^0.5)-SUM($M157:BE157),('PTRM input'!$M$264*(1+rvanilla07)^0.5)/A2stdlife)) -> 0 | BG157: =IF(A2stdlife="n/a","n/a",IF(BG$3>(A2stdlife+$E157),('PTRM input'!$M$264*(1+rvanilla07)^0.5)-SUM($M157:BF157),('PTRM input'!$M$264*(1+rvanilla07)^0.5)/A2stdlife)) -> 0 | BH157: =IF(A2stdlife="n/a","n/a",IF(BH$3>(A2stdlife+$E157),('PTRM input'!$M$264*(1+rvanilla07)^0.5)-SUM($M157:BG157),('PTRM input'!$M$264*(1+rvanilla07)^0.5)/A2stdlife)) -> 0 | BI157: =IF(A2stdlife="n/a","n/a",IF(BI$3>(A2stdlife+$E157),('PTRM input'!$M$264*(1+rvanilla07)^0.5)-SUM($M157:BH157),('PTRM input'!$M$264*(1+rvanilla07)^0.5)/A2stdlife)) -> 0
E158: 8 | O158: =IF(A2stdlife="n/a","n/a",IF(O$3>(A2stdlife+$E158),('PTRM input'!$N$264*(1+rvanilla08)^0.5)-SUM($N158:N158),('PTRM input'!$N$264*(1+rvanilla08)^0.5)/A2stdlife)) -> 0 | P158: =IF(A2stdlife="n/a","n/a",IF(P$3>(A2stdlife+$E158),('PTRM input'!$N$264*(1+rvanilla08)^0.5)-SUM($N158:O158),('PTRM input'!$N$264*(1+rvanilla08)^0.5)/A2stdlife)) -> 0 | Q158: =IF(A2stdlife="n/a","n/a",IF(Q$3>(A2stdlife+$E158),('PTRM input'!$N$264*(1+rvanilla08)^0.5)-SUM($N158:P158),('PTRM input'!$N$264*(1+rvanilla08)^0.5)/A2stdlife)) -> 0 | R158: =IF(A2stdlife="n/a","n/a",IF(R$3>(A2stdlife+$E158),('PTRM input'!$N$264*(1+rvanilla08)^0.5)-SUM($N158:Q158),('PTRM input'!$N$264*(1+rvanilla08)^0.5)/A2stdlife)) -> 0 | S158: =IF(A2stdlife="n/a","n/a",IF(S$3>(A2stdlife+$E158),('PTRM input'!$N$264*(1+rvanilla08)^0.5)-SUM($N158:R158),('PTRM input'!$N$264*(1+rvanilla08)^0.5)/A2stdlife)) -> 0 | T158: =IF(A2stdlife="n/a","n/a",IF(T$3>(A2stdlife+$E158),('PTRM input'!$N$264*(1+rvanilla08)^0.5)-SUM($N158:S158),('PTRM input'!$N$264*(1+rvanilla08)^0.5)/A2stdlife)) -> 0 | U158: =IF(A2stdlife="n/a","n/a",IF(U$3>(A2stdlife+$E158),('PTRM input'!$N$264*(1+rvanilla08)^0.5)-SUM($N158:T158),('PTRM input'!$N$264*(1+rvanilla08)^0.5)/A2stdlife)) -> 0 | V158: =IF(A2stdlife="n/a","n/a",IF(V$3>(A2stdlife+$E158),('PTRM input'!$N$264*(1+rvanilla08)^0.5)-SUM($N158:U158),('PTRM input'!$N$264*(1+rvanilla08)^0.5)/A2stdlife)) -> 0 | W158: =IF(A2stdlife="n/a","n/a",IF(W$3>(A2stdlife+$E158),('PTRM input'!$N$264*(1+rvanilla08)^0.5)-SUM($N158:V158),('PTRM input'!$N$264*(1+rvanilla08)^0.5)/A2stdlife)) -> 0 | X158: =IF(A2stdlife="n/a","n/a",IF(X$3>(A2stdlife+$E158),('PTRM input'!$N$264*(1+rvanilla08)^0.5)-SUM($N158:W158),('PTRM input'!$N$264*(1+rvanilla08)^0.5)/A2stdlife)) -> 0 | Y158: =IF(A2stdlife="n/a","n/a",IF(Y$3>(A2stdlife+$E158),('PTRM input'!$N$264*(1+rvanilla08)^0.5)-SUM($N158:X158),('PTRM input'!$N$264*(1+rvanilla08)^0.5)/A2stdlife)) -> 0 | Z158: =IF(A2stdlife="n/a","n/a",IF(Z$3>(A2stdlife+$E158),('PTRM input'!$N$264*(1+rvanilla08)^0.5)-SUM($N158:Y158),('PTRM input'!$N$264*(1+rvanilla08)^0.5)/A2stdlife)) -> 0 | AA158: =IF(A2stdlife="n/a","n/a",IF(AA$3>(A2stdlife+$E158),('PTRM input'!$N$264*(1+rvanilla08)^0.5)-SUM($N158:Z158),('PTRM input'!$N$264*(1+rvanilla08)^0.5)/A2stdlife)) -> 0 | AB158: =IF(A2stdlife="n/a","n/a",IF(AB$3>(A2stdlife+$E158),('PTRM input'!$N$264*(1+rvanilla08)^0.5)-SUM($N158:AA158),('PTRM input'!$N$264*(1+rvanilla08)^0.5)/A2stdlife)) -> 0 | AC158: =IF(A2stdlife="n/a","n/a",IF(AC$3>(A2stdlife+$E158),('PTRM input'!$N$264*(1+rvanilla08)^0.5)-SUM($N158:AB158),('PTRM input'!$N$264*(1+rvanilla08)^0.5)/A2stdlife)) -> 0 | AD158: =IF(A2stdlife="n/a","n/a",IF(AD$3>(A2stdlife+$E158),('PTRM input'!$N$264*(1+rvanilla08)^0.5)-SUM($N158:AC158),('PTRM input'!$N$264*(1+rvanilla08)^0.5)/A2stdlife)) -> 0 | AE158: =IF(A2stdlife="n/a","n/a",IF(AE$3>(A2stdlife+$E158),('PTRM input'!$N$264*(1+rvanilla08)^0.5)-SUM($N158:AD158),('PTRM input'!$N$264*(1+rvanilla08)^0.5)/A2stdlife)) -> 0 | AF158: =IF(A2stdlife="n/a","n/a",IF(AF$3>(A2stdlife+$E158),('PTRM input'!$N$264*(1+rvanilla08)^0.5)-SUM($N158:AE158),('PTRM input'!$N$264*(1+rvanilla08)^0.5)/A2stdlife)) -> 0 | AG158: =IF(A2stdlife="n/a","n/a",IF(AG$3>(A2stdlife+$E158),('PTRM input'!$N$264*(1+rvanilla08)^0.5)-SUM($N158:AF158),('PTRM input'!$N$264*(1+rvanilla08)^0.5)/A2stdlife)) -> 0 | AH158: =IF(A2stdlife="n/a","n/a",IF(AH$3>(A2stdlife+$E158),('PTRM input'!$N$264*(1+rvanilla08)^0.5)-SUM($N158:AG158),('PTRM input'!$N$264*(1+rvanilla08)^0.5)/A2stdlife)) -> 0 | AI158: =IF(A2stdlife="n/a","n/a",IF(AI$3>(A2stdlife+$E158),('PTRM input'!$N$264*(1+rvanilla08)^0.5)-SUM($N158:AH158),('PTRM input'!$N$264*(1+rvanilla08)^0.5)/A2stdlife)) -> 0 | AJ158: =IF(A2stdlife="n/a","n/a",IF(AJ$3>(A2stdlife+$E158),('PTRM input'!$N$264*(1+rvanilla08)^0.5)-SUM($N158:AI158),('PTRM input'!$N$264*(1+rvanilla08)^0.5)/A2stdlife)) -> 0 | AK158: =IF(A2stdlife="n/a","n/a",IF(AK$3>(A2stdlife+$E158),('PTRM input'!$N$264*(1+rvanilla08)^0.5)-SUM($N158:AJ158),('PTRM input'!$N$264*(1+rvanilla08)^0.5)/A2stdlife)) -> 0 | AL158: =IF(A2stdlife="n/a","n/a",IF(AL$3>(A2stdlife+$E158),('PTRM input'!$N$264*(1+rvanilla08)^0.5)-SUM($N158:AK158),('PTRM input'!$N$264*(1+rvanilla08)^0.5)/A2stdlife)) -> 0 | AM158: =IF(A2stdlife="n/a","n/a",IF(AM$3>(A2stdlife+$E158),('PTRM input'!$N$264*(1+rvanilla08)^0.5)-SUM($N158:AL158),('PTRM input'!$N$264*(1+rvanilla08)^0.5)/A2stdlife)) -> 0 | AN158: =IF(A2stdlife="n/a","n/a",IF(AN$3>(A2stdlife+$E158),('PTRM input'!$N$264*(1+rvanilla08)^0.5)-SUM($N158:AM158),('PTRM input'!$N$264*(1+rvanilla08)^0.5)/A2stdlife)) -> 0 | AO158: =IF(A2stdlife="n/a","n/a",IF(AO$3>(A2stdlife+$E158),('PTRM input'!$N$264*(1+rvanilla08)^0.5)-SUM($N158:AN158),('PTRM input'!$N$264*(1+rvanilla08)^0.5)/A2stdlife)) -> 0 | AP158: =IF(A2stdlife="n/a","n/a",IF(AP$3>(A2stdlife+$E158),('PTRM input'!$N$264*(1+rvanilla08)^0.5)-SUM($N158:AO158),('PTRM input'!$N$264*(1+rvanilla08)^0.5)/A2stdlife)) -> 0 | AQ158: =IF(A2stdlife="n/a","n/a",IF(AQ$3>(A2stdlife+$E158),('PTRM input'!$N$264*(1+rvanilla08)^0.5)-SUM($N158:AP158),('PTRM input'!$N$264*(1+rvanilla08)^0.5)/A2stdlife)) -> 0 | AR158: =IF(A2stdlife="n/a","n/a",IF(AR$3>(A2stdlife+$E158),('PTRM input'!$N$264*(1+rvanilla08)^0.5)-SUM($N158:AQ158),('PTRM input'!$N$264*(1+rvanilla08)^0.5)/A2stdlife)) -> 0 | AS158: =IF(A2stdlife="n/a","n/a",IF(AS$3>(A2stdlife+$E158),('PTRM input'!$N$264*(1+rvanilla08)^0.5)-SUM($N158:AR158),('PTRM input'!$N$264*(1+rvanilla08)^0.5)/A2stdlife)) -> 0 | AT158: =IF(A2stdlife="n/a","n/a",IF(AT$3>(A2stdlife+$E158),('PTRM input'!$N$264*(1+rvanilla08)^0.5)-SUM($N158:AS158),('PTRM input'!$N$264*(1+rvanilla08)^0.5)/A2stdlife)) -> 0 | AU158: =IF(A2stdlife="n/a","n/a",IF(AU$3>(A2stdlife+$E158),('PTRM input'!$N$264*(1+rvanilla08)^0.5)-SUM($N158:AT158),('PTRM input'!$N$264*(1+rvanilla08)^0.5)/A2stdlife)) -> 0 | AV158: =IF(A2stdlife="n/a","n/a",IF(AV$3>(A2stdlife+$E158),('PTRM input'!$N$264*(1+rvanilla08)^0.5)-SUM($N158:AU158),('PTRM input'!$N$264*(1+rvanilla08)^0.5)/A2stdlife)) -> 0 | AW158: =IF(A2stdlife="n/a","n/a",IF(AW$3>(A2stdlife+$E158),('PTRM input'!$N$264*(1+rvanilla08)^0.5)-SUM($N158:AV158),('PTRM input'!$N$264*(1+rvanilla08)^0.5)/A2stdlife)) -> 0 | AX158: =IF(A2stdlife="n/a","n/a",IF(AX$3>(A2stdlife+$E158),('PTRM input'!$N$264*(1+rvanilla08)^0.5)-SUM($N158:AW158),('PTRM input'!$N$264*(1+rvanilla08)^0.5)/A2stdlife)) -> 0 | AY158: =IF(A2stdlife="n/a","n/a",IF(AY$3>(A2stdlife+$E158),('PTRM input'!$N$264*(1+rvanilla08)^0.5)-SUM($N158:AX158),('PTRM input'!$N$264*(1+rvanilla08)^0.5)/A2stdlife)) -> 0 | AZ158: =IF(A2stdlife="n/a","n/a",IF(AZ$3>(A2stdlife+$E158),('PTRM input'!$N$264*(1+rvanilla08)^0.5)-SUM($N158:AY158),('PTRM input'!$N$264*(1+rvanilla08)^0.5)/A2stdlife)) -> 0 | BA158: =IF(A2stdlife="n/a","n/a",IF(BA$3>(A2stdlife+$E158),('PTRM input'!$N$264*(1+rvanilla08)^0.5)-SUM($N158:AZ158),('PTRM input'!$N$264*(1+rvanilla08)^0.5)/A2stdlife)) -> 0 | BB158: =IF(A2stdlife="n/a","n/a",IF(BB$3>(A2stdlife+$E158),('PTRM input'!$N$264*(1+rvanilla08)^0.5)-SUM($N158:BA158),('PTRM input'!$N$264*(1+rvanilla08)^0.5)/A2stdlife)) -> 0 | BC158: =IF(A2stdlife="n/a","n/a",IF(BC$3>(A2stdlife+$E158),('PTRM input'!$N$264*(1+rvanilla08)^0.5)-SUM($N158:BB158),('PTRM input'!$N$264*(1+rvanilla08)^0.5)/A2stdlife)) -> 0 | BD158: =IF(A2stdlife="n/a","n/a",IF(BD$3>(A2stdlife+$E158),('PTRM input'!$N$264*(1+rvanilla08)^0.5)-SUM($N158:BC158),('PTRM input'!$N$264*(1+rvanilla08)^0.5)/A2stdlife)) -> 0 | BE158: =IF(A2stdlife="n/a","n/a",IF(BE$3>(A2stdlife+$E158),('PTRM input'!$N$264*(1+rvanilla08)^0.5)-SUM($N158:BD158),('PTRM input'!$N$264*(1+rvanilla08)^0.5)/A2stdlife)) -> 0 | BF158: =IF(A2stdlife="n/a","n/a",IF(BF$3>(A2stdlife+$E158),('PTRM input'!$N$264*(1+rvanilla08)^0.5)-SUM($N158:BE158),('PTRM input'!$N$264*(1+rvanilla08)^0.5)/A2stdlife)) -> 0 | BG158: =IF(A2stdlife="n/a","n/a",IF(BG$3>(A2stdlife+$E158),('PTRM input'!$N$264*(1+rvanilla08)^0.5)-SUM($N158:BF158),('PTRM input'!$N$264*(1+rvanilla08)^0.5)/A2stdlife)) -> 0 | BH158: =IF(A2stdlife="n/a","n/a",IF(BH$3>(A2stdlife+$E158),('PTRM input'!$N$264*(1+rvanilla08)^0.5)-SUM($N158:BG158),('PTRM input'!$N$264*(1+rvanilla08)^0.5)/A2stdlife)) -> 0 | BI158: =IF(A2stdlife="n/a","n/a",IF(BI$3>(A2stdlife+$E158),('PTRM input'!$N$264*(1+rvanilla08)^0.5)-SUM($N158:BH158),('PTRM input'!$N$264*(1+rvanilla08)^0.5)/A2stdlife)) -> 0
E159: 9 | P159: =IF(A2stdlife="n/a","n/a",IF(P$3>(A2stdlife+$E159),('PTRM input'!$O$264*(1+rvanilla09)^0.5)-SUM($O159:O159),('PTRM input'!$O$264*(1+rvanilla09)^0.5)/A2stdlife)) -> 0 | Q159: =IF(A2stdlife="n/a","n/a",IF(Q$3>(A2stdlife+$E159),('PTRM input'!$O$264*(1+rvanilla09)^0.5)-SUM($O159:P159),('PTRM input'!$O$264*(1+rvanilla09)^0.5)/A2stdlife)) -> 0 | R159: =IF(A2stdlife="n/a","n/a",IF(R$3>(A2stdlife+$E159),('PTRM input'!$O$264*(1+rvanilla09)^0.5)-SUM($O159:Q159),('PTRM input'!$O$264*(1+rvanilla09)^0.5)/A2stdlife)) -> 0 | S159: =IF(A2stdlife="n/a","n/a",IF(S$3>(A2stdlife+$E159),('PTRM input'!$O$264*(1+rvanilla09)^0.5)-SUM($O159:R159),('PTRM input'!$O$264*(1+rvanilla09)^0.5)/A2stdlife)) -> 0 | T159: =IF(A2stdlife="n/a","n/a",IF(T$3>(A2stdlife+$E159),('PTRM input'!$O$264*(1+rvanilla09)^0.5)-SUM($O159:S159),('PTRM input'!$O$264*(1+rvanilla09)^0.5)/A2stdlife)) -> 0 | U159: =IF(A2stdlife="n/a","n/a",IF(U$3>(A2stdlife+$E159),('PTRM input'!$O$264*(1+rvanilla09)^0.5)-SUM($O159:T159),('PTRM input'!$O$264*(1+rvanilla09)^0.5)/A2stdlife)) -> 0 | V159: =IF(A2stdlife="n/a","n/a",IF(V$3>(A2stdlife+$E159),('PTRM input'!$O$264*(1+rvanilla09)^0.5)-SUM($O159:U159),('PTRM input'!$O$264*(1+rvanilla09)^0.5)/A2stdlife)) -> 0 | W159: =IF(A2stdlife="n/a","n/a",IF(W$3>(A2stdlife+$E159),('PTRM input'!$O$264*(1+rvanilla09)^0.5)-SUM($O159:V159),('PTRM input'!$O$264*(1+rvanilla09)^0.5)/A2stdlife)) -> 0 | X159: =IF(A2stdlife="n/a","n/a",IF(X$3>(A2stdlife+$E159),('PTRM input'!$O$264*(1+rvanilla09)^0.5)-SUM($O159:W159),('PTRM input'!$O$264*(1+rvanilla09)^0.5)/A2stdlife)) -> 0 | Y159: =IF(A2stdlife="n/a","n/a",IF(Y$3>(A2stdlife+$E159),('PTRM input'!$O$264*(1+rvanilla09)^0.5)-SUM($O159:X159),('PTRM input'!$O$264*(1+rvanilla09)^0.5)/A2stdlife)) -> 0 | Z159: =IF(A2stdlife="n/a","n/a",IF(Z$3>(A2stdlife+$E159),('PTRM input'!$O$264*(1+rvanilla09)^0.5)-SUM($O159:Y159),('PTRM input'!$O$264*(1+rvanilla09)^0.5)/A2stdlife)) -> 0 | AA159: =IF(A2stdlife="n/a","n/a",IF(AA$3>(A2stdlife+$E159),('PTRM input'!$O$264*(1+rvanilla09)^0.5)-SUM($O159:Z159),('PTRM input'!$O$264*(1+rvanilla09)^0.5)/A2stdlife)) -> 0 | AB159: =IF(A2stdlife="n/a","n/a",IF(AB$3>(A2stdlife+$E159),('PTRM input'!$O$264*(1+rvanilla09)^0.5)-SUM($O159:AA159),('PTRM input'!$O$264*(1+rvanilla09)^0.5)/A2stdlife)) -> 0 | AC159: =IF(A2stdlife="n/a","n/a",IF(AC$3>(A2stdlife+$E159),('PTRM input'!$O$264*(1+rvanilla09)^0.5)-SUM($O159:AB159),('PTRM input'!$O$264*(1+rvanilla09)^0.5)/A2stdlife)) -> 0 | AD159: =IF(A2stdlife="n/a","n/a",IF(AD$3>(A2stdlife+$E159),('PTRM input'!$O$264*(1+rvanilla09)^0.5)-SUM($O159:AC159),('PTRM input'!$O$264*(1+rvanilla09)^0.5)/A2stdlife)) -> 0 | AE159: =IF(A2stdlife="n/a","n/a",IF(AE$3>(A2stdlife+$E159),('PTRM input'!$O$264*(1+rvanilla09)^0.5)-SUM($O159:AD159),('PTRM input'!$O$264*(1+rvanilla09)^0.5)/A2stdlife)) -> 0 | AF159: =IF(A2stdlife="n/a","n/a",IF(AF$3>(A2stdlife+$E159),('PTRM input'!$O$264*(1+rvanilla09)^0.5)-SUM($O159:AE159),('PTRM input'!$O$264*(1+rvanilla09)^0.5)/A2stdlife)) -> 0 | AG159: =IF(A2stdlife="n/a","n/a",IF(AG$3>(A2stdlife+$E159),('PTRM input'!$O$264*(1+rvanilla09)^0.5)-SUM($O159:AF159),('PTRM input'!$O$264*(1+rvanilla09)^0.5)/A2stdlife)) -> 0 | AH159: =IF(A2stdlife="n/a","n/a",IF(AH$3>(A2stdlife+$E159),('PTRM input'!$O$264*(1+rvanilla09)^0.5)-SUM($O159:AG159),('PTRM input'!$O$264*(1+rvanilla09)^0.5)/A2stdlife)) -> 0 | AI159: =IF(A2stdlife="n/a","n/a",IF(AI$3>(A2stdlife+$E159),('PTRM input'!$O$264*(1+rvanilla09)^0.5)-SUM($O159:AH159),('PTRM input'!$O$264*(1+rvanilla09)^0.5)/A2stdlife)) -> 0 | AJ159: =IF(A2stdlife="n/a","n/a",IF(AJ$3>(A2stdlife+$E159),('PTRM input'!$O$264*(1+rvanilla09)^0.5)-SUM($O159:AI159),('PTRM input'!$O$264*(1+rvanilla09)^0.5)/A2stdlife)) -> 0 | AK159: =IF(A2stdlife="n/a","n/a",IF(AK$3>(A2stdlife+$E159),('PTRM input'!$O$264*(1+rvanilla09)^0.5)-SUM($O159:AJ159),('PTRM input'!$O$264*(1+rvanilla09)^0.5)/A2stdlife)) -> 0 | AL159: =IF(A2stdlife="n/a","n/a",IF(AL$3>(A2stdlife+$E159),('PTRM input'!$O$264*(1+rvanilla09)^0.5)-SUM($O159:AK159),('PTRM input'!$O$264*(1+rvanilla09)^0.5)/A2stdlife)) -> 0 | AM159: =IF(A2stdlife="n/a","n/a",IF(AM$3>(A2stdlife+$E159),('PTRM input'!$O$264*(1+rvanilla09)^0.5)-SUM($O159:AL159),('PTRM input'!$O$264*(1+rvanilla09)^0.5)/A2stdlife)) -> 0 | AN159: =IF(A2stdlife="n/a","n/a",IF(AN$3>(A2stdlife+$E159),('PTRM input'!$O$264*(1+rvanilla09)^0.5)-SUM($O159:AM159),('PTRM input'!$O$264*(1+rvanilla09)^0.5)/A2stdlife)) -> 0 | AO159: =IF(A2stdlife="n/a","n/a",IF(AO$3>(A2stdlife+$E159),('PTRM input'!$O$264*(1+rvanilla09)^0.5)-SUM($O159:AN159),('PTRM input'!$O$264*(1+rvanilla09)^0.5)/A2stdlife)) -> 0 | AP159: =IF(A2stdlife="n/a","n/a",IF(AP$3>(A2stdlife+$E159),('PTRM input'!$O$264*(1+rvanilla09)^0.5)-SUM($O159:AO159),('PTRM input'!$O$264*(1+rvanilla09)^0.5)/A2stdlife)) -> 0 | AQ159: =IF(A2stdlife="n/a","n/a",IF(AQ$3>(A2stdlife+$E159),('PTRM input'!$O$264*(1+rvanilla09)^0.5)-SUM($O159:AP159),('PTRM input'!$O$264*(1+rvanilla09)^0.5)/A2stdlife)) -> 0 | AR159: =IF(A2stdlife="n/a","n/a",IF(AR$3>(A2stdlife+$E159),('PTRM input'!$O$264*(1+rvanilla09)^0.5)-SUM($O159:AQ159),('PTRM input'!$O$264*(1+rvanilla09)^0.5)/A2stdlife)) -> 0 | AS159: =IF(A2stdlife="n/a","n/a",IF(AS$3>(A2stdlife+$E159),('PTRM input'!$O$264*(1+rvanilla09)^0.5)-SUM($O159:AR159),('PTRM input'!$O$264*(1+rvanilla09)^0.5)/A2stdlife)) -> 0 | AT159: =IF(A2stdlife="n/a","n/a",IF(AT$3>(A2stdlife+$E159),('PTRM input'!$O$264*(1+rvanilla09)^0.5)-SUM($O159:AS159),('PTRM input'!$O$264*(1+rvanilla09)^0.5)/A2stdlife)) -> 0 | AU159: =IF(A2stdlife="n/a","n/a",IF(AU$3>(A2stdlife+$E159),('PTRM input'!$O$264*(1+rvanilla09)^0.5)-SUM($O159:AT159),('PTRM input'!$O$264*(1+rvanilla09)^0.5)/A2stdlife)) -> 0 | AV159: =IF(A2stdlife="n/a","n/a",IF(AV$3>(A2stdlife+$E159),('PTRM input'!$O$264*(1+rvanilla09)^0.5)-SUM($O159:AU159),('PTRM input'!$O$264*(1+rvanilla09)^0.5)/A2stdlife)) -> 0 | AW159: =IF(A2stdlife="n/a","n/a",IF(AW$3>(A2stdlife+$E159),('PTRM input'!$O$264*(1+rvanilla09)^0.5)-SUM($O159:AV159),('PTRM input'!$O$264*(1+rvanilla09)^0.5)/A2stdlife)) -> 0 | AX159: =IF(A2stdlife="n/a","n/a",IF(AX$3>(A2stdlife+$E159),('PTRM input'!$O$264*(1+rvanilla09)^0.5)-SUM($O159:AW159),('PTRM input'!$O$264*(1+rvanilla09)^0.5)/A2stdlife)) -> 0 | AY159: =IF(A2stdlife="n/a","n/a",IF(AY$3>(A2stdlife+$E159),('PTRM input'!$O$264*(1+rvanilla09)^0.5)-SUM($O159:AX159),('PTRM input'!$O$264*(1+rvanilla09)^0.5)/A2stdlife)) -> 0 | AZ159: =IF(A2stdlife="n/a","n/a",IF(AZ$3>(A2stdlife+$E159),('PTRM input'!$O$264*(1+rvanilla09)^0.5)-SUM($O159:AY159),('PTRM input'!$O$264*(1+rvanilla09)^0.5)/A2stdlife)) -> 0 | BA159: =IF(A2stdlife="n/a","n/a",IF(BA$3>(A2stdlife+$E159),('PTRM input'!$O$264*(1+rvanilla09)^0.5)-SUM($O159:AZ159),('PTRM input'!$O$264*(1+rvanilla09)^0.5)/A2stdlife)) -> 0 | BB159: =IF(A2stdlife="n/a","n/a",IF(BB$3>(A2stdlife+$E159),('PTRM input'!$O$264*(1+rvanilla09)^0.5)-SUM($O159:BA159),('PTRM input'!$O$264*(1+rvanilla09)^0.5)/A2stdlife)) -> 0 | BC159: =IF(A2stdlife="n/a","n/a",IF(BC$3>(A2stdlife+$E159),('PTRM input'!$O$264*(1+rvanilla09)^0.5)-SUM($O159:BB159),('PTRM input'!$O$264*(1+rvanilla09)^0.5)/A2stdlife)) -> 0 | BD159: =IF(A2stdlife="n/a","n/a",IF(BD$3>(A2stdlife+$E159),('PTRM input'!$O$264*(1+rvanilla09)^0.5)-SUM($O159:BC159),('PTRM input'!$O$264*(1+rvanilla09)^0.5)/A2stdlife)) -> 0 | BE159: =IF(A2stdlife="n/a","n/a",IF(BE$3>(A2stdlife+$E159),('PTRM input'!$O$264*(1+rvanilla09)^0.5)-SUM($O159:BD159),('PTRM input'!$O$264*(1+rvanilla09)^0.5)/A2stdlife)) -> 0 | BF159: =IF(A2stdlife="n/a","n/a",IF(BF$3>(A2stdlife+$E159),('PTRM input'!$O$264*(1+rvanilla09)^0.5)-SUM($O159:BE159),('PTRM input'!$O$264*(1+rvanilla09)^0.5)/A2stdlife)) -> 0 | BG159: =IF(A2stdlife="n/a","n/a",IF(BG$3>(A2stdlife+$E159),('PTRM input'!$O$264*(1+rvanilla09)^0.5)-SUM($O159:BF159),('PTRM input'!$O$264*(1+rvanilla09)^0.5)/A2stdlife)) -> 0 | BH159: =IF(A2stdlife="n/a","n/a",IF(BH$3>(A2stdlife+$E159),('PTRM input'!$O$264*(1+rvanilla09)^0.5)-SUM($O159:BG159),('PTRM input'!$O$264*(1+rvanilla09)^0.5)/A2stdlife)) -> 0 | BI159: =IF(A2stdlife="n/a","n/a",IF(BI$3>(A2stdlife+$E159),('PTRM input'!$O$264*(1+rvanilla09)^0.5)-SUM($O159:BH159),('PTRM input'!$O$264*(1+rvanilla09)^0.5)/A2stdlife)) -> 0
E160: 10 | Q160: =IF(A2stdlife="n/a","n/a",IF(Q$3>(A2stdlife+$E160),('PTRM input'!$P$264*(1+rvanilla10)^0.5)-SUM($P160:P160),('PTRM input'!$P$264*(1+rvanilla10)^0.5)/A2stdlife)) -> 0 | R160: =IF(A2stdlife="n/a","n/a",IF(R$3>(A2stdlife+$E160),('PTRM input'!$P$264*(1+rvanilla10)^0.5)-SUM($P160:Q160),('PTRM input'!$P$264*(1+rvanilla10)^0.5)/A2stdlife)) -> 0 | S160: =IF(A2stdlife="n/a","n/a",IF(S$3>(A2stdlife+$E160),('PTRM input'!$P$264*(1+rvanilla10)^0.5)-SUM($P160:R160),('PTRM input'!$P$264*(1+rvanilla10)^0.5)/A2stdlife)) -> 0 | T160: =IF(A2stdlife="n/a","n/a",IF(T$3>(A2stdlife+$E160),('PTRM input'!$P$264*(1+rvanilla10)^0.5)-SUM($P160:S160),('PTRM input'!$P$264*(1+rvanilla10)^0.5)/A2stdlife)) -> 0 | U160: =IF(A2stdlife="n/a","n/a",IF(U$3>(A2stdlife+$E160),('PTRM input'!$P$264*(1+rvanilla10)^0.5)-SUM($P160:T160),('PTRM input'!$P$264*(1+rvanilla10)^0.5)/A2stdlife)) -> 0 | V160: =IF(A2stdlife="n/a","n/a",IF(V$3>(A2stdlife+$E160),('PTRM input'!$P$264*(1+rvanilla10)^0.5)-SUM($P160:U160),('PTRM input'!$P$264*(1+rvanilla10)^0.5)/A2stdlife)) -> 0 | W160: =IF(A2stdlife="n/a","n/a",IF(W$3>(A2stdlife+$E160),('PTRM input'!$P$264*(1+rvanilla10)^0.5)-SUM($P160:V160),('PTRM input'!$P$264*(1+rvanilla10)^0.5)/A2stdlife)) -> 0 | X160: =IF(A2stdlife="n/a","n/a",IF(X$3>(A2stdlife+$E160),('PTRM input'!$P$264*(1+rvanilla10)^0.5)-SUM($P160:W160),('PTRM input'!$P$264*(1+rvanilla10)^0.5)/A2stdlife)) -> 0 | Y160: =IF(A2stdlife="n/a","n/a",IF(Y$3>(A2stdlife+$E160),('PTRM input'!$P$264*(1+rvanilla10)^0.5)-SUM($P160:X160),('PTRM input'!$P$264*(1+rvanilla10)^0.5)/A2stdlife)) -> 0 | Z160: =IF(A2stdlife="n/a","n/a",IF(Z$3>(A2stdlife+$E160),('PTRM input'!$P$264*(1+rvanilla10)^0.5)-SUM($P160:Y160),('PTRM input'!$P$264*(1+rvanilla10)^0.5)/A2stdlife)) -> 0 | AA160: =IF(A2stdlife="n/a","n/a",IF(AA$3>(A2stdlife+$E160),('PTRM input'!$P$264*(1+rvanilla10)^0.5)-SUM($P160:Z160),('PTRM input'!$P$264*(1+rvanilla10)^0.5)/A2stdlife)) -> 0 | AB160: =IF(A2stdlife="n/a","n/a",IF(AB$3>(A2stdlife+$E160),('PTRM input'!$P$264*(1+rvanilla10)^0.5)-SUM($P160:AA160),('PTRM input'!$P$264*(1+rvanilla10)^0.5)/A2stdlife)) -> 0 | AC160: =IF(A2stdlife="n/a","n/a",IF(AC$3>(A2stdlife+$E160),('PTRM input'!$P$264*(1+rvanilla10)^0.5)-SUM($P160:AB160),('PTRM input'!$P$264*(1+rvanilla10)^0.5)/A2stdlife)) -> 0 | AD160: =IF(A2stdlife="n/a","n/a",IF(AD$3>(A2stdlife+$E160),('PTRM input'!$P$264*(1+rvanilla10)^0.5)-SUM($P160:AC160),('PTRM input'!$P$264*(1+rvanilla10)^0.5)/A2stdlife)) -> 0 | AE160: =IF(A2stdlife="n/a","n/a",IF(AE$3>(A2stdlife+$E160),('PTRM input'!$P$264*(1+rvanilla10)^0.5)-SUM($P160:AD160),('PTRM input'!$P$264*(1+rvanilla10)^0.5)/A2stdlife)) -> 0 | AF160: =IF(A2stdlife="n/a","n/a",IF(AF$3>(A2stdlife+$E160),('PTRM input'!$P$264*(1+rvanilla10)^0.5)-SUM($P160:AE160),('PTRM input'!$P$264*(1+rvanilla10)^0.5)/A2stdlife)) -> 0 | AG160: =IF(A2stdlife="n/a","n/a",IF(AG$3>(A2stdlife+$E160),('PTRM input'!$P$264*(1+rvanilla10)^0.5)-SUM($P160:AF160),('PTRM input'!$P$264*(1+rvanilla10)^0.5)/A2stdlife)) -> 0 | AH160: =IF(A2stdlife="n/a","n/a",IF(AH$3>(A2stdlife+$E160),('PTRM input'!$P$264*(1+rvanilla10)^0.5)-SUM($P160:AG160),('PTRM input'!$P$264*(1+rvanilla10)^0.5)/A2stdlife)) -> 0 | AI160: =IF(A2stdlife="n/a","n/a",IF(AI$3>(A2stdlife+$E160),('PTRM input'!$P$264*(1+rvanilla10)^0.5)-SUM($P160:AH160),('PTRM input'!$P$264*(1+rvanilla10)^0.5)/A2stdlife)) -> 0 | AJ160: =IF(A2stdlife="n/a","n/a",IF(AJ$3>(A2stdlife+$E160),('PTRM input'!$P$264*(1+rvanilla10)^0.5)-SUM($P160:AI160),('PTRM input'!$P$264*(1+rvanilla10)^0.5)/A2stdlife)) -> 0 | AK160: =IF(A2stdlife="n/a","n/a",IF(AK$3>(A2stdlife+$E160),('PTRM input'!$P$264*(1+rvanilla10)^0.5)-SUM($P160:AJ160),('PTRM input'!$P$264*(1+rvanilla10)^0.5)/A2stdlife)) -> 0 | AL160: =IF(A2stdlife="n/a","n/a",IF(AL$3>(A2stdlife+$E160),('PTRM input'!$P$264*(1+rvanilla10)^0.5)-SUM($P160:AK160),('PTRM input'!$P$264*(1+rvanilla10)^0.5)/A2stdlife)) -> 0 | AM160: =IF(A2stdlife="n/a","n/a",IF(AM$3>(A2stdlife+$E160),('PTRM input'!$P$264*(1+rvanilla10)^0.5)-SUM($P160:AL160),('PTRM input'!$P$264*(1+rvanilla10)^0.5)/A2stdlife)) -> 0 | AN160: =IF(A2stdlife="n/a","n/a",IF(AN$3>(A2stdlife+$E160),('PTRM input'!$P$264*(1+rvanilla10)^0.5)-SUM($P160:AM160),('PTRM input'!$P$264*(1+rvanilla10)^0.5)/A2stdlife)) -> 0 | AO160: =IF(A2stdlife="n/a","n/a",IF(AO$3>(A2stdlife+$E160),('PTRM input'!$P$264*(1+rvanilla10)^0.5)-SUM($P160:AN160),('PTRM input'!$P$264*(1+rvanilla10)^0.5)/A2stdlife)) -> 0 | AP160: =IF(A2stdlife="n/a","n/a",IF(AP$3>(A2stdlife+$E160),('PTRM input'!$P$264*(1+rvanilla10)^0.5)-SUM($P160:AO160),('PTRM input'!$P$264*(1+rvanilla10)^0.5)/A2stdlife)) -> 0 | AQ160: =IF(A2stdlife="n/a","n/a",IF(AQ$3>(A2stdlife+$E160),('PTRM input'!$P$264*(1+rvanilla10)^0.5)-SUM($P160:AP160),('PTRM input'!$P$264*(1+rvanilla10)^0.5)/A2stdlife)) -> 0 | AR160: =IF(A2stdlife="n/a","n/a",IF(AR$3>(A2stdlife+$E160),('PTRM input'!$P$264*(1+rvanilla10)^0.5)-SUM($P160:AQ160),('PTRM input'!$P$264*(1+rvanilla10)^0.5)/A2stdlife)) -> 0 | AS160: =IF(A2stdlife="n/a","n/a",IF(AS$3>(A2stdlife+$E160),('PTRM input'!$P$264*(1+rvanilla10)^0.5)-SUM($P160:AR160),('PTRM input'!$P$264*(1+rvanilla10)^0.5)/A2stdlife)) -> 0 | AT160: =IF(A2stdlife="n/a","n/a",IF(AT$3>(A2stdlife+$E160),('PTRM input'!$P$264*(1+rvanilla10)^0.5)-SUM($P160:AS160),('PTRM input'!$P$264*(1+rvanilla10)^0.5)/A2stdlife)) -> 0 | AU160: =IF(A2stdlife="n/a","n/a",IF(AU$3>(A2stdlife+$E160),('PTRM input'!$P$264*(1+rvanilla10)^0.5)-SUM($P160:AT160),('PTRM input'!$P$264*(1+rvanilla10)^0.5)/A2stdlife)) -> 0 | AV160: =IF(A2stdlife="n/a","n/a",IF(AV$3>(A2stdlife+$E160),('PTRM input'!$P$264*(1+rvanilla10)^0.5)-SUM($P160:AU160),('PTRM input'!$P$264*(1+rvanilla10)^0.5)/A2stdlife)) -> 0 | AW160: =IF(A2stdlife="n/a","n/a",IF(AW$3>(A2stdlife+$E160),('PTRM input'!$P$264*(1+rvanilla10)^0.5)-SUM($P160:AV160),('PTRM input'!$P$264*(1+rvanilla10)^0.5)/A2stdlife)) -> 0 | AX160: =IF(A2stdlife="n/a","n/a",IF(AX$3>(A2stdlife+$E160),('PTRM input'!$P$264*(1+rvanilla10)^0.5)-SUM($P160:AW160),('PTRM input'!$P$264*(1+rvanilla10)^0.5)/A2stdlife)) -> 0 | AY160: =IF(A2stdlife="n/a","n/a",IF(AY$3>(A2stdlife+$E160),('PTRM input'!$P$264*(1+rvanilla10)^0.5)-SUM($P160:AX160),('PTRM input'!$P$264*(1+rvanilla10)^0.5)/A2stdlife)) -> 0 | AZ160: =IF(A2stdlife="n/a","n/a",IF(AZ$3>(A2stdlife+$E160),('PTRM input'!$P$264*(1+rvanilla10)^0.5)-SUM($P160:AY160),('PTRM input'!$P$264*(1+rvanilla10)^0.5)/A2stdlife)) -> 0 | BA160: =IF(A2stdlife="n/a","n/a",IF(BA$3>(A2stdlife+$E160),('PTRM input'!$P$264*(1+rvanilla10)^0.5)-SUM($P160:AZ160),('PTRM input'!$P$264*(1+rvanilla10)^0.5)/A2stdlife)) -> 0 | BB160: =IF(A2stdlife="n/a","n/a",IF(BB$3>(A2stdlife+$E160),('PTRM input'!$P$264*(1+rvanilla10)^0.5)-SUM($P160:BA160),('PTRM input'!$P$264*(1+rvanilla10)^0.5)/A2stdlife)) -> 0 | BC160: =IF(A2stdlife="n/a","n/a",IF(BC$3>(A2stdlife+$E160),('PTRM input'!$P$264*(1+rvanilla10)^0.5)-SUM($P160:BB160),('PTRM input'!$P$264*(1+rvanilla10)^0.5)/A2stdlife)) -> 0 | BD160: =IF(A2stdlife="n/a","n/a",IF(BD$3>(A2stdlife+$E160),('PTRM input'!$P$264*(1+rvanilla10)^0.5)-SUM($P160:BC160),('PTRM input'!$P$264*(1+rvanilla10)^0.5)/A2stdlife)) -> 0 | BE160: =IF(A2stdlife="n/a","n/a",IF(BE$3>(A2stdlife+$E160),('PTRM input'!$P$264*(1+rvanilla10)^0.5)-SUM($P160:BD160),('PTRM input'!$P$264*(1+rvanilla10)^0.5)/A2stdlife)) -> 0 | BF160: =IF(A2stdlife="n/a","n/a",IF(BF$3>(A2stdlife+$E160),('PTRM input'!$P$264*(1+rvanilla10)^0.5)-SUM($P160:BE160),('PTRM input'!$P$264*(1+rvanilla10)^0.5)/A2stdlife)) -> 0 | BG160: =IF(A2stdlife="n/a","n/a",IF(BG$3>(A2stdlife+$E160),('PTRM input'!$P$264*(1+rvanilla10)^0.5)-SUM($P160:BF160),('PTRM input'!$P$264*(1+rvanilla10)^0.5)/A2stdlife)) -> 0 | BH160: =IF(A2stdlife="n/a","n/a",IF(BH$3>(A2stdlife+$E160),('PTRM input'!$P$264*(1+rvanilla10)^0.5)-SUM($P160:BG160),('PTRM input'!$P$264*(1+rvanilla10)^0.5)/A2stdlife)) -> 0 | BI160: =IF(A2stdlife="n/a","n/a",IF(BI$3>(A2stdlife+$E160),('PTRM input'!$P$264*(1+rvanilla10)^0.5)-SUM($P160:BH160),('PTRM input'!$P$264*(1+rvanilla10)^0.5)/A2stdlife)) -> 0
C161: =Asset2 -> Underground Sub-Transmission Cables (pre July 2010) | G161: =SUM(G149:G160) -> 1.247149817 | H161: =SUM(H149:H160) -> 1.247149817 | I161: 1.247149817 | J161: 1.247149817 | K161: 1.247149817 | L161: 1.247149817 | M161: 1.247149817 | N161: 1.247149817 | O161: 1.247149817 | P161: 1.247149817 | Q161: 1.247149817 | R161: 1.247149817 | S161: 1.247149817 | T161: 1.247149817 | U161: 1.247149817 | V161: 1.247149817 | W161: 1.247149817 | X161: 1.247149817 | Y161: 0.2691287419 | Z161: 0 | AA161: 0 | AB161: 0 | AC161: 0 | AD161: 0 | AE161: 0 | AF161: 0 | AG161: 0 | AH161: 0 | AI161: 0 | AJ161: 0 | AK161: 0 | AL161: 0 | AM161: 0 | AN161: 0 | AO161: 0 | AP161: 0 | AQ161: 0 | AR161: 0 | AS161: 0 | AT161: 0 | AU161: 0 | AV161: 0 | AW161: 0 | AX161: 0 | AY161: 0 | AZ161: 0 | BA161: 0 | BB161: 0 | BC161: 0 | BD161: 0 | BE161: 0 | BF161: 0 | BG161: 0 | BH161: 0 | BI161: 0
B162: =C174 -> Overhead Distribution Lines (pre July 2010) | D162: Initial Asset Base | G162: =IF(G$3>A3remlife,A3value-SUM($F162:F162),IF(A3remlife="N/A","n/a",A3value/A3remlife)) -> 67.63754845 | H162: =IF(H$3>A3remlife,A3value-SUM($F162:G162),IF(A3remlife="N/A","n/a",A3value/A3remlife)) -> 67.63754845 | I162: =IF(I$3>A3remlife,A3value-SUM($F162:H162),IF(A3remlife="N/A","n/a",A3value/A3remlife)) -> 67.63754845 | J162: =IF(J$3>A3remlife,A3value-SUM($F162:I162),IF(A3remlife="N/A","n/a",A3value/A3remlife)) -> 67.63754845 | K162: =IF(K$3>A3remlife,A3value-SUM($F162:J162),IF(A3remlife="N/A","n/a",A3value/A3remlife)) -> 67.63754845 | L162: =IF(L$3>A3remlife,A3value-SUM($F162:K162),IF(A3remlife="N/A","n/a",A3value/A3remlife)) -> 67.63754845 | M162: =IF(M$3>A3remlife,A3value-SUM($F162:L162),IF(A3remlife="N/A","n/a",A3value/A3remlife)) -> 67.63754845 | N162: =IF(N$3>A3remlife,A3value-SUM($F162:M162),IF(A3remlife="N/A","n/a",A3value/A3remlife)) -> 67.63754845 | O162: =IF(O$3>A3remlife,A3value-SUM($F162:N162),IF(A3remlife="N/A","n/a",A3value/A3remlife)) -> 67.63754845 | P162: =IF(P$3>A3remlife,A3value-SUM($F162:O162),IF(A3remlife="N/A","n/a",A3value/A3remlife)) -> 67.63754845 | Q162: =IF(Q$3>A3remlife,A3value-SUM($F162:P162),IF(A3remlife="N/A","n/a",A3value/A3remlife)) -> 67.63754845 | R162: =IF(R$3>A3remlife,A3value-SUM($F162:Q162),IF(A3remlife="N/A","n/a",A3value/A3remlife)) -> 67.63754845 | S162: =IF(S$3>A3remlife,A3value-SUM($F162:R162),IF(A3remlife="N/A","n/a",A3value/A3remlife)) -> 67.63754845 | T162: =IF(T$3>A3remlife,A3value-SUM($F162:S162),IF(A3remlife="N/A","n/a",A3value/A3remlife)) -> 67.63754845 | U162: =IF(U$3>A3remlife,A3value-SUM($F162:T162),IF(A3remlife="N/A","n/a",A3value/A3remlife)) -> 67.63754845 | V162: =IF(V$3>A3remlife,A3value-SUM($F162:U162),IF(A3remlife="N/A","n/a",A3value/A3remlife)) -> 67.63754845 | W162: =IF(W$3>A3remlife,A3value-SUM($F162:V162),IF(A3remlife="N/A","n/a",A3value/A3remlife)) -> 67.63754845 | X162: =IF(X$3>A3remlife,A3value-SUM($F162:W162),IF(A3remlife="N/A","n/a",A3value/A3remlife)) -> 67.63754845 | Y162: =IF(Y$3>A3remlife,A3value-SUM($F162:X162),IF(A3remlife="N/A","n/a",A3value/A3remlife)) -> 67.63754845 | Z162: =IF(Z$3>A3remlife,A3value-SUM($F162:Y162),IF(A3remlife="N/A","n/a",A3value/A3remlife)) -> 67.63754845 | AA162: =IF(AA$3>A3remlife,A3value-SUM($F162:Z162),IF(A3remlife="N/A","n/a",A3value/A3remlife)) -> 67.63754845 | AB162: =IF(AB$3>A3remlife,A3value-SUM($F162:AA162),IF(A3remlife="N/A","n/a",A3value/A3remlife)) -> 67.63754845 | AC162: =IF(AC$3>A3remlife,A3value-SUM($F162:AB162),IF(A3remlife="N/A","n/a",A3value/A3remlife)) -> 67.63754845 | AD162: =IF(AD$3>A3remlife,A3value-SUM($F162:AC162),IF(A3remlife="N/A","n/a",A3value/A3remlife)) -> 67.63754845 | AE162: =IF(AE$3>A3remlife,A3value-SUM($F162:AD162),IF(A3remlife="N/A","n/a",A3value/A3remlife)) -> 67.63754845 | AF162: =IF(AF$3>A3remlife,A3value-SUM($F162:AE162),IF(A3remlife="N/A","n/a",A3value/A3remlife)) -> 67.63754845 | AG162: =IF(AG$3>A3remlife,A3value-SUM($F162:AF162),IF(A3remlife="N/A","n/a",A3value/A3remlife)) -> 67.63754845 | AH162: =IF(AH$3>A3remlife,A3value-SUM($F162:AG162),IF(A3remlife="N/A","n/a",A3value/A3remlife)) -> 67.63754845 | AI162: =IF(AI$3>A3remlife,A3value-SUM($F162:AH162),IF(A3remlife="N/A","n/a",A3value/A3remlife)) -> 67.63754845 | AJ162: =IF(AJ$3>A3remlife,A3value-SUM($F162:AI162),IF(A3remlife="N/A","n/a",A3value/A3remlife)) -> 58.56492904 | AK162: =IF(AK$3>A3remlife,A3value-SUM($F162:AJ162),IF(A3remlife="N/A","n/a",A3value/A3remlife)) -> 0 | AL162: =IF(AL$3>A3remlife,A3value-SUM($F162:AK162),IF(A3remlife="N/A","n/a",A3value/A3remlife)) -> 0 | AM162: =IF(AM$3>A3remlife,A3value-SUM($F162:AL162),IF(A3remlife="N/A","n/a",A3value/A3remlife)) -> 0 | AN162: =IF(AN$3>A3remlife,A3value-SUM($F162:AM162),IF(A3remlife="N/A","n/a",A3value/A3remlife)) -> 0 | AO162: =IF(AO$3>A3remlife,A3value-SUM($F162:AN162),IF(A3remlife="N/A","n/a",A3value/A3remlife)) -> 0 | AP162: =IF(AP$3>A3remlife,A3value-SUM($F162:AO162),IF(A3remlife="N/A","n/a",A3value/A3remlife)) -> 0 | AQ162: =IF(AQ$3>A3remlife,A3value-SUM($F162:AP162),IF(A3remlife="N/A","n/a",A3value/A3remlife)) -> 0 | AR162: =IF(AR$3>A3remlife,A3value-SUM($F162:AQ162),IF(A3remlife="N/A","n/a",A3value/A3remlife)) -> 0 | AS162: =IF(AS$3>A3remlife,A3value-SUM($F162:AR162),IF(A3remlife="N/A","n/a",A3value/A3remlife)) -> 0 | AT162: =IF(AT$3>A3remlife,A3value-SUM($F162:AS162),IF(A3remlife="N/A","n/a",A3value/A3remlife)) -> 0 | AU162: =IF(AU$3>A3remlife,A3value-SUM($F162:AT162),IF(A3remlife="N/A","n/a",A3value/A3remlife)) -> 0 | AV162: =IF(AV$3>A3remlife,A3value-SUM($F162:AU162),IF(A3remlife="N/A","n/a",A3value/A3remlife)) -> 0 | AW162: =IF(AW$3>A3remlife,A3value-SUM($F162:AV162),IF(A3remlife="N/A","n/a",A3value/A3remlife)) -> 0 | AX162: =IF(AX$3>A3remlife,A3value-SUM($F162:AW162),IF(A3remlife="N/A","n/a",A3value/A3remlife)) -> 0 | AY162: =IF(AY$3>A3remlife,A3value-SUM($F162:AX162),IF(A3remlife="N/A","n/a",A3value/A3remlife)) -> 0 | AZ162: =IF(AZ$3>A3remlife,A3value-SUM($F162:AY162),IF(A3remlife="N/A","n/a",A3value/A3remlife)) -> 0 | BA162: =IF(BA$3>A3remlife,A3value-SUM($F162:AZ162),IF(A3remlife="N/A","n/a",A3value/A3remlife)) -> 0 | BB162: =IF(BB$3>A3remlife,A3value-SUM($F162:BA162),IF(A3remlife="N/A","n/a",A3value/A3remlife)) -> 0 | BC162: =IF(BC$3>A3remlife,A3value-SUM($F162:BB162),IF(A3remlife="N/A","n/a",A3value/A3remlife)) -> 0 | BD162: =IF(BD$3>A3remlife,A3value-SUM($F162:BC162),IF(A3remlife="N/A","n/a",A3value/A3remlife)) -> 0 | BE162: =IF(BE$3>A3remlife,A3value-SUM($F162:BD162),IF(A3remlife="N/A","n/a",A3value/A3remlife)) -> 0 | BF162: =IF(BF$3>A3remlife,A3value-SUM($F162:BE162),IF(A3remlife="N/A","n/a",A3value/A3remlife)) -> 0 | BG162: =IF(BG$3>A3remlife,A3value-SUM($F162:BF162),IF(A3remlife="N/A","n/a",A3value/A3remlife)) -> 0 | BH162: =IF(BH$3>A3remlife,A3value-SUM($F162:BG162),IF(A3remlife="N/A","n/a",A3value/A3remlife)) -> 0 | BI162: =IF(BI$3>A3remlife,A3value-SUM($F162:BH162),IF(A3remlife="N/A","n/a",A3value/A3remlife)) -> 0
D163: Capex in year | E163: 0
E164: 1 | H164: =IF(A3stdlife="n/a","n/a",IF(H$3>(A3stdlife+$E164),('PTRM input'!$G$265*(1+rvanilla01)^0.5)-SUM($G164:G164),('PTRM input'!$G$265*(1+rvanilla01)^0.5)/A3stdlife)) -> 0 | I164: =IF(A3stdlife="n/a","n/a",IF(I$3>(A3stdlife+$E164),('PTRM input'!$G$265*(1+rvanilla01)^0.5)-SUM($G164:H164),('PTRM input'!$G$265*(1+rvanilla01)^0.5)/A3stdlife)) -> 0 | J164: =IF(A3stdlife="n/a","n/a",IF(J$3>(A3stdlife+$E164),('PTRM input'!$G$265*(1+rvanilla01)^0.5)-SUM($G164:I164),('PTRM input'!$G$265*(1+rvanilla01)^0.5)/A3stdlife)) -> 0 | K164: =IF(A3stdlife="n/a","n/a",IF(K$3>(A3stdlife+$E164),('PTRM input'!$G$265*(1+rvanilla01)^0.5)-SUM($G164:J164),('PTRM input'!$G$265*(1+rvanilla01)^0.5)/A3stdlife)) -> 0 | L164: =IF(A3stdlife="n/a","n/a",IF(L$3>(A3stdlife+$E164),('PTRM input'!$G$265*(1+rvanilla01)^0.5)-SUM($G164:K164),('PTRM input'!$G$265*(1+rvanilla01)^0.5)/A3stdlife)) -> 0 | M164: =IF(A3stdlife="n/a","n/a",IF(M$3>(A3stdlife+$E164),('PTRM input'!$G$265*(1+rvanilla01)^0.5)-SUM($G164:L164),('PTRM input'!$G$265*(1+rvanilla01)^0.5)/A3stdlife)) -> 0 | N164: =IF(A3stdlife="n/a","n/a",IF(N$3>(A3stdlife+$E164),('PTRM input'!$G$265*(1+rvanilla01)^0.5)-SUM($G164:M164),('PTRM input'!$G$265*(1+rvanilla01)^0.5)/A3stdlife)) -> 0 | O164: =IF(A3stdlife="n/a","n/a",IF(O$3>(A3stdlife+$E164),('PTRM input'!$G$265*(1+rvanilla01)^0.5)-SUM($G164:N164),('PTRM input'!$G$265*(1+rvanilla01)^0.5)/A3stdlife)) -> 0 | P164: =IF(A3stdlife="n/a","n/a",IF(P$3>(A3stdlife+$E164),('PTRM input'!$G$265*(1+rvanilla01)^0.5)-SUM($G164:O164),('PTRM input'!$G$265*(1+rvanilla01)^0.5)/A3stdlife)) -> 0 | Q164: =IF(A3stdlife="n/a","n/a",IF(Q$3>(A3stdlife+$E164),('PTRM input'!$G$265*(1+rvanilla01)^0.5)-SUM($G164:P164),('PTRM input'!$G$265*(1+rvanilla01)^0.5)/A3stdlife)) -> 0 | R164: =IF(A3stdlife="n/a","n/a",IF(R$3>(A3stdlife+$E164),('PTRM input'!$G$265*(1+rvanilla01)^0.5)-SUM($G164:Q164),('PTRM input'!$G$265*(1+rvanilla01)^0.5)/A3stdlife)) -> 0 | S164: =IF(A3stdlife="n/a","n/a",IF(S$3>(A3stdlife+$E164),('PTRM input'!$G$265*(1+rvanilla01)^0.5)-SUM($G164:R164),('PTRM input'!$G$265*(1+rvanilla01)^0.5)/A3stdlife)) -> 0 | T164: =IF(A3stdlife="n/a","n/a",IF(T$3>(A3stdlife+$E164),('PTRM input'!$G$265*(1+rvanilla01)^0.5)-SUM($G164:S164),('PTRM input'!$G$265*(1+rvanilla01)^0.5)/A3stdlife)) -> 0 | U164: =IF(A3stdlife="n/a","n/a",IF(U$3>(A3stdlife+$E164),('PTRM input'!$G$265*(1+rvanilla01)^0.5)-SUM($G164:T164),('PTRM input'!$G$265*(1+rvanilla01)^0.5)/A3stdlife)) -> 0 | V164: =IF(A3stdlife="n/a","n/a",IF(V$3>(A3stdlife+$E164),('PTRM input'!$G$265*(1+rvanilla01)^0.5)-SUM($G164:U164),('PTRM input'!$G$265*(1+rvanilla01)^0.5)/A3stdlife)) -> 0 | W164: =IF(A3stdlife="n/a","n/a",IF(W$3>(A3stdlife+$E164),('PTRM input'!$G$265*(1+rvanilla01)^0.5)-SUM($G164:V164),('PTRM input'!$G$265*(1+rvanilla01)^0.5)/A3stdlife)) -> 0 | X164: =IF(A3stdlife="n/a","n/a",IF(X$3>(A3stdlife+$E164),('PTRM input'!$G$265*(1+rvanilla01)^0.5)-SUM($G164:W164),('PTRM input'!$G$265*(1+rvanilla01)^0.5)/A3stdlife)) -> 0 | Y164: =IF(A3stdlife="n/a","n/a",IF(Y$3>(A3stdlife+$E164),('PTRM input'!$G$265*(1+rvanilla01)^0.5)-SUM($G164:X164),('PTRM input'!$G$265*(1+rvanilla01)^0.5)/A3stdlife)) -> 0 | Z164: =IF(A3stdlife="n/a","n/a",IF(Z$3>(A3stdlife+$E164),('PTRM input'!$G$265*(1+rvanilla01)^0.5)-SUM($G164:Y164),('PTRM input'!$G$265*(1+rvanilla01)^0.5)/A3stdlife)) -> 0 | AA164: =IF(A3stdlife="n/a","n/a",IF(AA$3>(A3stdlife+$E164),('PTRM input'!$G$265*(1+rvanilla01)^0.5)-SUM($G164:Z164),('PTRM input'!$G$265*(1+rvanilla01)^0.5)/A3stdlife)) -> 0 | AB164: =IF(A3stdlife="n/a","n/a",IF(AB$3>(A3stdlife+$E164),('PTRM input'!$G$265*(1+rvanilla01)^0.5)-SUM($G164:AA164),('PTRM input'!$G$265*(1+rvanilla01)^0.5)/A3stdlife)) -> 0 | AC164: =IF(A3stdlife="n/a","n/a",IF(AC$3>(A3stdlife+$E164),('PTRM input'!$G$265*(1+rvanilla01)^0.5)-SUM($G164:AB164),('PTRM input'!$G$265*(1+rvanilla01)^0.5)/A3stdlife)) -> 0 | AD164: =IF(A3stdlife="n/a","n/a",IF(AD$3>(A3stdlife+$E164),('PTRM input'!$G$265*(1+rvanilla01)^0.5)-SUM($G164:AC164),('PTRM input'!$G$265*(1+rvanilla01)^0.5)/A3stdlife)) -> 0 | AE164: =IF(A3stdlife="n/a","n/a",IF(AE$3>(A3stdlife+$E164),('PTRM input'!$G$265*(1+rvanilla01)^0.5)-SUM($G164:AD164),('PTRM input'!$G$265*(1+rvanilla01)^0.5)/A3stdlife)) -> 0 | AF164: =IF(A3stdlife="n/a","n/a",IF(AF$3>(A3stdlife+$E164),('PTRM input'!$G$265*(1+rvanilla01)^0.5)-SUM($G164:AE164),('PTRM input'!$G$265*(1+rvanilla01)^0.5)/A3stdlife)) -> 0 | AG164: =IF(A3stdlife="n/a","n/a",IF(AG$3>(A3stdlife+$E164),('PTRM input'!$G$265*(1+rvanilla01)^0.5)-SUM($G164:AF164),('PTRM input'!$G$265*(1+rvanilla01)^0.5)/A3stdlife)) -> 0 | AH164: =IF(A3stdlife="n/a","n/a",IF(AH$3>(A3stdlife+$E164),('PTRM input'!$G$265*(1+rvanilla01)^0.5)-SUM($G164:AG164),('PTRM input'!$G$265*(1+rvanilla01)^0.5)/A3stdlife)) -> 0 | AI164: =IF(A3stdlife="n/a","n/a",IF(AI$3>(A3stdlife+$E164),('PTRM input'!$G$265*(1+rvanilla01)^0.5)-SUM($G164:AH164),('PTRM input'!$G$265*(1+rvanilla01)^0.5)/A3stdlife)) -> 0 | AJ164: =IF(A3stdlife="n/a","n/a",IF(AJ$3>(A3stdlife+$E164),('PTRM input'!$G$265*(1+rvanilla01)^0.5)-SUM($G164:AI164),('PTRM input'!$G$265*(1+rvanilla01)^0.5)/A3stdlife)) -> 0 | AK164: =IF(A3stdlife="n/a","n/a",IF(AK$3>(A3stdlife+$E164),('PTRM input'!$G$265*(1+rvanilla01)^0.5)-SUM($G164:AJ164),('PTRM input'!$G$265*(1+rvanilla01)^0.5)/A3stdlife)) -> 0 | AL164: =IF(A3stdlife="n/a","n/a",IF(AL$3>(A3stdlife+$E164),('PTRM input'!$G$265*(1+rvanilla01)^0.5)-SUM($G164:AK164),('PTRM input'!$G$265*(1+rvanilla01)^0.5)/A3stdlife)) -> 0 | AM164: =IF(A3stdlife="n/a","n/a",IF(AM$3>(A3stdlife+$E164),('PTRM input'!$G$265*(1+rvanilla01)^0.5)-SUM($G164:AL164),('PTRM input'!$G$265*(1+rvanilla01)^0.5)/A3stdlife)) -> 0 | AN164: =IF(A3stdlife="n/a","n/a",IF(AN$3>(A3stdlife+$E164),('PTRM input'!$G$265*(1+rvanilla01)^0.5)-SUM($G164:AM164),('PTRM input'!$G$265*(1+rvanilla01)^0.5)/A3stdlife)) -> 0 | AO164: =IF(A3stdlife="n/a","n/a",IF(AO$3>(A3stdlife+$E164),('PTRM input'!$G$265*(1+rvanilla01)^0.5)-SUM($G164:AN164),('PTRM input'!$G$265*(1+rvanilla01)^0.5)/A3stdlife)) -> 0 | AP164: =IF(A3stdlife="n/a","n/a",IF(AP$3>(A3stdlife+$E164),('PTRM input'!$G$265*(1+rvanilla01)^0.5)-SUM($G164:AO164),('PTRM input'!$G$265*(1+rvanilla01)^0.5)/A3stdlife)) -> 0 | AQ164: =IF(A3stdlife="n/a","n/a",IF(AQ$3>(A3stdlife+$E164),('PTRM input'!$G$265*(1+rvanilla01)^0.5)-SUM($G164:AP164),('PTRM input'!$G$265*(1+rvanilla01)^0.5)/A3stdlife)) -> 0 | AR164: =IF(A3stdlife="n/a","n/a",IF(AR$3>(A3stdlife+$E164),('PTRM input'!$G$265*(1+rvanilla01)^0.5)-SUM($G164:AQ164),('PTRM input'!$G$265*(1+rvanilla01)^0.5)/A3stdlife)) -> 0 | AS164: =IF(A3stdlife="n/a","n/a",IF(AS$3>(A3stdlife+$E164),('PTRM input'!$G$265*(1+rvanilla01)^0.5)-SUM($G164:AR164),('PTRM input'!$G$265*(1+rvanilla01)^0.5)/A3stdlife)) -> 0 | AT164: =IF(A3stdlife="n/a","n/a",IF(AT$3>(A3stdlife+$E164),('PTRM input'!$G$265*(1+rvanilla01)^0.5)-SUM($G164:AS164),('PTRM input'!$G$265*(1+rvanilla01)^0.5)/A3stdlife)) -> 0 | AU164: =IF(A3stdlife="n/a","n/a",IF(AU$3>(A3stdlife+$E164),('PTRM input'!$G$265*(1+rvanilla01)^0.5)-SUM($G164:AT164),('PTRM input'!$G$265*(1+rvanilla01)^0.5)/A3stdlife)) -> 0 | AV164: =IF(A3stdlife="n/a","n/a",IF(AV$3>(A3stdlife+$E164),('PTRM input'!$G$265*(1+rvanilla01)^0.5)-SUM($G164:AU164),('PTRM input'!$G$265*(1+rvanilla01)^0.5)/A3stdlife)) -> 0 | AW164: =IF(A3stdlife="n/a","n/a",IF(AW$3>(A3stdlife+$E164),('PTRM input'!$G$265*(1+rvanilla01)^0.5)-SUM($G164:AV164),('PTRM input'!$G$265*(1+rvanilla01)^0.5)/A3stdlife)) -> 0 | AX164: =IF(A3stdlife="n/a","n/a",IF(AX$3>(A3stdlife+$E164),('PTRM input'!$G$265*(1+rvanilla01)^0.5)-SUM($G164:AW164),('PTRM input'!$G$265*(1+rvanilla01)^0.5)/A3stdlife)) -> 0 | AY164: =IF(A3stdlife="n/a","n/a",IF(AY$3>(A3stdlife+$E164),('PTRM input'!$G$265*(1+rvanilla01)^0.5)-SUM($G164:AX164),('PTRM input'!$G$265*(1+rvanilla01)^0.5)/A3stdlife)) -> 0 | AZ164: =IF(A3stdlife="n/a","n/a",IF(AZ$3>(A3stdlife+$E164),('PTRM input'!$G$265*(1+rvanilla01)^0.5)-SUM($G164:AY164),('PTRM input'!$G$265*(1+rvanilla01)^0.5)/A3stdlife)) -> 0 | BA164: =IF(A3stdlife="n/a","n/a",IF(BA$3>(A3stdlife+$E164),('PTRM input'!$G$265*(1+rvanilla01)^0.5)-SUM($G164:AZ164),('PTRM input'!$G$265*(1+rvanilla01)^0.5)/A3stdlife)) -> 0 | BB164: =IF(A3stdlife="n/a","n/a",IF(BB$3>(A3stdlife+$E164),('PTRM input'!$G$265*(1+rvanilla01)^0.5)-SUM($G164:BA164),('PTRM input'!$G$265*(1+rvanilla01)^0.5)/A3stdlife)) -> 0 | BC164: =IF(A3stdlife="n/a","n/a",IF(BC$3>(A3stdlife+$E164),('PTRM input'!$G$265*(1+rvanilla01)^0.5)-SUM($G164:BB164),('PTRM input'!$G$265*(1+rvanilla01)^0.5)/A3stdlife)) -> 0 | BD164: =IF(A3stdlife="n/a","n/a",IF(BD$3>(A3stdlife+$E164),('PTRM input'!$G$265*(1+rvanilla01)^0.5)-SUM($G164:BC164),('PTRM input'!$G$265*(1+rvanilla01)^0.5)/A3stdlife)) -> 0 | BE164: =IF(A3stdlife="n/a","n/a",IF(BE$3>(A3stdlife+$E164),('PTRM input'!$G$265*(1+rvanilla01)^0.5)-SUM($G164:BD164),('PTRM input'!$G$265*(1+rvanilla01)^0.5)/A3stdlife)) -> 0 | BF164: =IF(A3stdlife="n/a","n/a",IF(BF$3>(A3stdlife+$E164),('PTRM input'!$G$265*(1+rvanilla01)^0.5)-SUM($G164:BE164),('PTRM input'!$G$265*(1+rvanilla01)^0.5)/A3stdlife)) -> 0 | BG164: =IF(A3stdlife="n/a","n/a",IF(BG$3>(A3stdlife+$E164),('PTRM input'!$G$265*(1+rvanilla01)^0.5)-SUM($G164:BF164),('PTRM input'!$G$265*(1+rvanilla01)^0.5)/A3stdlife)) -> 0 | BH164: =IF(A3stdlife="n/a","n/a",IF(BH$3>(A3stdlife+$E164),('PTRM input'!$G$265*(1+rvanilla01)^0.5)-SUM($G164:BG164),('PTRM input'!$G$265*(1+rvanilla01)^0.5)/A3stdlife)) -> 0 | BI164: =IF(A3stdlife="n/a","n/a",IF(BI$3>(A3stdlife+$E164),('PTRM input'!$G$265*(1+rvanilla01)^0.5)-SUM($G164:BH164),('PTRM input'!$G$265*(1+rvanilla01)^0.5)/A3stdlife)) -> 0
